Workbook

Sheet START

Sheet Instructions
D2: 2020
X4: Yes
X5: No
W7: Type of Entities Range:
X8: Parent Municipality
X9: Consolidated Information
W17: MTREF Range: | X17: 2008
X18: 2009
X19: 2010
X20: 2011
X21: 2012
X22: 2013
X23: 2014
X24: 2015
X25: 2016
X26: 2017
X27: 2018
X28: 2019
X29: 2020
X30: 2021
X31: 2022
W33: MTREF Linked: | X33: 13
W34: MTREF: | X34: =INDEX(X17:X31,X33,1) -> 2020
W36: Fin Year: | X36: =MTREF&"/"&RIGHT(MTREF,2)+1 -> 2020/21

Sheet Template names (hidden)
A1: Common sheet headings
A2: Head1 | B2: =HLOOKUP(MTREF,Headings,2) -> 2018/19 | C2: Prior year -1
A3: Head1A | B3: =HLOOKUP(MTREF,Headings,3) -> 2017/18 | C3: Prior year -2
A4: Head1B | B4: =HLOOKUP(MTREF,Headings,4) -> 2016/17 | C4: Prior year -3
A5: Head2 | B5: =HLOOKUP(MTREF,Headings,5) -> Current Year 2019/20 | C5: Year in which budget is being prepared
A6: Head2A | B6: =HLOOKUP(MTREF,Headings,6) -> 2019/20 | C6: Year in which budget is being prepared
A7: Head3 | B7: =HLOOKUP(MTREF,Headings,7) -> 2020/21 Medium Term Revenue & Expenditure Framework | C7: MTREF name
A8: Head4 | B8: LTFS | C8: Long term financial strategy
A9: Head5 | B9: Audited Outcome
A10: Head5A | B10: Outcome
A11: Head5B | B11: Pre-audit outcome
A12: Head6 | B12: Original Budget
A13: Head7 | B13: Adjusted Budget
A14: Head8 | B14: Full Year Forecast
A15: Head9 | B15: =HLOOKUP(MTREF,Headings,8) -> Budget Year 2020/21 | C15: 1st year of MTREF | D15: Year1
A16: Head10 | B16: =HLOOKUP(MTREF,Headings,9) -> Budget Year +1 2021/22 | C16: 2nd year of MTREF | D16: Year2
A17: Head11 | B17: =HLOOKUP(MTREF,Headings,10) -> Budget Year +2 2022/23 | C17: 3rd year of MTREF | D17: Year3
A18: Head12 | B18: =HLOOKUP(MTREF,Headings,11) -> Forecast 2023/24 | C18: 1st yr of long term forecast | D18: Year4
A19: Head13 | B19: =HLOOKUP(MTREF,Headings,12) -> Forecast 2024/25 | C19: Next yr of long term forecast | D19: Year5
A20: Head14 | B20: =HLOOKUP(MTREF,Headings,13) -> Forecast 2025/26 | C20: Next yr of long term forecast | D20: Year6
A21: Head15 | B21: =HLOOKUP(MTREF,Headings,14) -> Forecast 2026/27 | C21: Next yr of long term forecast | D21: Year7
A22: Head16 | B22: =HLOOKUP(MTREF,Headings,15) -> Forecast 2027/28 | C22: Next yr of long term forecast | D22: Year8
A23: Head17 | B23: =HLOOKUP(MTREF,Headings,16) -> Forecast 2028/29 | C23: Next yr of long term forecast | D23: Year9
A24: Head18 | B24: =HLOOKUP(MTREF,Headings,17) -> Forecast 2029/30 | C24: Next yr of long term forecast | D24: Year10
A25: Head19 | B25: =HLOOKUP(MTREF,Headings,18) -> Forecast 2030/31 | C25: Next yr of long term forecast | D25: Year11
A26: Head20 | B26: =HLOOKUP(MTREF,Headings,19) -> Forecast 2031/32 | C26: Next yr of long term forecast | D26: Year12
A27: Head21 | B27: =HLOOKUP(MTREF,Headings,20) -> Forecast 2032/33 | C27: Next yr of long term forecast | D27: Year13
A28: Head22 | B28: =HLOOKUP(MTREF,Headings,21) -> Forecast 2033/34 | C28: Next yr of long term forecast | D28: Year14
A29: Head23 | B29: =HLOOKUP(MTREF,Headings,22) -> Forecast 2034/35 | C29: Next yr of long term forecast | D29: Year15
A30: Head24 | B30: Description
A31: Head25
A32: Head26 | B32: Vote Description
A33: Head27 | B33: Ref
A34: Head27a | B34: References
A35: Head28 | B35: Surplus/(Deficit) for the year | D35: Result
A36: Head29 | B36: =HLOOKUP(MTREF,Headings,23) -> Annual target 2020/21
A37: Head30 | B37: =HLOOKUP(MTREF,Headings,24) -> Revised target 2020/21
A38: Head31 | B38: Quarter ended 30 September
A39: Head32 | B39: Quarter ended 31 December
A40: Head33 | B40: Quarter ended 31 March
A41: Head34 | B41: Quarter ended 30 June
A42: Head35 | B42: Variance explanation
A43: Head36 | B43: YTD Actual 31 Dec
A44: Head37 | B44: YTD Budget 31 Dec
A45: Head38 | B45: Monthly actual
A46: Head39 | B46: YTD actual
A47: Head40 | B47: YTD budget
A48: Head41 | B48: YTD variance
A49: Head42 | B49: Surplus/ (Deficit) for the yr/period
A50: Head43 | B50: =Head3&" Summary" -> 2020/21 Medium Term Revenue & Expenditure Framework Summary
A51: Head44 | B51: 2001 Census
A52: Head45 | B52: 2011 Census
A53: Head46 | B53: - Adjustments Budget - January 2007
A54: Head47 | B54: Previous target year to complete
A55: Head48 | B55: Present value
A56: Head49
A57: Head50 | B57: Other Adjusts.
A58: Head51 | B58: Accum. Funds
A59: Head52 | B59: Multi-year capital
A60: Head53 | B60: Unfore. Unavoid.
A61: Head54 | B61: Prior Adjusted
A62: Head55 | B62: Nat. or Prov. Govt
A63: Head56 | B63: Total Adjusts.
A64: SFPerf1 | B64: Budgeted Financial Performance
A65: SFPerf2 | B65: Forecast Financial Performance
A66: SFPos1 | B66: Budgeted Financial Position
A67: SFPos2 | B67: Forecast Financial Position
A68: Cash1 | B68: Budget Cash Flow
A69: Cash2 | B69: Forecast Cash Flow
A70: RandM | B70: Expenditure includes repairs & maintenance of R'000
A71: Depart1 | B71: Department 1 - | D71: DEP1
A72: Depart2 | B72: Department 2 - | D72: DEP2
A73: Depart3 | B73: Department 3 - | D73: DEP3
A74: Depart4 | B74: Department 4 - | D74: DEP4
A75: Depart5 | B75: Department 5 - | D75: DEP5
A76: Depart6 | B76: Department 6 - | D76: DEP6
A77: Depart7 | B77: Department 7 - | D77: DEP7
A78: Depart8 | B78: Department 8 - | D78: DEP8
A79: Depart9 | B79: Department 9 - | D79: DEP9
A80: Depart10 | B80: Department 10 - | D80: DEP10
A81: Depart11 | B81: Department 11 - | D81: DEP11
A82: Depart12 | B82: Department 12 - | D82: DEP12
A83: Depart13 | B83: Department 13 - | D83: DEP13
A84: Depart14 | B84: Department 14 - | D84: DEP14
A87: Base year of forecast column selection names
A88: Choose | B88: ACT
B89: APP
B90: ADJ
A92: Standard nomenclature
A93: Muni | B93: ='Lookup and lists'!B28 -> FS163 Mohokare
A94: Municipal Entities | B94: 2 | C94: Type of report: | D94: 1
A95: =IF((MuniEntities=1)*(MuniType=2),"YES","NO") -> NO | B95: Does this municipality have entities (consolidated budget and entity budgets required)? YES/NO
A96: Entity 1 | B96: (Pty) Ltd Example 1 - Municipal entity - | D96: Ent1
A97: Entity 2 | B97: (Pty) Ltd Example 2 - Municipal entity - | D97: Ent2
A98: Entity 3 | B98: Municipal Entity Example 3 | D98: Ent3
A99: Budget approval tables | C99: Chart x-ref | D99: Sch/Tab/Ch | E99: Alternative for municipalities without entities | F99: Alternative for municipalities without entities
B100: =IF(Consolques="YES",E100,F100) -> Table A1 Budget Summary | D100: Table A1 | E100: =D100&"Consolidated Budget Summary" -> Table A1 Consolidated Budget Summary | F100: =D100&"Budget Summary" -> Table A1 Budget Summary
B101: Table A2 Budgeted Financial Performance (revenue and expenditure by functional classification) | C101: Charts 5, 6 | D101: Table A2 | E101: =D101&"Consolidated Budgeted Financial Performance (revenue and expenditure by functional classification)" -> Table A2 Consolidated Budgeted Financial Performance (revenue and expenditure by functional classification) | F101: =D101&"Budgeted Financial Performance (revenue and expenditure by functional classification)" -> Table A2 Budgeted Financial Performance (revenue and expenditure by functional classification)
B102: Table A3 Budgeted Financial Performance (revenue and expenditure by municipal vote) | D102: Table A3 | E102: =D102&"Consolidated Budgeted Financial Performance (revenue and expenditure by municipal vote)" -> Table A3 Consolidated Budgeted Financial Performance (revenue and expenditure by municipal vote) | F102: =D102&"Budgeted Financial Performance (revenue and expenditure by municipal vote)" -> Table A3 Budgeted Financial Performance (revenue and expenditure by municipal vote)
B103: Table A4 Budgeted Financial Performance (revenue and expenditure) | C103: Charts 1, 2, 3, 4 | D103: Table A4 | E103: =D103&"Consolidated Budgeted Financial Performance (revenue and expenditure)" -> Table A4 Consolidated Budgeted Financial Performance (revenue and expenditure) | F103: =D103&"Budgeted Financial Performance (revenue and expenditure)" -> Table A4 Budgeted Financial Performance (revenue and expenditure)
B104: Table A5 Budgeted Capital Expenditure by vote, functional classification and funding | C104: Charts 7, 8, 9, 10, 20 | D104: Table A5 | E104: =D104&"Consolidated Budgeted Capital Expenditure by vote, functional classification and funding" -> Table A5 Consolidated Budgeted Capital Expenditure by vote, functional classification and funding | F104: =D104&"Budgeted Capital Expenditure by vote, functional classification and funding" -> Table A5 Budgeted Capital Expenditure by vote, functional classification and funding
B105: Table A6 Budgeted Financial Position | D105: Table A6 | E105: =D105&"Consolidated Budgeted Financial Position" -> Table A6 Consolidated Budgeted Financial Position | F105: =D105&"Budgeted Financial Position" -> Table A6 Budgeted Financial Position
B106: Table A7 Budgeted Cash Flows | D106: Table A7 | E106: =D106&"Consolidated Budgeted Cash Flows" -> Table A7 Consolidated Budgeted Cash Flows | F106: =D106&"Budgeted Cash Flows" -> Table A7 Budgeted Cash Flows
B107: Table A8 Cash backed reserves/accumulated surplus reconciliation | D107: Table A8 | E107: =D107&"Consolidated Cash backed reserves/accumulated surplus reconciliation" -> Table A8 Consolidated Cash backed reserves/accumulated surplus reconciliation | F107: =D107&"Cash backed reserves/accumulated surplus reconciliation" -> Table A8 Cash backed reserves/accumulated surplus reconciliation
B108: Table A9 Asset Management | D108: Table A9 | E108: =D108&"Consolidated Asset Management" -> Table A9 Consolidated Asset Management | F108: =D108&"Asset Management" -> Table A9 Asset Management
B109: Table A10 Basic service delivery measurement | D109: Table A10 | E109: =D109&"Consolidated basic service delivery measurement" -> Table A10 Consolidated basic service delivery measurement | F109: =D109&"Basic service delivery measurement" -> Table A10 Basic service delivery measurement
A110: Supportinging Tables to the Budget Approval Tables | C110: =$C$99 -> Chart x-ref | D110: =$D$99 -> Sch/Tab/Ch
A111: Supporting Table SA1 | B111: =A111&" Supportinging detail to 'Budgeted Financial Performance'" -> Supporting Table SA1 Supportinging detail to 'Budgeted Financial Performance'
A112: Supporting Table SA2 | B112: =IF(Consolques="YES",E112,F112) -> Supporting Table SA2 Matrix Financial Performance Budget (revenue source/expenditure type and dept.) | E112: =A112&"Consolidated Matrix Financial Performance Budget (revenue source/expenditure type & dept.)" -> Supporting Table SA2 Consolidated Matrix Financial Performance Budget (revenue source/expenditure type & dept.) | F112: =A112&"Matrix Financial Performance Budget (revenue source/expenditure type and dept.)" -> Supporting Table SA2 Matrix Financial Performance Budget (revenue source/expenditure type and dept.)
A113: Supporting Table SA3 | B113: =A113&"Supportinging detail to 'Budgeted Financial Position'" -> Supporting Table SA3 Supportinging detail to 'Budgeted Financial Position'
A114: Supporting Table SA4 | B114: =A114&"Reconciliation of IDP strategic objectives and budget (revenue)" -> Supporting Table SA4 Reconciliation of IDP strategic objectives and budget (revenue) | C114: Chart 11
A115: Supporting Table SA5 | B115: =A115&"Reconciliation of IDP strategic objectives and budget (operating expenditure)" -> Supporting Table SA5 Reconciliation of IDP strategic objectives and budget (operating expenditure) | C115: Chart 12
A116: Supporting Table SA6 | B116: =A116&"Reconciliation of IDP strategic objectives and budget (capital expenditure)" -> Supporting Table SA6 Reconciliation of IDP strategic objectives and budget (capital expenditure) | C116: Chart 13
A117: Supporting Table SA7 | B117: =A117&" Measureable performance objectives" -> Supporting Table SA7 Measureable performance objectives
A118: Supporting Table SA8 | B118: =A118&" Performance indicators and benchmarks" -> Supporting Table SA8 Performance indicators and benchmarks | C118: Chts 15-19
A119: Supporting Table SA9 | B119: =A119&" Social, economic and demographic statistics and assumptions" -> Supporting Table SA9 Social, economic and demographic statistics and assumptions
A120: Supporting Table SA10 | B120: =A120&" Funding measurement" -> Supporting Table SA10 Funding measurement | C120: Chart 14
A121: Supporting Table SA11 | B121: =A121&" Property rates summary" -> Supporting Table SA11 Property rates summary
A122: Supporting Table SA12a | B122: =A122&" Property rates by category (current year)" -> Supporting Table SA12a Property rates by category (current year)
A123: Supporting Table SA12b | B123: =A123&" Property rates by category (budget year)" -> Supporting Table SA12b Property rates by category (budget year)
A124: Supporting Table SA13a | B124: =A124&" Service Tariffs by category" -> Supporting Table SA13a Service Tariffs by category
A125: Supporting Table SA13b | B125: =A125&" Service Tariffs by category - explanatory" -> Supporting Table SA13b Service Tariffs by category - explanatory
A126: Supporting Table SA14 | B126: =A126&" Household bills" -> Supporting Table SA14 Household bills
A127: Supporting Table SA15 | B127: =A127&" Investment particulars by type" -> Supporting Table SA15 Investment particulars by type
A128: Supporting Table SA16 | B128: =A128&" Investment particulars by maturity" -> Supporting Table SA16 Investment particulars by maturity
A129: Supporting Table SA17 | B129: =A129&" Borrowing" -> Supporting Table SA17 Borrowing
A130: Supporting Table SA18 | B130: =A130&" Transfers and grant receipts" -> Supporting Table SA18 Transfers and grant receipts
A131: Supporting Table SA19 | B131: =A131&" Expenditure on transfers and grant programme" -> Supporting Table SA19 Expenditure on transfers and grant programme
A132: Supporting Table SA20 | B132: =A132&" Reconciliation of transfers, grant receipts and unspent funds" -> Supporting Table SA20 Reconciliation of transfers, grant receipts and unspent funds
A133: Supporting Table SA21 | B133: =A133&" Transfers and grants made by the municipality" -> Supporting Table SA21 Transfers and grants made by the municipality
A134: Supporting Table SA22 | B134: =A134&" Summary councillor and staff benefits" -> Supporting Table SA22 Summary councillor and staff benefits
A135: Supporting Table SA23 | B135: =A135&" Salaries, allowances & benefits (political office bearers/councillors/senior managers)" -> Supporting Table SA23 Salaries, allowances & benefits (political office bearers/councillors/senior managers)
A136: Supporting Table SA24 | B136: =A136&" Summary of personnel numbers" -> Supporting Table SA24 Summary of personnel numbers
A137: Supporting Table SA25 | B137: =IF(Consolques="YES",E137,F137) -> Supporting Table SA25 Budgeted monthly revenue and expenditure | E137: =A137&" Consolidated budgeted monthly revenue and expenditure" -> Supporting Table SA25 Consolidated budgeted monthly revenue and expenditure | F137: =A137&" Budgeted monthly revenue and expenditure" -> Supporting Table SA25 Budgeted monthly revenue and expenditure
A138: Supporting Table SA26 | B138: Supporting Table SA26 Budgeted monthly revenue and expenditure (municipal vote) | E138: =A138&" Consolidated budgeted monthly revenue and expenditure (municipal vote)" -> Supporting Table SA26 Consolidated budgeted monthly revenue and expenditure (municipal vote) | F138: =A138&" Budgeted monthly revenue and expenditure (municipal vote)" -> Supporting Table SA26 Budgeted monthly revenue and expenditure (municipal vote)
A139: Supporting Table SA27 | B139: Supporting Table SA27 Budgeted monthly revenue and expenditure (functional classification) | E139: =A139&" Consolidated budgeted monthly revenue and expenditure (functional classification)" -> Supporting Table SA27 Consolidated budgeted monthly revenue and expenditure (functional classification) | F139: =A139&" Budgeted monthly revenue and expenditure (functional classification)" -> Supporting Table SA27 Budgeted monthly revenue and expenditure (functional classification)
A140: Supporting Table SA28 | B140: Supporting Table SA28 Budgeted monthly capital expenditure (municipal vote) | E140: =A140&" Consolidated budgeted monthly capital expenditure (municipal vote)" -> Supporting Table SA28 Consolidated budgeted monthly capital expenditure (municipal vote) | F140: =A140&" Budgeted monthly capital expenditure (municipal vote)" -> Supporting Table SA28 Budgeted monthly capital expenditure (municipal vote)
A141: Supporting Table SA29 | B141: Supporting Table SA29 Budgeted monthly capital expenditure (functional classification) | E141: =A141&" Consolidated budgeted monthly capital expenditure (functional classification)" -> Supporting Table SA29 Consolidated budgeted monthly capital expenditure (functional classification) | F141: =A141&" Budgeted monthly capital expenditure (functional classification)" -> Supporting Table SA29 Budgeted monthly capital expenditure (functional classification)
A142: Supporting Table SA30 | B142: Supporting Table SA30 Budgeted monthly cash flow | E142: =A142&" Consolidated budgeted monthly cash flow" -> Supporting Table SA30 Consolidated budgeted monthly cash flow | F142: =A142&" Budgeted monthly cash flow" -> Supporting Table SA30 Budgeted monthly cash flow
A143: Supporting Table SA31 | B143: NOT REQUIRED - municipality does not have entities | E143: =A143&" Aggregated entity budget" -> Supporting Table SA31 Aggregated entity budget | F143: NOT REQUIRED - municipality does not have entities
A144: Supporting Table SA32 | B144: =A144&" List of external mechanisms" -> Supporting Table SA32 List of external mechanisms
A145: Supporting Table SA33 | B145: =A145&" Contracts having future budgetary implications" -> Supporting Table SA33 Contracts having future budgetary implications
A146: Supporting Table SA34a | B146: =IF(Consolques="YES",E146,F146) -> Supporting Table SA34a Capital expenditure on new assets by asset class | E146: =A146&" Consolidated capital expenditure on new assets by asset class" -> Supporting Table SA34a Consolidated capital expenditure on new assets by asset class | F146: =A146&" Capital expenditure on new assets by asset class" -> Supporting Table SA34a Capital expenditure on new assets by asset class
A147: Supporting Table SA34b | B147: Supporting Table SA34b Capital expenditure on the renewal of existing assets by asset class | E147: =A147&" Consolidated capital expenditure on the renewal of existing assets by asset class" -> Supporting Table SA34b Consolidated capital expenditure on the renewal of existing assets by asset class | F147: =A147&" Capital expenditure on the renewal of existing assets by asset class" -> Supporting Table SA34b Capital expenditure on the renewal of existing assets by asset class
A148: Supporting Table SA34c | B148: Supporting Table SA34c Repairs and maintenance expenditure by asset class | E148: =A148&" Consolidated repairs and maintenance by asset class" -> Supporting Table SA34c Consolidated repairs and maintenance by asset class | F148: =A148&" Repairs and maintenance expenditure by asset class" -> Supporting Table SA34c Repairs and maintenance expenditure by asset class
A149: Supporting Table SA34d | B149: =IF(Consolques="YES",E149,F149) -> Supporting Table SA34d Depreciation by asset class | E149: =A149&" Consolidated Depreciation by asset class" -> Supporting Table SA34d Consolidated Depreciation by asset class | F149: =A149&" Depreciation by asset class" -> Supporting Table SA34d Depreciation by asset class
A150: Supporting Table SA34e | B150: =IF(Consolques="YES",E150,F150) -> Supporting Table SA34e Capital expenditure on the upgrading of existing assets by asset class | E150: =A150&" Consolidated capital expenditure on the upgrading of existing assets by asset class" -> Supporting Table SA34e Consolidated capital expenditure on the upgrading of existing assets by asset class | F150: =A150&" Capital expenditure on the upgrading of existing assets by asset class" -> Supporting Table SA34e Capital expenditure on the upgrading of existing assets by asset class
A151: Supporting Table SA35 | B151: Supporting Table SA35 Future financial implications of the capital budget | E151: =A151&" Consolidated future financial implications of the capital budget" -> Supporting Table SA35 Consolidated future financial implications of the capital budget | F151: =A151& " Future financial implications of the capital budget" -> Supporting Table SA35 Future financial implications of the capital budget
A152: Supporting Table SA36 | B152: Supporting Table SA36 Detailed capital budget | E152: =A152&" Consolidated detailed capital budget" -> Supporting Table SA36 Consolidated detailed capital budget | F152: =A152& " Detailed capital budget" -> Supporting Table SA36 Detailed capital budget
A153: Supporting Table SA37 | B153: Supporting Table SA37 Projects delayed from previous financial year/s | E153: =A153&" Consolidated projects delayed from previous financial year/s" -> Supporting Table SA37 Consolidated projects delayed from previous financial year/s | F153: =A153& " Projects delayed from previous financial year/s" -> Supporting Table SA37 Projects delayed from previous financial year/s
A154: Supporting Table SA38 | B154: =IF(Consolques="YES",E154,F154) -> Supporting Table SA38 Detailed operational projects | E154: =A154&" Consolidated detailed operational projects" -> Supporting Table SA38 Consolidated detailed operational projects | F154: =A154& " Detailed operational projects" -> Supporting Table SA38 Detailed operational projects
A156: Budget Charts | B156: Charts | C156: Cross reference
A157: Chart A1 | B157: =A157&"Revenue by Municipal Vote" -> Chart A1 Revenue by Municipal Vote
A158: Chart A2 | B158: =A158&"Expenditure by Municipal Vote" -> Chart A2 Expenditure by Municipal Vote
A159: Chart A3 | B159: =A159&"Revenue by Standard Classification" -> Chart A3 Revenue by Standard Classification | C159: A2
A160: Chart A4 | B160: =A160&"Expenditure by Standard Classification" -> Chart A4 Expenditure by Standard Classification | C160: A2
A161: Chart A5 | B161: =A161&"Revenue by Major Source (refer 'Minor' source for 'Other Revenue' allocation" -> Chart A5 Revenue by Major Source (refer 'Minor' source for 'Other Revenue' allocation | C161: A3
A162: Chart A6 | B162: =A162&"Revenue by Minor Source (Other)" -> Chart A6 Revenue by Minor Source (Other) | C162: A3
A163: Chart A7 | B163: =A163&"Expenditure by Major Type" -> Chart A7 Expenditure by Major Type | C163: A3
A164: Chart A8 | B164: =A164&"Expenditure by Minor Type (Other)" -> Chart A8 Expenditure by Minor Type (Other) | C164: A3
A165: Chart A9 | B165: =A165&"Capital Expenditure by Municipal Vote/Appropriation (Major)" -> Chart A9 Capital Expenditure by Municipal Vote/Appropriation (Major) | C165: A5
A166: Chart A10 | B166: =A166&"Capital Expenditure by Municipal Vote/Appropriation (Minor)" -> Chart A10 Capital Expenditure by Municipal Vote/Appropriation (Minor) | C166: A5
A167: Chart A11 | B167: =A166&"Capital Expenditure by Standard Classification" -> Chart A10 Capital Expenditure by Standard Classification | C167: A5
A168: Chart A12 | B168: =A168&"Capital expenditure performance trend" -> Chart A12 Capital expenditure performance trend | C168: A5
A169: Chart A13 | B169: =A169&"Capital funding by Source" -> Chart A13 Capital funding by Source | C169: A5
A170: Chart A14 | B170: =A170&"Cash flow trend" -> Chart A14 Cash flow trend | C170: A7
A171: Chart A15 | B171: =A171&"IDP Strategic Objective - Revenue" -> Chart A15 IDP Strategic Objective - Revenue | C171: Table A4
A172: Chart A16 | B172: =A172&"IDP Strategic Objective - Expenditure" -> Chart A16 IDP Strategic Objective - Expenditure | C172: Table A5
A173: Chart A17 | B173: =A173&"IDP Strategic Objective - Capital Expenditure" -> Chart A17 IDP Strategic Objective - Capital Expenditure | C173: Table A6
A174: Chart A18 | B174: =A174&"Debt (borrowing to Total Revenue)" -> Chart A18 Debt (borrowing to Total Revenue) | C174: Table A8
A175: Chart A19 | B175: =A175&"Debtors' trend analysis" -> Chart A19 Debtors' trend analysis | C175: Table A8
A176: Chart A20 | B176: =A176&"Distribution losses" -> Chart A20 Distribution losses | C176: Table A8
A177: Chart A21 | B177: =A177&"Borrowed funding of capital expenditure" -> Chart A21 Borrowed funding of capital expenditure | C177: Table A8
A178: Chart A22 | B178: =A178&"Expenditure analysis (% of Revenue)" -> Chart A22 Expenditure analysis (% of Revenue) | C178: Table A8
A179: Chart A23 | B179: =A179&"Increases in service charges" -> Chart A23 Increases in service charges | C179: Table A10

Sheet Lookup and lists (hidden)
A1: Description | B1: 2007 | C1: 2008 | D1: 2009 | E1: 2010 | F1: 2011 | G1: 2012 | H1: 2013 | I1: 2014 | J1: 2015 | K1: 2016 | L1: 2017 | M1: 2018 | N1: 2019 | O1: 2020 | Q1: Lists | Y1: Grants: | Z1: National - opex | AA1: Provincial - opex | AB1: National - capex | AC1: Provincial - capex
A2: ='Template names'!C2 -> Prior year -1 | B2: 2005/06 | C2: 2006/07 | D2: 2007/08 | E2: =E1-2&"/"&RIGHT(E1,2)-1 -> 2008/9 | F2: 2009/10 | G2: 2010/11 | H2: 2011/12 | I2: 2012/13 | J2: 2013/14 | K2: 2014/15 | L2: 2015/16 | M2: 2016/17 | N2: 2017/18 | O2: 2018/19 | Q2: Yes | R2: <1 | S2: <4 | T2: Market | U2: Land & impr. | V2: Yes | W2: Uniform | X2: Yrs | Z2: Local Government Equitable Share | AA2: Health subsidy | AB2: Municipal Infrastructure Grant (MIG) | AC2: Agriculture
A3: ='Template names'!C3 -> Prior year -2 | B3: 2004/05 | C3: 2005/06 | D3: 2006/07 | E3: =E1-3&"/"&RIGHT(E1,2)-2 -> 2007/8 | F3: 2008/9 | G3: 2009/10 | H3: 2010/11 | I3: 2011/12 | J3: 2012/13 | K3: 2013/14 | L3: 2014/15 | M3: 2015/16 | N3: 2016/17 | O3: 2017/18 | Q3: No | R3: 1 | S3: 4 | T3: Dep.Replace | U3: Land only | V3: No | W3: Variable | X3: Mths | Z3: RSC Levy Replacement | AA3: Ambulance subsidy | AB3: Public Transport and Systems | AC3: Education
A4: ='Template names'!C4 -> Prior year -3 | B4: 2003/04 | C4: 2004/05 | D4: 2005/06 | E4: =E1-4&"/"&RIGHT(E1,2)-3 -> 2006/7 | F4: 2007/8 | G4: 2008/9 | H4: 2009/10 | I4: 2010/11 | J4: 2011/12 | K4: 2012/13 | L4: 2013/14 | M4: 2014/15 | N4: 2015/16 | O4: 2016/17 | R4: 2 | S4: 5 | T4: Other | U4: Other | Z4: Finance Management | AA4: Housing | AB4: Rural Transport Services and Infrastructure | AC4: Health
A5: ='Template names'!C5 -> Year in which budget is being prepared | B5: Current Year 2006/07 | C5: Current Year 2007/08 | D5: Current Year 2008/09 | E5: ="Current Year "& E1-1&"/"&RIGHT(E1,2) -> Current Year 2009/10 | F5: Current Year 2010/11 | G5: Current Year 2011/12 | H5: Current Year 2012/13 | I5: Current Year 2013/14 | J5: Current Year 2014/15 | K5: Current Year 2015/16 | L5: Current Year 2016/17 | M5: Current Year 2017/18 | N5: Current Year 2018/19 | O5: Current Year 2019/20 | R5: 3 | S5: 6 | Z5: Municipal Systems Improvement | AA5: Sport and Recreation | AB5: Regional Bulk Infrastructure | AC5: Housing and Local Government
A6: ='Template names'!C6 -> Year in which budget is being prepared | B6: 2006/07 | C6: 2007/08 | D6: 2008/09 | E6: =E1-1&"/"&RIGHT(E1,2) -> 2009/10 | F6: 2010/11 | G6: 2011/12 | H6: 2012/13 | I6: 2013/14 | J6: 2014/15 | K6: 2015/16 | L6: 2016/17 | M6: 2017/18 | N6: 2018/19 | O6: 2019/20 | R6: 4 | S6: 6-10 | Z6: Water Services Operating Subsidy | AB6: Rural Households Infrastructure | AC6: Other Departments
A7: ='Template names'!C7 -> MTREF name | B7: 2007/08 Medium Term Revenue & Expenditure Framework | C7: 2008/09 Medium Term Revenue & Expenditure Framework | D7: 2009/10 Medium Term Revenue & Expenditure Framework | E7: =E1&"/"&RIGHT(E1,2)+1&" Medium Term Revenue & Expenditure Framework" -> 2010/11 Medium Term Revenue & Expenditure Framework | F7: 2011/12 Medium Term Revenue & Expenditure Framework | G7: 2012/13 Medium Term Revenue & Expenditure Framework | H7: 2013/14 Medium Term Revenue & Expenditure Framework | I7: 2014/15 Medium Term Revenue & Expenditure Framework | J7: 2015/16 Medium Term Revenue & Expenditure Framework | K7: 2016/17 Medium Term Revenue & Expenditure Framework | L7: 2017/18 Medium Term Revenue & Expenditure Framework | M7: 2018/19 Medium Term Revenue & Expenditure Framework | N7: 2019/20 Medium Term Revenue & Expenditure Framework | O7: 2020/21 Medium Term Revenue & Expenditure Framework | R7: 5 | S7: >10 | Z7: Energy Efficiency and Demand Management | AB7: Neighbourhood Development Partnership | AC7: Public Works, Roads, Transport
A8: ='Template names'!C15 -> 1st year of MTREF | B8: Budget Year 2007/08 | C8: Budget Year 2008/09 | D8: Budget Year 2009/10 | E8: ="Budget Year "&E1&"/"&RIGHT(E1,2)+1 -> Budget Year 2010/11 | F8: Budget Year 2011/12 | G8: Budget Year 2012/13 | H8: Budget Year 2013/14 | I8: Budget Year 2014/15 | J8: Budget Year 2015/16 | K8: Budget Year 2016/17 | L8: Budget Year 2017/18 | M8: Budget Year 2018/19 | N8: Budget Year 2019/20 | O8: Budget Year 2020/21 | R8: >5 | Z8: Integrated National Electrification Programme | AB8: 2010 FIFA World Cup Stadiums Development | AC8: Sport and Recreation
A9: ='Template names'!C16 -> 2nd year of MTREF | B9: Budget Year +1 2008/09 | C9: Budget Year +1 2009/10 | D9: Budget Year +1 2010/11 | E9: ="Budget Year +1 "&E1+1&"/"&RIGHT(E1,2)+2 -> Budget Year +1 2011/12 | F9: Budget Year +1 2012/13 | G9: Budget Year +1 2013/14 | H9: Budget Year +1 2014/15 | I9: Budget Year +1 2015/16 | J9: Budget Year +1 2016/17 | K9: Budget Year +1 2017/18 | L9: Budget Year +1 2018/19 | M9: Budget Year +1 2019/20 | N9: Budget Year +1 2020/21 | O9: Budget Year +1 2021/22 | Z9: Municipal Drought Relief
A10: ='Template names'!C17 -> 3rd year of MTREF | B10: Budget Year +2 2009/10 | C10: Budget Year +2 2010/11 | D10: Budget Year +2 2011/12 | E10: ="Budget Year +2 "&E1+2&"/"&RIGHT(E1,2)+3 -> Budget Year +2 2012/13 | F10: Budget Year +2 2013/14 | G10: Budget Year +2 2014/15 | H10: Budget Year +2 2015/16 | I10: Budget Year +2 2016/17 | J10: Budget Year +2 2017/18 | K10: Budget Year +2 2018/19 | L10: Budget Year +2 2019/20 | M10: Budget Year +2 2020/21 | N10: Budget Year +2 2021/22 | O10: Budget Year +2 2022/23 | Z10: 2010 FIFA World Cup Operating
A11: ='Template names'!C18 -> 1st yr of long term forecast | B11: Forecast 2010/11 | C11: Forecast 2011/12 | D11: Forecast 2012/13 | E11: ="Forecast "&E1+3&"/"&RIGHT(E1,2)+4 -> Forecast 2013/14 | F11: Forecast 2014/15 | G11: Forecast 2015/16 | H11: Forecast 2016/17 | I11: Forecast 2017/18 | J11: Forecast 2018/19 | K11: Forecast 2019/20 | L11: Forecast 2020/21 | M11: Forecast 2021/22 | N11: Forecast 2022/23 | O11: Forecast 2023/24 | Z11: Electricity Demand Side Management
A12: ='Template names'!C19 -> Next yr of long term forecast | B12: Forecast 2011/12 | C12: Forecast 2012/13 | D12: Forecast 2013/14 | E12: ="Forecast "&E1+4&"/"&RIGHT(E1,2)+5 -> Forecast 2014/15 | F12: Forecast 2015/16 | G12: Forecast 2016/17 | H12: Forecast 2017/18 | I12: Forecast 2018/19 | J12: Forecast 2019/20 | K12: Forecast 2020/21 | L12: Forecast 2021/22 | M12: Forecast 2022/23 | N12: Forecast 2023/24 | O12: Forecast 2024/25 | Z12: EPWP Incentive
A13: ='Template names'!C20 -> Next yr of long term forecast | B13: Forecast 2012/13 | C13: Forecast 2013/14 | D13: Forecast 2014/15 | E13: ="Forecast "&E1+5&"/"&RIGHT(E1,2)+6 -> Forecast 2015/16 | F13: Forecast 2016/17 | G13: Forecast 2017/18 | H13: Forecast 2018/19 | I13: Forecast 2019/20 | J13: Forecast 2020/21 | K13: Forecast 2021/22 | L13: Forecast 2022/23 | M13: Forecast 2023/24 | N13: Forecast 2024/25 | O13: Forecast 2025/26
A14: ='Template names'!C21 -> Next yr of long term forecast | B14: Forecast 2013/14 | C14: Forecast 2014/15 | D14: Forecast 2015/16 | E14: ="Forecast "&E1+6&"/"&RIGHT(E1,2)+7 -> Forecast 2016/17 | F14: Forecast 2017/18 | G14: Forecast 2018/19 | H14: Forecast 2019/20 | I14: Forecast 2020/21 | J14: Forecast 2021/22 | K14: Forecast 2022/23 | L14: Forecast 2023/24 | M14: Forecast 2024/25 | N14: Forecast 2025/26 | O14: Forecast 2026/27 | Z14: Asset Class | AA14: Asset sub-class old | AB14: Asset sub-class | AC14: IUDF | AD14: MTSF
A15: ='Template names'!C22 -> Next yr of long term forecast | B15: Forecast 2014/15 | C15: Forecast 2015/16 | D15: Forecast 2016/17 | E15: ="Forecast "&E1+7&"/"&RIGHT(E1,2)+8 -> Forecast 2017/18 | F15: Forecast 2018/19 | G15: Forecast 2019/20 | H15: Forecast 2020/21 | I15: Forecast 2021/22 | J15: Forecast 2022/23 | K15: Forecast 2023/24 | L15: Forecast 2024/25 | M15: Forecast 2025/26 | N15: Forecast 2026/27 | O15: Forecast 2027/28
A16: ='Template names'!C23 -> Next yr of long term forecast | B16: Forecast 2015/16 | C16: Forecast 2016/17 | D16: Forecast 2017/18 | E16: ="Forecast "&E1+8&"/"&RIGHT(E1,2)+9 -> Forecast 2018/19 | F16: Forecast 2019/20 | G16: Forecast 2020/21 | H16: Forecast 2021/22 | I16: Forecast 2022/23 | J16: Forecast 2023/24 | K16: Forecast 2024/25 | L16: Forecast 2025/26 | M16: Forecast 2026/27 | N16: Forecast 2027/28 | O16: Forecast 2028/29 | Z16: Roads Infrastructure | AA16: Roads, Pavements & Bridges | AB16: Roads | AC16: Spatial integration | AD16: Quality basic education
A17: ='Template names'!C24 -> Next yr of long term forecast | B17: Forecast 2016/17 | C17: Forecast 2017/18 | D17: Forecast 2018/19 | E17: ="Forecast "&E1+9&"/"&RIGHT(E1,2)+10 -> Forecast 2019/20 | F17: Forecast 2020/21 | G17: Forecast 2021/22 | H17: Forecast 2022/23 | I17: Forecast 2023/24 | J17: Forecast 2024/25 | K17: Forecast 2025/26 | L17: Forecast 2026/27 | M17: Forecast 2027/28 | N17: Forecast 2028/29 | O17: Forecast 2029/30 | Z17: Storm water Infrastructure | AA17: Storm water | AB17: Road Structures | AC17: Inclusion and access | AD17: A long and healthy life for all South Africans
A18: ='Template names'!C25 -> Next yr of long term forecast | B18: Forecast 2017/18 | C18: Forecast 2018/19 | D18: Forecast 2019/20 | E18: ="Forecast "&E1+10&"/"&RIGHT(E1,2)+11 -> Forecast 2020/21 | F18: Forecast 2021/22 | G18: Forecast 2022/23 | H18: Forecast 2023/24 | I18: Forecast 2024/25 | J18: Forecast 2025/26 | K18: Forecast 2026/27 | L18: Forecast 2027/28 | M18: Forecast 2028/29 | N18: Forecast 2029/30 | O18: Forecast 2030/31 | Z18: Electrical Infrastructure | AA18: Generation | AB18: Road Furniture | AC18: Growth | AD18: All people in South Africa are and feel safe
A19: ='Template names'!C26 -> Next yr of long term forecast | B19: Forecast 2018/19 | C19: Forecast 2019/20 | D19: Forecast 2020/21 | E19: ="Forecast "&E1+11&"/"&RIGHT(E1,2)+12 -> Forecast 2021/22 | F19: Forecast 2022/23 | G19: Forecast 2023/24 | H19: Forecast 2024/25 | I19: Forecast 2025/26 | J19: Forecast 2026/27 | K19: Forecast 2027/28 | L19: Forecast 2028/29 | M19: Forecast 2029/30 | N19: Forecast 2030/31 | O19: Forecast 2031/32 | Z19: Water Supply Infrastructure | AA19: Transmission & Reticulation | AB19: Capital Spares | AC19: Governance | AD19: Decent employment through inclusive growth
A20: ='Template names'!C27 -> Next yr of long term forecast | B20: Forecast 2019/20 | C20: Forecast 2020/21 | D20: Forecast 2021/22 | E20: ="Forecast "&E1+12&"/"&RIGHT(E1,2)+13 -> Forecast 2022/23 | F20: Forecast 2023/24 | G20: Forecast 2024/25 | H20: Forecast 2025/26 | I20: Forecast 2026/27 | J20: Forecast 2027/28 | K20: Forecast 2028/29 | L20: Forecast 2029/30 | M20: Forecast 2030/31 | N20: Forecast 2031/32 | O20: Forecast 2032/33 | Z20: Sanitation Infrastructure | AA20: Street Lighting | AB20: Drainage Collection | AD20: A skilled and capable workforce to support an inclusive growth path
A21: ='Template names'!C28 -> Next yr of long term forecast | B21: Forecast 2020/21 | C21: Forecast 2021/22 | D21: Forecast 2022/23 | E21: ="Forecast "&E1+13&"/"&RIGHT(E1,2)+14 -> Forecast 2023/24 | F21: Forecast 2024/25 | G21: Forecast 2025/26 | H21: Forecast 2026/27 | I21: Forecast 2027/28 | J21: Forecast 2028/29 | K21: Forecast 2029/30 | L21: Forecast 2030/31 | M21: Forecast 2031/32 | N21: Forecast 2032/33 | O21: Forecast 2033/34 | Z21: Solid Waste Infrastructure | AA21: Dams & Reservoirs | AB21: Storm water Conveyance | AD21: An efficient, competitive and responsive economic infrastructure network
A22: ='Template names'!C29 -> Next yr of long term forecast | B22: Forecast 2021/22 | C22: Forecast 2022/23 | D22: Forecast 2023/24 | E22: ="Forecast "&E1+14&"/"&RIGHT(E1,2)+15 -> Forecast 2024/25 | F22: Forecast 2025/26 | G22: Forecast 2026/27 | H22: Forecast 2027/28 | I22: Forecast 2028/29 | J22: Forecast 2029/30 | K22: Forecast 2030/31 | L22: Forecast 2031/32 | M22: Forecast 2032/33 | N22: Forecast 2033/34 | O22: Forecast 2034/35 | Z22: Rail Infrastructure | AA22: Water purification | AB22: Attenuation | AD22: Vibrant, equitable, sustainable rural communities contributing towards food security for all
A23: Adjustments Budget | B23: Annual target 2007/08 | C23: Annual target 2008/09 | D23: Annual target 2009/10 | E23: ="Annual target " & E1&"/"&RIGHT(E1,2)+1 -> Annual target 2010/11 | F23: Annual target 2011/12 | G23: Annual target 2012/13 | H23: Annual target 2013/14 | I23: Annual target 2014/15 | J23: Annual target 2015/16 | K23: Annual target 2016/17 | L23: Annual target 2017/18 | M23: Annual target 2018/19 | N23: Annual target 2019/20 | O23: Annual target 2020/21 | Z23: Coastal Infrastructure | AA23: Reticulation | AB23: Power Plants | AD23: Sustainable human settlements and improved quality of household life
A24: =A23 -> Adjustments Budget | B24: Revised target 2007/08 | C24: Revised target 2008/09 | D24: Revised target 2009/10 | E24: ="Revised target "& E1&"/"&RIGHT(E1,2)+1 -> Revised target 2010/11 | F24: Revised target 2011/12 | G24: Revised target 2012/13 | H24: Revised target 2013/14 | I24: Revised target 2014/15 | J24: Revised target 2015/16 | K24: Revised target 2016/17 | L24: Revised target 2017/18 | M24: Revised target 2018/19 | N24: Revised target 2019/20 | O24: Revised target 2020/21 | Z24: Information and Communication Infrastructure | AA24: Sewerage purification | AB24: HV Substations | AD24: Responsive, accountable, effective and efficient local government
A25: NOTE: This sheet should not be directly amended - select headings from sheet 'S' | Z25: Community Facilities | AA25: Waste Management | AB25: HV Switching Station | AD25: Protect and enhance our environmental assets and natural resources
Z26: Sport and Recreation Facilities | AA26: Transportation | AB26: HV Transmission Conductors | AD26: Create a better South Africa and contribute to a better Africa and a better world
A27: Name link | B27: 44 | Z27: Heritage assets | AA27: Gas | AB27: MV Substations | AD27: An efficient, effective and development-oriented public service
A28: Name of Muni | B28: =INDEX(B29:B307,B27,1) -> FS163 Mohokare | Z28: Revenue Generating | AA28: Parks & gardens | AB28: MV Switching Stations | AD28: A comprehensive, responsive and sustainable social protection system
B29: Choose name from list | C29: Set name on 'Instructions' sheet | Z29: Non-revenue Generating | AA29: Sportsfields & stadia | AB29: MV Networks | AD29: A diverse, socially cohesive society with a common national identity
B30: BUF Buffalo City | C30: EC EASTERN CAPE | Z30: Operational Buildings | AA30: Swimming pools | AB30: LV Networks
B31: NMA Nelson Mandela Bay | C31: EC EASTERN CAPE | Z31: Housing | AA31: Community halls | AB31: Capital Spares
B32: EC101 Dr Beyers Naude | C32: EC EASTERN CAPE | Z32: Biological or Cultivated Assets | AA32: Libraries | AB32: Dams and Weirs
B33: EC102 Blue Crane Route | C33: EC EASTERN CAPE | Z33: Servitudes | AA33: Recreational facilities | AB33: Boreholes
B34: EC104 Makana | C34: EC EASTERN CAPE | Z34: Licences and Rights | AA34: Fire, safety & emergency | AB34: Reservoirs
B35: EC105 Ndlambe | C35: EC EASTERN CAPE | Z35: Computer Equipment | AA35: Security and policing | AB35: Pump Stations
B36: EC106 Sundays River Valley | C36: EC EASTERN CAPE | Z36: Furniture and Office Equipment | AA36: Buses | AB36: Water Treatment Works
B37: EC108 Kouga | C37: EC EASTERN CAPE | Z37: Machinery and Equipment | AA37: Clinics | AB37: Bulk Mains
B38: EC109 Kou-Kamma | C38: EC EASTERN CAPE | Z38: Transport Assets | AA38: Museums & Art Galleries | AB38: Distribution
B39: DC10 Sarah Baartman | C39: EC EASTERN CAPE | Z39: Land | AA39: Cemeteries | AB39: Distribution Points
B40: EC121 Mbhashe | C40: EC EASTERN CAPE | Z40: Zoo's, Marine and Non-biological Animals | AA40: Social rental housing | AB40: PRV Stations
B41: EC122 Mnquma | C41: EC EASTERN CAPE | AA41: Buildings | AB41: Capital Spares
B42: EC123 Great Kei | C42: EC EASTERN CAPE | AA42: Housing development | AB42: Pump Station
B43: EC124 Amahlathi | C43: EC EASTERN CAPE | AA43: General vehicles | AB43: Reticulation
B44: EC126 Ngqushwa | C44: EC EASTERN CAPE | AA44: Specialised vehicles - Refuse | AB44: Waste Water Treatment Works
B45: EC129 Raymond Mhlaba | C45: EC EASTERN CAPE | AA45: Specialised vehicles - Fire | AB45: Outfall Sewers
B46: DC12 Amathole | C46: EC EASTERN CAPE | AA46: Specialised vehicles - Conservancy | AB46: Toilet Facilities
B47: EC131 Inxuba Yethemba | C47: EC EASTERN CAPE | AA47: Specialised vehicles - Ambulances | AB47: Capital Spares
B48: EC135 Intsika Yethu | C48: EC EASTERN CAPE | AA48: Plant & equipment | AB48: Landfill Sites
B49: EC136 Emalahleni (Ec) | C49: EC EASTERN CAPE | AA49: Computers - hardware/equipment | AB49: Waste Transfer Stations
B50: EC137 Engcobo | C50: EC EASTERN CAPE | AA50: Furniture and other office equipment | AB50: Waste Processing Facilities
B51: EC138 Sakhisizwe | C51: EC EASTERN CAPE | AA51: Abattoirs | AB51: Waste Drop-off Points
B52: EC139 Enoch Mgijima | C52: EC EASTERN CAPE | AA52: Markets | AB52: Waste Separation Facilities
B53: DC13 Chris Hani | C53: EC EASTERN CAPE | AA53: Civic Land and Buildings | AB53: Electricity Generation Facilities
B54: EC141 Elundini | C54: EC EASTERN CAPE | AA54: Other Buildings | AB54: Capital Spares
B55: EC142 Senqu | C55: EC EASTERN CAPE | AA55: Other Land | AB55: Rail Lines
B56: EC145 Walter Sisulu | C56: EC EASTERN CAPE | AA56: Surplus Assets - (Investment or Inventory) | AB56: Rail Structures
B57: DC14 Joe Gqabi | C57: EC EASTERN CAPE | AA57: Computers - software & programming | AB57: Rail Furniture
B58: EC153 Ngquza Hills | C58: EC EASTERN CAPE | AA58: Other | AB58: Drainage Collection
B59: EC154 Port St Johns | C59: EC EASTERN CAPE | AB59: Storm water Conveyance
B60: EC155 Nyandeni | C60: EC EASTERN CAPE | Z60: SA16 - Investments | AB60: Attenuation
B61: EC156 Mhlontlo | C61: EC EASTERN CAPE | Z61: Security | AA61: Interest rate | AB61: MV Substations
B62: EC157 King Sabata Dalindyebo | C62: EC EASTERN CAPE | Z62: Yes | AA62: Fixed | AB62: LV Networks
B63: DC15 O .R. Tambo | C63: EC EASTERN CAPE | Z63: No | AA63: Variable | AB63: Capital Spares
B64: EC441 Matatiele | C64: EC EASTERN CAPE | AB64: Sand Pumps
B65: EC442 Umzimvubu | C65: EC EASTERN CAPE | AB65: Piers
B66: EC443 Mbizana | C66: EC EASTERN CAPE | Z66: SA36, SA37 - Capital projects | AB66: Revetments
B67: EC444 Ntabankulu | C67: EC EASTERN CAPE | Z67: Yes | AB67: Promenades
B68: DC44 Alfred Nzo | C68: EC EASTERN CAPE | Z68: No | AB68: Capital Spares
B69: MAN Mangaung | C69: FS FREE STATE | AB69: Data Centres
B70: FS161 Letsemeng | C70: FS FREE STATE | AB70: Core Layers
B71: FS162 Kopanong | C71: FS FREE STATE | AB71: Distribution Layers
B72: FS163 Mohokare | C72: FS FREE STATE | AB72: Capital Spares
B73: DC16 Xhariep | C73: FS FREE STATE | AB73: Halls
B74: FS181 Masilonyana | C74: FS FREE STATE | AB74: Centres
B75: FS182 Tokologo | C75: FS FREE STATE | AB75: Crèches
B76: FS183 Tswelopele | C76: FS FREE STATE | AB76: Clinics/Care Centres
B77: FS184 Matjhabeng | C77: FS FREE STATE | AB77: Fire/Ambulance Stations
B78: FS185 Nala | C78: FS FREE STATE | AB78: Testing Stations
B79: DC18 Lejweleputswa | C79: FS FREE STATE | AB79: Museums
B80: FS191 Setsoto | C80: FS FREE STATE | AB80: Galleries
B81: FS192 Dihlabeng | C81: FS FREE STATE | AB81: Theatres
B82: FS193 Nketoana | C82: FS FREE STATE | AB82: Libraries
B83: FS194 Maluti-a-Phofung | C83: FS FREE STATE | AB83: Cemeteries/Crematoria
B84: FS195 Phumelela | C84: FS FREE STATE | AB84: Police
B85: FS196 Mantsopa | C85: FS FREE STATE | AB85: Purls
B86: DC19 Thabo Mofutsanyana | C86: FS FREE STATE | AB86: Public Open Space
B87: FS201 Moqhaka | C87: FS FREE STATE | AB87: Nature Reserves
B88: FS203 Ngwathe | C88: FS FREE STATE | AB88: Public Ablution Facilities
B89: FS204 Metsimaholo | C89: FS FREE STATE | AB89: Markets
B90: FS205 Mafube | C90: FS FREE STATE | AB90: Stalls
B91: DC20 Fezile Dabi | C91: FS FREE STATE | AB91: Abattoirs
B92: EKU City of Ekurhuleni | C92: GT GAUTENG | AB92: Airports
B93: JHB City Of Johannesburg | C93: GT GAUTENG | AB93: Taxi Ranks/Bus Terminals
B94: TSH City Of Tshwane | C94: GT GAUTENG | AB94: Capital Spares
B95: GT421 Emfuleni | C95: GT GAUTENG | AB95: Indoor Facilities
B96: GT422 Midvaal | C96: GT GAUTENG | AB96: Outdoor Facilities
B97: GT423 Lesedi | C97: GT GAUTENG | AB97: Capital Spares
B98: DC42 Sedibeng | C98: GT GAUTENG | AB98: Monuments
B99: GT481 Mogale City | C99: GT GAUTENG | AB99: Historic Buildings
B100: GT484 Merafong City | C100: GT GAUTENG | AB100: Works of Art
B101: GT485 Rand West City | C101: GT GAUTENG | AB101: Conservation Areas
B102: DC48 West Rand | C102: GT GAUTENG | AB102: Other Heritage
B103: ETH eThekwini | C103: KZN KWAZULU-NATAL | AB103: Improved Property
B104: KZN212 Umdoni | C104: KZN KWAZULU-NATAL | AB104: Unimproved Property
B105: KZN213 Umzumbe | C105: KZN KWAZULU-NATAL | AB105: Municipal Offices
B106: KZN214 uMuziwabantu | C106: KZN KWAZULU-NATAL | AB106: Pay/Enquiry Points
B107: KZN216 Ray Nkonyeni | C107: KZN KWAZULU-NATAL | AB107: Building Plan Offices
B108: DC21 Ugu | C108: KZN KWAZULU-NATAL | AB108: Workshops
B109: KZN221 uMshwathi | C109: KZN KWAZULU-NATAL | AB109: Yards
B110: KZN222 uMngeni | C110: KZN KWAZULU-NATAL | AB110: Stores
B111: KZN223 Mpofana | C111: KZN KWAZULU-NATAL | AB111: Laboratories
B112: KZN224 Impendle | C112: KZN KWAZULU-NATAL | AB112: Training Centres
B113: KZN225 Msunduzi | C113: KZN KWAZULU-NATAL | AB113: Manufacturing Plant
B114: KZN226 Mkhambathini | C114: KZN KWAZULU-NATAL | AB114: Depots
B115: KZN227 Richmond | C115: KZN KWAZULU-NATAL | AB115: Capital Spares
B116: DC22 uMgungundlovu | C116: KZN KWAZULU-NATAL | AB116: Staff Housing
B117: KZN235 Okhahlamba | C117: KZN KWAZULU-NATAL | AB117: Social Housing
B118: KZN237 Inkosi Langalibalele | C118: KZN KWAZULU-NATAL | AB118: Capital Spares
B119: KZN238 Alfred Duma | C119: KZN KWAZULU-NATAL | AB119: Water Rights
B120: DC23 Uthukela | C120: KZN KWAZULU-NATAL | AB120: Effluent Licenses
B121: KZN241 Endumeni | C121: KZN KWAZULU-NATAL | AB121: Solid Waste Licenses
B122: KZN242 Nquthu | C122: KZN KWAZULU-NATAL | AB122: Computer Software and Applications
B123: KZN244 Msinga | C123: KZN KWAZULU-NATAL | AB123: Load Settlement Software Applications
B124: KZN245 Umvoti | C124: KZN KWAZULU-NATAL | AB124: Unspecified
B125: DC24 Umzinyathi | C125: KZN KWAZULU-NATAL
B126: KZN252 Newcastle | C126: KZN KWAZULU-NATAL
B127: KZN253 Emadlangeni | C127: KZN KWAZULU-NATAL
B128: KZN254 Dannhauser | C128: KZN KWAZULU-NATAL
B129: DC25 Amajuba | C129: KZN KWAZULU-NATAL
B130: KZN261 eDumbe | C130: KZN KWAZULU-NATAL
B131: KZN262 uPhongolo | C131: KZN KWAZULU-NATAL
B132: KZN263 Abaqulusi | C132: KZN KWAZULU-NATAL
B133: KZN265 Nongoma | C133: KZN KWAZULU-NATAL
B134: KZN266 Ulundi | C134: KZN KWAZULU-NATAL
B135: DC26 Zululand | C135: KZN KWAZULU-NATAL
B136: KZN271 Umhlabuyalingana | C136: KZN KWAZULU-NATAL
B137: KZN272 Jozini | C137: KZN KWAZULU-NATAL
B138: KZN275 Mtubatuba | C138: KZN KWAZULU-NATAL
B139: KZN276 Hlabisa Big Five | C139: KZN KWAZULU-NATAL
B140: DC27 Umkhanyakude | C140: KZN KWAZULU-NATAL
B141: KZN281 Mfolozi | C141: KZN KWAZULU-NATAL
B142: KZN282 uMhlathuze | C142: KZN KWAZULU-NATAL
B143: KZN284 uMlalazi | C143: KZN KWAZULU-NATAL
B144: KZN285 Mthonjaneni | C144: KZN KWAZULU-NATAL
B145: KZN286 Nkandla | C145: KZN KWAZULU-NATAL
B146: DC28 King Cetshwayo | C146: KZN KWAZULU-NATAL
B147: KZN291 Mandeni | C147: KZN KWAZULU-NATAL
B148: KZN292 KwaDukuza | C148: KZN KWAZULU-NATAL
B149: KZN293 Ndwedwe | C149: KZN KWAZULU-NATAL
B150: KZN294 Maphumulo | C150: KZN KWAZULU-NATAL
B151: DC29 iLembe | C151: KZN KWAZULU-NATAL
B152: KZN433 Greater Kokstad | C152: KZN KWAZULU-NATAL
B153: KZN434 Ubuhlebezwe | C153: KZN KWAZULU-NATAL
B154: KZN435 Umzimkhulu | C154: KZN KWAZULU-NATAL
B155: KZN436 Dr Nkosazana Dlamini Zuma | C155: KZN KWAZULU-NATAL
B156: DC43 Harry Gwala | C156: KZN KWAZULU-NATAL
B157: LIM331 Greater Giyani | C157: LIM LIMPOPO
B158: LIM332 Greater Letaba | C158: LIM LIMPOPO
B159: LIM333 Greater Tzaneen | C159: LIM LIMPOPO
B160: LIM334 Ba-Phalaborwa | C160: LIM LIMPOPO
B161: LIM335 Maruleng | C161: LIM LIMPOPO
B162: DC33 Mopani | C162: LIM LIMPOPO
B163: LIM341 Musina | C163: LIM LIMPOPO
B164: LIM343 Thulamela | C164: LIM LIMPOPO
B165: LIM344 Makhado | C165: LIM LIMPOPO
B166: LIM345 Collins Chabane | C166: LIM LIMPOPO
B167: DC34 Vhembe | C167: LIM LIMPOPO
B168: LIM351 Blouberg | C168: LIM LIMPOPO
B169: LIM353 Molemole | C169: LIM LIMPOPO
B170: LIM354 Polokwane | C170: LIM LIMPOPO
B171: LIM355 Lepelle-Nkumpi | C171: LIM LIMPOPO
B172: DC35 Capricorn | C172: LIM LIMPOPO
B173: LIM361 Thabazimbi | C173: LIM LIMPOPO
B174: LIM362 Lephalale | C174: LIM LIMPOPO
B175: LIM366 Bela Bela | C175: LIM LIMPOPO
B176: LIM367 Mogalakwena | C176: LIM LIMPOPO
B177: LIM368 Modimolle-Mookgopong | C177: LIM LIMPOPO
B178: DC36 Waterberg | C178: LIM LIMPOPO
B179: LIM471 Ephraim Mogale | C179: LIM LIMPOPO
B180: LIM472 Elias Motsoaledi | C180: LIM LIMPOPO
B181: LIM473 Makhuduthamaga | C181: LIM LIMPOPO
B182: LIM476 Tubatse Fetakgomo | C182: LIM LIMPOPO
B183: DC47 Sekhukhune | C183: LIM LIMPOPO
B184: MP301 Albert Luthuli | C184: MP MPUMALANGA
B185: MP302 Msukaligwa | C185: MP MPUMALANGA
B186: MP303 Mkhondo | C186: MP MPUMALANGA
B187: MP304 Pixley Ka Seme (MP) | C187: MP MPUMALANGA
B188: MP305 Lekwa | C188: MP MPUMALANGA
B189: MP306 Dipaleseng | C189: MP MPUMALANGA
B190: MP307 Govan Mbeki | C190: MP MPUMALANGA
B191: DC30 Gert Sibande | C191: MP MPUMALANGA
B192: MP311 Victor Khanye | C192: MP MPUMALANGA
B193: MP312 Emalahleni (Mp) | C193: MP MPUMALANGA
B194: MP313 Steve Tshwete | C194: MP MPUMALANGA
B195: MP314 Emakhazeni | C195: MP MPUMALANGA
B196: MP315 Thembisile Hani | C196: MP MPUMALANGA
B197: MP316 Dr J.S. Moroka | C197: MP MPUMALANGA
B198: DC31 Nkangala | C198: MP MPUMALANGA
B199: MP321 Thaba Chweu | C199: MP MPUMALANGA
B200: MP324 Nkomazi | C200: MP MPUMALANGA
... 87 more rows

Sheet Org structure
A1: Organisational Structure Votes | C1: Organisational Structure Sub-Votes | E1: Display Sub-Votes
A2: =B2&" - "&C2 -> Vote 1 - COUNCIL & EXECUTIVE | B2: Vote 1 | C2: COUNCIL & EXECUTIVE
A3: =B13&" - "& C13 -> Vote 2 - FINANCE | B3: 1.1 | C3: Mayor & Council | D3: =CONCATENATE(B3, " - ", C3) -> 1.1 - Mayor & Council | E3: 1.1 - Mayor & Council
A4: =B24&" - "&C24 -> Vote 3 - CORPORATE SERVICES | B4: 1.2 | C4: Municipal Manager | D4: 1.2 - Municipal Manager | E4: 1.2 - Municipal Manager
A5: =B35&" - "&C35 -> Vote 4 - COMMUNITY SERVICES | B5: 1.3 | C5: IDP_LED | D5: 1.3 - IDP_LED | E5: 1.3 - IDP_LED
A6: =B46&" - "&C46 -> Vote 5 - TECHNICAL SERVICES | B6: 1.4 | C6: Internal Audit | D6: 1.4 - Internal Audit | E6: 1.4 - Internal Audit
A7: =B57&" - "&C57 -> Vote 6 - [NAME OF VOTE 6] | B7: 1.5 | C7: [Name of sub-vote] | D7: 1.5 - [Name of sub-vote]
A8: =B68&" - "&C68 -> Vote 7 - [NAME OF VOTE 7] | B8: 1.6 | C8: [Name of sub-vote] | D8: 1.6 - [Name of sub-vote]
A9: =B79&" - "&C79 -> Vote 8 - [NAME OF VOTE 8] | B9: 1.7 | C9: [Name of sub-vote] | D9: 1.7 - [Name of sub-vote]
A10: =B90&" - "&C90 -> Vote 9 - [NAME OF VOTE 9] | B10: 1.8 | C10: [Name of sub-vote] | D10: 1.8 - [Name of sub-vote]
A11: =B101&" - "&C101 -> Vote 10 - [NAME OF VOTE 10] | B11: 1.9 | C11: [Name of sub-vote] | D11: 1.9 - [Name of sub-vote]
A12: =B112&" - "&C112 -> Vote 11 - [NAME OF VOTE 11] | B12: 1.10 | C12: [Name of sub-vote] | D12: 1.10 - [Name of sub-vote]
A13: =B123&" - "&C123 -> Vote 12 - [NAME OF VOTE 12] | B13: Vote 2 | C13: FINANCE
A14: =B134&" - "&C134 -> Vote 13 - [NAME OF VOTE 13] | B14: 2.1 | C14: Chief Financial Officer | D14: =CONCATENATE(B14, " - ", C14) -> 2.1 - Chief Financial Officer | E14: 2.1 - Chief Financial Officer
A15: =B145&" - "&C145 -> Vote 14 - [NAME OF VOTE 14] | B15: 2.2 | C15: Finance | D15: 2.2 - Finance | E15: 2.2 - Finance
A16: =B156&" - "&C156 -> Vote 15 - [NAME OF VOTE 15] | B16: 2.3 | C16: Property Finance | D16: 2.3 - Property Finance | E16: 2.3 - Property Finance
B17: 2.4 | C17: [Name of sub-vote] | D17: 2.4 - [Name of sub-vote]
B18: 2.5 | C18: [Name of sub-vote] | D18: 2.5 - [Name of sub-vote]
B19: 2.6 | C19: [Name of sub-vote] | D19: 2.6 - [Name of sub-vote]
B20: 2.7 | C20: [Name of sub-vote] | D20: 2.7 - [Name of sub-vote]
B21: 2.8 | C21: [Name of sub-vote] | D21: 2.8 - [Name of sub-vote]
B22: 2.9 | C22: [Name of sub-vote] | D22: 2.9 - [Name of sub-vote]
B23: 2.10 | C23: [Name of sub-vote] | D23: 2.10 - [Name of sub-vote]
B24: Vote 3 | C24: CORPORATE SERVICES
B25: 3.1 | C25: Human Resource | D25: =CONCATENATE(B25, " - ", C25) -> 3.1 - Human Resource | E25: 3.1 - Human Resource
B26: 3.2 | C26: Information Technology | D26: 3.2 - Information Technology | E26: 3.2 - Information Technology
B27: 3.3 | C27: Council Properties | D27: 3.3 - Council Properties | E27: 3.3 - Council Properties
B28: 3.4 | C28: Camps | D28: 3.4 - Camps | E28: 3.4 - Camps
B29: 3.5 | C29: Other Administration | D29: 3.5 - Other Administration | E29: 3.5 - Other Administration
B30: 3.6 | C30: Manager Administration | D30: 3.6 - Manager Administration | E30: 3.6 - Manager Administration
B31: 3.7 | C31: [Name of sub-vote] | D31: 3.7 - [Name of sub-vote]
B32: 3.8 | C32: [Name of sub-vote] | D32: 3.8 - [Name of sub-vote]
B33: 3.9 | C33: [Name of sub-vote] | D33: 3.9 - [Name of sub-vote]
B34: 3.10 | C34: [Name of sub-vote] | D34: 3.10 - [Name of sub-vote]
B35: Vote 4 | C35: COMMUNITY SERVICES
B36: 4.1 | C36: Libraries | D36: =CONCATENATE(B36, " - ", C36) -> 4.1 - Libraries | E36: 4.1 - Libraries
B37: 4.2 | C37: Community Halls | D37: 4.2 - Community Halls | E37: 4.2 - Community Halls
B38: 4.3 | C38: Cemeteries | D38: 4.3 - Cemeteries | E38: 4.3 - Cemeteries
B39: 4.4 | C39: Other Community | D39: 4.4 - Other Community | E39: 4.4 - Other Community
B40: 4.5 | C40: Traffic | D40: 4.5 - Traffic | E40: 4.5 - Traffic
B41: 4.6 | C41: Fire Fighting | D41: 4.6 - Fire Fighting | E41: 4.6 - Fire Fighting
B42: 4.7 | C42: Pounds | D42: 4.7 - Pounds | E42: 4.7 - Pounds
B43: 4.8 | C43: Sportsground | D43: 4.8 - Sportsground | E43: 4.8 - Sportsground
B44: 4.9 | C44: Housing (Pub & Personnel) | D44: 4.9 - Housing (Pub & Personnel) | E44: 4.9 - Housing (Pub & Personnel)
B45: 4.10 | C45: Solid Waste | D45: 4.10 - Solid Waste | E45: 4.10 - Solid Waste
B46: Vote 5 | C46: TECHNICAL SERVICES
B47: 5.1 | C47: Sanitation | D47: =CONCATENATE(B47, " - ", C47) -> 5.1 - Sanitation | E47: 5.1 - Sanitation
B48: 5.2 | C48: Roads & Streets | D48: 5.2 - Roads & Streets | E48: 5.2 - Roads & Streets
B49: 5.3 | C49: Water | D49: 5.3 - Water | E49: 5.3 - Water
B50: 5.4 | C50: Electricity | D50: 5.4 - Electricity | E50: 5.4 - Electricity
B51: 5.5 | C51: Manager Technical Services | D51: 5.5 - Manager Technical Services | E51: 5.5 - Manager Technical Services
B52: 5.6 | C52: [Name of sub-vote] | D52: 5.6 - [Name of sub-vote]
B53: 5.7 | C53: [Name of sub-vote] | D53: 5.7 - [Name of sub-vote]
B54: 5.8 | C54: [Name of sub-vote] | D54: 5.8 - [Name of sub-vote]
B55: 5.9 | C55: [Name of sub-vote] | D55: 5.9 - [Name of sub-vote]
B56: 5.10 | C56: [Name of sub-vote] | D56: 5.10 - [Name of sub-vote]
B57: Vote 6 | C57: [NAME OF VOTE 6]
B58: 6.1 | C58: [Name of sub-vote] | D58: =CONCATENATE(B58, " - ", C58) -> 6.1 - [Name of sub-vote] | E58: 6.1 - [Name of sub-vote]
B59: 6.2 | C59: [Name of sub-vote] | D59: 6.2 - [Name of sub-vote]
B60: 6.3 | C60: [Name of sub-vote] | D60: 6.3 - [Name of sub-vote]
B61: 6.4 | C61: [Name of sub-vote] | D61: 6.4 - [Name of sub-vote]
B62: 6.5 | C62: [Name of sub-vote] | D62: 6.5 - [Name of sub-vote]
B63: 6.6 | C63: [Name of sub-vote] | D63: 6.6 - [Name of sub-vote]
B64: 6.7 | C64: [Name of sub-vote] | D64: 6.7 - [Name of sub-vote]
B65: 6.8 | C65: [Name of sub-vote] | D65: 6.8 - [Name of sub-vote]
B66: 6.9 | C66: [Name of sub-vote] | D66: 6.9 - [Name of sub-vote]
B67: 6.10 | C67: [Name of sub-vote] | D67: 6.10 - [Name of sub-vote]
B68: Vote 7 | C68: [NAME OF VOTE 7]
B69: 7.1 | C69: [Name of sub-vote] | D69: =CONCATENATE(B69, " - ", C69) -> 7.1 - [Name of sub-vote] | E69: 7.1 - [Name of sub-vote]
B70: 7.2 | C70: [Name of sub-vote] | D70: 7.2 - [Name of sub-vote]
B71: 7.3 | C71: [Name of sub-vote] | D71: 7.3 - [Name of sub-vote]
B72: 7.4 | C72: [Name of sub-vote] | D72: 7.4 - [Name of sub-vote]
B73: 7.5 | C73: [Name of sub-vote] | D73: 7.5 - [Name of sub-vote]
B74: 7.6 | C74: [Name of sub-vote] | D74: 7.6 - [Name of sub-vote]
B75: 7.7 | C75: [Name of sub-vote] | D75: 7.7 - [Name of sub-vote]
B76: 7.8 | C76: [Name of sub-vote] | D76: 7.8 - [Name of sub-vote]
B77: 7.9 | C77: [Name of sub-vote] | D77: 7.9 - [Name of sub-vote]
B78: 7.10 | C78: [Name of sub-vote] | D78: 7.10 - [Name of sub-vote]
B79: Vote 8 | C79: [NAME OF VOTE 8]
B80: 8.1 | C80: [Name of sub-vote] | D80: =CONCATENATE(B80, " - ", C80) -> 8.1 - [Name of sub-vote] | E80: 8.1 - [Name of sub-vote]
B81: 8.2 | C81: [Name of sub-vote] | D81: 8.2 - [Name of sub-vote]
B82: 8.3 | C82: [Name of sub-vote] | D82: 8.3 - [Name of sub-vote]
B83: 8.4 | C83: [Name of sub-vote] | D83: 8.4 - [Name of sub-vote]
B84: 8.5 | C84: [Name of sub-vote] | D84: 8.5 - [Name of sub-vote]
B85: 8.6 | C85: [Name of sub-vote] | D85: 8.6 - [Name of sub-vote]
B86: 8.7 | C86: [Name of sub-vote] | D86: 8.7 - [Name of sub-vote]
B87: 8.8 | C87: [Name of sub-vote] | D87: 8.8 - [Name of sub-vote]
B88: 8.9 | C88: [Name of sub-vote] | D88: 8.9 - [Name of sub-vote]
B89: 8.10 | C89: [Name of sub-vote] | D89: 8.10 - [Name of sub-vote]
B90: Vote 9 | C90: [NAME OF VOTE 9]
B91: 9.1 | C91: [Name of sub-vote] | D91: =CONCATENATE(B91, " - ", C91) -> 9.1 - [Name of sub-vote] | E91: 9.1 - [Name of sub-vote]
B92: 9.2 | C92: [Name of sub-vote] | D92: 9.2 - [Name of sub-vote]
B93: 9.3 | C93: [Name of sub-vote] | D93: 9.3 - [Name of sub-vote]
B94: 9.4 | C94: [Name of sub-vote] | D94: 9.4 - [Name of sub-vote]
B95: 9.5 | C95: [Name of sub-vote] | D95: 9.5 - [Name of sub-vote]
B96: 9.6 | C96: [Name of sub-vote] | D96: 9.6 - [Name of sub-vote]
B97: 9.7 | C97: [Name of sub-vote] | D97: 9.7 - [Name of sub-vote]
B98: 9.8 | C98: [Name of sub-vote] | D98: 9.8 - [Name of sub-vote]
B99: 9.9 | C99: [Name of sub-vote] | D99: 9.9 - [Name of sub-vote]
B100: 9.10 | C100: [Name of sub-vote] | D100: 9.10 - [Name of sub-vote]
B101: Vote 10 | C101: [NAME OF VOTE 10]
B102: 10.1 | C102: [Name of sub-vote] | D102: =CONCATENATE(B102, " - ", C102) -> 10.1 - [Name of sub-vote] | E102: 10.1 - [Name of sub-vote]
B103: 10.2 | C103: [Name of sub-vote] | D103: 10.2 - [Name of sub-vote]
B104: 10.3 | C104: [Name of sub-vote] | D104: 10.3 - [Name of sub-vote]
B105: 10.4 | C105: [Name of sub-vote] | D105: 10.4 - [Name of sub-vote]
B106: 10.5 | C106: [Name of sub-vote] | D106: 10.5 - [Name of sub-vote]
B107: 10.6 | C107: [Name of sub-vote] | D107: 10.6 - [Name of sub-vote]
B108: 10.7 | C108: [Name of sub-vote] | D108: 10.7 - [Name of sub-vote]
B109: 10.8 | C109: [Name of sub-vote] | D109: 10.8 - [Name of sub-vote]
B110: 10.9 | C110: [Name of sub-vote] | D110: 10.9 - [Name of sub-vote]
B111: 10.10 | C111: [Name of sub-vote] | D111: 10.10 - [Name of sub-vote]
B112: Vote 11 | C112: [NAME OF VOTE 11]
B113: 11.1 | C113: [Name of sub-vote] | D113: =CONCATENATE(B113, " - ", C113) -> 11.1 - [Name of sub-vote] | E113: 11.1 - [Name of sub-vote]
B114: 11.2 | C114: [Name of sub-vote] | D114: 11.2 - [Name of sub-vote]
B115: 11.3 | C115: [Name of sub-vote] | D115: 11.3 - [Name of sub-vote]
B116: 11.4 | C116: [Name of sub-vote] | D116: 11.4 - [Name of sub-vote]
B117: 11.5 | C117: [Name of sub-vote] | D117: 11.5 - [Name of sub-vote]
B118: 11.6 | C118: [Name of sub-vote] | D118: 11.6 - [Name of sub-vote]
B119: 11.7 | C119: [Name of sub-vote] | D119: 11.7 - [Name of sub-vote]
B120: 11.8 | C120: [Name of sub-vote] | D120: 11.8 - [Name of sub-vote]
B121: 11.9 | C121: [Name of sub-vote] | D121: 11.9 - [Name of sub-vote]
B122: 11.10 | C122: [Name of sub-vote] | D122: 11.10 - [Name of sub-vote]
B123: Vote 12 | C123: [NAME OF VOTE 12]
B124: 12.1 | C124: [Name of sub-vote] | D124: =CONCATENATE(B124, " - ", C124) -> 12.1 - [Name of sub-vote] | E124: 12.1 - [Name of sub-vote]
B125: 12.2 | C125: [Name of sub-vote] | D125: 12.2 - [Name of sub-vote]
B126: 12.3 | C126: [Name of sub-vote] | D126: 12.3 - [Name of sub-vote]
B127: 12.4 | C127: [Name of sub-vote] | D127: 12.4 - [Name of sub-vote]
B128: 12.5 | C128: [Name of sub-vote] | D128: 12.5 - [Name of sub-vote]
B129: 12.6 | C129: [Name of sub-vote] | D129: 12.6 - [Name of sub-vote]
B130: 12.7 | C130: [Name of sub-vote] | D130: 12.7 - [Name of sub-vote]
B131: 12.8 | C131: [Name of sub-vote] | D131: 12.8 - [Name of sub-vote]
B132: 12.9 | C132: [Name of sub-vote] | D132: 12.9 - [Name of sub-vote]
B133: 12.10 | C133: [Name of sub-vote] | D133: 12.10 - [Name of sub-vote]
B134: Vote 13 | C134: [NAME OF VOTE 13]
B135: 13.1 | C135: [Name of sub-vote] | D135: =CONCATENATE(B135, " - ", C135) -> 13.1 - [Name of sub-vote] | E135: 13.1 - [Name of sub-vote]
B136: 13.2 | C136: [Name of sub-vote] | D136: 13.2 - [Name of sub-vote]
B137: 13.3 | C137: [Name of sub-vote] | D137: 13.3 - [Name of sub-vote]
B138: 13.4 | C138: [Name of sub-vote] | D138: 13.4 - [Name of sub-vote]
B139: 13.5 | C139: [Name of sub-vote] | D139: 13.5 - [Name of sub-vote]
B140: 13.6 | C140: [Name of sub-vote] | D140: 13.6 - [Name of sub-vote]
B141: 13.7 | C141: [Name of sub-vote] | D141: 13.7 - [Name of sub-vote]
B142: 13.8 | C142: [Name of sub-vote] | D142: 13.8 - [Name of sub-vote]
B143: 13.9 | C143: [Name of sub-vote] | D143: 13.9 - [Name of sub-vote]
B144: 13.10 | C144: [Name of sub-vote] | D144: 13.10 - [Name of sub-vote]
B145: Vote 14 | C145: [NAME OF VOTE 14]
B146: 14.1 | C146: [Name of sub-vote] | D146: =CONCATENATE(B146, " - ", C146) -> 14.1 - [Name of sub-vote] | E146: 14.1 - [Name of sub-vote]
B147: 14.2 | C147: [Name of sub-vote] | D147: 14.2 - [Name of sub-vote]
B148: 14.3 | C148: [Name of sub-vote] | D148: 14.3 - [Name of sub-vote]
B149: 14.4 | C149: [Name of sub-vote] | D149: 14.4 - [Name of sub-vote]
B150: 14.5 | C150: [Name of sub-vote] | D150: 14.5 - [Name of sub-vote]
B151: 14.6 | C151: [Name of sub-vote] | D151: 14.6 - [Name of sub-vote]
B152: 14.7 | C152: [Name of sub-vote] | D152: 14.7 - [Name of sub-vote]
B153: 14.8 | C153: [Name of sub-vote] | D153: 14.8 - [Name of sub-vote]
B154: 14.9 | C154: [Name of sub-vote] | D154: 14.9 - [Name of sub-vote]
B155: 14.10 | C155: [Name of sub-vote] | D155: 14.10 - [Name of sub-vote]
B156: Vote 15 | C156: [NAME OF VOTE 15]
B157: 15.1 | C157: [Name of sub-vote] | D157: =CONCATENATE(B157, " - ", C157) -> 15.1 - [Name of sub-vote] | E157: 15.1 - [Name of sub-vote]
B158: 15.2 | C158: [Name of sub-vote] | D158: 15.2 - [Name of sub-vote]
B159: 15.3 | C159: [Name of sub-vote] | D159: 15.3 - [Name of sub-vote]
B160: 15.4 | C160: [Name of sub-vote] | D160: 15.4 - [Name of sub-vote]
B161: 15.5 | C161: [Name of sub-vote] | D161: 15.5 - [Name of sub-vote]
B162: 15.6 | C162: [Name of sub-vote] | D162: 15.6 - [Name of sub-vote]
B163: 15.7 | C163: [Name of sub-vote] | D163: 15.7 - [Name of sub-vote]
B164: 15.8 | C164: [Name of sub-vote] | D164: 15.8 - [Name of sub-vote]
B165: 15.9 | C165: [Name of sub-vote] | D165: 15.9 - [Name of sub-vote]
B166: 15.10 | C166: [Name of sub-vote] | D166: 15.10 - [Name of sub-vote]

Sheet Contacts
A1: =muni&" - "&" Contact Information" -> FS163 Mohokare - Contact Information
A3: A. GENERAL INFORMATION
A4: Municipality | B4: =muni -> FS163 Mohokare | C4: =IF(B4="Choose name from List","Set name on 'Instructions' sheet", "") -> 
A6: Grade | B6: Low | C6: 1 Grade in terms of the Remuneration of Public Office Bearers Act.
A8: Province | B8: =IF(B4>" ",VLOOKUP(B4,'Lookup and lists'!B29:C307,2, FALSE)," ") -> FS FREE STATE
A10: Web Address | B10: www.mohokare.gov.za
A12: e-mail Address | B12: website@mohokare.gov.za
A14: B. CONTACT INFORMATION
A15: Postal address:
A16: P.O. Box | B16: P.O. Box 20
A17: City / Town | B17: Zastron
A18: Postal Code
A20: Street address
A21: Building | B21: Town Hall
A22: Street No. & Name | B22: Hoofd Street
A23: City / Town | B23: Zastron
A24: Postal Code
A26: General Contacts
A27: Telephone number | B27: 051 673 9600
A28: Fax number | B28: 051 673 1550
A30: C. POLITICAL LEADERSHIP
A31: Speaker: | C31: Secretary/PA to the Speaker:
A32: ID Number | B32: 8302160841088 | C32: ID Number | D32: 7304200348083
A33: Title | B33: Cllr | C33: Title | D33: Ms
A34: Name | B34: N I Mehlomakulu | C34: Name | D34: Bukelwa Mnweba
A35: Telephone number | B35: 051 673 9600 | C35: Telephone number | D35: 051 673 9600
A36: Cell number | B36: 083 215 6791 | C36: Cell number | D36: 072 869 3162
A37: Fax number | B37: 051 673 1056 | C37: Fax number | D37: 057 673 1550
A38: E-mail address | B38: irenemehlomakulu@gmail.com | C38: E-mail address | D38: bukelwa.mnweba@mohokare.gov.za
A40: Mayor/Executive Mayor: | C40: Secretary/PA to the Mayor/Executive Mayor:
A41: ID Number | B41: 8302160841088 | C41: ID Number | D41: 7304200348083
A42: Title | B42: Cllr | C42: Title | D42: Ms
A43: Name | B43: N I Mehlomakulu | C43: Name | D43: Bukelwa Mnweba
A44: Telephone number | B44: 051 673 9600 | C44: Telephone number | D44: 051 673 9600
A45: Cell number | B45: 083 215 6791 | C45: Cell number | D45: 072 869 3162
A46: Fax number | B46: 051 673 1056 | C46: Fax number | D46: 057 673 1550
A47: E-mail address | B47: irenemehlomakulu@gmail.com | C47: E-mail address | D47: bukelwa.mnweba@mohokare.gov.za
A49: Deputy Mayor/Executive Mayor: | C49: Secretary/PA to the Deputy Mayor/Executive Mayor:
A50: ID Number | C50: ID Number
A51: Title | C51: Title
A52: Name | C52: Name
A53: Telephone number | C53: Telephone number
A54: Cell number | C54: Cell number
A55: Fax number | C55: Fax number
A56: E-mail address | C56: E-mail address
A58: D. MANAGEMENT LEADERSHIP
A59: Municipal Manager: | C59: Secretary/PA to the Municipal Manager:
A60: ID Number | B60: 5702265299088 | C60: ID Number | D60: 7711165287082
A61: Title | B61: Mr | C61: Title | D61: Mr
A62: Name | B62: S.M. Selepe | C62: Name | D62: Z.V. Mphephuka
A63: Telephone number | B63: 051 673 9600 | C63: Telephone number | D63: 051 673 9600
A64: Cell number | B64: 084 635 9101 | C64: Cell number | D64: 063 070 3104
A65: Fax number | B65: 051 673 1550 | C65: Fax number | D65: 051 673 1550
A66: E-mail address | B66: selby@mohokare.gov.za | C66: E-mail address | D66: zakhele.mphephuka@mohokare.gov.za
A68: Chief Financial Officer | C68: Secretary/PA to the Chief Financial Officer
A69: ID Number | B69: 7512295527086 | C69: ID Number | D69: 9104120663084
A70: Title | B70: Mr | C70: Title | D70: Ms
A71: Name | B71: P.M. Dyonase | C71: Name | D71: T.G. Aphane
A72: Telephone number | B72: 051 673 9600 | C72: Telephone number | D72: 051 673 9600
A73: Cell number | B73: 061 274 2501 | C73: Cell number | D73: 083 498 7016
A74: Fax number | B74: 051 673 1550 | C74: Fax number | D74: 051 673 1550
A75: E-mail address | B75: phakamisa@mohokare.gov.za | C75: E-mail address | D75: aphane@mohokare.gov.za
A77: Official responsible for submitting financial information | C77: Official responsible for submitting financial information
A78: ID Number | B78: 8703170117080 | C78: ID Number
A79: Title | B79: Mrs | C79: Title
A80: Name | B80: W.A. Wilken | C80: Name
A81: Telephone number | B81: 051 673 9600 | C81: Telephone number
A82: Cell number | B82: 064 251 9897 | C82: Cell number
A83: Fax number | B83: 051 673 1550 | C83: Fax number
A84: E-mail address | B84: elmien.wasserfall@gmail.com | C84: E-mail address
A85: Official responsible for submitting financial information | C85: Official responsible for submitting financial information
A86: ID Number | B86: 8503270820082 | C86: ID Number
A87: Title | B87: Ms | C87: Title
A88: Name | B88: M.T.V. Mabote | C88: Name
A89: Telephone number | B89: 051 673 9600 | C89: Telephone number
A90: Cell number | B90: 076 657 1153 | C90: Cell number
A91: Fax number | B91: 051 673 1550 | C91: Fax number
A92: E-mail address | B92: tsoho@mohokare.gov.za | C92: E-mail address
A93: Official responsible for submitting financial information | C93: Official responsible for submitting financial information
A94: ID Number | B94: 8205220354085 | C94: ID Number
A95: Title | B95: Ms | C95: Title
A96: Name | B96: T Gwala | C96: Name
A97: Telephone number | B97: 051 673960 | C97: Telephone number
A98: Cell number | C98: Cell number
A99: Fax number | B99: 057 673 1550 | C99: Fax number
A100: E-mail address | B100: thandi@mohokare.gov.za | C100: E-mail address
A101: Official responsible for submitting financial information | C101: Official responsible for submitting financial information
A102: ID Number | C102: ID Number
A103: Title | C103: Title
A104: Name | C104: Name
A105: Telephone number | C105: Telephone number
A106: Cell number | C106: Cell number
A107: Fax number | C107: Fax number
A108: E-mail address | C108: E-mail address
A109: Official responsible for submitting financial information | C109: Official responsible for submitting financial information
A110: ID Number | C110: ID Number
A111: Title | C111: Title
A112: Name | C112: Name
A113: Telephone number | C113: Telephone number
A114: Cell number | C114: Cell number
A115: Fax number | C115: Fax number
A116: E-mail address | C116: E-mail address
A117: Official responsible for submitting financial information | C117: Official responsible for submitting financial information
A118: ID Number | C118: ID Number
A119: Title | C119: Title
A120: Name | C120: Name
A121: Telephone number | C121: Telephone number
A122: Cell number | C122: Cell number
A123: Fax number | C123: Fax number
A124: E-mail address | C124: E-mail address
A125: Official responsible for submitting financial information | C125: Official responsible for submitting financial information
A126: ID Number | C126: ID Number
A127: Title | C127: Title
A128: Name | C128: Name
A129: Telephone number | C129: Telephone number
A130: Cell number | C130: Cell number
A131: Fax number | C131: Fax number
A132: E-mail address | C132: E-mail address
A133: Official responsible for submitting financial information
A134: ID Number
A135: Title
A136: Name
A137: Telephone number
A138: Cell number
A139: Fax number
A140: E-mail address

Sheet A1-Sum
A1: =muni&" - "&Approve1 -> FS163 Mohokare - Table A1 Budget Summary
A2: =desc -> Description | B2: =head1b -> 2016/17 | C2: =head1A -> 2017/18 | D2: =Head1 -> 2018/19 | E2: =Head2 -> Current Year 2019/20 | I2: =Head3 -> 2020/21 Medium Term Revenue & Expenditure Framework
A3: R thousands | B3: =Head5 -> Audited Outcome | C3: =Head5 -> Audited Outcome | D3: =Head5 -> Audited Outcome | E3: =Head6 -> Original Budget | F3: =Head7 -> Adjusted Budget | G3: =Head8 -> Full Year Forecast | H3: =Head5b -> Pre-audit outcome | I3: =Head9 -> Budget Year 2020/21 | J3: =Head10 -> Budget Year +1 2021/22 | K3: =Head11 -> Budget Year +2 2022/23
A4: Financial Performance
A5: Property rates | B5: ='A4-FinPerf RE'!C5 -> 10395461 | C5: ='A4-FinPerf RE'!D5 -> 7694858 | D5: ='A4-FinPerf RE'!E5 -> 8204283 | E5: ='A4-FinPerf RE'!F5 -> 8156574.522 | F5: ='A4-FinPerf RE'!G5 -> 8156575 | G5: ='A4-FinPerf RE'!H5 -> 0 | H5: ='A4-FinPerf RE'!I5 -> 0 | I5: ='A4-FinPerf RE'!J5 -> 7881367 | J5: ='A4-FinPerf RE'!K5 -> 8275435 | K5: ='A4-FinPerf RE'!L5 -> 8689207
A6: Service charges | B6: =SUM('A4-FinPerf RE'!C6:C9) -> 60307071 | C6: =SUM('A4-FinPerf RE'!D6:D9) -> 64709887 | D6: =SUM('A4-FinPerf RE'!E6:E9) -> 72293523 | E6: =SUM('A4-FinPerf RE'!F6:F9) -> 81777783.92 | F6: =SUM('A4-FinPerf RE'!G6:G9) -> 81777783.87 | G6: =SUM('A4-FinPerf RE'!H6:H9) -> 0 | H6: =SUM('A4-FinPerf RE'!I6:I9) -> 0 | I6: =SUM('A4-FinPerf RE'!J6:J9) -> 74964024 | J6: =SUM('A4-FinPerf RE'!K6:K9) -> 79697650 | K6: =SUM('A4-FinPerf RE'!L6:L9) -> 84746793
A7: Investment revenue | B7: ='A4-FinPerf RE'!C12 -> 3660080 | C7: ='A4-FinPerf RE'!D12 -> 3206029 | D7: ='A4-FinPerf RE'!E12 -> 397707 | E7: ='A4-FinPerf RE'!F12 -> 954000 | F7: ='A4-FinPerf RE'!G12 -> 954000 | G7: ='A4-FinPerf RE'!H12 -> 0 | H7: ='A4-FinPerf RE'!I12 -> 0 | I7: ='A4-FinPerf RE'!J12 -> 450000 | J7: ='A4-FinPerf RE'!K12 -> 450000 | K7: ='A4-FinPerf RE'!L12 -> 450000
A8: Transfers recognised - operational | B8: ='A4-FinPerf RE'!C18 -> 57655043 | C8: ='A4-FinPerf RE'!D18 -> 58955000 | D8: ='A4-FinPerf RE'!E18 -> 71993000 | E8: ='A4-FinPerf RE'!F18 -> 72021000 | F8: ='A4-FinPerf RE'!G18 -> 72021000 | G8: ='A4-FinPerf RE'!H18 -> 0 | H8: ='A4-FinPerf RE'!I18 -> 0 | I8: ='A4-FinPerf RE'!J18 -> 77585000 | J8: ='A4-FinPerf RE'!K18 -> 82609000 | K8: ='A4-FinPerf RE'!L18 -> 88229000
A9: Other own revenue | B9: ='A4-FinPerf RE'!C11+'A4-FinPerf RE'!C13+'A4-FinPerf RE'!C14+'A4-FinPerf RE'!C15+'A4-FinPerf RE'!C16+'A4-FinPerf RE'!C17+'A4-FinPerf RE'!C19+'A4-FinPerf RE'!C20 -> 33757351 | C9: ='A4-FinPerf RE'!D11+'A4-FinPerf RE'!D13+'A4-FinPerf RE'!D14+'A4-FinPerf RE'!D15+'A4-FinPerf RE'!D16+'A4-FinPerf RE'!D17+'A4-FinPerf RE'!D19+'A4-FinPerf RE'!D20 -> 56295135 | D9: ='A4-FinPerf RE'!E11+'A4-FinPerf RE'!E13+'A4-FinPerf RE'!E14+'A4-FinPerf RE'!E15+'A4-FinPerf RE'!E16+'A4-FinPerf RE'!E17+'A4-FinPerf RE'!E19+'A4-FinPerf RE'!E20 -> 41610723 | E9: ='A4-FinPerf RE'!F11+'A4-FinPerf RE'!F13+'A4-FinPerf RE'!F14+'A4-FinPerf RE'!F15+'A4-FinPerf RE'!F16+'A4-FinPerf RE'!F17+'A4-FinPerf RE'!F19+'A4-FinPerf RE'!F20 -> 64309520.08 | F9: ='A4-FinPerf RE'!G11+'A4-FinPerf RE'!G13+'A4-FinPerf RE'!G14+'A4-FinPerf RE'!G15+'A4-FinPerf RE'!G16+'A4-FinPerf RE'!G17+'A4-FinPerf RE'!G19+'A4-FinPerf RE'!G20 -> 64309521 | G9: ='A4-FinPerf RE'!H11+'A4-FinPerf RE'!H13+'A4-FinPerf RE'!H14+'A4-FinPerf RE'!H15+'A4-FinPerf RE'!H16+'A4-FinPerf RE'!H17+'A4-FinPerf RE'!H19+'A4-FinPerf RE'!H20 -> 0 | H9: ='A4-FinPerf RE'!I11+'A4-FinPerf RE'!I13+'A4-FinPerf RE'!I14+'A4-FinPerf RE'!I15+'A4-FinPerf RE'!I16+'A4-FinPerf RE'!I17+'A4-FinPerf RE'!I19+'A4-FinPerf RE'!I20 -> 0 | I9: ='A4-FinPerf RE'!J11+'A4-FinPerf RE'!J13+'A4-FinPerf RE'!J14+'A4-FinPerf RE'!J15+'A4-FinPerf RE'!J16+'A4-FinPerf RE'!J17+'A4-FinPerf RE'!J19+'A4-FinPerf RE'!J20 -> 57775000 | J9: ='A4-FinPerf RE'!K11+'A4-FinPerf RE'!K13+'A4-FinPerf RE'!K14+'A4-FinPerf RE'!K15+'A4-FinPerf RE'!K16+'A4-FinPerf RE'!K17+'A4-FinPerf RE'!K19+'A4-FinPerf RE'!K20 -> 57557500 | K9: ='A4-FinPerf RE'!L11+'A4-FinPerf RE'!L13+'A4-FinPerf RE'!L14+'A4-FinPerf RE'!L15+'A4-FinPerf RE'!L16+'A4-FinPerf RE'!L17+'A4-FinPerf RE'!L19+'A4-FinPerf RE'!L20 -> 57129125
A10: ='A4-FinPerf RE'!A21 -> Total Revenue (excluding capital transfers and contributions) | B10: =SUM(B5:B9) -> 165775006 | C10: 190860909 | D10: 194499236 | E10: 227218878.5 | F10: 227218879.9 | G10: 0 | H10: 0 | I10: 218655391 | J10: 228589585 | K10: 239244125
A11: Employee costs | B11: ='A4-FinPerf RE'!C24 -> 61698815 | C11: ='A4-FinPerf RE'!D24 -> 67392782 | D11: ='A4-FinPerf RE'!E24 -> 72945065 | E11: ='A4-FinPerf RE'!F24 -> 78023220.36 | F11: ='A4-FinPerf RE'!G24 -> 78724307.62 | G11: ='A4-FinPerf RE'!H24 -> 0 | H11: ='A4-FinPerf RE'!I24 -> 0 | I11: ='A4-FinPerf RE'!J24 -> 83965214 | J11: ='A4-FinPerf RE'!K24 -> 89213040 | K11: ='A4-FinPerf RE'!L24 -> 94788855
A12: Remuneration of councillors | B12: ='A4-FinPerf RE'!C25 -> 3406365 | C12: ='A4-FinPerf RE'!D25 -> 3745840 | D12: ='A4-FinPerf RE'!E25 -> 3927044 | E12: ='A4-FinPerf RE'!F25 -> 4438693.84 | F12: ='A4-FinPerf RE'!G25 -> 4203656.21 | G12: ='A4-FinPerf RE'!H25 -> 0 | H12: ='A4-FinPerf RE'!I25 -> 0 | I12: ='A4-FinPerf RE'!J25 -> 4616240 | J12: ='A4-FinPerf RE'!K25 -> 4847052 | K12: ='A4-FinPerf RE'!L25 -> 5089405
A13: Depreciation & asset impairment | B13: ='A4-FinPerf RE'!C27 -> 30242035 | C13: ='A4-FinPerf RE'!D27 -> 23153878 | D13: ='A4-FinPerf RE'!E27 -> 23058736 | E13: ='A4-FinPerf RE'!F27 -> 25691403.89 | F13: ='A4-FinPerf RE'!G27 -> 25691403.89 | G13: ='A4-FinPerf RE'!H27 -> 0 | H13: ='A4-FinPerf RE'!I27 -> 0 | I13: ='A4-FinPerf RE'!J27 -> 24406830 | J13: ='A4-FinPerf RE'!K27 -> 25627172 | K13: ='A4-FinPerf RE'!L27 -> 26908530
A14: Finance charges | B14: ='A4-FinPerf RE'!C28 -> 7156232 | C14: ='A4-FinPerf RE'!D28 -> 8604587 | D14: ='A4-FinPerf RE'!E28 -> 9973272 | E14: ='A4-FinPerf RE'!F28 -> 6057900 | F14: ='A4-FinPerf RE'!G28 -> 6014418 | G14: ='A4-FinPerf RE'!H28 -> 0 | H14: ='A4-FinPerf RE'!I28 -> 0 | I14: ='A4-FinPerf RE'!J28 -> 8075000 | J14: ='A4-FinPerf RE'!K28 -> 8478750 | K14: ='A4-FinPerf RE'!L28 -> 8902688
A15: Materials and bulk purchases | B15: ='A4-FinPerf RE'!C29+'A4-FinPerf RE'!C30 -> 25111920 | C15: ='A4-FinPerf RE'!D29+'A4-FinPerf RE'!D30 -> 24245674 | D15: ='A4-FinPerf RE'!E29+'A4-FinPerf RE'!E30 -> 24869501 | E15: ='A4-FinPerf RE'!F29+'A4-FinPerf RE'!F30 -> 40464318.99 | F15: ='A4-FinPerf RE'!G29+'A4-FinPerf RE'!G30 -> 39703186.06 | G15: ='A4-FinPerf RE'!H29+'A4-FinPerf RE'!H30 -> 0 | H15: ='A4-FinPerf RE'!I29+'A4-FinPerf RE'!I30 -> 0 | I15: ='A4-FinPerf RE'!J29+'A4-FinPerf RE'!J30 -> 39132338 | J15: ='A4-FinPerf RE'!K29+'A4-FinPerf RE'!K30 -> 41943073 | K15: ='A4-FinPerf RE'!L29+'A4-FinPerf RE'!L30 -> 44581434
A16: Transfers and grants | B16: ='A4-FinPerf RE'!C32 -> 2700 | C16: ='A4-FinPerf RE'!D32 -> 0 | D16: ='A4-FinPerf RE'!E32 -> 0 | E16: ='A4-FinPerf RE'!F32 -> 0 | F16: ='A4-FinPerf RE'!G32 -> 0 | G16: ='A4-FinPerf RE'!H32 -> 0 | H16: ='A4-FinPerf RE'!I32 -> 0 | I16: ='A4-FinPerf RE'!J32 -> 0 | J16: ='A4-FinPerf RE'!K32 -> 0 | K16: ='A4-FinPerf RE'!L32 -> 0
A17: Other expenditure | B17: ='A4-FinPerf RE'!C26+'A4-FinPerf RE'!C31+'A4-FinPerf RE'!C33+'A4-FinPerf RE'!C34 -> 94561153 | C17: ='A4-FinPerf RE'!D26+'A4-FinPerf RE'!D31+'A4-FinPerf RE'!D33+'A4-FinPerf RE'!D34 -> 113101556 | D17: ='A4-FinPerf RE'!E26+'A4-FinPerf RE'!E31+'A4-FinPerf RE'!E33+'A4-FinPerf RE'!E34 -> 115827050 | E17: ='A4-FinPerf RE'!F26+'A4-FinPerf RE'!F31+'A4-FinPerf RE'!F33+'A4-FinPerf RE'!F34 -> 60414117.13 | F17: ='A4-FinPerf RE'!G26+'A4-FinPerf RE'!G31+'A4-FinPerf RE'!G33+'A4-FinPerf RE'!G34 -> 59608181.84 | G17: ='A4-FinPerf RE'!H26+'A4-FinPerf RE'!H31+'A4-FinPerf RE'!H33+'A4-FinPerf RE'!H34 -> 0 | H17: ='A4-FinPerf RE'!I26+'A4-FinPerf RE'!I31+'A4-FinPerf RE'!I33+'A4-FinPerf RE'!I34 -> 0 | I17: ='A4-FinPerf RE'!J26+'A4-FinPerf RE'!J31+'A4-FinPerf RE'!J33+'A4-FinPerf RE'!J34 -> 57706333 | J17: ='A4-FinPerf RE'!K26+'A4-FinPerf RE'!K31+'A4-FinPerf RE'!K33+'A4-FinPerf RE'!K34 -> 57959862 | K17: ='A4-FinPerf RE'!L26+'A4-FinPerf RE'!L31+'A4-FinPerf RE'!L33+'A4-FinPerf RE'!L34 -> 58599336
A18: ='A4-FinPerf RE'!A35 -> Total Expenditure | B18: =SUM(B11:B17) -> 222179220 | C18: =SUM(C11:C17) -> 240244317 | D18: 250600668 | E18: 215089654.2 | F18: 213945153.6 | G18: 0 | H18: 0 | I18: 217901955 | J18: 228068949 | K18: 238870248
A19: ='A4-FinPerf RE'!A37 -> Surplus/(Deficit) | B19: =B10-B18 -> -56404214 | C19: -49383408 | D19: -56101432 | E19: 12129224.32 | F19: 13273726.25 | G19: 0 | H19: 0 | I19: 753436 | J19: 520636 | K19: 373877
A20: ='A4-FinPerf RE'!A38 -> Transfers and subsidies - capital (monetary allocations) (National / Provincial and District) | B20: ='A4-FinPerf RE'!C38 -> 47154731 | C20: ='A4-FinPerf RE'!D38 -> 70048369 | D20: ='A4-FinPerf RE'!E38 -> 47531207 | E20: ='A4-FinPerf RE'!F38 -> 80202000 | F20: ='A4-FinPerf RE'!G38 -> 82202000 | G20: ='A4-FinPerf RE'!H38 -> 0 | H20: ='A4-FinPerf RE'!I38 -> 0 | I20: ='A4-FinPerf RE'!J38 -> 91773000 | J20: ='A4-FinPerf RE'!K38 -> 74428000 | K20: ='A4-FinPerf RE'!L38 -> 57679000
A21: ='A4-FinPerf RE'!A39&" & "&'A4-FinPerf RE'!A40 -> Transfers and subsidies - capital (monetary allocations) (National / Provincial Departmental Agencies, Households, Non-profit Institutions, Private Enterprises, Public Corporatons, Higher Educational Institutions) & Transfers and subsidies - capital (in-kind - all) | B21: ='A4-FinPerf RE'!C39+'A4-FinPerf RE'!C40 -> 0 | C21: ='A4-FinPerf RE'!D39+'A4-FinPerf RE'!D40 -> 0 | D21: ='A4-FinPerf RE'!E39+'A4-FinPerf RE'!E40 -> 0 | E21: ='A4-FinPerf RE'!F39+'A4-FinPerf RE'!F40 -> 0 | F21: ='A4-FinPerf RE'!G39+'A4-FinPerf RE'!G40 -> 0 | G21: ='A4-FinPerf RE'!H39+'A4-FinPerf RE'!H40 -> 0 | H21: ='A4-FinPerf RE'!I39+'A4-FinPerf RE'!I40 -> 0 | I21: ='A4-FinPerf RE'!J39+'A4-FinPerf RE'!J40 -> 0 | J21: ='A4-FinPerf RE'!K39+'A4-FinPerf RE'!K40 -> 0 | K21: ='A4-FinPerf RE'!L39+'A4-FinPerf RE'!L40 -> 0
A22: ='A4-FinPerf RE'!A41 -> Surplus/(Deficit) after capital transfers & contributions | B22: =B19+SUM(B20:B21) -> -9249483 | C22: =C19+SUM(C20:C21) -> 20664961 | D22: -8570225 | E22: 92331224.32 | F22: 95475726.25 | G22: 0 | H22: 0 | I22: 92526436 | J22: 74948636 | K22: 58052877
A23: ='A4-FinPerf RE'!A46 -> Share of surplus/ (deficit) of associate | B23: ='A4-FinPerf RE'!C46 -> 0 | C23: ='A4-FinPerf RE'!D46 -> 0 | D23: ='A4-FinPerf RE'!E46 -> 0 | E23: ='A4-FinPerf RE'!F46 -> 0 | F23: ='A4-FinPerf RE'!G46 -> 0 | G23: ='A4-FinPerf RE'!H46 -> 0 | H23: ='A4-FinPerf RE'!I46 -> 0 | I23: ='A4-FinPerf RE'!J46 -> 0 | J23: ='A4-FinPerf RE'!K46 -> 0 | K23: ='A4-FinPerf RE'!L46 -> 0
A24: ='A4-FinPerf RE'!A47 -> Surplus/(Deficit) for the year | B24: =B22+B23 -> -9249483 | C24: =C22+C23 -> 20664961 | D24: -8570225 | E24: 92331224.32 | F24: 95475726.25 | G24: 0 | H24: 0 | I24: 92526436 | J24: 74948636 | K24: 58052877
A26: Capital expenditure & funds sources
A27: Capital expenditure | B27: ='A5-Capex'!C63 -> 40032232 | C27: ='A5-Capex'!D63 -> 61044900 | D27: ='A5-Capex'!E63 -> 43913449 | E27: ='A5-Capex'!F63 -> 79302450 | F27: ='A5-Capex'!G63 -> 83106726.68 | G27: ='A5-Capex'!H63 -> 0 | H27: ='A5-Capex'!I63 -> 0 | I27: ='A5-Capex'!J63 -> 92523000 | J27: ='A5-Capex'!K63 -> 74928000 | K27: ='A5-Capex'!L63 -> 58029000
A28: Transfers recognised - capital | B28: ='A5-Capex'!C70 -> 38787450 | C28: ='A5-Capex'!D70 -> 60426089 | D28: ='A5-Capex'!E70 -> 43143577 | E28: ='A5-Capex'!F70 -> 79302450 | F28: ='A5-Capex'!G70 -> 82215726.68 | G28: ='A5-Capex'!H70 -> 0 | H28: ='A5-Capex'!I70 -> 0 | I28: ='A5-Capex'!J70 -> 91773000 | J28: ='A5-Capex'!K70 -> 74428000 | K28: ='A5-Capex'!L70 -> 57679000
A30: ='A5-Capex'!A72 -> Borrowing | B30: ='A5-Capex'!C72 -> 0 | C30: ='A5-Capex'!D72 -> 0 | D30: ='A5-Capex'!E72 -> 0 | E30: ='A5-Capex'!F72 -> 0 | F30: ='A5-Capex'!G72 -> 0 | G30: ='A5-Capex'!H72 -> 0 | H30: ='A5-Capex'!I72 -> 0 | I30: ='A5-Capex'!J72 -> 0 | J30: ='A5-Capex'!K72 -> 0 | K30: ='A5-Capex'!L72 -> 0
A31: ='A5-Capex'!A73 -> Internally generated funds | B31: ='A5-Capex'!C73 -> 1244782 | C31: ='A5-Capex'!D73 -> 618811 | D31: ='A5-Capex'!E73 -> 769872 | E31: ='A5-Capex'!F73 -> 0 | F31: ='A5-Capex'!G73 -> 891000 | G31: ='A5-Capex'!H73 -> 0 | H31: ='A5-Capex'!I73 -> 0 | I31: ='A5-Capex'!J73 -> 750000 | J31: ='A5-Capex'!K73 -> 500000 | K31: ='A5-Capex'!L73 -> 350000
A32: Total sources of capital funds | B32: =+B28+B30+B31 -> 40032232 | C32: =+C28+C30+C31 -> 61044900 | D32: 43913449 | E32: 79302450 | F32: 83106726.68 | G32: 0 | H32: 0 | I32: 92523000 | J32: 74928000 | K32: 58029000
A34: Financial position
A35: ='A6-FinPos'!A12 -> Total current assets | B35: ='A6-FinPos'!C12 -> 49304872 | C35: ='A6-FinPos'!D12 -> 51383324 | D35: ='A6-FinPos'!E12 -> 65105043 | E35: ='A6-FinPos'!F12 -> 53083318.2 | F35: ='A6-FinPos'!G12 -> 56876318.2 | G35: ='A6-FinPos'!H12 -> 0 | H35: ='A6-FinPos'!I12 -> 0 | I35: ='A6-FinPos'!J12 -> 68360295.15 | J35: ='A6-FinPos'!K12 -> 71778309.91 | K35: ='A6-FinPos'!L12 -> 75367225.4
A36: ='A6-FinPos'!A24 -> Total non current assets | B36: ='A6-FinPos'!C24 -> 586758689 | C36: ='A6-FinPos'!D24 -> 624300112 | D36: ='A6-FinPos'!E24 -> 644941629 | E36: ='A6-FinPos'!F24 -> 651362968.6 | F36: ='A6-FinPos'!G24 -> 676362968.6 | G36: ='A6-FinPos'!H24 -> 0 | H36: ='A6-FinPos'!I24 -> 0 | I36: ='A6-FinPos'!J24 -> 674330560.5 | J36: ='A6-FinPos'!K24 -> 705188938.5 | K36: ='A6-FinPos'!L24 -> 737590235.4
A37: ='A6-FinPos'!A34 -> Total current liabilities | B37: ='A6-FinPos'!C34 -> 105668854 | C37: ='A6-FinPos'!D34 -> 118019859 | D37: ='A6-FinPos'!E34 -> 157737512 | E37: ='A6-FinPos'!F34 -> 18001820 | F37: ='A6-FinPos'!G34 -> 25979884 | G37: ='A6-FinPos'!H34 -> 0 | H37: ='A6-FinPos'!I34 -> 0 | I37: ='A6-FinPos'!J34 -> 61568225.6 | J37: ='A6-FinPos'!K34 -> 56646636.88 | K37: ='A6-FinPos'!L34 -> 52478968.72
A38: ='A6-FinPos'!A39 -> Total non current liabilities | B38: ='A6-FinPos'!C39 -> 50845041 | C38: ='A6-FinPos'!D39 -> 56071674 | D38: ='A6-FinPos'!E39 -> 59287482 | E38: ='A6-FinPos'!F39 -> 58875257.7 | F38: ='A6-FinPos'!G39 -> 58875257.7 | G38: ='A6-FinPos'!H39 -> 0 | H38: ='A6-FinPos'!I39 -> 0 | I38: ='A6-FinPos'!J39 -> 62251856.1 | J38: ='A6-FinPos'!K39 -> 65364448.91 | K38: ='A6-FinPos'!L39 -> 68632671.35
A39: Community wealth/Equity | B39: ='A6-FinPos'!C48 -> 479549666 | C39: ='A6-FinPos'!D48 -> 501591903 | D39: ='A6-FinPos'!E48 -> 493021678 | E39: ='A6-FinPos'!F48 -> 627569209.1 | F39: ='A6-FinPos'!G48 -> 648384145.1 | G39: ='A6-FinPos'!H48 -> 0 | H39: ='A6-FinPos'!I48 -> 0 | I39: ='A6-FinPos'!J48 -> 618870773.9 | J39: ='A6-FinPos'!K48 -> 654956162.6 | K39: ='A6-FinPos'!L48 -> 691845820.7
A41: Cash flows
A42: Net cash from (used) operating | B42: ='A7-CFlow'!C17 -> 49661602 | C42: ='A7-CFlow'!D17 -> 48042128 | D42: ='A7-CFlow'!E17 -> 49744574 | E42: ='A7-CFlow'!F17 -> 81625740.96 | F42: ='A7-CFlow'!G17 -> 73452806 | G42: ='A7-CFlow'!H17 -> 0 | H42: ='A7-CFlow'!I17 -> 0 | I42: ='A7-CFlow'!J17 -> 86911741.16 | J42: ='A7-CFlow'!K17 -> 69053207.49 | K42: ='A7-CFlow'!L17 -> 51862676.01
A43: Net cash from (used) investing | B43: ='A7-CFlow'!C27 -> -40139634 | C43: ='A7-CFlow'!D27 -> -59325230 | D43: ='A7-CFlow'!E27 -> -45388987 | E43: ='A7-CFlow'!F27 -> -80202000 | F43: ='A7-CFlow'!G27 -> -80202000 | G43: ='A7-CFlow'!H27 -> 0 | H43: ='A7-CFlow'!I27 -> 0 | I43: ='A7-CFlow'!J27 -> -92523000 | J43: ='A7-CFlow'!K27 -> -74928000 | K43: ='A7-CFlow'!L27 -> -58029000
A44: Net cash from (used) financing | B44: ='A7-CFlow'!C36 -> 102409 | C44: ='A7-CFlow'!D36 -> -91745 | D44: ='A7-CFlow'!E36 -> -231685 | E44: ='A7-CFlow'!F36 -> -272108.4 | F44: ='A7-CFlow'!G36 -> -272000 | G44: ='A7-CFlow'!H36 -> 0 | H44: ='A7-CFlow'!I36 -> 0 | I44: ='A7-CFlow'!J36 -> 0 | J44: ='A7-CFlow'!K36 -> 0 | K44: ='A7-CFlow'!L36 -> 0
A45: =LEFT('A7-CFlow'!A40,37) -> Cash/cash equivalents at the year end | B45: ='A7-CFlow'!C40 -> 15953253 | C45: ='A7-CFlow'!D40 -> 4578406 | D45: ='A7-CFlow'!E40 -> 8702308 | E45: ='A7-CFlow'!F40 -> 5958958.856 | F45: ='A7-CFlow'!G40 -> 1578806 | G45: ='A7-CFlow'!H40 -> 0 | H45: ='A7-CFlow'!I40 -> 0 | I45: ='A7-CFlow'!J40 -> 2888741.16 | J45: ='A7-CFlow'!K40 -> -2986051.35 | K45: ='A7-CFlow'!L40 -> -9152375.34
A47: Cash backing/surplus reconciliation
A48: ='A8-ResRecon'!A4 -> Cash and investments available | B48: ='A8-ResRecon'!C8 -> 15953253 | C48: ='A8-ResRecon'!D8 -> 4578406 | D48: ='A8-ResRecon'!E8 -> 8702308 | E48: ='A8-ResRecon'!F8 -> 4807326.3 | F48: ='A8-ResRecon'!G8 -> 8600326.3 | G48: ='A8-ResRecon'!H8 -> 0 | H48: ='A8-ResRecon'!I8 -> 0 | I48: ='A8-ResRecon'!J8 -> 9137423.4 | J48: ='A8-ResRecon'!K8 -> 9594294.57 | K48: ='A8-ResRecon'!L8 -> 10074009.3
A49: ='A8-ResRecon'!A10 -> Application of cash and investments | B49: ='A8-ResRecon'!C18 -> 100510339 | C49: ='A8-ResRecon'!D18 -> 111364659 | D49: ='A8-ResRecon'!E18 -> 148704465 | E49: ='A8-ResRecon'!F18 -> 4495000 | F49: ='A8-ResRecon'!G18 -> 9183000 | G49: ='A8-ResRecon'!H18 -> 0 | H49: ='A8-ResRecon'!I18 -> 0 | I49: ='A8-ResRecon'!J18 -> 5300000 | J49: ='A8-ResRecon'!K18 -> 3418000 | K49: ='A8-ResRecon'!L18 -> 4122000
A50: Balance - surplus (shortfall) | B50: =B48-B49 -> -84557086 | C50: =C48-C49 -> -106786253 | D50: -140002157 | E50: 312326.3 | F50: -582673.7 | G50: 0 | H50: 0 | I50: 3837423.4 | J50: 6176294.57 | K50: 5952009.299
A52: Asset management
A53: Asset register summary (WDV) | B53: ='A9-Asset'!C165 -> 586417710 | C53: ='A9-Asset'!D165 -> 623926405.8 | D53: ='A9-Asset'!E165 -> 644547314 | E53: ='A9-Asset'!F165 -> 650970577.4 | F53: ='A9-Asset'!G165 -> 675970577.4 | G53: ='A9-Asset'!H165 -> 0 | H53: ='A9-Asset'!H165 -> 0 | I53: ='A9-Asset'!I165 -> 673916529.7 | J53: ='A9-Asset'!J165 -> 704754206.2 | K53: ='A9-Asset'!K165 -> 737133766.5
A54: ='A9-Asset'!A168 -> Depreciation | B54: ='A9-Asset'!C168 -> 30242035 | C54: ='A9-Asset'!D168 -> 23153878 | D54: ='A9-Asset'!E168 -> 23058736 | E54: ='A9-Asset'!F168 -> 28548900.04 | F54: ='A9-Asset'!G168 -> 25691404.04 | G54: ='A9-Asset'!H168 -> 0 | H54: ='A9-Asset'!H168 -> 0 | I54: ='A9-Asset'!I168 -> 24406830 | J54: ='A9-Asset'!J168 -> 25627172 | K54: ='A9-Asset'!K168 -> 26908530
A55: Renewal and Upgrading of Existing Assets | B55: ='A9-Asset'!C37+'A9-Asset'!C69 -> 0 | C55: ='A9-Asset'!D37+'A9-Asset'!D69 -> 0 | D55: ='A9-Asset'!E37+'A9-Asset'!E69 -> 0 | E55: ='A9-Asset'!F37+'A9-Asset'!F69 -> 19510546 | F55: ='A9-Asset'!G37+'A9-Asset'!G69 -> 19510546 | G55: ='A9-Asset'!H37+'A9-Asset'!H69 -> 0 | H55: ='A9-Asset'!H37+'A9-Asset'!H69 -> 0 | I55: ='A9-Asset'!I37+'A9-Asset'!I69 -> 21745662.38 | J55: ='A9-Asset'!J37+'A9-Asset'!J69 -> 17742899.48 | K55: ='A9-Asset'!K37+'A9-Asset'!K69 -> 13281549.95
A56: Repairs and Maintenance | B56: ='A9-Asset'!C169 -> 3991399 | C56: ='A9-Asset'!D169 -> 6229024 | D56: ='A9-Asset'!E169 -> 1499044 | E56: ='A9-Asset'!F169 -> 7578788.9 | F56: ='A9-Asset'!G169 -> 7578788.9 | G56: ='A9-Asset'!H169 -> 0 | H56: ='A9-Asset'!H169 -> 0 | I56: ='A9-Asset'!I169 -> 6802296 | J56: ='A9-Asset'!J169 -> 7142411 | K56: ='A9-Asset'!K169 -> 7142411
A58: Free services
A59: Cost of Free Basic Services provided | B59: ='A10-SerDel'!C60 -> 0 | C59: ='A10-SerDel'!D60 -> 0 | D59: ='A10-SerDel'!E60 -> 0 | E59: ='A10-SerDel'!F60 -> 6831990.132 | F59: ='A10-SerDel'!G60 -> 6831990.132 | G59: ='A10-SerDel'!H60 -> 0 | H59: ='A10-SerDel'!I60 -> 7100000 | I59: ='A10-SerDel'!I60 -> 7100000 | J59: ='A10-SerDel'!J60 -> 7455000 | K59: ='A10-SerDel'!K60 -> 7827750
A60: Revenue cost of free services provided | B60: ='A10-SerDel'!C79 -> 888296 | C60: ='A10-SerDel'!D79 -> 0 | D60: ='A10-SerDel'!E79 -> 0 | E60: ='A10-SerDel'!F79 -> 3307007.451 | F60: ='A10-SerDel'!G79 -> 3307007 | G60: ='A10-SerDel'!H79 -> 0 | H60: ='A10-SerDel'!I79 -> 1250000 | I60: ='A10-SerDel'!I79 -> 1250000 | J60: ='A10-SerDel'!J79 -> 1312500 | K60: ='A10-SerDel'!K79 -> 1378125
A61: Households below minimum service level
A62: ='A10-SerDel'!A5 -> Water: | B62: ='A10-SerDel'!C14 -> 0 | C62: ='A10-SerDel'!D14 -> 0 | D62: ='A10-SerDel'!E14 -> 0 | E62: ='A10-SerDel'!F14 -> 0 | F62: ='A10-SerDel'!G14 -> 0 | G62: ='A10-SerDel'!H14 -> 0 | H62: ='A10-SerDel'!I14 -> 0 | I62: ='A10-SerDel'!I14 -> 0 | J62: ='A10-SerDel'!J14 -> 0 | K62: ='A10-SerDel'!K14 -> 0
A63: ='A10-SerDel'!A16 -> Sanitation/sewerage: | B63: ='A10-SerDel'!C26 -> 0 | C63: ='A10-SerDel'!D26 -> 0 | D63: ='A10-SerDel'!E26 -> 0 | E63: ='A10-SerDel'!F26 -> 0 | F63: ='A10-SerDel'!G26 -> 0 | G63: ='A10-SerDel'!H26 -> 0 | H63: ='A10-SerDel'!I26 -> 0 | I63: ='A10-SerDel'!I26 -> 0 | J63: ='A10-SerDel'!J26 -> 0 | K63: ='A10-SerDel'!K26 -> 0
A64: ='A10-SerDel'!A28 -> Energy: | B64: ='A10-SerDel'!C35 -> 74 | C64: ='A10-SerDel'!D35 -> 0 | D64: ='A10-SerDel'!E35 -> 0 | E64: ='A10-SerDel'!F35 -> 0 | F64: ='A10-SerDel'!G35 -> 0 | G64: ='A10-SerDel'!H35 -> 0 | H64: ='A10-SerDel'!I35 -> 0 | I64: ='A10-SerDel'!I35 -> 0 | J64: ='A10-SerDel'!J35 -> 0 | K64: ='A10-SerDel'!K35 -> 0
A65: ='A10-SerDel'!A37 -> Refuse: | B65: ='A10-SerDel'!C45 -> 0 | C65: ='A10-SerDel'!D45 -> 0 | D65: ='A10-SerDel'!E45 -> 0 | E65: ='A10-SerDel'!F45 -> 0 | F65: ='A10-SerDel'!G45 -> 0 | G65: ='A10-SerDel'!H45 -> 0 | H65: ='A10-SerDel'!I45 -> 0 | I65: ='A10-SerDel'!I45 -> 0 | J65: ='A10-SerDel'!J45 -> 0 | K65: ='A10-SerDel'!K45 -> 0

Sheet A2-FinPerf SC
A1: =muni&" - "&Approve3 -> FS163 Mohokare - Table A2 Budgeted Financial Performance (revenue and expenditure by functional classification)
A2: ="Functional Classification "&desc -> Functional Classification Description | B2: =head27 -> Ref | C2: =head1b -> 2016/17 | D2: =head1A -> 2017/18 | E2: =Head1 -> 2018/19 | F2: =Head2 -> Current Year 2019/20 | I2: =Head3 -> 2020/21 Medium Term Revenue & Expenditure Framework
A3: R thousand | B3: 1 | C3: =Head5 -> Audited Outcome | D3: =Head5 -> Audited Outcome | E3: =Head5 -> Audited Outcome | F3: =Head6 -> Original Budget | G3: =Head7 -> Adjusted Budget | H3: =Head8 -> Full Year Forecast | I3: =Head9 -> Budget Year 2020/21 | J3: =Head10 -> Budget Year +1 2021/22 | K3: =Head11 -> Budget Year +2 2022/23
A4: Revenue - Functional
A5: Governance and administration | C5: =SUM(C6:C8) -> 42921268 | D5: =SUM(D6:D8) -> 76206592 | E5: 82659283 | F5: 104714340 | G5: 108265123 | H5: 0 | I5: 107041367 | J5: 111459435 | K5: 115193207
A6: Executive and council | C6: =A2A!C6 -> 9149671 | D6: =A2A!D6 -> 6554761 | E6: =A2A!E6 -> 2726041 | F6: =A2A!F6 -> 2518000 | G6: =A2A!G6 -> 2517996 | H6: =A2A!H6 -> 0 | I6: =A2A!I6 -> 2518000 | J6: =A2A!J6 -> 2622000 | K6: =A2A!K6 -> 2731000
A7: Finance and administration | C7: =A2A!C9 -> 33771597 | D7: =A2A!D9 -> 69651831 | E7: =A2A!E9 -> 79933242 | F7: =A2A!F9 -> 102196340 | G7: =A2A!G9 -> 105747127 | H7: =A2A!H9 -> 0 | I7: =A2A!I9 -> 104523367 | J7: =A2A!J9 -> 108837435 | K7: =A2A!K9 -> 112462207
A8: Internal audit | C8: =A2A!C23 -> 0 | D8: =A2A!D23 -> 0 | E8: =A2A!E23 -> 0 | F8: =A2A!F23 -> 0 | G8: =A2A!G23 -> 0 | H8: =A2A!H23 -> 0 | I8: =A2A!I23 -> 0 | J8: =A2A!J23 -> 0 | K8: =A2A!K23 -> 0
A9: Community and public safety | C9: =SUM(C10:C14) -> 34255090 | D9: =SUM(D10:D14) -> 61694943 | E9: 47743840 | F9: 36946652 | G9: 37108900 | H9: 0 | I9: 35650000 | J9: 37432500 | K9: 39304125
A10: Community and social services | C10: =A2A!C26 -> 3864000 | D10: =A2A!D26 -> 5387292 | E10: =A2A!E26 -> 5374540 | F10: =A2A!F26 -> 0 | G10: =A2A!G26 -> 121900 | H10: =A2A!H26 -> 0 | I10: =A2A!I26 -> 0 | J10: =A2A!J26 -> 0 | K10: =A2A!K26 -> 0
A11: Sport and recreation | C11: =A2A!C48 -> 1994686 | D11: =A2A!D48 -> 7441203 | E11: =A2A!E48 -> 4887807 | F11: =A2A!F48 -> 0 | G11: =A2A!G48 -> 0 | H11: =A2A!H48 -> 0 | I11: =A2A!I48 -> 0 | J11: =A2A!J48 -> 0 | K11: =A2A!K48 -> 0
A12: Public safety | C12: =A2A!C54 -> 27530630 | D12: =A2A!D54 -> 48400510 | E12: =A2A!E54 -> 36874000 | F12: =A2A!F54 -> 35934000 | G12: =A2A!G54 -> 36934000 | H12: =A2A!H54 -> 0 | I12: =A2A!I54 -> 35000000 | J12: =A2A!J54 -> 36750000 | K12: =A2A!K54 -> 38587500
A13: Housing | C13: =A2A!C63 -> 865774 | D13: =A2A!D63 -> 465938 | E13: =A2A!E63 -> 607493 | F13: =A2A!F63 -> 1012652 | G13: =A2A!G63 -> 53000 | H13: =A2A!H63 -> 0 | I13: =A2A!I63 -> 650000 | J13: =A2A!J63 -> 682500 | K13: =A2A!K63 -> 716625
A14: Health | C14: =A2A!C66 -> 0 | D14: =A2A!D66 -> 0 | E14: =A2A!E66 -> 0 | F14: =A2A!F66 -> 0 | G14: =A2A!G66 -> 0 | H14: =A2A!H66 -> 0 | I14: =A2A!I66 -> 0 | J14: =A2A!J66 -> 0 | K14: =A2A!K66 -> 0
A15: Economic and environmental services | C15: =SUM(C16:C18) -> 20133604 | D15: =SUM(D16:D18) -> 3043954 | E15: 3147703 | F15: 18991000 | G15: 17996947 | H15: 0 | I15: 18898000 | J15: 19107000 | K15: 19991000
A16: Planning and development | C16: =A2A!C75 -> 918141 | D16: =A2A!D75 -> 0 | E16: =A2A!E75 -> 0 | F16: =A2A!F75 -> 0 | G16: =A2A!G75 -> 5947 | H16: =A2A!H75 -> 0 | I16: =A2A!I75 -> 0 | J16: =A2A!J75 -> 0 | K16: =A2A!K75 -> 0
A17: Road transport | C17: =A2A!C86 -> 19215463 | D17: =A2A!D86 -> 3043954 | E17: =A2A!E86 -> 3147703 | F17: =A2A!F86 -> 18991000 | G17: =A2A!G86 -> 17991000 | H17: =A2A!H86 -> 0 | I17: =A2A!I86 -> 18898000 | J17: =A2A!J86 -> 19107000 | K17: =A2A!K86 -> 19991000
A18: Environmental protection | C18: =A2A!C91 -> 0 | D18: =A2A!D91 -> 0 | E18: =A2A!E91 -> 0 | F18: =A2A!F91 -> 0 | G18: =A2A!G91 -> 0 | H18: =A2A!H91 -> 0 | I18: =A2A!I91 -> 0 | J18: =A2A!J91 -> 0 | K18: =A2A!K91 -> 0
A19: Trading services | C19: =SUM(C20:C23) -> 115619775 | D19: =SUM(D20:D23) -> 119963789 | E19: 108479617 | F19: 131113177 | G19: 146049910 | H19: 0 | I19: 148839024 | J19: =SUM(J20:J23) -> 135018650 | K19: 122434793
A20: Energy sources | C20: =A2A!C99 -> 36579381 | D20: =A2A!D99 -> 28972337 | E20: =A2A!E99 -> 27649420 | F20: =A2A!F99 -> 35843144 | G20: =A2A!G99 -> 35843129 | H20: =A2A!H99 -> 0 | I20: =A2A!I99 -> 35197511 | J20: =A2A!J99 -> 36121312 | K20: =A2A!K99 -> 39654587
A21: Water management | C21: =A2A!C103 -> 59327376 | D21: =A2A!D103 -> 75060490 | E21: =A2A!E103 -> 65122903 | F21: =A2A!F103 -> 73489790 | G21: =A2A!G103 -> 93671526 | H21: =A2A!H103 -> 0 | I21: =A2A!I103 -> 98853271 | J21: =A2A!J103 -> 83369685 | K21: =A2A!K103 -> 66476169
A22: Waste water management | C22: =A2A!C107 -> 10033389 | D22: =A2A!D107 -> 9975583 | E22: =A2A!E107 -> 9868954 | F22: =A2A!F107 -> 13418053 | G22: =A2A!G107 -> 10222595 | H22: =A2A!H107 -> 0 | I22: =A2A!I107 -> 9401472 | J22: =A2A!J107 -> 9871545 | K22: =A2A!K107 -> 10365123
A23: Waste management | C23: =A2A!C112 -> 9679629 | D23: =A2A!D112 -> 5955379 | E23: =A2A!E112 -> 5838340 | F23: =A2A!F112 -> 8362190 | G23: =A2A!G112 -> 6312660 | H23: =A2A!H112 -> 0 | I23: =A2A!I112 -> 5386770 | J23: =A2A!J112 -> 5656108 | K23: =A2A!K112 -> 5938914
A24: Other | B24: 4 | C24: =A2A!C117 -> 0 | D24: =A2A!D117 -> 0 | E24: =A2A!E117 -> 0 | F24: =A2A!F117 -> 0 | G24: =A2A!G117 -> 0 | H24: =A2A!H117 -> 0 | I24: =A2A!I117 -> 0 | J24: =A2A!J117 -> 0 | K24: =A2A!K117 -> 0
A25: ="Total "&A4 -> Total Revenue - Functional | B25: 2 | C25: =C5+C9+C15+C19+C24 -> 212929737 | D25: =D5+D9+D15+D19+D24 -> 260909278 | E25: =E5+E9+E15+E19+E24 -> 242030443 | F25: 291765169 | G25: 309420880 | H25: 0 | I25: =I5+I9+I15+I19+I24 -> 310428391 | J25: 303017585 | K25: 296923125
A27: Expenditure - Functional
A28: Governance and administration | C28: =SUM(C29:C31) -> 113502574 | D28: =SUM(D29:D31) -> 56248542 | E28: 125025849 | F28: 112747499.7 | G28: 115802957.8 | H28: 0 | I28: 108712307.7 | J28: 113784668.2 | K28: 119173486.4
A29: Executive and council | C29: =A2A!C128 -> 7828253 | D29: =A2A!D128 -> 8262815 | E29: =A2A!E128 -> 9247647 | F29: =A2A!F128 -> 12105521.43 | G29: =A2A!G128 -> 11335592.98 | H29: =A2A!H128 -> 0 | I29: =A2A!I128 -> 8041001.553 | J29: =A2A!J128 -> 8416183.163 | K29: =A2A!K128 -> 8814771.85
A30: Finance and administration | C30: =A2A!C131 -> 105674321 | D30: =A2A!D131 -> 47985727 | E30: =A2A!E131 -> 115778202 | F30: =A2A!F131 -> 99361860.31 | G30: =A2A!G131 -> 103354231.6 | H30: =A2A!H131 -> 0 | I30: =A2A!I131 -> 100671306.1 | J30: =A2A!J131 -> 105368485 | K30: =A2A!K131 -> 110358714.6
A31: Internal audit | C31: =A2A!C145 -> 0 | D31: =A2A!D145 -> 0 | E31: =A2A!E145 -> 0 | F31: =A2A!F145 -> 1280117.99 | G31: =A2A!G145 -> 1113133.21 | H31: =A2A!H145 -> 0 | I31: =A2A!I145 -> 0 | J31: =A2A!J145 -> 0 | K31: =A2A!K145 -> 0
A32: Community and public safety | C32: =SUM(C33:C37) -> 11174197 | D32: =SUM(D33:D37) -> 15963020 | E32: 14808525 | F32: 13222330.16 | G32: 16899569.64 | H32: 0 | I32: 12876288.69 | J32: 13477077.88 | K32: 14115349.48
A33: Community and social services | C33: =A2A!C148 -> 7766307 | D33: =A2A!D148 -> 11647473 | E33: =A2A!E148 -> 11093217 | F33: =A2A!F148 -> 8764850.04 | G33: =A2A!G148 -> 12444085.91 | H33: =A2A!H148 -> 0 | I33: =A2A!I148 -> 9645759.091 | J33: =A2A!J148 -> 10095816.39 | K33: =A2A!K148 -> 10573952.16
A34: Sport and recreation | C34: =A2A!C170 -> 1216433 | D34: =A2A!D170 -> 649627 | E34: =A2A!E170 -> 688228 | F34: =A2A!F170 -> 682868.22 | G34: =A2A!G170 -> 629511.74 | H34: =A2A!H170 -> 0 | I34: =A2A!I170 -> 598427.0827 | J34: =A2A!J170 -> 626348.833 | K34: =A2A!K170 -> 656012.5836
A35: Public safety | C35: =A2A!C176 -> 1458101 | D35: =A2A!D176 -> 3009892 | E35: =A2A!E176 -> 2305569 | F35: =A2A!F176 -> 2654557.67 | G35: =A2A!G176 -> 2991446.56 | H35: =A2A!H176 -> 0 | I35: =A2A!I176 -> 2004735.249 | J35: =A2A!J176 -> 2098273.323 | K35: =A2A!K176 -> 2197647.112
A36: Housing | C36: =A2A!C185 -> 733356 | D36: =A2A!D185 -> 656028 | E36: =A2A!E185 -> 721511 | F36: =A2A!F185 -> 1120054.23 | G36: =A2A!G185 -> 834525.43 | H36: =A2A!H185 -> 0 | I36: =A2A!I185 -> 627367.272 | J36: =A2A!J185 -> 656639.33 | K36: =A2A!K185 -> 687737.6323
A37: Health | C37: =A2A!C188 -> 0 | D37: =A2A!D188 -> 0 | E37: =A2A!E188 -> 0 | F37: =A2A!F188 -> 0 | G37: =A2A!G188 -> 0 | H37: =A2A!H188 -> 0 | I37: =A2A!I188 -> 0 | J37: =A2A!J188 -> 0 | K37: =A2A!K188 -> 0
A38: Economic and environmental services | C38: =SUM(C39:C41) -> 17789237 | D38: =SUM(D39:D41) -> 15744200 | E38: 11602060 | F38: 12527168.3 | G38: 13333052.7 | H38: 0 | I38: 10088207.57 | J38: 10558908.88 | K38: 11058976.61
A39: Planning and development | C39: =A2A!C197 -> 3952812 | D39: =A2A!D197 -> 5792794 | E39: =A2A!E197 -> 6159575 | F39: =A2A!F197 -> 7625999.9 | G39: =A2A!G197 -> 7726410.26 | H39: =A2A!H197 -> 0 | I39: =A2A!I197 -> 5355865.35 | J39: =A2A!J197 -> 5605762.353 | K39: =A2A!K197 -> 5871250.094
A40: Road transport | C40: =A2A!C208 -> 13836425 | D40: =A2A!D208 -> 9951406 | E40: =A2A!E208 -> 5442485 | F40: =A2A!F208 -> 4890668.4 | G40: =A2A!G208 -> 5596142.44 | H40: =A2A!H208 -> 0 | I40: =A2A!I208 -> 4732342.22 | J40: =A2A!J208 -> 4953146.527 | K40: =A2A!K208 -> 5187726.518
A41: Environmental protection | C41: =A2A!C213 -> 0 | D41: =A2A!D213 -> 0 | E41: =A2A!E213 -> 0 | F41: =A2A!F213 -> 10500 | G41: =A2A!G213 -> 10500 | H41: =A2A!H213 -> 0 | I41: =A2A!I213 -> 0 | J41: =A2A!J213 -> 0 | K41: =A2A!K213 -> 0
A42: Trading services | C42: =SUM(C43:C46) -> 79713212 | D42: =SUM(D43:D46) -> 152288555 | E42: 99164234 | F42: =SUM(F43:F46) -> 72915267.34 | G42: 67909573.46 | H42: 0 | I42: 86225151.06 | J42: 90248294.06 | K42: =SUM(K43:K46) -> 94522435.48
A43: Energy sources | C43: =A2A!C221 -> 34294978 | D43: =A2A!D221 -> 33064941 | E43: =A2A!E221 -> 30991930 | F43: =A2A!F221 -> 28857066.98 | G43: =A2A!G221 -> 28894437.9 | H43: =A2A!H221 -> 0 | I43: =A2A!I221 -> 26948061.19 | J43: =A2A!J221 -> 28205420.12 | K43: =A2A!K221 -> 29541223.91
A44: Water management | C44: =A2A!C225 -> 28502213 | D44: =A2A!D225 -> 61455419 | E44: =A2A!E225 -> 33330264 | F44: =A2A!F225 -> 24593059.43 | G44: =A2A!G225 -> 21778116.95 | H44: =A2A!H225 -> 0 | I44: =A2A!I225 -> 28981286.22 | J44: =A2A!J225 -> 30333511.51 | K44: =A2A!K225 -> 31770100.31
A45: Waste water management | C45: =A2A!C229 -> 11365900 | D45: =A2A!D229 -> 13413775 | E45: =A2A!E229 -> 19268302 | F45: =A2A!F229 -> 12311279.28 | G45: =A2A!G229 -> 10505180.16 | H45: =A2A!H229 -> 0 | I45: =A2A!I229 -> 16754147.98 | J45: =A2A!J229 -> 17535872.52 | K45: =A2A!K229 -> 18366367.8
A46: Waste management | C46: =A2A!C234 -> 5550121 | D46: =A2A!D234 -> 44354420 | E46: =A2A!E234 -> 15573738 | F46: =A2A!F234 -> 7153861.65 | G46: =A2A!G234 -> 6731838.45 | H46: =A2A!H234 -> 0 | I46: =A2A!I234 -> 13541655.67 | J46: =A2A!J234 -> 14173489.92 | K46: =A2A!K234 -> 14844743.46
A47: Other | B47: 4 | C47: =A2A!C239 -> 0 | D47: =A2A!D239 -> 0 | E47: =A2A!E239 -> 0 | F47: =A2A!F239 -> 0 | G47: =A2A!G239 -> 0 | H47: =A2A!H239 -> 0 | I47: =A2A!I239 -> 0 | J47: =A2A!J239 -> 0 | K47: =A2A!K239 -> 0
A48: ="Total "&A27 -> Total Expenditure - Functional | B48: 3 | C48: =C28+C32+C38+C42+C47 -> 222179220 | D48: =D28+D32+D38+D42+D47 -> 240244317 | E48: =E28+E32+E38+E42+E47 -> 250600668 | F48: =F28+F32+F38+F42+F47 -> 211412265.5 | G48: 213945153.6 | H48: 0 | I48: 217901955 | J48: 228068949 | K48: 238870248
A49: =result -> Surplus/(Deficit) for the year | C49: =C25-C48 -> -9249483 | D49: =D25-D48 -> 20664961 | E49: -8570225 | F49: 80352903.47 | G49: 95475726.38 | H49: 0 | I49: 92526436 | J49: 74948636 | K49: 58052877
A50: =head27a -> References
A51: 1. Government Finance Statistics Functions and Sub-functions are standardised to assist the compilation of national and international accounts for comparison purposes
A52: 2. Total Revenue by functional classification must reconcile to Total Operating Revenue shown in Budgeted Financial Performance (revenue and expenditure)
A53: 3. Total Expenditure by Functional Classification must reconcile to Total Operating Expenditure shown in Budgeted Financial Performance (revenue and expenditure)
A54: 4. All amounts must be classified under a functional classification . The GFS function 'Other' is only for Abbatoirs, Air Transport, Forestry, Licensing and Regulation, Markets and Tourism - and if used must be supported by footnotes. Nothing else may be placed under 'Other'. Assign associate share to relevant classification.
A57: check oprev balance | C57: =C25-'A4-FinPerf RE'!C59 -> 0 | D57: =D25-'A4-FinPerf RE'!D59 -> 0 | E57: =E25-'A4-FinPerf RE'!E59 -> 0 | F57: =F25-'A4-FinPerf RE'!F59 -> -15655709.52 | G57: =G25-'A4-FinPerf RE'!G59 -> 0.1316000223 | H57: =H25-'A4-FinPerf RE'!H59 -> 0 | I57: =I25-'A4-FinPerf RE'!J59 -> 0 | J57: =J25-'A4-FinPerf RE'!K59 -> 0 | K57: =K25-'A4-FinPerf RE'!L59 -> 0
A58: check opexp balance | C58: =C48-'A4-FinPerf RE'!C35 -> 0 | D58: =D48-'A4-FinPerf RE'!D35 -> 0 | E58: =E48-'A4-FinPerf RE'!E35 -> 0 | F58: =F48-'A4-FinPerf RE'!F35 -> -3677388.674 | G58: =G48-'A4-FinPerf RE'!G35 -> -0.002400010824 | H58: =H48-'A4-FinPerf RE'!H35 -> 0 | I58: =I48-'A4-FinPerf RE'!J35 -> 0 | J58: =J48-'A4-FinPerf RE'!K35 -> 0 | K58: =K48-'A4-FinPerf RE'!L35 -> 0

Sheet A2A
A1: =muni&" - "&Approve3 -> FS163 Mohokare - Table A2 Budgeted Financial Performance (revenue and expenditure by functional classification)
A2: ="Functional Classification "&desc -> Functional Classification Description | B2: =head27 -> Ref | C2: =head1b -> 2016/17 | D2: =head1A -> 2017/18 | E2: =Head1 -> 2018/19 | F2: =Head2 -> Current Year 2019/20 | I2: =Head3 -> 2020/21 Medium Term Revenue & Expenditure Framework
A3: R thousand | B3: 1 | C3: =Head5 -> Audited Outcome | D3: =Head5 -> Audited Outcome | E3: =Head5 -> Audited Outcome | F3: =Head6 -> Original Budget | G3: =Head7 -> Adjusted Budget | H3: =Head8 -> Full Year Forecast | I3: =Head9 -> Budget Year 2020/21 | J3: =Head10 -> Budget Year +1 2021/22 | K3: =Head11 -> Budget Year +2 2022/23
A4: Revenue - Functional
A5: Municipal governance and administration | C5: =C6+C9+C23 -> 42921268 | D5: 76206592 | E5: 82659283 | F5: 104714340 | G5: 108265123 | H5: 0 | I5: 107041367 | J5: 111459435 | K5: 115193207
A6: Executive and council | C6: =SUM(C7:C8) -> 9149671 | D6: =SUM(D7:D8) -> 6554761 | E6: 2726041 | F6: 2518000 | G6: 2517996 | H6: 0 | I6: 2518000 | J6: 2622000 | K6: 2731000
A7: Mayor and Council | C7: 8444580 | D7: 6554761 | E7: 2726041 | F7: =[3]A2A!I7 -> 2518000 | G7: =[4]B2B!K9 -> 2517996 | I7: 2518000 | J7: 2622000 | K7: 2731000
A8: Municipal Manager, Town Secretary and Chief Executive | C8: 705091
A9: Finance and administration | C9: =SUM(C10:C22) -> 33771597 | D9: 69651831 | E9: 79933242 | F9: 102196340 | G9: 105747127 | H9: 0 | I9: 104523367 | J9: 108837435 | K9: 112462207
A10: Administrative and Corporate Support | C10: 2739204
A11: Asset Management
A12: Finance | C12: 27844598 | D12: 69651831 | E12: 79933242 | F12: =[3]A2A!I12 -> 102196340 | G12: =[4]B2B!K14 -> 85014065 | I12: 104523367 | J12: 108837435 | K12: 112462207
A13: Fleet Management
A14: Human Resources | C14: 796398
A15: Information Technology | C15: 557986
A16: Legal Services
A17: Marketing, Customer Relations, Publicity and Media Co-ordination
A18: Property Services | C18: 1833411 | G18: =[4]B2B!K20 -> 20733062
A19: Risk Management
A20: Security Services
A21: Supply Chain Management
A22: Valuation Service
A23: Internal audit | C23: =SUM(C24:C24) -> 0 | D23: 0 | E23: 0 | F23: 0 | G23: 0 | H23: 0 | I23: 0 | J23: 0 | K23: 0
A24: Governance Function
A25: Community and public safety | C25: =C26+C48+C54+C63+C66 -> 34255090 | D25: 61694943 | E25: 47743840 | F25: 36946652 | G25: 37108900 | H25: 0 | I25: 35650000 | J25: 37432500 | K25: 39304125
A26: Community and social services | C26: =SUM(C27:C47) -> 3864000 | D26: =SUM(D27:D47) -> 5387292 | E26: 5374540 | F26: 0 | G26: 121900 | H26: 0 | I26: 0 | J26: 0 | K26: 0
A27: Aged Care
A28: Agricultural
A29: Animal Care and Diseases
A30: Cemeteries, Funeral Parlours and Crematoriums | C30: 52944 | D30: 5363994 | E30: 5363994
A31: Child Care Facilities
A32: Community Halls and Facilities | C32: 3349440 | D32: 23298 | E32: 10546 | G32: =[4]B2B!K34 -> 121900
A33: Consumer Protection
A34: Cultural Matters
A35: Disaster Management
A36: Education
A37: Indigenous and Customary Law
A38: Industrial Promotion
A39: Language Policy
A40: Libraries and Archives | C40: 461616
A41: Literacy Programmes
A42: Media Services
A43: Museums and Art Galleries
A44: Population Development
A45: Provincial Cultural Matters
A46: Theatres
A47: Zoo's
A48: Sport and recreation | C48: =SUM(C49:C53) -> 1994686 | D48: =SUM(D49:D53) -> 7441203 | E48: 4887807 | F48: 0 | G48: 0 | H48: 0 | I48: 0 | J48: 0 | K48: 0
A49: Beaches and Jetties
A50: Casinos, Racing, Gambling, Wagering
A51: Community Parks (including Nurseries)
A52: Recreational Facilities
A53: Sports Grounds and Stadiums | C53: 1994686 | D53: 7441203 | E53: 4887807
A54: Public safety | C54: =SUM(C55:C62) -> 27530630 | D54: 48400510 | E54: 36874000 | F54: 35934000 | G54: 36934000 | H54: 0 | I54: 35000000 | J54: 36750000 | K54: 38587500
A55: Civil Defence
A56: Cleansing
A57: Control of Public Nuisances
A58: Fencing and Fences
A59: Fire Fighting and Protection | C59: 60871
A60: Licensing and Control of Animals | C60: 49126
A61: Police Forces, Traffic and Street Parking Control | C61: 27420633 | D61: 48400510 | E61: 36874000 | F61: =[3]A2A!I61 -> 35934000 | G61: =[4]B2B!K63 -> 36934000 | I61: 35000000 | J61: 36750000 | K61: 38587500
A62: Pounds
A63: Housing | C63: =SUM(C64:C65) -> 865774 | D63: =SUM(D64:D65) -> 465938 | E63: 607493 | F63: 1012652 | G63: 53000 | H63: 0 | I63: 650000 | J63: 682500 | K63: 716625
A64: Housing | C64: 865774 | D64: 465938 | E64: 607493 | F64: =[3]A2A!I64 -> 1012652 | G64: =[4]B2B!K66 -> 53000 | I64: 650000 | J64: 682500 | K64: 716625
A65: Informal Settlements
A66: Health | C66: =SUM(C67:C73) -> 0 | D66: =SUM(D67:D73) -> 0 | E66: 0 | F66: 0 | G66: 0 | H66: 0 | I66: 0 | J66: 0 | K66: 0
A67: Ambulance
A68: Health Services
A69: Laboratory Services
A70: Food Control
A71: Health Surveillance and Prevention of Communicable Diseases including immunizations
A72: Vector Control
A73: Chemical Safety
A74: Economic and environmental services | C74: =C75+C86+C91 -> 20133604 | D74: 3043954 | E74: 3147703 | F74: 18991000 | G74: 17996947 | H74: 0 | I74: 18898000 | J74: 19107000 | K74: 19991000
A75: Planning and development | C75: =SUM(C76:C85) -> 918141 | D75: =SUM(D76:D85) -> 0 | E75: 0 | F75: 0 | G75: 5947 | H75: 0 | I75: 0 | J75: 0 | K75: 0
A76: Billboards
A77: Corporate Wide Strategic Planning (IDPs, LEDs)
A78: Central City Improvement District
A79: Development Facilitation
A80: Economic Development/Planning | C80: 918141 | G80: =[4]B2B!K82 -> 5947
A81: Regional Planning and Development
A82: Town Planning, Building Regulations and Enforcement, and City Engineer
A83: Project Management Unit
A84: Provincial Planning
A85: Support to Local Municipalities
A86: Road transport | C86: =SUM(C87:C90) -> 19215463 | D86: 3043954 | E86: 3147703 | F86: 18991000 | G86: 17991000 | H86: 0 | I86: 18898000 | J86: 19107000 | K86: 19991000
A87: Public Transport
A88: Road and Traffic Regulation
A89: Roads | C89: 19215463 | D89: 3043954 | E89: 3147703 | F89: =[3]A2A!I89 -> 18991000 | G89: =[4]B2B!K91 -> 17991000 | I89: 18898000 | J89: 19107000 | K89: 19991000
A90: Taxi Ranks
A91: Environmental protection | C91: =SUM(C92:C97) -> 0 | D91: =SUM(D92:D97) -> 0 | E91: 0 | F91: 0 | G91: 0 | H91: 0 | I91: 0 | J91: 0 | K91: 0
A92: Biodiversity and Landscape
A93: Coastal Protection
A94: Indigenous Forests
A95: Nature Conservation
A96: Pollution Control
A97: Soil Conservation
A98: Trading services | C98: =C99+C103+C107+C112 -> 115619775 | D98: =D99+D103+D107+D112 -> 119963789 | E98: 108479617 | F98: 131113177 | G98: 146049910 | H98: 0 | I98: 148839024 | J98: 135018650 | K98: =K99+K103+K107+K112 -> 122434793
A99: Energy sources | C99: =SUM(C100:C102) -> 36579381 | D99: =SUM(D100:D102) -> 28972337 | E99: 27649420 | F99: 35843144 | G99: 35843129 | H99: 0 | I99: 35197511 | J99: 36121312 | K99: 39654587
A100: Electricity | C100: 36579381 | D100: 28972337 | E100: 27649420 | F100: =[3]A2A!I100 -> 35843144 | G100: =[4]B2B!K102 -> 35843129 | I100: 35197511 | J100: 36121312 | K100: 39654587
A101: Street Lighting and Signal Systems
A102: Nonelectric Energy
A103: Water management | C103: =SUM(C104:C106) -> 59327376 | D103: =SUM(D104:D106) -> 75060490 | E103: 65122903 | F103: 73489790 | G103: 93671526 | H103: 0 | I103: 98853271 | J103: 83369685 | K103: 66476169
A104: Water Treatment | G104: =[4]B2B!K106 -> -128474
A105: Water Distribution | C105: 59327376 | D105: 75060490 | E105: 65122903 | F105: =[3]A2A!I105 -> 73489790 | G105: =[4]B2B!K107 -> 93800000 | I105: 98853271 | J105: 83369685 | K105: 66476169
A106: Water Storage
A107: Waste water management | C107: =SUM(C108:C111) -> 10033389 | D107: =SUM(D108:D111) -> 9975583 | E107: 9868954 | F107: 13418053 | G107: 10222595 | H107: 0 | I107: 9401472 | J107: 9871545 | K107: 10365123
A108: Public Toilets
A109: Sewerage | C109: 10033389 | D109: 9975583 | E109: 9868954 | F109: =[3]A2A!I109 -> 13418053 | G109: =[4]B2B!K111 -> 10222595 | I109: 9401472 | J109: 9871545 | K109: 10365123
A110: Storm Water Management
A111: Waste Water Treatment
A112: Waste management | C112: =SUM(C113:C116) -> 9679629 | D112: =SUM(D113:D116) -> 5955379 | E112: 5838340 | F112: 8362190 | G112: 6312660 | H112: 0 | I112: 5386770 | J112: 5656108 | K112: 5938914
A113: Recycling
A114: Solid Waste Disposal (Landfill Sites) | G114: =[4]B2B!K116 -> -79640
A115: Solid Waste Removal | C115: 9679629 | D115: 5955379 | E115: 5838340 | F115: =[3]A2A!I115 -> 8362190 | G115: =[4]B2B!K117 -> 6392300 | I115: 5386770 | J115: 5656108 | K115: 5938914
A116: Street Cleaning
A117: Other | C117: =SUM(C118:C123) -> 0 | D117: =SUM(D118:D123) -> 0 | E117: 0 | F117: 0 | G117: 0 | H117: 0 | I117: 0 | J117: 0 | K117: 0
A118: Abattoirs
A119: Air Transport
A120: Forestry
A121: Licensing and Regulation
A122: Markets
A123: Tourism
A124: ="Total "&A4 -> Total Revenue - Functional | B124: 2 | C124: =C5+C25+C74+C98+C117 -> 212929737 | D124: 260909278 | E124: 242030443 | F124: 291765169 | G124: 309420880 | H124: 0 | I124: 310428391 | J124: 303017585 | K124: 296923125
A126: Expenditure - Functional
A127: =A5 -> Municipal governance and administration | C127: =C128+C131+C145 -> 113502574 | D127: 56248542 | E127: 125025849 | F127: 112747499.7 | G127: 115802957.8 | H127: 0 | I127: 108712307.7 | J127: 113784668.2 | K127: 119173486.4
A128: Executive and council | C128: =SUM(C129:C130) -> 7828253 | D128: 8262815 | E128: 9247647 | F128: 12105521.43 | G128: 11335592.98 | H128: 0 | I128: 8041001.553 | J128: 8416183.163 | K128: 8814771.85
A129: Mayor and Council | C129: 7390532 | D129: 7270637 | E129: 7607048 | F129: =[3]A2A!I129 -> 10518089.15 | G129: =[4]B2B!K131 -> 9851900.81 | I129: 6614470.122 | J129: 6923091.82 | K129: 7250968.011
A130: Municipal Manager, Town Secretary and Chief Executive | C130: 437721 | D130: 992178 | E130: 1640599 | F130: =[3]A2A!I130 -> 1587432.28 | G130: =[4]B2B!K132 -> 1483692.17 | I130: 1426531.431 | J130: 1493091.343 | K130: 1563803.839
A131: Finance and administration | C131: =SUM(C132:C144) -> 105674321 | D131: 47985727 | E131: 115778202 | F131: 99361860.31 | G131: 103354231.6 | H131: 0 | I131: 100671306.1 | J131: 105368485 | K131: 110358714.6
A132: Administrative and Corporate Support | C132: 7610171 | D132: 7843568 | E132: 12316196 | F132: =[3]A2A!I132 -> 7786447.08 | G132: =[4]B2B!K134 -> 7454536.04 | I132: 10709162.14 | J132: 11208836.3 | K132: 11739684.46
A133: Asset Management | F133: =[3]A2A!I133 -> 1784272.86 | G133: =[4]B2B!K135 -> 1784268
A134: Finance | C134: 93382731 | D134: 37394359 | E134: 66328527 | F134: =[3]A2A!I134 -> 78767841.25 | G134: =[4]B2B!K136 -> 83226434.55 | I134: 57673891.38 | J134: 60364872.51 | K134: 63223740.33
A135: Fleet Management | F135: =[3]A2A!I135 -> 2037000 | G135: =[4]B2B!K137 -> 1987500
A136: Human Resources | C136: 1604684 | D136: 1408727 | E136: 1546047 | F136: =[3]A2A!I136 -> 2339900.76 | G136: =[4]B2B!K138 -> 2209443.12 | I136: 1344316.703 | J136: 1407040.594 | K136: 1473677.745
A137: Information Technology | C137: 1463374 | D137: 1339073 | E137: 12528696 | F137: =[3]A2A!I137 -> 2220785.37 | G137: =[4]B2B!K139 -> 1923822.99 | I137: 10893934.86 | J137: 11402230.25 | K137: 11942237.5
A138: Legal Services | F138: =[3]A2A!I138 -> 682500 | G138: =[4]B2B!K140 -> 500000
A139: Marketing, Customer Relations, Publicity and Media Co-ordination | F139: =[3]A2A!I139 -> 137253.6 | G139: =[4]B2B!K141 -> 435000
A140: Property Services | C140: 1613361 | E140: 23058736 | F140: =[3]A2A!I140 -> 3557289.2 | G140: =[4]B2B!K142 -> 3499980 | I140: 20050001.04 | J140: 20985505.36 | K140: 21979374.54
A141: Risk Management
A142: Security Services | F142: =[3]A2A!I142 -> 27370.19 | G142: =[4]B2B!K144 -> 78246.93
A143: Supply Chain Management
A144: Valuation Service | F144: =[3]A2A!I144 -> 21200 | G144: =[4]B2B!K146 -> 255000
A145: Internal audit | C145: =SUM(C146:C146) -> 0 | D145: 0 | E145: 0 | F145: 1280117.99 | G145: 1113133.21 | H145: 0 | I145: 0 | J145: 0 | K145: 0
A146: Governance Function | F146: =[3]A2A!I146 -> 1280117.99 | G146: =[4]B2B!K148 -> 1113133.21
A147: Community and public safety | C147: =C148+C170+C176+C185+C188 -> 11174197 | D147: 15963020 | E147: 14808525 | F147: 13222330.16 | G147: 16899569.64 | H147: 0 | I147: 12876288.69 | J147: 13477077.88 | K147: 14115349.48
A148: Community and social services | C148: =SUM(C149:C169) -> 7766307 | D148: =SUM(D149:D169) -> 11647473 | E148: 11093217 | F148: 8764850.04 | G148: 12444085.91 | H148: 0 | I148: 9645759.091 | J148: 10095816.39 | K148: 10573952.16
A149: Aged Care
A150: Agricultural
A151: Animal Care and Diseases | F151: =[3]A2A!I151 -> 73921 | G151: =[4]B2B!K153 -> 48500
A152: Cemeteries, Funeral Parlours and Crematoriums
A153: Child Care Facilities
A154: Community Halls and Facilities | C154: 7093050 | D154: 11086589 | E154: 10476245 | F154: =[3]A2A!I154 -> 8690929.04 | G154: =[4]B2B!K156 -> 12395585.91 | I154: 9109290.429 | J154: 9534316.868 | K154: 9985860.135
A155: Consumer Protection
A156: Cultural Matters
A157: Disaster Management
A158: Education
A159: =A37 -> Indigenous and Customary Law
A160: Industrial Promotion
A161: Language Policy
A162: Libraries and Archives | C162: 673257 | D162: 560884 | E162: 616972 | I162: 536468.6617 | J162: 561499.5208 | K162: 588092.0214
A163: Literacy Programmes
A164: Media Services
A165: Museums and Art Galleries
A166: Population Development
A167: Provincial Cultural Matters
A168: Theatres
A169: Zoo's
A170: Sport and recreation | C170: =SUM(C171:C175) -> 1216433 | D170: 649627 | E170: 688228 | F170: 682868.22 | G170: 629511.74 | H170: 0 | I170: 598427.0827 | J170: 626348.833 | K170: 656012.5836
A171: Beaches and Jetties
A172: Casinos, Racing, Gambling, Wagering
A173: Community Parks (including Nurseries) | F173: =[3]A2A!I173 -> 183750 | G173: =[4]B2B!K175 -> 120000
A174: Recreational Facilities
A175: Sports Grounds and Stadiums | C175: 1216433 | D175: 649627 | E175: 688228 | F175: =[3]A2A!I175 -> 499118.22 | G175: =[4]B2B!K177 -> 509511.74 | I175: 598427.0827 | J175: 626348.833 | K175: 656012.5836
A176: Public safety | C176: =SUM(C177:C184) -> 1458101 | D176: 3009892 | E176: 2305569 | F176: 2654557.67 | G176: 2991446.56 | H176: 0 | I176: 2004735.249 | J176: 2098273.323 | K176: 2197647.112
A177: Civil Defence
A178: Cleansing
A179: =A57 -> Control of Public Nuisances | F179: =[3]A2A!I179 -> 126000 | G179: =[4]B2B!K181 -> 20000
A180: Fencing and Fences
A181: Fire Fighting and Protection | F181: =[3]A2A!I181 -> 101665.93 | G181: =[4]B2B!K183 -> 40000
A182: Licensing and Control of Animals | C182: 69120
A183: Police Forces, Traffic and Street Parking Control | C183: 1388981 | D183: 3009892 | E183: 2305569 | F183: =[3]A2A!I183 -> 2426891.74 | G183: =[4]B2B!K185 -> 2931446.56 | I183: 2004735.249 | J183: 2098273.323 | K183: 2197647.112
A184: Pounds
A185: =A63 -> Housing | C185: =SUM(C186:C187) -> 733356 | D185: 656028 | E185: 721511 | F185: =[3]A2A!I185 -> 1120054.23 | G185: 834525.43 | H185: 0 | I185: 627367.272 | J185: 656639.33 | K185: 687737.6323
A186: Housing | C186: 733356 | D186: 656028 | E186: 721511 | F186: =[3]A2A!I186 -> 1120054.23 | G186: =[4]B2B!K188 -> 834525.43 | I186: 627367.272 | J186: 656639.33 | K186: 687737.6323
A187: Informal Settlements
A188: Health | C188: =SUM(C189:C195) -> 0 | D188: =SUM(D189:D195) -> 0 | E188: 0 | F188: 0 | G188: 0 | H188: 0 | I188: 0 | J188: 0 | K188: 0
A189: Ambulance
A190: Health Services
A191: Laboratory Services
A192: Food Control
A193: Health Surveillance and Prevention of Communicable Diseases including immunizations
A194: Vector Control
A195: Chemical Safety
A196: Economic and environmental services | C196: =C197+C208+C213 -> 17789237 | D196: 15744200 | E196: 11602060 | F196: 12527168.3 | G196: 13333052.7 | H196: 0 | I196: 10088207.57 | J196: 10558908.88 | K196: 11058976.61
A197: Planning and development | C197: =SUM(C198:C207) -> 3952812 | D197: =SUM(D198:D207) -> 5792794 | E197: 6159575 | F197: 7625999.9 | G197: 7726410.26 | H197: 0 | I197: 5355865.35 | J197: 5605762.353 | K197: 5871250.094
A198: Billboards
A199: Corporate Wide Strategic Planning (IDPs, LEDs) | F199: =[3]A2A!I199 -> 5833762.47 | G199: =[4]B2B!K201 -> 6378430.71 | I199: 5355865.35 | J199: 5605762.353 | K199: 5871250.094
A200: Central City Improvement District
A201: Development Facilitation
... 53 more rows

Sheet A3-FinPerf V
A1: =muni&" - "&Approve2 -> FS163 Mohokare - Table A3 Budgeted Financial Performance (revenue and expenditure by municipal vote)
A2: =Vdesc -> Vote Description | B2: =head27 -> Ref | C2: =head1b -> 2016/17 | D2: =head1A -> 2017/18 | E2: =Head1 -> 2018/19 | F2: =Head2 -> Current Year 2019/20 | I2: =Head3 -> 2020/21 Medium Term Revenue & Expenditure Framework | L2: =Head4 -> LTFS
A3: R thousand | C3: =Head5 -> Audited Outcome | D3: =Head5 -> Audited Outcome | E3: =Head5 -> Audited Outcome | F3: =Head6 -> Original Budget | G3: =Head7 -> Adjusted Budget | H3: =Head8 -> Full Year Forecast | I3: =Head9 -> Budget Year 2020/21 | J3: =Head10 -> Budget Year +1 2021/22 | K3: =Head11 -> Budget Year +2 2022/23 | L3: =Head12 -> Forecast 2023/24 | M3: =Head13 -> Forecast 2024/25 | N3: =Head14 -> Forecast 2025/26 | O3: =Head15 -> Forecast 2026/27 | P3: =Head16 -> Forecast 2027/28 | Q3: =Head17 -> Forecast 2028/29 | R3: =Head18 -> Forecast 2029/30 | S3: =Head19 -> Forecast 2030/31 | T3: =Head20 -> Forecast 2031/32 | U3: =Head21 -> Forecast 2032/33 | V3: =Head22 -> Forecast 2033/34 | W3: =Head23 -> Forecast 2034/35
A4: Revenue by Vote | B4: 1
A5: =A3A!A5 -> Vote 1 - COUNCIL & EXECUTIVE | C5: =A3A!C5 -> 10067812 | D5: =A3A!D5 -> 6554761 | E5: =A3A!E5 -> 2726041 | F5: =A3A!F5 -> 2518000 | G5: =A3A!G5 -> 2523943 | H5: =A3A!H5 -> 0 | I5: =A3A!I5 -> 2518000 | J5: =A3A!J5 -> 2622000 | K5: =A3A!K5 -> 2731000
A6: =A3A!A16 -> Vote 2 - FINANCE | C6: =A3A!C16 -> 27844598 | D6: =A3A!D16 -> 69651831 | E6: =A3A!E16 -> 79933242 | F6: =A3A!F16 -> 102196340 | G6: =A3A!G16 -> 85014065 | H6: =A3A!H16 -> 0 | I6: =A3A!I16 -> 104523367 | J6: =A3A!J16 -> 108837435 | K6: =A3A!K16 -> 112462207
A7: =A3A!A27 -> Vote 3 - CORPORATE SERVICES | C7: =A3A!C27 -> 5926999 | D7: =A3A!D27 -> 0 | E7: =A3A!E27 -> 0 | F7: =A3A!F27 -> 0 | G7: =A3A!G27 -> 20733062 | H7: =A3A!H27 -> 0 | I7: =A3A!I27 -> 0 | J7: =A3A!J27 -> 0 | K7: =A3A!K27 -> 0
A8: =A3A!A38 -> Vote 4 - COMMUNITY SERVICES | C8: =A3A!C38 -> 43934719 | D8: =A3A!D38 -> 67650322 | E8: =A3A!E38 -> 53582180 | F8: =A3A!F38 -> 45308842 | G8: =A3A!G38 -> 43421560 | H8: =A3A!H38 -> 0 | I8: =A3A!I38 -> 41036770 | J8: =A3A!J38 -> 43088608 | K8: =A3A!K38 -> 45243039
A9: =A3A!A49 -> Vote 5 - TECHNICAL SERVICES | C9: =A3A!C49 -> 125155609 | D9: =A3A!D49 -> 117052364 | E9: =A3A!E49 -> 105788980 | F9: =A3A!F49 -> 141741987 | G9: =A3A!G49 -> 157728250 | H9: =A3A!H49 -> 0 | I9: =A3A!I49 -> 162350254 | J9: =A3A!J49 -> 148469542 | K9: =A3A!K49 -> 136486879
A10: =A3A!A60 -> Vote 6 - [NAME OF VOTE 6] | C10: =A3A!C60 -> 0 | D10: =A3A!D60 -> 0 | E10: =A3A!E60 -> 0 | F10: =A3A!F60 -> 0 | G10: =A3A!G60 -> 0 | H10: =A3A!H60 -> 0 | I10: =A3A!I60 -> 0 | J10: =A3A!J60 -> 0 | K10: =A3A!K60 -> 0
A11: =A3A!A71 -> Vote 7 - [NAME OF VOTE 7] | C11: =A3A!C71 -> 0 | D11: =A3A!D71 -> 0 | E11: =A3A!E71 -> 0 | F11: =A3A!F71 -> 0 | G11: =A3A!G71 -> 0 | H11: =A3A!H71 -> 0 | I11: =A3A!I71 -> 0 | J11: =A3A!J71 -> 0 | K11: =A3A!K71 -> 0
A12: =A3A!A82 -> Vote 8 - [NAME OF VOTE 8] | C12: =A3A!C82 -> 0 | D12: =A3A!D82 -> 0 | E12: =A3A!E82 -> 0 | F12: =A3A!F82 -> 0 | G12: =A3A!G82 -> 0 | H12: =A3A!H82 -> 0 | I12: =A3A!I82 -> 0 | J12: =A3A!J82 -> 0 | K12: =A3A!K82 -> 0
A13: =A3A!A93 -> Vote 9 - [NAME OF VOTE 9] | C13: =A3A!C93 -> 0 | D13: =A3A!D93 -> 0 | E13: =A3A!E93 -> 0 | F13: =A3A!F93 -> 0 | G13: =A3A!G93 -> 0 | H13: =A3A!H93 -> 0 | I13: =A3A!I93 -> 0 | J13: =A3A!J93 -> 0 | K13: =A3A!K93 -> 0
A14: =A3A!A104 -> Vote 10 - [NAME OF VOTE 10] | C14: =A3A!C104 -> 0 | D14: =A3A!D104 -> 0 | E14: =A3A!E104 -> 0 | F14: =A3A!F104 -> 0 | G14: =A3A!G104 -> 0 | H14: =A3A!H104 -> 0 | I14: =A3A!I104 -> 0 | J14: =A3A!J104 -> 0 | K14: =A3A!K104 -> 0
A15: =A3A!A115 -> Vote 11 - [NAME OF VOTE 11] | C15: =A3A!C115 -> 0 | D15: =A3A!D115 -> 0 | E15: =A3A!E115 -> 0 | F15: =A3A!F115 -> 0 | G15: =A3A!G115 -> 0 | H15: =A3A!H115 -> 0 | I15: =A3A!I115 -> 0 | J15: =A3A!J115 -> 0 | K15: =A3A!K115 -> 0 | L15: =A5A!L115 -> 0
A16: =A3A!A126 -> Vote 12 - [NAME OF VOTE 12] | C16: =A3A!C126 -> 0 | D16: =A3A!D126 -> 0 | E16: =A3A!E126 -> 0 | F16: =A3A!F126 -> 0 | G16: =A3A!G126 -> 0 | H16: =A3A!H126 -> 0 | I16: =A3A!I126 -> 0 | J16: =A3A!J126 -> 0 | K16: =A3A!K126 -> 0 | L16: =A5A!L126 -> 0
A17: =A3A!A137 -> Vote 13 - [NAME OF VOTE 13] | C17: =A3A!C137 -> 0 | D17: =A3A!D137 -> 0 | E17: =A3A!E137 -> 0 | F17: =A3A!F137 -> 0 | G17: =A3A!G137 -> 0 | H17: =A3A!H137 -> 0 | I17: =A3A!I137 -> 0 | J17: =A3A!J137 -> 0 | K17: =A3A!K137 -> 0 | L17: =A5A!L137 -> 0
A18: =A3A!A148 -> Vote 14 - [NAME OF VOTE 14] | C18: =A3A!C148 -> 0 | D18: =A3A!D148 -> 0 | E18: =A3A!E148 -> 0 | F18: =A3A!F148 -> 0 | G18: =A3A!G148 -> 0 | H18: =A3A!H148 -> 0 | I18: =A3A!I148 -> 0 | J18: =A3A!J148 -> 0 | K18: =A3A!K148 -> 0 | L18: =A5A!L148 -> 0
A19: =A3A!A159 -> Vote 15 - [NAME OF VOTE 15] | C19: =A3A!C159 -> 0 | D19: =A3A!D159 -> 0 | E19: =A3A!E159 -> 0 | F19: =A3A!F159 -> 0 | G19: =A3A!G159 -> 0 | H19: =A3A!H159 -> 0 | I19: =A3A!I159 -> 0 | J19: =A3A!J159 -> 0 | K19: =A3A!K159 -> 0 | L19: =A5A!L159 -> 0
A20: Total Revenue by Vote | B20: 2 | C20: =SUM(C5:C19) -> 212929737 | D20: =SUM(D5:D19) -> 260909278 | E20: 242030443 | F20: 291765169 | G20: 309420880 | H20: 0 | I20: 310428391 | J20: 303017585 | K20: 296923125
A22: Expenditure by Vote to be appropriated | B22: 1
A23: =A3A!A173 -> Vote 1 - COUNCIL & EXECUTIVE | C23: =A3A!C173 -> 11781065 | D23: =A3A!D173 -> 14055609 | E23: =A3A!E173 -> 15407222 | F23: =A3A!F173 -> 19833172.08 | G23: =A3A!G173 -> 19193603.83 | H23: =A3A!H173 -> 0 | I23: =A3A!I173 -> 13396866.9 | J23: =A3A!J173 -> 14021945.52 | K23: =A3A!K173 -> 14686021.94
A24: =A3A!A184 -> Vote 2 - FINANCE | C24: =A3A!C184 -> 93382731 | D24: =A3A!D184 -> 37394359 | E24: =A3A!E184 -> 66328527 | F24: =A3A!F184 -> 82610314.11 | G24: =A3A!G184 -> 87332202.55 | H24: =A3A!H184 -> 0 | I24: =A3A!I184 -> 57673891.38 | J24: =A3A!J184 -> 60364872.51 | K24: =A3A!K184 -> 63223740.33
A25: =A3A!A195 -> Vote 3 - CORPORATE SERVICES | C25: =A3A!C195 -> 12291590 | D25: =A3A!D195 -> 10591368 | E25: =A3A!E195 -> 49449675 | F25: =A3A!F195 -> 16724176.01 | G25: =A3A!G195 -> 16022782.15 | H25: =A3A!H195 -> 0 | I25: =A3A!I195 -> 42997414.74 | J25: =A3A!J195 -> 45003612.51 | K25: =A3A!K195 -> 47134974.24
A26: =A3A!A206 -> Vote 4 - COMMUNITY SERVICES | C26: =A3A!C206 -> 16724318 | D26: =A3A!D206 -> 60317440 | E26: =A3A!E206 -> 30382263 | F26: =A3A!F206 -> 20386691.81 | G26: =A3A!G206 -> 23562908.09 | H26: =A3A!H206 -> 0 | I26: =A3A!I206 -> 26417944.36 | J26: =A3A!J206 -> 27650567.8 | K26: =A3A!K206 -> 28960092.94
A27: =A3A!A217 -> Vote 5 - TECHNICAL SERVICES | C27: =A3A!C217 -> 87999516 | D27: =A3A!D217 -> 117885541 | E27: =A3A!E217 -> 89032981 | F27: =A3A!F217 -> 71857911.33 | G27: =A3A!G217 -> 67833657 | H27: =A3A!H217 -> 0 | I27: =A3A!I217 -> 77415837.61 | J27: =A3A!J217 -> 81027950.67 | K27: =A3A!K217 -> 84865418.53
A28: =A3A!A228 -> Vote 6 - [NAME OF VOTE 6] | C28: =A3A!C228 -> 0 | D28: =A3A!D228 -> 0 | E28: =A3A!E228 -> 0 | F28: =A3A!F228 -> 0 | G28: =A3A!G228 -> 0 | H28: =A3A!H228 -> 0 | I28: =A3A!I228 -> 0 | J28: =A3A!J228 -> 0 | K28: =A3A!K228 -> 0
A29: =A3A!A239 -> Vote 7 - [NAME OF VOTE 7] | C29: =A3A!C239 -> 0 | D29: =A3A!D239 -> 0 | E29: =A3A!E239 -> 0 | F29: =A3A!F239 -> 0 | G29: =A3A!G239 -> 0 | H29: =A3A!H239 -> 0 | I29: =A3A!I239 -> 0 | J29: =A3A!J239 -> 0 | K29: =A3A!K239 -> 0
A30: =A3A!A250 -> Vote 8 - [NAME OF VOTE 8] | C30: =A3A!C250 -> 0 | D30: =A3A!D250 -> 0 | E30: =A3A!E250 -> 0 | F30: =A3A!F250 -> 0 | G30: =A3A!G250 -> 0 | H30: =A3A!H250 -> 0 | I30: =A3A!I250 -> 0 | J30: =A3A!J250 -> 0 | K30: =A3A!K250 -> 0
A31: =A3A!A261 -> Vote 9 - [NAME OF VOTE 9] | C31: =A3A!C261 -> 0 | D31: =A3A!D261 -> 0 | E31: =A3A!E261 -> 0 | F31: =A3A!F261 -> 0 | G31: =A3A!G261 -> 0 | H31: =A3A!H261 -> 0 | I31: =A3A!I261 -> 0 | J31: =A3A!J261 -> 0 | K31: =A3A!K261 -> 0
A32: =A3A!A272 -> Vote 10 - [NAME OF VOTE 10] | C32: =A3A!C272 -> 0 | D32: =A3A!D272 -> 0 | E32: =A3A!E272 -> 0 | F32: =A3A!F272 -> 0 | G32: =A3A!G272 -> 0 | H32: =A3A!H272 -> 0 | I32: =A3A!I272 -> 0 | J32: =A3A!J272 -> 0 | K32: =A3A!K272 -> 0
A33: =A3A!A283 -> Vote 11 - [NAME OF VOTE 11] | C33: =A3A!C283 -> 0 | D33: =A3A!D283 -> 0 | E33: =A3A!E283 -> 0 | F33: =A3A!F283 -> 0 | G33: =A3A!G283 -> 0 | H33: =A3A!H283 -> 0 | I33: =A3A!I283 -> 0 | J33: =A3A!J283 -> 0 | K33: =A3A!K283 -> 0 | L33: =A3A!L284 -> 0
A34: =A3A!A294 -> Vote 12 - [NAME OF VOTE 12] | C34: =A3A!C294 -> 0 | D34: =A3A!D294 -> 0 | E34: =A3A!E294 -> 0 | F34: =A3A!F294 -> 0 | G34: =A3A!G294 -> 0 | H34: =A3A!H294 -> 0 | I34: =A3A!I294 -> 0 | J34: =A3A!J294 -> 0 | K34: =A3A!K294 -> 0 | L34: =A3A!L295 -> 0
A35: =A3A!A305 -> Vote 13 - [NAME OF VOTE 13] | C35: =A3A!C305 -> 0 | D35: =A3A!D305 -> 0 | E35: =A3A!E305 -> 0 | F35: =A3A!F305 -> 0 | G35: =A3A!G305 -> 0 | H35: =A3A!H305 -> 0 | I35: =A3A!I305 -> 0 | J35: =A3A!J305 -> 0 | K35: =A3A!K305 -> 0 | L35: =A3A!L306 -> 0
A36: =A3A!A316 -> Vote 14 - [NAME OF VOTE 14] | C36: =A3A!C316 -> 0 | D36: =A3A!D316 -> 0 | E36: =A3A!E316 -> 0 | F36: =A3A!F316 -> 0 | G36: =A3A!G316 -> 0 | H36: =A3A!H316 -> 0 | I36: =A3A!I316 -> 0 | J36: =A3A!J316 -> 0 | K36: =A3A!K316 -> 0 | L36: =A3A!L317 -> 0
A37: =A3A!A327 -> Vote 15 - [NAME OF VOTE 15] | C37: =A3A!C327 -> 0 | D37: =A3A!D327 -> 0 | E37: =A3A!E327 -> 0 | F37: =A3A!F327 -> 0 | G37: =A3A!G327 -> 0 | H37: =A3A!H327 -> 0 | I37: =A3A!I327 -> 0 | J37: =A3A!J327 -> 0 | K37: =A3A!K327 -> 0 | L37: =A3A!L328 -> 0
A38: Total Expenditure by Vote | B38: 2 | C38: =SUM(C23:C37) -> 222179220 | D38: =SUM(D23:D37) -> 240244317 | E38: 250600668 | F38: 211412265.3 | G38: 213945153.6 | H38: 0 | I38: 217901955 | J38: 228068949 | K38: 238870248 | L38: =SUM(L23:L29) -> 0 | M38: 0 | N38: 0 | O38: 0 | P38: 0 | Q38: 0 | R38: 0 | S38: 0 | T38: 0 | U38: 0 | V38: 0 | W38: 0
A39: =result -> Surplus/(Deficit) for the year | B39: 2 | C39: =C20-C38 -> -9249483 | D39: 20664961 | E39: -8570225 | F39: 80352903.66 | G39: 95475726.38 | H39: 0 | I39: 92526436 | J39: 74948636 | K39: 58052877 | L39: 0 | M39: 0 | N39: 0 | O39: 0 | P39: 0 | Q39: 0 | R39: 0 | S39: 0 | T39: 0 | U39: 0 | V39: 0 | W39: 0
A40: =head27a -> References
A41: 1. Insert 'Vote'; e.g. department, if different to functional classification structure
A42: 2. Must reconcile to Budgeted Financial Performance (revenue and expenditure)
A43: 3. Assign share in 'associate' to relevant Vote
A45: ="check "&A39 -> check Surplus/(Deficit) for the year | C45: =C39-A3A!C340 -> 0 | D45: =D39-A3A!D340 -> 0 | E45: =E39-A3A!E340 -> 0 | F45: =F39-A3A!F340 -> 0 | G45: =G39-A3A!G340 -> 0 | H45: =H39-A3A!H340 -> 0 | I45: =I39-A3A!I340 -> 0 | J45: =J39-A3A!J340 -> 0 | K45: =K39-A3A!K340 -> 0

Sheet A3A
A1: =muni&" - "&Approve2&"A" -> FS163 Mohokare - Table A3 Budgeted Financial Performance (revenue and expenditure by municipal vote)A
A2: =Vdesc -> Vote Description | B2: =head27 -> Ref | C2: =head1b -> 2016/17 | D2: =head1A -> 2017/18 | E2: =Head1 -> 2018/19 | F2: =Head2 -> Current Year 2019/20 | I2: =Head3 -> 2020/21 Medium Term Revenue & Expenditure Framework | L2: =Head4 -> LTFS
A3: R thousand | C3: =Head5 -> Audited Outcome | D3: =Head5 -> Audited Outcome | E3: =Head5 -> Audited Outcome | F3: =Head6 -> Original Budget | G3: =Head7 -> Adjusted Budget | H3: =Head8 -> Full Year Forecast | I3: =Head9 -> Budget Year 2020/21 | J3: =Head10 -> Budget Year +1 2021/22 | K3: =Head11 -> Budget Year +2 2022/23 | L3: =Head12 -> Forecast 2023/24 | M3: =Head13 -> Forecast 2024/25 | N3: =Head14 -> Forecast 2025/26 | O3: =Head15 -> Forecast 2026/27 | P3: =Head16 -> Forecast 2027/28 | Q3: =Head17 -> Forecast 2028/29 | R3: =Head18 -> Forecast 2029/30 | S3: =Head19 -> Forecast 2030/31 | T3: =Head20 -> Forecast 2031/32 | U3: =Head21 -> Forecast 2032/33 | V3: =Head22 -> Forecast 2033/34 | W3: =Head23 -> Forecast 2034/35
A4: Revenue by Vote | B4: 1
A5: ='Org structure'!A2 -> Vote 1 - COUNCIL & EXECUTIVE | C5: =SUM(C6:C15) -> 10067812 | D5: =SUM(D6:D15) -> 6554761 | E5: 2726041 | F5: 2518000 | G5: 2523943 | H5: 0 | I5: 2518000 | J5: 2622000 | K5: 2731000
A6: ='Org structure'!E3 -> 1.1 - Mayor & Council | C6: 8444580 | D6: 6554761 | E6: 2726041 | F6: =[3]A3A!I6 -> 2518000 | G6: =[4]B3B!K8 -> 2517996 | I6: 2518000 | J6: 2622000 | K6: 2731000
A7: ='Org structure'!E4 -> 1.2 - Municipal Manager | C7: 705091
A8: ='Org structure'!E5 -> 1.3 - IDP_LED | C8: 918141 | G8: =[4]B3B!K10 -> 5947
A9: ='Org structure'!E6 -> 1.4 - Internal Audit
A10: ='Org structure'!E7 -> 0
A11: ='Org structure'!E8 -> 0
A12: ='Org structure'!E9 -> 0
A13: ='Org structure'!E10 -> 0
A14: ='Org structure'!E11 -> 0
A15: ='Org structure'!E12 -> 0
A16: ='Org structure'!A3 -> Vote 2 - FINANCE | C16: =SUM(C17:C26) -> 27844598 | D16: =SUM(D17:D26) -> 69651831 | E16: 79933242 | F16: 102196340 | G16: 85014065 | H16: 0 | I16: 104523367 | J16: 108837435 | K16: 112462207
A17: ='Org structure'!E14 -> 2.1 - Chief Financial Officer
A18: ='Org structure'!E15 -> 2.2 - Finance | C18: 27844598 | D18: 69651831 | E18: 79933242 | F18: =[3]A3A!I18 -> 93736480 | G18: =[4]B3B!K20 -> 85014065 | I18: 104523367 | J18: 108837435 | K18: 112462207
A19: ='Org structure'!E16 -> 2.3 - Property Finance | F19: =[3]A3A!I19 -> 8459860
A20: ='Org structure'!E17 -> 0
A21: ='Org structure'!E18 -> 0
A22: ='Org structure'!E19 -> 0
A23: ='Org structure'!E20 -> 0
A24: ='Org structure'!E21 -> 0
A25: ='Org structure'!E22 -> 0
A26: ='Org structure'!E23 -> 0
A27: ='Org structure'!A4 -> Vote 3 - CORPORATE SERVICES | C27: =SUM(C28:C37) -> 5926999 | D27: 0 | E27: 0 | F27: 0 | G27: 20733062 | H27: 0 | I27: 0 | J27: 0 | K27: 0
A28: ='Org structure'!E25 -> 3.1 - Human Resource | C28: 796398
A29: ='Org structure'!E26 -> 3.2 - Information Technology | C29: 557986
A30: ='Org structure'!E27 -> 3.3 - Council Properties | C30: 1833411 | G30: =[4]B3B!K32 -> 20733062
A31: ='Org structure'!E28 -> 3.4 - Camps
A32: ='Org structure'!E29 -> 3.5 - Other Administration | C32: 2739204
A33: ='Org structure'!E30 -> 3.6 - Manager Administration
A34: ='Org structure'!E31 -> 0
A35: ='Org structure'!E32 -> 0
A36: ='Org structure'!E33 -> 0
A37: ='Org structure'!E34 -> 0
A38: ='Org structure'!A5 -> Vote 4 - COMMUNITY SERVICES | C38: =SUM(C39:C48) -> 43934719 | D38: 67650322 | E38: 53582180 | F38: 45308842 | G38: 43421560 | H38: 0 | I38: 41036770 | J38: 43088608 | K38: 45243039
A39: ='Org structure'!E36 -> 4.1 - Libraries | C39: 461616
A40: ='Org structure'!E37 -> 4.2 - Community Halls | C40: 310362 | D40: 23298 | E40: 10546
A41: ='Org structure'!E38 -> 4.3 - Cemeteries | C41: 52944 | D41: 5363994 | E41: 5363994
A42: ='Org structure'!E39 -> 4.4 - Other Community | C42: 3039078 | G42: =[4]B3B!K44 -> 121900
A43: ='Org structure'!E40 -> 4.5 - Traffic | C43: 27420633 | D43: 48400510 | E43: 36874000 | F43: =[3]A3A!I43 -> 35934000 | G43: =[4]B3B!K45 -> 36934000 | I43: 35000000 | J43: 36750000 | K43: 38587500
A44: ='Org structure'!E41 -> 4.6 - Fire Fighting | C44: 60871
A45: ='Org structure'!E42 -> 4.7 - Pounds | C45: 49126
A46: ='Org structure'!E43 -> 4.8 - Sportsground | C46: 1994686 | D46: 7441203 | E46: 4887807
A47: ='Org structure'!E44 -> 4.9 - Housing (Pub & Personnel) | C47: 865774 | D47: 465938 | E47: 607493 | F47: =[3]A3A!I47 -> 1012652 | G47: =[4]B3B!K49 -> 53000 | I47: 650000 | J47: 682500 | K47: 716625
A48: ='Org structure'!E45 -> 4.10 - Solid Waste | C48: 9679629 | D48: 5955379 | E48: 5838340 | F48: =[3]A3A!I48 -> 8362190 | G48: =[4]B3B!K50 -> 6312660 | I48: 5386770 | J48: 5656108 | K48: 5938914
A49: ='Org structure'!A6 -> Vote 5 - TECHNICAL SERVICES | C49: =SUM(C50:C59) -> 125155609 | D49: =SUM(D50:D59) -> 117052364 | E49: 105788980 | F49: 141741987 | G49: 157728250 | H49: 0 | I49: 162350254 | J49: 148469542 | K49: 136486879
A50: ='Org structure'!E47 -> 5.1 - Sanitation | C50: 10033389 | D50: 9975583 | E50: 9868954 | F50: =[3]A3A!I50 -> 13418053 | G50: =[4]B3B!K52 -> 10222595 | I50: 9401472 | J50: 9871545 | K50: 10365123
A51: ='Org structure'!E48 -> 5.2 - Roads & Streets | C51: 19215463 | D51: 3043954 | E51: 3147703 | F51: =[3]A3A!I51 -> 18991000 | G51: =[4]B3B!K53 -> 17991000 | I51: 18898000 | J51: 19107000 | K51: 19991000
A52: ='Org structure'!E49 -> 5.3 - Water | C52: 59327376 | D52: 75060490 | E52: 65122903 | F52: =[3]A3A!I52 -> 73489790 | G52: =[4]B3B!K54 -> 93671526 | I52: 98853271 | J52: 83369685 | K52: 66476169
A53: ='Org structure'!E50 -> 5.4 - Electricity | C53: 36579381 | D53: 28972337 | E53: 27649420 | F53: =[3]A3A!I53 -> 35843144 | G53: =[4]B3B!K55 -> 35843129 | I53: 35197511 | J53: 36121312 | K53: 39654587
A54: ='Org structure'!E51 -> 5.5 - Manager Technical Services
A55: ='Org structure'!E52 -> 0
A56: ='Org structure'!E53 -> 0
A57: ='Org structure'!E54 -> 0
A58: ='Org structure'!E55 -> 0
A59: ='Org structure'!E56 -> 0
A60: ='Org structure'!A7 -> Vote 6 - [NAME OF VOTE 6] | C60: =SUM(C61:C70) -> 0 | D60: =SUM(D61:D70) -> 0 | E60: 0 | F60: 0 | G60: 0 | H60: 0 | I60: 0 | J60: 0 | K60: 0
A61: ='Org structure'!E58 -> 6.1 - [Name of sub-vote]
A62: ='Org structure'!E59 -> 0
A63: ='Org structure'!E60 -> 0
A64: ='Org structure'!E61 -> 0
A65: ='Org structure'!E62 -> 0
A66: ='Org structure'!E63 -> 0
A67: ='Org structure'!E64 -> 0
A68: ='Org structure'!E65 -> 0
A69: ='Org structure'!E66 -> 0
A70: ='Org structure'!E67 -> 0
A71: ='Org structure'!A8 -> Vote 7 - [NAME OF VOTE 7] | C71: =SUM(C72:C81) -> 0 | D71: 0 | E71: 0 | F71: 0 | G71: 0 | H71: 0 | I71: 0 | J71: 0 | K71: 0
A72: ='Org structure'!E69 -> 7.1 - [Name of sub-vote]
A73: ='Org structure'!E70 -> 0
A74: ='Org structure'!E71 -> 0
A75: ='Org structure'!E72 -> 0
A76: ='Org structure'!E73 -> 0
A77: ='Org structure'!E74 -> 0
A78: ='Org structure'!E75 -> 0
A79: ='Org structure'!E76 -> 0
A80: ='Org structure'!E77 -> 0
A81: ='Org structure'!E78 -> 0
A82: ='Org structure'!A9 -> Vote 8 - [NAME OF VOTE 8] | C82: =SUM(C83:C92) -> 0 | D82: =SUM(D83:D92) -> 0 | E82: 0 | F82: 0 | G82: 0 | H82: 0 | I82: 0 | J82: 0 | K82: 0
A83: ='Org structure'!E80 -> 8.1 - [Name of sub-vote]
A84: ='Org structure'!E81 -> 0
A85: ='Org structure'!E82 -> 0
A86: ='Org structure'!E83 -> 0
A87: ='Org structure'!E84 -> 0
A88: ='Org structure'!E85 -> 0
A89: ='Org structure'!E86 -> 0
A90: ='Org structure'!E87 -> 0
A91: ='Org structure'!E88 -> 0
A92: ='Org structure'!E89 -> 0
A93: ='Org structure'!A10 -> Vote 9 - [NAME OF VOTE 9] | C93: =SUM(C94:C103) -> 0 | D93: =SUM(D94:D103) -> 0 | E93: 0 | F93: 0 | G93: 0 | H93: 0 | I93: 0 | J93: 0 | K93: 0
A94: ='Org structure'!E91 -> 9.1 - [Name of sub-vote]
A95: ='Org structure'!E92 -> 0
A96: ='Org structure'!E93 -> 0
A97: ='Org structure'!E94 -> 0
A98: ='Org structure'!E95 -> 0
A99: ='Org structure'!E96 -> 0
A100: ='Org structure'!E97 -> 0
A101: ='Org structure'!E98 -> 0
A102: ='Org structure'!E99 -> 0
A103: ='Org structure'!E100 -> 0
A104: ='Org structure'!A11 -> Vote 10 - [NAME OF VOTE 10] | C104: =SUM(C105:C114) -> 0 | D104: =SUM(D105:D114) -> 0 | E104: 0 | F104: 0 | G104: 0 | H104: 0 | I104: 0 | J104: 0 | K104: 0
A105: ='Org structure'!E102 -> 10.1 - [Name of sub-vote]
A106: ='Org structure'!E103 -> 0
A107: ='Org structure'!E104 -> 0
A108: ='Org structure'!E105 -> 0
A109: ='Org structure'!E106 -> 0
A110: ='Org structure'!E107 -> 0
A111: ='Org structure'!E108 -> 0
A112: ='Org structure'!E109 -> 0
A113: ='Org structure'!E110 -> 0
A114: ='Org structure'!E111 -> 0
A115: ='Org structure'!A12 -> Vote 11 - [NAME OF VOTE 11] | C115: =SUM(C116:C125) -> 0 | D115: =SUM(D116:D125) -> 0 | E115: 0 | F115: 0 | G115: 0 | H115: 0 | I115: 0 | J115: 0 | K115: 0
A116: ='Org structure'!E113 -> 11.1 - [Name of sub-vote]
A117: ='Org structure'!E114 -> 0
A118: ='Org structure'!E115 -> 0
A119: ='Org structure'!E116 -> 0
A120: ='Org structure'!E117 -> 0
A121: ='Org structure'!E118 -> 0
A122: ='Org structure'!E119 -> 0
A123: ='Org structure'!E120 -> 0
A124: ='Org structure'!E121 -> 0
A125: ='Org structure'!E122 -> 0
A126: ='Org structure'!A13 -> Vote 12 - [NAME OF VOTE 12] | C126: =SUM(C127:C136) -> 0 | D126: =SUM(D127:D136) -> 0 | E126: 0 | F126: 0 | G126: 0 | H126: 0 | I126: 0 | J126: 0 | K126: 0
A127: ='Org structure'!E124 -> 12.1 - [Name of sub-vote]
A128: ='Org structure'!E125 -> 0
A129: ='Org structure'!E126 -> 0
A130: ='Org structure'!E127 -> 0
A131: ='Org structure'!E128 -> 0
A132: ='Org structure'!E129 -> 0
A133: ='Org structure'!E130 -> 0
A134: ='Org structure'!E131 -> 0
A135: ='Org structure'!E132 -> 0
A136: ='Org structure'!E133 -> 0
A137: ='Org structure'!A14 -> Vote 13 - [NAME OF VOTE 13] | C137: =SUM(C138:C147) -> 0 | D137: =SUM(D138:D147) -> 0 | E137: 0 | F137: 0 | G137: 0 | H137: 0 | I137: 0 | J137: 0 | K137: 0
A138: ='Org structure'!E135 -> 13.1 - [Name of sub-vote]
A139: ='Org structure'!E136 -> 0
A140: ='Org structure'!E137 -> 0
A141: ='Org structure'!E138 -> 0
A142: ='Org structure'!E139 -> 0
A143: ='Org structure'!E140 -> 0
A144: ='Org structure'!E141 -> 0
A145: ='Org structure'!E142 -> 0
A146: ='Org structure'!E143 -> 0
A147: ='Org structure'!E144 -> 0
A148: ='Org structure'!A15 -> Vote 14 - [NAME OF VOTE 14] | C148: =SUM(C149:C158) -> 0 | D148: =SUM(D149:D158) -> 0 | E148: 0 | F148: 0 | G148: 0 | H148: 0 | I148: 0 | J148: 0 | K148: 0
A149: ='Org structure'!E146 -> 14.1 - [Name of sub-vote]
A150: ='Org structure'!E147 -> 0
A151: ='Org structure'!E148 -> 0
A152: ='Org structure'!E149 -> 0
A153: ='Org structure'!E150 -> 0
A154: ='Org structure'!E151 -> 0
A155: ='Org structure'!E152 -> 0
A156: ='Org structure'!E153 -> 0
A157: ='Org structure'!E154 -> 0
A158: ='Org structure'!E155 -> 0
A159: ='Org structure'!A16 -> Vote 15 - [NAME OF VOTE 15] | C159: =SUM(C160:C169) -> 0 | D159: =SUM(D160:D169) -> 0 | E159: 0 | F159: 0 | G159: 0 | H159: 0 | I159: 0 | J159: 0 | K159: 0
A160: ='Org structure'!E157 -> 15.1 - [Name of sub-vote]
A161: ='Org structure'!E158 -> 0
A162: ='Org structure'!E159 -> 0
A163: ='Org structure'!E160 -> 0
A164: ='Org structure'!E161 -> 0
A165: ='Org structure'!E162 -> 0
A166: ='Org structure'!E163 -> 0
A167: ='Org structure'!E164 -> 0
A168: ='Org structure'!E165 -> 0
A169: ='Org structure'!E166 -> 0
A170: Total Revenue by Vote | B170: 2 | C170: =C5+C16+C27+C38+C49+C60+C71+C82+C93+C104+C115+C126+C137+C148+C159 -> 212929737 | D170: =D5+D16+D27+D38+D49+D60+D71+D82+D93+D104+D115+D126+D137+D148+D159 -> 260909278 | E170: =E5+E16+E27+E38+E49+E60+E71+E82+E93+E104+E115+E126+E137+E148+E159 -> 242030443 | F170: 291765169 | G170: 309420880 | H170: 0 | I170: =I5+I16+I27+I38+I49+I60+I71+I82+I93+I104+I115+I126+I137+I148+I159 -> 310428391 | J170: 303017585 | K170: 296923125 | L170: =SUM(L78:L81) -> 0 | M170: 0 | N170: 0 | O170: 0 | P170: 0 | Q170: 0 | R170: 0 | S170: 0 | T170: 0 | U170: 0 | V170: 0 | W170: 0
A172: Expenditure by Vote | B172: 1
A173: =A5 -> Vote 1 - COUNCIL & EXECUTIVE | C173: =SUM(C174:C183) -> 11781065 | D173: 14055609 | E173: 15407222 | F173: 19833172.08 | G173: 19193603.83 | H173: 0 | I173: 13396866.9 | J173: 14021945.52 | K173: 14686021.94
A174: =A6 -> 1.1 - Mayor & Council | C174: 7390532 | D174: 7270637 | E174: 7607048 | F174: =[3]A3A!I174 -> 10518089.15 | G174: =[4]B3B!K176 -> 9851900.81 | I174: 6614470.122 | J174: 6923091.82 | K174: 7250968.011
A175: 1.2 - Municipal Manager | C175: 437721 | D175: 992178 | E175: 1640599 | F175: =[3]A3A!I175 -> 1587432.28 | G175: =[4]B3B!K177 -> 1483692.17 | I175: 1426531.431 | J175: 1493091.343 | K175: 1563803.839
A176: 1.3 - IDP_LED | C176: 3952812 | D176: 5792794 | E176: 6159575 | F176: =[3]A3A!I176 -> 6447532.66 | G176: =[4]B3B!K178 -> 6744877.64 | I176: 5355865.35 | J176: 5605762.353 | K176: 5871250.094
A177: 1.4 - Internal Audit | F177: =[3]A3A!I177 -> 1280117.99 | G177: =[4]B3B!K179 -> 1113133.21
A178: 0
A179: 0
A180: 0
A181: 0
A182: 0
A183: 0
A184: =A16 -> Vote 2 - FINANCE | C184: =SUM(C185:C194) -> 93382731 | D184: =SUM(D185:D194) -> 37394359 | E184: =SUM(E185:E194) -> 66328527 | F184: 82610314.11 | G184: 87332202.55 | H184: 0 | I184: 57673891.38 | J184: 60364872.51 | K184: 63223740.33
A185: =A17 -> 2.1 - Chief Financial Officer
A186: 2.2 - Finance | C186: 93382731 | D186: 37394359 | E186: 66328527 | F186: =[3]A3A!I186 -> 82610314.11 | G186: =[4]B3B!K188 -> 87332202.55 | I186: 57673891.38 | J186: 60364872.51 | K186: 63223740.33
A187: 2.3 - Property Finance
A188: 0
A189: 0
A190: 0
A191: 0
A192: 0
A193: 0
A194: 0
A195: =A27 -> Vote 3 - CORPORATE SERVICES | C195: =SUM(C196:C205) -> 12291590 | D195: 10591368 | E195: 49449675 | F195: 16724176.01 | G195: 16022782.15 | H195: 0 | I195: 42997414.74 | J195: 45003612.51 | K195: 47134974.24
A196: 3.1 - Human Resource | C196: 1604684 | D196: 1408727 | E196: 1546047 | F196: =[3]A3A!I196 -> 2339900.76 | G196: =[4]B3B!K198 -> 2209443.12 | I196: 1344316.703 | J196: 1407040.594 | K196: 1473677.745
A197: 3.2 - Information Technology | C197: 1463374 | D197: 1339073 | E197: 12528696 | F197: =[3]A3A!I197 -> 2220785.37 | G197: =[4]B3B!K199 -> 1923822.99 | I197: 10893934.86 | J197: 11402230.25 | K197: 11942237.5
A198: 3.3 - Council Properties | C198: 1613361 | E198: 23058736 | F198: =[3]A3A!I198 -> 3557289.2 | G198: =[4]B3B!K200 -> 3499980 | I198: 20050001.04 | J198: 20985505.36 | K198: 21979374.54
A199: 3.4 - Camps | G199: =[4]B3B!K201 -> 0
A200: 3.5 - Other Administration | C200: 7610171 | D200: 7843568 | E200: 12316196 | F200: =[3]A3A!I200 -> 8606200.68 | G200: =[4]B3B!K202 -> 8389536.04 | I200: 10709162.14 | J200: 11208836.3 | K200: 11739684.46
A201: 3.6 - Manager Administration
... 144 more rows

Sheet A4-FinPerf RE
A1: =muni&" - "&Approve4 -> FS163 Mohokare - Table A4 Budgeted Financial Performance (revenue and expenditure)
A2: =desc -> Description | B2: =head27 -> Ref | C2: =head1b -> 2016/17 | D2: =head1A -> 2017/18 | E2: =Head1 -> 2018/19 | F2: =Head2 -> Current Year 2019/20 | J2: =Head3 -> 2020/21 Medium Term Revenue & Expenditure Framework | M2: =Head4 -> LTFS
A3: R thousand | B3: 1 | C3: =Head5 -> Audited Outcome | D3: =Head5 -> Audited Outcome | E3: =Head5 -> Audited Outcome | F3: =Head6 -> Original Budget | G3: =Head7 -> Adjusted Budget | H3: =Head8 -> Full Year Forecast | I3: =Head5b -> Pre-audit outcome | J3: =Head9 -> Budget Year 2020/21 | K3: =Head10 -> Budget Year +1 2021/22 | L3: =Head11 -> Budget Year +2 2022/23 | M3: =Head12 -> Forecast 2023/24 | N3: =Head13 -> Forecast 2024/25 | O3: =Head14 -> Forecast 2025/26 | P3: =Head15 -> Forecast 2026/27 | Q3: =Head16 -> Forecast 2027/28 | R3: =Head17 -> Forecast 2028/29 | S3: =Head18 -> Forecast 2029/30 | T3: =Head19 -> Forecast 2030/31 | U3: =Head20 -> Forecast 2031/32 | V3: =Head21 -> Forecast 2032/33 | W3: =Head22 -> Forecast 2033/34 | X3: =Head23 -> Forecast 2034/35
A4: Revenue By Source
A5: Property rates | B5: 2 | C5: ='SA1'!C9 -> 10395461 | D5: ='SA1'!D9 -> 7694858 | E5: ='SA1'!E9 -> 8204283 | F5: ='SA1'!F9 -> 8156574.522 | G5: ='SA1'!G9 -> 8156575 | H5: ='SA1'!H9 -> 0 | I5: ='SA1'!I9 -> 0 | J5: ='SA1'!J9 -> 7881367 | K5: ='SA1'!K9 -> 8275435 | L5: ='SA1'!L9 -> 8689207
A6: Service charges - electricity revenue | B6: 2 | C6: ='SA1'!C15 -> 25457554 | D6: ='SA1'!D15 -> 25972337 | E6: ='SA1'!E15 -> 27649420 | F6: ='SA1'!F15 -> 33632129 | G6: ='SA1'!G15 -> 33632128.95 | H6: ='SA1'!H15 -> 0 | I6: ='SA1'!I15 -> 0 | J6: ='SA1'!J15 -> 29347511 | K6: ='SA1'!K15 -> 31800312 | L6: ='SA1'!L15 -> 34454587
A7: Service charges - water revenue | B7: 2 | C7: ='SA1'!C21 -> 23025541 | D7: ='SA1'!D21 -> 23195749 | E7: ='SA1'!E21 -> 29325970 | F7: ='SA1'!F21 -> 31671525.81 | G7: ='SA1'!G21 -> 31671525.81 | H7: ='SA1'!H21 -> 0 | I7: ='SA1'!I21 -> 0 | J7: ='SA1'!J21 -> 30828271 | K7: ='SA1'!K21 -> 32369685 | L7: ='SA1'!L21 -> 33988169
A8: Service charges - sanitation revenue | B8: 2 | C8: ='SA1'!C27 -> 4929204 | D8: ='SA1'!D27 -> 9586422 | E8: ='SA1'!E27 -> 9479793 | F8: ='SA1'!F27 -> 10161469.02 | G8: ='SA1'!G27 -> 10161469.02 | H8: ='SA1'!H27 -> 0 | I8: ='SA1'!I27 -> 0 | J8: ='SA1'!J27 -> 9401472 | K8: ='SA1'!K27 -> 9871545 | L8: ='SA1'!L27 -> 10365123
A9: Service charges - refuse revenue | B9: 2 | C9: ='SA1'!C34 -> 6894772 | D9: ='SA1'!D34 -> 5955379 | E9: ='SA1'!E34 -> 5838340 | F9: ='SA1'!F34 -> 6312660.094 | G9: ='SA1'!G34 -> 6312660.094 | H9: ='SA1'!H34 -> 0 | I9: ='SA1'!I34 -> 0 | J9: ='SA1'!J34 -> 5386770 | K9: ='SA1'!K34 -> 5656108 | L9: ='SA1'!L34 -> 5938914
A11: Rental of facilities and equipment | C11: 736212 | D11: 594159 | E11: 606804 | F11: 1012652 | G11: =F11 -> 1012652 | J11: 650000 | K11: 682500 | L11: 716625
A12: Interest earned - external investments | C12: 3660080 | D12: 3206029 | E12: 397707 | F12: 954000 | G12: =F12 -> 954000 | J12: 450000 | K12: 450000 | L12: 450000
A13: Interest earned - outstanding debtors | F13: 9269480 | G13: 9269480 | J13: 6500000 | K13: 6500000 | L13: 6500000
A14: Dividends received | C14: 9505 | E14: 11818 | F14: 10000 | G14: 10000 | J14: 10000 | K14: 10000 | L14: 10000
A15: Fines, penalties and forfeits | C15: 26704782 | D15: 48400510 | E15: 36874000 | F15: 35934000 | G15: 35934000 | J15: 35000000 | K15: 36750000 | L15: 38587500
A16: Licences and permits | C16: 1557 | D16: 1631 | E16: 5625
A17: Agency services
A18: Transfers and subsidies | C18: 57655043 | D18: 58955000 | E18: 71993000 | F18: 72021000 | G18: =F18 -> 72021000 | J18: 77585000 | K18: 82609000 | L18: 88229000
A19: Other revenue | B19: 2 | C19: ='SA1'!C49 -> 6305295 | D19: ='SA1'!D49 -> 7003164 | E19: ='SA1'!E49 -> 3815450 | F19: ='SA1'!F49 -> 18083388.08 | G19: ='SA1'!G49 -> 18083389 | H19: ='SA1'!H49 -> 0 | I19: ='SA1'!I49 -> 0 | J19: ='SA1'!J49 -> 15615000 | K19: ='SA1'!K49 -> 13615000 | L19: ='SA1'!L49 -> 11315000
A20: Gains | D20: 295671 | E20: 297026
A21: Total Revenue (excluding capital transfers and contributions) | C21: =SUM(C5:C9)+SUM(C11:C20) -> 165775006 | D21: =SUM(D5:D9)+SUM(D11:D20) -> 190860909 | E21: 194499236 | F21: 227218878.5 | G21: 227218879.9 | H21: 0 | I21: 0 | J21: 218655391 | K21: 228589585 | L21: 239244125 | M21: =SUM(M5:M20) -> 0 | N21: 0 | O21: 0 | P21: 0 | Q21: 0 | R21: 0 | S21: 0 | T21: 0 | U21: 0 | V21: 0 | W21: 0 | X21: 0
A23: Expenditure By Type
A24: Employee related costs | B24: 2 | C24: ='SA1'!C67 -> 61698815 | D24: ='SA1'!D67 -> 67392782 | E24: ='SA1'!E67 -> 72945065 | F24: ='SA1'!F67 -> 78023220.36 | G24: ='SA1'!G67 -> 78724307.62 | H24: ='SA1'!H67 -> 0 | I24: ='SA1'!I67 -> 0 | J24: ='SA1'!J67 -> 83965214 | K24: ='SA1'!K67 -> 89213040 | L24: ='SA1'!L67 -> 94788855
A25: Remuneration of councillors | C25: 3406365 | D25: 3745840 | E25: 3927044 | F25: 4438693.84 | G25: 4203656.21 | J25: 4616240 | K25: 4847052 | L25: 5089405
A26: Debt impairment | B26: 3 | C26: 62724315 | D26: 75303033 | E26: 72043011 | F26: 23825025 | G26: 23825025 | J26: 25016279 | K26: 26267093 | L26: 27580448
A27: Depreciation & asset impairment | B27: 2 | C27: ='SA1'!C83 -> 30242035 | D27: ='SA1'!D83 -> 23153878 | E27: ='SA1'!E83 -> 23058736 | F27: ='SA1'!F83 -> 25691403.89 | G27: ='SA1'!G83 -> 25691403.89 | H27: ='SA1'!H83 -> 0 | I27: ='SA1'!I83 -> 0 | J27: ='SA1'!J83 -> 24406830 | K27: ='SA1'!K83 -> 25627172 | L27: ='SA1'!L83 -> 26908530
A28: Finance charges | C28: 7156232 | D28: 8604587 | E28: 9973272 | F28: 6057900 | G28: 6014418 | J28: 8075000 | K28: 8478750 | L28: 8902688
A29: Bulk purchases | B29: 2 | C29: ='SA1'!C88 -> 25111920 | D29: ='SA1'!D88 -> 24245674 | E29: ='SA1'!E88 -> 24869501 | F29: ='SA1'!F88 -> 28294246.1 | G29: ='SA1'!G88 -> 28294248 | H29: ='SA1'!H88 -> 0 | I29: ='SA1'!I88 -> 0 | J29: ='SA1'!J88 -> 28470610 | K29: ='SA1'!K88 -> 30748259 | L29: ='SA1'!L88 -> 33208120
A30: Other materials | B30: 8 | F30: 12170072.89 | G30: 11408938.06 | J30: 10661728 | K30: 11194814 | L30: 11373314
A31: Contracted services | C31: ='SA1'!C127 -> 5312107 | D31: ='SA1'!D127 -> 6213108 | E31: ='SA1'!E127 -> 10528086 | F31: ='SA1'!F127 -> 8313260 | G31: ='SA1'!G127 -> 10365360 | H31: ='SA1'!H127 -> 0 | I31: ='SA1'!I127 -> 0 | J31: ='SA1'!J127 -> 12083940 | K31: ='SA1'!K127 -> 10271349 | L31: ='SA1'!L127 -> 8730647
A32: Transfers and subsidies | C32: ='SA1'!C93 -> 2700 | D32: ='SA1'!D93 -> 0 | E32: ='SA1'!E93 -> 0 | F32: ='SA1'!F93 -> 0 | G32: ='SA1'!G93 -> 0 | H32: ='SA1'!H93 -> 0 | I32: ='SA1'!I93 -> 0 | J32: ='SA1'!J93 -> 0 | K32: ='SA1'!K93 -> 0 | L32: ='SA1'!L93 -> 0
A33: Other expenditure | B33: 4, 5 | C33: ='SA1'!C157 -> 25483541 | D33: ='SA1'!D157 -> 30434752 | E33: ='SA1'!E157 -> 33179033 | F33: ='SA1'!F157 -> 28275832.13 | G33: ='SA1'!G157 -> 25417796.84 | H33: ='SA1'!H157 -> 0 | I33: ='SA1'!I157 -> 0 | J33: ='SA1'!J157 -> 20606114 | K33: ='SA1'!K157 -> 21421420 | L33: ='SA1'!L157 -> 22288241
A34: Losses | C34: 1041190 | D34: 1150663 | E34: 76920
A35: Total Expenditure | C35: =SUM(C24:C34) -> 222179220 | D35: =SUM(D24:D34) -> 240244317 | E35: 250600668 | F35: 215089654.2 | G35: 213945153.6 | H35: 0 | I35: 0 | J35: 217901955 | K35: 228068949 | L35: 238870248 | M35: =SUM(M24:M34) -> 0 | N35: 0 | O35: 0 | P35: 0 | Q35: 0 | R35: 0 | S35: 0 | T35: 0 | U35: 0 | V35: 0 | W35: 0 | X35: 0
A37: Surplus/(Deficit) | C37: =C21-C35 -> -56404214 | D37: -49383408 | E37: -56101432 | F37: 12129224.32 | G37: 13273726.25 | H37: 0 | I37: 0 | J37: 753436 | K37: 520636 | L37: 373877 | M37: =M21+M35 -> 0 | N37: 0 | O37: 0 | P37: 0 | Q37: 0 | R37: 0 | S37: 0 | T37: 0 | U37: 0 | V37: 0 | W37: 0 | X37: 0
A38: Transfers and subsidies - capital (monetary allocations) (National / Provincial and District) | C38: 47154731 | D38: 70048369 | E38: 47531207 | F38: 80202000 | G38: 82202000 | J38: 91773000 | K38: 74428000 | L38: 57679000
A39: Transfers and subsidies - capital (monetary allocations) (National / Provincial Departmental Agencies, Households, Non-profit Institutions, Private Enterprises, Public Corporatons, Higher Educational Institutions) | B39: 6 | C39: ='SA1'!C76 -> 0
A40: Transfers and subsidies - capital (in-kind - all)
A41: Surplus/(Deficit) after capital transfers & contributions | C41: =SUM(C37:C40) -> -9249483 | D41: 20664961 | E41: -8570225 | F41: 92331224.32 | G41: 95475726.25 | H41: 0 | I41: 0 | J41: 92526436 | K41: 74948636 | L41: 58052877
A42: Taxation
A43: Surplus/(Deficit) after taxation | C43: =C41-C42 -> -9249483 | D43: 20664961 | E43: -8570225 | F43: 92331224.32 | G43: 95475726.25 | H43: 0 | I43: 0 | J43: 92526436 | K43: 74948636 | L43: 58052877
A44: Attributable to minorities
A45: Surplus/(Deficit) attributable to municipality | C45: =SUM(C43:C44) -> -9249483 | D45: 20664961 | E45: -8570225 | F45: 92331224.32 | G45: 95475726.25 | H45: 0 | I45: 0 | J45: 92526436 | K45: 74948636 | L45: 58052877
A46: Share of surplus/ (deficit) of associate | B46: 7
A47: =result -> Surplus/(Deficit) for the year | C47: =SUM(C45:C46) -> -9249483 | D47: 20664961 | E47: -8570225 | F47: 92331224.32 | G47: 95475726.25 | H47: 0 | I47: 0 | J47: 92526436 | K47: 74948636 | L47: 58052877 | M47: =M25+M46 -> 0 | N47: 0 | O47: 0 | P47: 0 | Q47: 0 | R47: 0 | S47: 0 | T47: 0 | U47: 0 | V47: 0 | W47: 0 | X47: 0
A48: =head27a -> References
A49: 1. Classifications are revenue sources and expenditure type
A50: 2. Detail to be provided in Table SA1
A51: 3. Previously described as 'bad or doubtful debts' - amounts shown should reflect the change in the provision for debt impairment
A52: 4. Expenditure type components previously shown under repairs and maintenance should be allocated back to the originating expenditure group/item; e.g. employee costs
A53: 5. Repairs & maintenance detailed in Table A9 and Table SA34c
A54: 6. Contributions are funds provided by external organisations to assist with infrastructure development; e.g. developer contributions (detail to be provided in Table SA1)
A55: 7. Equity method ( Includes Joint Ventures)
A56: 8. All materials not part of 'bulk' e.g road making materials, pipe, cable etc.
A57: check balance | C57: =C45-'A3-FinPerf V'!C39 -> 0 | D57: =D45-'A3-FinPerf V'!D39 -> 0 | E57: =E45-'A3-FinPerf V'!E39 -> 0 | F57: =F45-'A3-FinPerf V'!F39 -> 11978320.66 | G57: =G45-'A3-FinPerf V'!G39 -> -0.1340000033 | H57: =H45-'A3-FinPerf V'!H39 -> 0 | J57: =J45-'A3-FinPerf V'!I39 -> 0 | K57: =K45-'A3-FinPerf V'!J39 -> 0 | L57: =L45-'A3-FinPerf V'!K39 -> -5.960464478e-08
A59: Total revenue | C59: =C21+SUM(C38:C40) -> 212929737 | D59: 260909278 | E59: 242030443 | F59: 307420878.5 | G59: 309420879.9 | H59: 0 | I59: 0 | J59: 310428391 | K59: 303017585 | L59: 296923125

Sheet A5-Capex
A2: =Vdesc -> Vote Description | B2: =head27 -> Ref | C2: =head1b -> 2016/17 | D2: =head1A -> 2017/18 | E2: =Head1 -> 2018/19 | F2: =Head2 -> Current Year 2019/20 | J2: =Head3 -> 2020/21 Medium Term Revenue & Expenditure Framework
A3: R thousand | B3: 1 | C3: =Head5 -> Audited Outcome | D3: =Head5 -> Audited Outcome | E3: =Head5 -> Audited Outcome | F3: =Head6 -> Original Budget | G3: =Head7 -> Adjusted Budget | H3: =Head8 -> Full Year Forecast | I3: =Head5b -> Pre-audit outcome | J3: =Head9 -> Budget Year 2020/21 | K3: =Head10 -> Budget Year +1 2021/22 | L3: =Head11 -> Budget Year +2 2022/23
A4: Capital expenditure - Vote
A5: Multi-year expenditure to be appropriated | B5: 2
A6: =A5A!A6 -> Vote 1 - COUNCIL & EXECUTIVE | C6: =A5A!C6 -> 0 | D6: =A5A!D6 -> 0 | E6: =A5A!E6 -> 0 | F6: =A5A!F6 -> 0 | G6: =A5A!G6 -> 0 | H6: =A5A!H6 -> 0 | I6: =A5A!I6 -> 0 | J6: =A5A!J6 -> 0 | K6: =A5A!K6 -> 0 | L6: =A5A!L6 -> 0
A7: =A5A!A17 -> Vote 2 - FINANCE | C7: =A5A!C17 -> 0 | D7: =A5A!D17 -> 0 | E7: =A5A!E17 -> 0 | F7: =A5A!F17 -> 0 | G7: =A5A!G17 -> 0 | H7: =A5A!H17 -> 0 | I7: =A5A!I17 -> 0 | J7: =A5A!J17 -> 0 | K7: =A5A!K17 -> 0 | L7: =A5A!L17 -> 0
A8: =A5A!A28 -> Vote 3 - CORPORATE SERVICES | C8: =A5A!C28 -> 0 | D8: =A5A!D28 -> 0 | E8: =A5A!E28 -> 0 | F8: =A5A!F28 -> 0 | G8: =A5A!G28 -> 0 | H8: =A5A!H28 -> 0 | I8: =A5A!I28 -> 0 | J8: =A5A!J28 -> 0 | K8: =A5A!K28 -> 0 | L8: =A5A!L28 -> 0
A9: =A5A!A39 -> Vote 4 - COMMUNITY SERVICES | C9: =A5A!C39 -> 0 | D9: =A5A!D39 -> 0 | E9: =A5A!E39 -> 0 | F9: =A5A!F39 -> 0 | G9: =A5A!G39 -> 0 | H9: =A5A!H39 -> 0 | I9: =A5A!I39 -> 0 | J9: =A5A!J39 -> 0 | K9: =A5A!K39 -> 0 | L9: =A5A!L39 -> 0
A10: =A5A!A50 -> Vote 5 - TECHNICAL SERVICES | C10: =A5A!C50 -> 0 | D10: =A5A!D50 -> 0 | E10: =A5A!E50 -> 0 | F10: =A5A!F50 -> 0 | G10: =A5A!G50 -> 0 | H10: =A5A!H50 -> 0 | I10: =A5A!I50 -> 0 | J10: =A5A!J50 -> 0 | K10: =A5A!K50 -> 0 | L10: =A5A!L50 -> 0
A11: =A5A!A61 -> Vote 6 - [NAME OF VOTE 6] | C11: =A5A!C61 -> 0 | D11: =A5A!D61 -> 0 | E11: =A5A!E61 -> 0 | F11: =A5A!F61 -> 0 | G11: =A5A!G61 -> 0 | H11: =A5A!H61 -> 0 | I11: =A5A!I61 -> 0 | J11: =A5A!J61 -> 0 | K11: =A5A!K61 -> 0 | L11: =A5A!L61 -> 0
A12: =A5A!A72 -> Vote 7 - [NAME OF VOTE 7] | C12: =A5A!C72 -> 0 | D12: =A5A!D72 -> 0 | E12: =A5A!E72 -> 0 | F12: =A5A!F72 -> 0 | G12: =A5A!G72 -> 0 | H12: =A5A!H72 -> 0 | I12: =A5A!I72 -> 0 | J12: =A5A!J72 -> 0 | K12: =A5A!K72 -> 0 | L12: =A5A!L72 -> 0
A13: =A5A!A83 -> Vote 8 - [NAME OF VOTE 8] | C13: =A5A!C83 -> 0 | D13: =A5A!D83 -> 0 | E13: =A5A!E83 -> 0 | F13: =A5A!F83 -> 0 | G13: =A5A!G83 -> 0 | H13: =A5A!H83 -> 0 | I13: =A5A!I83 -> 0 | J13: =A5A!J83 -> 0 | K13: =A5A!K83 -> 0 | L13: =A5A!L83 -> 0
A14: =A5A!A94 -> Vote 9 - [NAME OF VOTE 9] | C14: =A5A!C94 -> 0 | D14: =A5A!D94 -> 0 | E14: =A5A!E94 -> 0 | F14: =A5A!F94 -> 0 | G14: =A5A!G94 -> 0 | H14: =A5A!H94 -> 0 | I14: =A5A!I94 -> 0 | J14: =A5A!J94 -> 0 | K14: =A5A!K94 -> 0 | L14: =A5A!L94 -> 0
A15: =A5A!A105 -> Vote 10 - [NAME OF VOTE 10] | C15: =A5A!C105 -> 0 | D15: =A5A!D105 -> 0 | E15: =A5A!E105 -> 0 | F15: =A5A!F105 -> 0 | G15: =A5A!G105 -> 0 | H15: =A5A!H105 -> 0 | I15: =A5A!I105 -> 0 | J15: =A5A!J105 -> 0 | K15: =A5A!K105 -> 0 | L15: =A5A!L105 -> 0
A16: =A5A!A116 -> Vote 11 - [NAME OF VOTE 11] | C16: =A5A!C116 -> 0 | D16: =A5A!D116 -> 0 | E16: =A5A!E116 -> 0 | F16: =A5A!F116 -> 0 | G16: =A5A!G116 -> 0 | H16: =A5A!H116 -> 0 | I16: =A5A!I116 -> 0 | J16: =A5A!J116 -> 0 | K16: =A5A!K116 -> 0 | L16: =A5A!L116 -> 0
A17: =A5A!A127 -> Vote 12 - [NAME OF VOTE 12] | C17: =A5A!C127 -> 0 | D17: =A5A!D127 -> 0 | E17: =A5A!E127 -> 0 | F17: =A5A!F127 -> 0 | G17: =A5A!G127 -> 0 | H17: =A5A!H127 -> 0 | I17: =A5A!I127 -> 0 | J17: =A5A!J127 -> 0 | K17: =A5A!K127 -> 0 | L17: =A5A!L127 -> 0
A18: =A5A!A138 -> Vote 13 - [NAME OF VOTE 13] | C18: =A5A!C138 -> 0 | D18: =A5A!D138 -> 0 | E18: =A5A!E138 -> 0 | F18: =A5A!F138 -> 0 | G18: =A5A!G138 -> 0 | H18: =A5A!H138 -> 0 | I18: =A5A!I138 -> 0 | J18: =A5A!J138 -> 0 | K18: =A5A!K138 -> 0 | L18: =A5A!L138 -> 0
A19: =A5A!A149 -> Vote 14 - [NAME OF VOTE 14] | C19: =A5A!C149 -> 0 | D19: =A5A!D149 -> 0 | E19: =A5A!E149 -> 0 | F19: =A5A!F149 -> 0 | G19: =A5A!G149 -> 0 | H19: =A5A!H149 -> 0 | I19: =A5A!I149 -> 0 | J19: =A5A!J149 -> 0 | K19: =A5A!K149 -> 0 | L19: =A5A!L149 -> 0
A20: =A5A!A160 -> Vote 15 - [NAME OF VOTE 15] | C20: =A5A!C160 -> 0 | D20: =A5A!D160 -> 0 | E20: =A5A!E160 -> 0 | F20: =A5A!F160 -> 0 | G20: =A5A!G160 -> 0 | H20: =A5A!H160 -> 0 | I20: =A5A!I160 -> 0 | J20: =A5A!J160 -> 0 | K20: =A5A!K160 -> 0 | L20: =A5A!L160 -> 0
A21: Capital multi-year expenditure sub-total | B21: 7 | C21: =SUM(C6:C20) -> 0 | D21: =SUM(D6:D20) -> 0 | E21: 0 | F21: 0 | G21: 0 | H21: =SUM(H6:H20) -> 0 | I21: 0 | J21: 0 | K21: 0 | L21: 0
A23: Single-year expenditure to be appropriated | B23: 2
A24: =A6 -> Vote 1 - COUNCIL & EXECUTIVE | C24: =A5A!C175 -> 0 | D24: =A5A!D175 -> 618811 | E24: =A5A!E175 -> 769872 | F24: =A5A!F175 -> 0 | G24: =A5A!G175 -> 55000 | H24: =A5A!H175 -> 0 | I24: =A5A!I175 -> 0 | J24: =A5A!J175 -> 0 | K24: =A5A!K175 -> 0 | L24: =A5A!L175 -> 0
A25: =A7 -> Vote 2 - FINANCE | C25: =A5A!C186 -> 9088 | D25: =A5A!D186 -> 0 | E25: =A5A!E186 -> 0 | F25: =A5A!F186 -> 0 | G25: =A5A!G186 -> 0 | H25: =A5A!H186 -> 0 | I25: =A5A!I186 -> 0 | J25: =A5A!J186 -> 0 | K25: =A5A!K186 -> 0 | L25: =A5A!L186 -> 0
A26: Vote 3 - CORPORATE SERVICES | C26: =A5A!C197 -> 1088233 | D26: =A5A!D197 -> 0 | E26: =A5A!E197 -> 0 | F26: =A5A!F197 -> 0 | G26: =A5A!G197 -> 761000 | H26: =A5A!H197 -> 0 | I26: =A5A!I197 -> 0 | J26: =A5A!J197 -> 750000 | K26: =A5A!K197 -> 500000 | L26: =A5A!L197 -> 350000
A27: Vote 4 - COMMUNITY SERVICES | C27: =A5A!C208 -> 2132738 | D27: =A5A!D208 -> 12747531 | E27: =A5A!E208 -> 3648900 | F27: =A5A!F208 -> 1099999 | G27: =A5A!G208 -> 874595 | H27: =A5A!H208 -> 0 | I27: =A5A!I208 -> 0 | J27: =A5A!J208 -> 807127 | K27: =A5A!K208 -> 861647 | L27: =A5A!L208 -> 901512
A28: Vote 5 - TECHNICAL SERVICES | C28: =A5A!C219 -> 36802173 | D28: =A5A!D219 -> 47678558 | E28: =A5A!E219 -> 39494677 | F28: =A5A!F219 -> 78202451 | G28: =A5A!G219 -> 81416131.68 | H28: =A5A!H219 -> 0 | I28: =A5A!I219 -> 0 | J28: =A5A!J219 -> 90965873 | K28: =A5A!K219 -> 73566353 | L28: =A5A!L219 -> 56777488
A29: Vote 6 - [NAME OF VOTE 6] | C29: =A5A!C230 -> 0 | D29: =A5A!D230 -> 0 | E29: =A5A!E230 -> 0 | F29: =A5A!F230 -> 0 | G29: =A5A!G230 -> 0 | H29: =A5A!H230 -> 0 | I29: =A5A!I230 -> 0 | J29: =A5A!J230 -> 0 | K29: =A5A!K230 -> 0 | L29: =A5A!L230 -> 0
A30: Vote 7 - [NAME OF VOTE 7] | C30: =A5A!C241 -> 0 | D30: =A5A!D241 -> 0 | E30: =A5A!E241 -> 0 | F30: =A5A!F241 -> 0 | G30: =A5A!G241 -> 0 | H30: =A5A!H241 -> 0 | I30: =A5A!I241 -> 0 | J30: =A5A!J241 -> 0 | K30: =A5A!K241 -> 0 | L30: =A5A!L241 -> 0
A31: Vote 8 - [NAME OF VOTE 8] | C31: =A5A!C252 -> 0 | D31: =A5A!D252 -> 0 | E31: =A5A!E252 -> 0 | F31: =A5A!F252 -> 0 | G31: =A5A!G252 -> 0 | H31: =A5A!H252 -> 0 | I31: =A5A!I252 -> 0 | J31: =A5A!J252 -> 0 | K31: =A5A!K252 -> 0 | L31: =A5A!L252 -> 0
A32: Vote 9 - [NAME OF VOTE 9] | C32: =A5A!C263 -> 0 | D32: =A5A!D263 -> 0 | E32: =A5A!E263 -> 0 | F32: =A5A!F263 -> 0 | G32: =A5A!G263 -> 0 | H32: =A5A!H263 -> 0 | I32: =A5A!I263 -> 0 | J32: =A5A!J263 -> 0 | K32: =A5A!K263 -> 0 | L32: =A5A!L263 -> 0
A33: Vote 10 - [NAME OF VOTE 10] | C33: =A5A!C274 -> 0 | D33: =A5A!D274 -> 0 | E33: =A5A!E274 -> 0 | F33: =A5A!F274 -> 0 | G33: =A5A!G274 -> 0 | H33: =A5A!H274 -> 0 | I33: =A5A!I274 -> 0 | J33: =A5A!J274 -> 0 | K33: =A5A!K274 -> 0 | L33: =A5A!L274 -> 0
A34: Vote 11 - [NAME OF VOTE 11] | C34: =A5A!C285 -> 0 | D34: =A5A!D285 -> 0 | E34: =A5A!E285 -> 0 | F34: =A5A!F285 -> 0 | G34: =A5A!G285 -> 0 | H34: =A5A!H285 -> 0 | I34: =A5A!I285 -> 0 | J34: =A5A!J285 -> 0 | K34: =A5A!K285 -> 0 | L34: =A5A!L285 -> 0
A35: Vote 12 - [NAME OF VOTE 12] | C35: =A5A!C296 -> 0 | D35: =A5A!D296 -> 0 | E35: =A5A!E296 -> 0 | F35: =A5A!F296 -> 0 | G35: =A5A!G296 -> 0 | H35: =A5A!H296 -> 0 | I35: =A5A!I296 -> 0 | J35: =A5A!J296 -> 0 | K35: =A5A!K296 -> 0 | L35: =A5A!L296 -> 0
A36: Vote 13 - [NAME OF VOTE 13] | C36: =A5A!C307 -> 0 | D36: =A5A!D307 -> 0 | E36: =A5A!E307 -> 0 | F36: =A5A!F307 -> 0 | G36: =A5A!G307 -> 0 | H36: =A5A!H307 -> 0 | I36: =A5A!I307 -> 0 | J36: =A5A!J307 -> 0 | K36: =A5A!K307 -> 0 | L36: =A5A!L307 -> 0
A37: Vote 14 - [NAME OF VOTE 14] | C37: =A5A!C318 -> 0 | D37: =A5A!D318 -> 0 | E37: =A5A!E318 -> 0 | F37: =A5A!F318 -> 0 | G37: =A5A!G318 -> 0 | H37: =A5A!H318 -> 0 | I37: =A5A!I318 -> 0 | J37: =A5A!J318 -> 0 | K37: =A5A!K318 -> 0 | L37: =A5A!L318 -> 0
A38: =A20 -> Vote 15 - [NAME OF VOTE 15] | C38: =A5A!C329 -> 0 | D38: =A5A!D329 -> 0 | E38: =A5A!E329 -> 0 | F38: =A5A!F329 -> 0 | G38: =A5A!G329 -> 0 | H38: =A5A!H329 -> 0 | I38: =A5A!I329 -> 0 | J38: =A5A!J329 -> 0 | K38: =A5A!K329 -> 0 | L38: =A5A!L329 -> 0
A39: Capital single-year expenditure sub-total | C39: =SUM(C24:C38) -> 40032232 | D39: =SUM(D24:D38) -> 61044900 | E39: 43913449 | F39: 79302450 | G39: 83106726.68 | H39: 0 | I39: 0 | J39: 92523000 | K39: 74928000 | L39: 58029000
A40: Total Capital Expenditure - Vote | C40: =C39+C21 -> 40032232 | D40: =D39+D21 -> 61044900 | E40: 43913449 | F40: 79302450 | G40: 83106726.68 | H40: 0 | I40: 0 | J40: 92523000 | K40: 74928000 | L40: 58029000
A42: Capital Expenditure - Functional
A43: Governance and administration | C43: =SUM(C44:C46) -> 1097321 | D43: =SUM(D44:D46) -> 618811 | E43: 769872 | F43: 0 | G43: 761000 | H43: 0 | I43: 0 | J43: 750000 | K43: 500000 | L43: 350000
A44: Executive and council | D44: 618811 | E44: 769872
A45: Finance and administration | C45: 1097321 | G45: ='[4]B5-Capex'!K47 -> 761000 | J45: 750000 | K45: 500000 | L45: 350000
A46: Internal audit
A47: Community and public safety | C47: =SUM(C48:C52) -> 2132738 | D47: =SUM(D48:D52) -> 12747531 | E47: 3648900 | F47: 1099999 | G47: 874595 | H47: 0 | I47: 0 | J47: 807127 | K47: 861647 | L47: 901512
A48: Community and social services | C48: 1324512 | D48: 5306328 | E48: 3648900 | F48: ='[3]A5-Capex'!J48 -> 290404 | G48: ='[4]B5-Capex'!K50 -> 15000
A49: Sport and recreation | C49: 808226 | D49: 7441203 | F49: ='[3]A5-Capex'!J49 -> 809595 | G49: ='[4]B5-Capex'!K51 -> 809595 | J49: 807127 | K49: 861647 | L49: 901512
A50: Public safety | G50: ='[4]B5-Capex'!K52 -> 50000
A51: Housing
A52: Health
A53: Economic and environmental services | C53: =SUM(C54:C56) -> 10575827 | D53: =SUM(D54:D56) -> 2043954 | E53: 1543954 | F53: 8292135 | G53: 6189234.42 | H53: 0 | I53: 0 | J53: 6115529 | K53: 6528630 | L53: 6830682
A54: Planning and development | G54: ='[4]B5-Capex'!K56 -> 55000
A55: Road transport | C55: 10575827 | D55: 2043954 | E55: 1543954 | F55: ='[3]A5-Capex'!J55 -> 8292135 | G55: ='[4]B5-Capex'!K57 -> 6134234.42 | J55: 6115529 | K55: 6528630 | L55: 6830682
A56: Environmental protection
A57: Trading services | C57: =SUM(C58:C61) -> 26226346 | D57: =SUM(D58:D61) -> 45634604 | E57: 37950723 | F57: 69910316 | G57: 75281897.26 | H57: 0 | I57: 0 | J57: 84850344 | K57: 67037723 | L57: 49946806
A58: Energy sources | D58: 4152829 | F58: ='[3]A5-Capex'!J58 -> 2211000 | G58: ='[4]B5-Capex'!K60 -> 2211000 | J58: 5850000 | K58: 4321000 | L58: 5200000
A59: Water management | C59: 24788200 | D59: 40746694 | E59: 36715642 | F59: ='[3]A5-Capex'!J59 -> 60000000 | G59: ='[4]B5-Capex'!K61 -> 62061983.29 | J59: 68025000 | K59: 51000000 | L59: 32488000
A60: Waste water management | C60: 1438146 | D60: 735081 | E60: 1235081 | F60: ='[3]A5-Capex'!J60 -> 7699316 | G60: ='[4]B5-Capex'!K62 -> 11008913.97 | J60: 10975344 | K60: 11716723 | L60: 12258806
A61: Waste management
A62: Other
A63: Total Capital Expenditure - Functional | B63: 3 | C63: =C43+C47+C53+C57+C62 -> 40032232 | D63: =D43+D47+D53+D57+D62 -> 61044900 | E63: 43913449 | F63: 79302450 | G63: 83106726.68 | H63: 0 | I63: 0 | J63: 92523000 | K63: 74928000 | L63: =L43+L47+L53+L57+L62 -> 58029000
A65: Funded by:
A66: National Government | C66: 38787450 | D66: 60426089 | E66: 43143577 | F66: ='[3]A5-Capex'!J66 -> 79302450 | G66: ='[4]B5-Capex'!K68 -> 82215726.68 | J66: 91773000 | K66: 74428000 | L66: 57679000
A67: Provincial Government
A68: District Municipality
A69: ='A4-FinPerf RE'!A39 -> Transfers and subsidies - capital (monetary allocations) (National / Provincial Departmental Agencies, Households, Non-profit Institutions, Private Enterprises, Public Corporatons, Higher Educational Institutions)
A70: Transfers recognised - capital | B70: 4 | C70: =SUM(C66:C69) -> 38787450 | D70: 60426089 | E70: 43143577 | F70: 79302450 | G70: 82215726.68 | H70: 0 | I70: 0 | J70: 91773000 | K70: 74428000 | L70: 57679000
A72: Borrowing | B72: 6
A73: Internally generated funds | C73: 1244782 | D73: 618811 | E73: 769872 | G73: ='[4]B5-Capex'!K75 -> 891000 | J73: 750000 | K73: 500000 | L73: 350000
A74: Total Capital Funding | B74: 7 | C74: =+C70+C72+C73 -> 40032232 | D74: =+D70+D72+D73 -> 61044900 | E74: 43913449 | F74: 79302450 | G74: 83106726.68 | H74: 0 | I74: 0 | J74: 92523000 | K74: 74928000 | L74: 58029000
A75: =head27a -> References
A76: 1. Municipalities may choose to appropriate for capital expenditure for three years or for one year (if one year appropriation projected expenditure required for yr2 and yr3).
A77: 2. Include capital component of PPP unitary payment. Note that capital transfers are only appropriated to municipalities for the budget year
A78: 3. Capital expenditure by functional classification must reconcile to the appropriations by vote
A79: 4. Must reconcile to supporting table SA20 and to Budgeted Financial Performance (revenue and expenditure)
A81: 6. Include finance leases and PPP capital funding component of unitary payment - total borrowing/repayments to reconcile to changes in Table SA17
A82: 7. Total Capital Funding must balance with Total Capital Expenditure
A83: 8. Include any capitalised interest (MFMA section 46) as part of relevant capital budget
A85: check balance | C85: =IF((C63-C74)=0,0,"Unbalanced") -> 0 | D85: =IF((D63-D74)=0,0,"Unbalanced") -> 0 | E85: 0 | F85: 0 | G85: 0 | H85: 0 | I85: 0 | J85: 0 | K85: 0 | L85: 0

Sheet A5A
A1: =muni&" - "&Approve5 -> FS163 Mohokare - Table A5 Budgeted Capital Expenditure by vote, functional classification and funding
A2: =Vdesc -> Vote Description | B2: =head27 -> Ref | C2: =head1b -> 2016/17 | D2: =head1A -> 2017/18 | E2: =Head1 -> 2018/19 | F2: =Head2 -> Current Year 2019/20 | J2: =Head3 -> 2020/21 Medium Term Revenue & Expenditure Framework | N2: ="Multi-year appropriation for "&Head9& " in the "&Head2A&" Annual Budget" -> Multi-year appropriation for Budget Year 2020/21 in the 2019/20 Annual Budget | R2: ="Multi-year appropriation for "&RIGHT(Head10,7)& " in the "&Head2A&" Annual Budget" -> Multi-year appropriation for 2021/22 in the 2019/20 Annual Budget | V2: New multi-year appropriations (funds for new and existing projects)
A3: R thousand | B3: 1 | C3: =Head5 -> Audited Outcome | D3: =Head5 -> Audited Outcome | E3: =Head5 -> Audited Outcome | F3: =Head6 -> Original Budget | G3: =Head7 -> Adjusted Budget | H3: =Head8 -> Full Year Forecast | I3: =Head5b -> Pre-audit outcome | J3: =Head9 -> Budget Year 2020/21 | K3: =Head10 -> Budget Year +1 2021/22 | L3: =Head11 -> Budget Year +2 2022/23 | N3: ="Appropriation for "&RIGHT(Head9,7) -> Appropriation for 2020/21 | O3: ="Adjustments in "&Head2A -> Adjustments in 2019/20 | P3: ="Downward adjustments for "&RIGHT(Head9,7) -> Downward adjustments for 2020/21 | Q3: Appropriation carried forward | R3: ="Appropriation for "&RIGHT(Head9,7) -> Appropriation for 2020/21 | S3: ="Adjustments in "&Head2A -> Adjustments in 2019/20 | T3: ="Downward adjustments for "&RIGHT(Head9,7) -> Downward adjustments for 2020/21 | U3: Appropriation carried forward | V3: =Head9 -> Budget Year 2020/21 | W3: =Head10 -> Budget Year +1 2021/22 | X3: =Head11 -> Budget Year +2 2022/23
A4: Capital expenditure - Municipal Vote
A5: Multi-year expenditure appropriation | B5: 2
A6: ='Org structure'!A2 -> Vote 1 - COUNCIL & EXECUTIVE | C6: =SUM(C7:C16) -> 0 | D6: =SUM(D7:D16) -> 0 | E6: 0 | F6: 0 | G6: 0 | H6: 0 | I6: =SUM(I7:I16) -> 0 | J6: 0 | K6: 0 | L6: 0 | N6: =SUM(N7:N16) -> 0 | O6: 0 | P6: 0 | Q6: 0 | R6: 0 | S6: 0 | T6: 0 | U6: 0 | V6: =SUM(V7:V16) -> 0 | W6: =SUM(W7:W16) -> 0 | X6: =SUM(X7:X16) -> 0
A7: ='Org structure'!E3 -> 1.1 - Mayor & Council | J7: =Q7+V7 -> 0 | K7: =U7+W7 -> 0 | L7: =X7 -> 0 | Q7: =SUM(N7:P7) -> 0 | U7: =SUM(R7:T7) -> 0
A8: ='Org structure'!E4 -> 1.2 - Municipal Manager | J8: =Q8+V8 -> 0 | K8: =U8+W8 -> 0 | L8: =X8 -> 0 | Q8: =SUM(N8:P8) -> 0 | U8: =SUM(R8:T8) -> 0
A9: ='Org structure'!E5 -> 1.3 - IDP_LED | J9: =Q9+V9 -> 0 | K9: =U9+W9 -> 0 | L9: 0 | Q9: 0 | U9: 0
A10: ='Org structure'!E6 -> 1.4 - Internal Audit | J10: 0 | K10: 0 | L10: 0 | Q10: 0 | U10: 0
A11: ='Org structure'!E7 -> 0 | J11: 0 | K11: 0 | L11: =X11 -> 0 | Q11: 0 | U11: 0
A12: ='Org structure'!E8 -> 0 | J12: 0 | K12: 0 | L12: 0 | Q12: 0 | U12: 0
A13: ='Org structure'!E9 -> 0 | J13: 0 | K13: 0 | L13: 0 | Q13: 0 | U13: 0
A14: ='Org structure'!E10 -> 0 | J14: 0 | K14: 0 | L14: 0 | Q14: 0 | U14: 0
A15: ='Org structure'!E11 -> 0 | J15: 0 | K15: 0 | L15: 0 | Q15: 0 | U15: 0
A16: ='Org structure'!E12 -> 0 | J16: 0 | K16: 0 | L16: 0 | Q16: 0 | U16: 0
A17: ='Org structure'!A3 -> Vote 2 - FINANCE | C17: =SUM(C18:C27) -> 0 | D17: =SUM(D18:D27) -> 0 | E17: 0 | F17: 0 | G17: 0 | H17: 0 | I17: =SUM(I18:I27) -> 0 | J17: 0 | K17: 0 | L17: 0 | N17: =SUM(N18:N27) -> 0 | O17: 0 | P17: 0 | Q17: 0 | R17: 0 | S17: 0 | T17: 0 | U17: 0 | V17: 0 | W17: 0 | X17: 0
A18: ='Org structure'!E14 -> 2.1 - Chief Financial Officer | J18: =Q18+V18 -> 0 | K18: =U18+W18 -> 0 | L18: =X18 -> 0 | Q18: =SUM(N18:P18) -> 0 | U18: 0
A19: ='Org structure'!E15 -> 2.2 - Finance | J19: =Q19+V19 -> 0 | K19: =U19+W19 -> 0 | L19: 0 | Q19: 0 | U19: 0
A20: ='Org structure'!E16 -> 2.3 - Property Finance | J20: 0 | K20: 0 | L20: 0 | Q20: 0 | U20: 0
A21: ='Org structure'!E17 -> 0 | J21: 0 | K21: =U21+W21 -> 0 | L21: 0 | Q21: 0 | U21: 0
A22: ='Org structure'!E18 -> 0 | J22: 0 | K22: 0 | L22: 0 | Q22: 0 | U22: 0
A23: ='Org structure'!E19 -> 0 | J23: 0 | K23: 0 | L23: 0 | Q23: 0 | U23: 0
A24: ='Org structure'!E20 -> 0 | J24: 0 | K24: 0 | L24: 0 | Q24: 0 | U24: 0
A25: ='Org structure'!E21 -> 0 | J25: 0 | K25: 0 | L25: 0 | Q25: 0 | U25: 0
A26: ='Org structure'!E22 -> 0 | J26: 0 | K26: 0 | L26: 0 | Q26: 0 | U26: 0
A27: ='Org structure'!E23 -> 0 | J27: 0 | K27: 0 | L27: 0 | Q27: 0 | U27: 0
A28: ='Org structure'!A4 -> Vote 3 - CORPORATE SERVICES | C28: =SUM(C29:C38) -> 0 | D28: =SUM(D29:D38) -> 0 | E28: 0 | F28: 0 | G28: 0 | H28: 0 | I28: =SUM(I29:I38) -> 0 | J28: 0 | K28: 0 | L28: 0 | N28: =SUM(N29:N38) -> 0 | O28: 0 | P28: 0 | Q28: 0 | R28: 0 | S28: 0 | T28: 0 | U28: 0 | V28: 0 | W28: 0 | X28: 0
A29: ='Org structure'!E25 -> 3.1 - Human Resource | J29: =Q29+V29 -> 0 | K29: =U29+W29 -> 0 | L29: =X29 -> 0 | Q29: =SUM(N29:P29) -> 0 | U29: 0
A30: ='Org structure'!E26 -> 3.2 - Information Technology | J30: 0 | K30: 0 | L30: 0 | Q30: 0 | U30: 0
A31: ='Org structure'!E27 -> 3.3 - Council Properties | J31: 0 | K31: 0 | L31: 0 | Q31: 0 | U31: =SUM(R31:T31) -> 0
A32: ='Org structure'!E28 -> 3.4 - Camps | J32: 0 | K32: =U32+W32 -> 0 | L32: 0 | Q32: 0 | U32: 0
A33: ='Org structure'!E29 -> 3.5 - Other Administration | J33: =Q33+V33 -> 0 | K33: 0 | L33: 0 | Q33: 0 | U33: 0
A34: ='Org structure'!E30 -> 3.6 - Manager Administration | J34: 0 | K34: 0 | L34: 0 | Q34: 0 | U34: 0
A35: ='Org structure'!E31 -> 0 | J35: 0 | K35: 0 | L35: 0 | Q35: 0 | U35: 0
A36: ='Org structure'!E32 -> 0 | J36: 0 | K36: 0 | L36: 0 | Q36: 0 | U36: 0
A37: ='Org structure'!E33 -> 0 | J37: 0 | K37: 0 | L37: 0 | Q37: 0 | U37: 0
A38: ='Org structure'!E34 -> 0 | J38: 0 | K38: 0 | L38: 0 | Q38: 0 | U38: 0
A39: ='Org structure'!A5 -> Vote 4 - COMMUNITY SERVICES | C39: =SUM(C40:C49) -> 0 | D39: =SUM(D40:D49) -> 0 | E39: 0 | F39: 0 | G39: 0 | H39: 0 | I39: =SUM(I40:I49) -> 0 | J39: 0 | K39: 0 | L39: 0 | N39: =SUM(N40:N49) -> 0 | O39: 0 | P39: 0 | Q39: 0 | R39: 0 | S39: 0 | T39: 0 | U39: 0 | V39: 0 | W39: 0 | X39: 0
A40: ='Org structure'!E36 -> 4.1 - Libraries | J40: =Q40+V40 -> 0 | K40: =U40+W40 -> 0 | L40: =X40 -> 0 | Q40: =SUM(N40:P40) -> 0 | U40: 0
A41: ='Org structure'!E37 -> 4.2 - Community Halls | J41: 0 | K41: 0 | L41: 0 | Q41: 0 | U41: 0
A42: ='Org structure'!E38 -> 4.3 - Cemeteries | J42: 0 | K42: 0 | L42: 0 | Q42: 0 | U42: 0
A43: ='Org structure'!E39 -> 4.4 - Other Community | J43: 0 | K43: 0 | L43: 0 | Q43: 0 | U43: 0
A44: ='Org structure'!E40 -> 4.5 - Traffic | J44: 0 | K44: 0 | L44: 0 | Q44: 0 | U44: 0
A45: ='Org structure'!E41 -> 4.6 - Fire Fighting | J45: 0 | K45: 0 | L45: 0 | Q45: 0 | U45: 0
A46: ='Org structure'!E42 -> 4.7 - Pounds | J46: 0 | K46: 0 | L46: 0 | Q46: 0 | U46: 0
A47: ='Org structure'!E43 -> 4.8 - Sportsground | J47: 0 | K47: 0 | L47: 0 | Q47: 0 | U47: 0
A48: ='Org structure'!E44 -> 4.9 - Housing (Pub & Personnel) | J48: 0 | K48: 0 | L48: 0 | Q48: 0 | U48: 0
A49: ='Org structure'!E45 -> 4.10 - Solid Waste | J49: 0 | K49: 0 | L49: 0 | Q49: 0 | U49: 0
A50: ='Org structure'!A6 -> Vote 5 - TECHNICAL SERVICES | C50: =SUM(C51:C60) -> 0 | D50: =SUM(D51:D60) -> 0 | E50: 0 | F50: 0 | G50: 0 | H50: 0 | I50: =SUM(I51:I60) -> 0 | J50: 0 | K50: 0 | L50: 0 | N50: =SUM(N51:N60) -> 0 | O50: 0 | P50: 0 | Q50: 0 | R50: 0 | S50: 0 | T50: 0 | U50: 0 | V50: 0 | W50: 0 | X50: 0
A51: ='Org structure'!E47 -> 5.1 - Sanitation | J51: =Q51+V51 -> 0 | K51: =U51+W51 -> 0 | L51: =X51 -> 0 | Q51: =SUM(N51:P51) -> 0 | U51: 0
A52: ='Org structure'!E48 -> 5.2 - Roads & Streets | J52: 0 | K52: 0 | L52: 0 | Q52: 0 | U52: 0
A53: ='Org structure'!E49 -> 5.3 - Water | J53: 0 | K53: 0 | L53: 0 | Q53: 0 | U53: 0
A54: ='Org structure'!E50 -> 5.4 - Electricity | J54: 0 | K54: 0 | L54: 0 | Q54: 0 | U54: 0
A55: ='Org structure'!E51 -> 5.5 - Manager Technical Services | J55: 0 | K55: 0 | L55: 0 | Q55: 0 | U55: 0
A56: ='Org structure'!E52 -> 0 | J56: 0 | K56: 0 | L56: 0 | Q56: 0 | U56: 0
A57: ='Org structure'!E53 -> 0 | J57: 0 | K57: 0 | L57: 0 | Q57: 0 | U57: 0
A58: ='Org structure'!E54 -> 0 | J58: 0 | K58: 0 | L58: 0 | Q58: 0 | U58: 0
A59: ='Org structure'!E55 -> 0 | J59: 0 | K59: 0 | L59: 0 | Q59: 0 | U59: 0
A60: ='Org structure'!E56 -> 0 | J60: 0 | K60: 0 | L60: 0 | Q60: 0 | U60: 0
A61: ='Org structure'!A7 -> Vote 6 - [NAME OF VOTE 6] | C61: =SUM(C62:C71) -> 0 | D61: =SUM(D62:D71) -> 0 | E61: 0 | F61: 0 | G61: 0 | H61: 0 | I61: =SUM(I62:I71) -> 0 | J61: 0 | K61: 0 | L61: 0 | N61: =SUM(N62:N71) -> 0 | O61: 0 | P61: 0 | Q61: 0 | R61: 0 | S61: 0 | T61: 0 | U61: 0 | V61: 0 | W61: 0 | X61: 0
A62: ='Org structure'!E58 -> 6.1 - [Name of sub-vote] | J62: =Q62+V62 -> 0 | K62: =U62+W62 -> 0 | L62: =X62 -> 0 | Q62: =SUM(N62:P62) -> 0 | U62: 0
A63: ='Org structure'!E59 -> 0 | J63: 0 | K63: 0 | L63: 0 | Q63: 0 | U63: 0
A64: ='Org structure'!E60 -> 0 | J64: 0 | K64: 0 | L64: 0 | Q64: 0 | U64: 0
A65: ='Org structure'!E61 -> 0 | J65: 0 | K65: 0 | L65: 0 | Q65: 0 | U65: 0
A66: ='Org structure'!E62 -> 0 | J66: 0 | K66: 0 | L66: 0 | Q66: 0 | U66: 0
A67: ='Org structure'!E63 -> 0 | J67: 0 | K67: 0 | L67: 0 | Q67: 0 | U67: 0
A68: ='Org structure'!E64 -> 0 | J68: 0 | K68: 0 | L68: 0 | Q68: 0 | U68: 0
A69: ='Org structure'!E65 -> 0 | J69: 0 | K69: 0 | L69: 0 | Q69: 0 | U69: 0
A70: ='Org structure'!E66 -> 0 | J70: 0 | K70: 0 | L70: 0 | Q70: 0 | U70: 0
A71: ='Org structure'!E67 -> 0 | J71: 0 | K71: 0 | L71: 0 | Q71: 0 | U71: 0
A72: ='Org structure'!A8 -> Vote 7 - [NAME OF VOTE 7] | C72: =SUM(C73:C82) -> 0 | D72: 0 | E72: 0 | F72: 0 | G72: 0 | H72: 0 | I72: 0 | J72: 0 | K72: 0 | L72: 0 | N72: =SUM(N73:N82) -> 0 | O72: 0 | P72: 0 | Q72: 0 | R72: 0 | S72: 0 | T72: 0 | U72: 0 | V72: 0 | W72: 0 | X72: 0
A73: ='Org structure'!E69 -> 7.1 - [Name of sub-vote] | J73: =Q73+V73 -> 0 | K73: =U73+W73 -> 0 | L73: =X73 -> 0 | Q73: =SUM(N73:P73) -> 0 | U73: =SUM(R73:T73) -> 0
A74: ='Org structure'!E70 -> 0 | J74: 0 | K74: 0 | L74: 0 | Q74: 0 | U74: 0
A75: ='Org structure'!E71 -> 0 | J75: 0 | K75: 0 | L75: 0 | Q75: 0 | U75: 0
A76: ='Org structure'!E72 -> 0 | J76: 0 | K76: 0 | L76: 0 | Q76: 0 | U76: 0
A77: ='Org structure'!E73 -> 0 | J77: 0 | K77: 0 | L77: 0 | Q77: 0 | U77: 0
A78: ='Org structure'!E74 -> 0 | J78: 0 | K78: 0 | L78: 0 | Q78: 0 | U78: 0
A79: ='Org structure'!E75 -> 0 | J79: 0 | K79: 0 | L79: 0 | Q79: 0 | U79: 0
A80: ='Org structure'!E76 -> 0 | J80: 0 | K80: 0 | L80: 0 | Q80: 0 | U80: 0
A81: ='Org structure'!E77 -> 0 | J81: 0 | K81: 0 | L81: 0 | Q81: 0 | U81: 0
A82: ='Org structure'!E78 -> 0 | J82: 0 | K82: 0 | L82: 0 | Q82: 0 | U82: 0
A83: ='Org structure'!A9 -> Vote 8 - [NAME OF VOTE 8] | C83: =SUM(C84:C93) -> 0 | D83: 0 | E83: 0 | F83: 0 | G83: 0 | H83: 0 | I83: 0 | J83: 0 | K83: 0 | L83: 0 | N83: =SUM(N84:N93) -> 0 | O83: 0 | P83: 0 | Q83: 0 | R83: 0 | S83: 0 | T83: 0 | U83: 0 | V83: 0 | W83: 0 | X83: 0
A84: ='Org structure'!E80 -> 8.1 - [Name of sub-vote] | J84: =Q84+V84 -> 0 | K84: =U84+W84 -> 0 | L84: =X84 -> 0 | Q84: =SUM(N84:P84) -> 0 | U84: 0
A85: ='Org structure'!E81 -> 0 | J85: 0 | K85: 0 | L85: 0 | Q85: 0 | U85: 0
A86: ='Org structure'!E82 -> 0 | J86: 0 | K86: 0 | L86: 0 | Q86: 0 | U86: 0
A87: ='Org structure'!E83 -> 0 | J87: 0 | K87: 0 | L87: 0 | Q87: 0 | U87: 0
A88: ='Org structure'!E84 -> 0 | J88: 0 | K88: 0 | L88: 0 | Q88: 0 | U88: 0
A89: ='Org structure'!E85 -> 0 | J89: 0 | K89: 0 | L89: 0 | Q89: 0 | U89: 0
A90: ='Org structure'!E86 -> 0 | J90: 0 | K90: 0 | L90: 0 | Q90: 0 | U90: 0
A91: ='Org structure'!E87 -> 0 | J91: 0 | K91: 0 | L91: 0 | Q91: 0 | U91: 0
A92: ='Org structure'!E88 -> 0 | J92: 0 | K92: 0 | L92: 0 | Q92: 0 | U92: 0
A93: ='Org structure'!E89 -> 0 | J93: 0 | K93: 0 | L93: 0 | Q93: 0 | U93: 0
A94: ='Org structure'!A10 -> Vote 9 - [NAME OF VOTE 9] | C94: =SUM(C95:C104) -> 0 | D94: =SUM(D95:D104) -> 0 | E94: 0 | F94: 0 | G94: 0 | H94: 0 | I94: 0 | J94: 0 | K94: 0 | L94: 0 | N94: =SUM(N95:N104) -> 0 | O94: 0 | P94: 0 | Q94: 0 | R94: 0 | S94: 0 | T94: 0 | U94: 0 | V94: 0 | W94: 0 | X94: 0
A95: ='Org structure'!E91 -> 9.1 - [Name of sub-vote] | J95: =Q95+V95 -> 0 | K95: =U95+W95 -> 0 | L95: =X95 -> 0 | Q95: =SUM(N95:P95) -> 0 | U95: 0
A96: ='Org structure'!E92 -> 0 | J96: 0 | K96: 0 | L96: 0 | Q96: 0 | U96: 0
A97: ='Org structure'!E93 -> 0 | J97: 0 | K97: 0 | L97: 0 | Q97: 0 | U97: 0
A98: ='Org structure'!E94 -> 0 | J98: 0 | K98: 0 | L98: 0 | Q98: 0 | U98: 0
A99: ='Org structure'!E95 -> 0 | J99: 0 | K99: 0 | L99: 0 | Q99: 0 | U99: 0
A100: ='Org structure'!E96 -> 0 | J100: 0 | K100: 0 | L100: 0 | Q100: 0 | U100: 0
A101: ='Org structure'!E97 -> 0 | J101: 0 | K101: 0 | L101: 0 | Q101: 0 | U101: 0
A102: ='Org structure'!E98 -> 0 | J102: 0 | K102: 0 | L102: 0 | Q102: 0 | U102: 0
A103: ='Org structure'!E99 -> 0 | J103: 0 | K103: 0 | L103: 0 | Q103: 0 | U103: 0
A104: ='Org structure'!E100 -> 0 | J104: 0 | K104: 0 | L104: 0 | Q104: 0 | U104: 0
A105: ='Org structure'!A11 -> Vote 10 - [NAME OF VOTE 10] | C105: =SUM(C106:C115) -> 0 | D105: =SUM(D106:D115) -> 0 | E105: 0 | F105: 0 | G105: 0 | H105: 0 | I105: 0 | J105: 0 | K105: 0 | L105: 0 | N105: =SUM(N106:N115) -> 0 | O105: 0 | P105: 0 | Q105: 0 | R105: 0 | S105: 0 | T105: 0 | U105: 0 | V105: 0 | W105: 0 | X105: 0
A106: ='Org structure'!E102 -> 10.1 - [Name of sub-vote] | J106: =Q106+V106 -> 0 | K106: =U106+W106 -> 0 | L106: =X106 -> 0 | Q106: =SUM(N106:P106) -> 0 | U106: 0
A107: ='Org structure'!E103 -> 0 | J107: 0 | K107: 0 | L107: 0 | Q107: 0 | U107: 0
A108: ='Org structure'!E104 -> 0 | J108: 0 | K108: 0 | L108: 0 | Q108: 0 | U108: 0
A109: ='Org structure'!E105 -> 0 | J109: 0 | K109: 0 | L109: 0 | Q109: 0 | U109: 0
A110: ='Org structure'!E106 -> 0 | J110: 0 | K110: 0 | L110: 0 | Q110: 0 | U110: 0
A111: ='Org structure'!E107 -> 0 | J111: 0 | K111: 0 | L111: 0 | Q111: 0 | U111: 0
A112: ='Org structure'!E108 -> 0 | J112: 0 | K112: 0 | L112: 0 | Q112: 0 | U112: 0
A113: ='Org structure'!E109 -> 0 | J113: 0 | K113: 0 | L113: 0 | Q113: 0 | U113: 0
A114: ='Org structure'!E110 -> 0 | J114: 0 | K114: 0 | L114: 0 | Q114: 0 | U114: 0
A115: ='Org structure'!E111 -> 0 | J115: 0 | K115: 0 | L115: 0 | Q115: 0 | U115: 0
A116: ='Org structure'!A12 -> Vote 11 - [NAME OF VOTE 11] | C116: =SUM(C117:C126) -> 0 | D116: 0 | E116: 0 | F116: 0 | G116: 0 | H116: 0 | I116: 0 | J116: 0 | K116: 0 | L116: 0 | N116: =SUM(N117:N126) -> 0 | O116: 0 | P116: 0 | Q116: 0 | R116: 0 | S116: 0 | T116: 0 | U116: 0 | V116: 0 | W116: 0 | X116: 0
A117: ='Org structure'!E113 -> 11.1 - [Name of sub-vote] | J117: =Q117+V117 -> 0 | K117: =U117+W117 -> 0 | L117: =X117 -> 0 | Q117: =SUM(N117:P117) -> 0 | U117: 0
A118: ='Org structure'!E114 -> 0 | J118: 0 | K118: 0 | L118: 0 | Q118: 0 | U118: 0
A119: ='Org structure'!E115 -> 0 | J119: 0 | K119: 0 | L119: 0 | Q119: 0 | U119: 0
A120: ='Org structure'!E116 -> 0 | J120: 0 | K120: 0 | L120: 0 | Q120: 0 | U120: 0
A121: ='Org structure'!E117 -> 0 | J121: 0 | K121: 0 | L121: 0 | Q121: 0 | U121: 0
A122: ='Org structure'!E118 -> 0 | J122: 0 | K122: 0 | L122: 0 | Q122: 0 | U122: 0
A123: ='Org structure'!E119 -> 0 | J123: 0 | K123: 0 | L123: 0 | Q123: 0 | U123: 0
A124: ='Org structure'!E120 -> 0 | J124: 0 | K124: 0 | L124: 0 | Q124: 0 | U124: 0
A125: ='Org structure'!E121 -> 0 | J125: 0 | K125: 0 | L125: 0 | Q125: 0 | U125: 0
A126: ='Org structure'!E122 -> 0 | J126: 0 | K126: 0 | L126: 0 | Q126: 0 | U126: 0
A127: ='Org structure'!A13 -> Vote 12 - [NAME OF VOTE 12] | C127: =SUM(C128:C137) -> 0 | D127: 0 | E127: 0 | F127: 0 | G127: 0 | H127: 0 | I127: 0 | J127: 0 | K127: 0 | L127: 0 | N127: =SUM(N128:N137) -> 0 | O127: 0 | P127: 0 | Q127: 0 | R127: 0 | S127: 0 | T127: 0 | U127: 0 | V127: 0 | W127: 0 | X127: 0
A128: ='Org structure'!E124 -> 12.1 - [Name of sub-vote] | J128: =Q128+V128 -> 0 | K128: =U128+W128 -> 0 | L128: =X128 -> 0 | Q128: =SUM(N128:P128) -> 0 | U128: 0
A129: ='Org structure'!E125 -> 0 | J129: 0 | K129: 0 | L129: 0 | Q129: 0 | U129: 0
A130: ='Org structure'!E126 -> 0 | J130: 0 | K130: 0 | L130: 0 | Q130: 0 | U130: 0
A131: ='Org structure'!E127 -> 0 | J131: 0 | K131: 0 | L131: 0 | Q131: 0 | U131: 0
A132: ='Org structure'!E128 -> 0 | J132: 0 | K132: 0 | L132: 0 | Q132: 0 | U132: 0
A133: ='Org structure'!E129 -> 0 | J133: =Q133+V133 -> 0 | K133: 0 | L133: 0 | Q133: 0 | U133: 0
A134: ='Org structure'!E130 -> 0 | J134: 0 | K134: 0 | L134: 0 | Q134: 0 | U134: 0
A135: ='Org structure'!E131 -> 0 | J135: 0 | K135: 0 | L135: 0 | Q135: 0 | U135: 0
A136: ='Org structure'!E132 -> 0 | J136: 0 | K136: 0 | L136: 0 | Q136: 0 | U136: =SUM(R136:T136) -> 0
A137: ='Org structure'!E133 -> 0 | J137: 0 | K137: 0 | L137: 0 | Q137: 0 | U137: 0
A138: ='Org structure'!A14 -> Vote 13 - [NAME OF VOTE 13] | C138: =SUM(C139:C148) -> 0 | D138: 0 | E138: 0 | F138: 0 | G138: 0 | H138: 0 | I138: 0 | J138: 0 | K138: 0 | L138: 0 | N138: =SUM(N139:N148) -> 0 | O138: 0 | P138: 0 | Q138: 0 | R138: 0 | S138: 0 | T138: 0 | U138: 0 | V138: 0 | W138: 0 | X138: 0
A139: ='Org structure'!E135 -> 13.1 - [Name of sub-vote] | J139: =Q139+V139 -> 0 | K139: =U139+W139 -> 0 | L139: =X139 -> 0 | Q139: =SUM(N139:P139) -> 0 | U139: 0
A140: ='Org structure'!E136 -> 0 | J140: 0 | K140: 0 | L140: 0 | Q140: 0 | U140: 0
A141: ='Org structure'!E137 -> 0 | J141: 0 | K141: 0 | L141: 0 | Q141: 0 | U141: 0
A142: ='Org structure'!E138 -> 0 | J142: 0 | K142: 0 | L142: 0 | Q142: 0 | U142: 0
A143: ='Org structure'!E139 -> 0 | J143: 0 | K143: 0 | L143: 0 | Q143: 0 | U143: 0
A144: ='Org structure'!E140 -> 0 | J144: 0 | K144: 0 | L144: 0 | Q144: 0 | U144: 0
A145: ='Org structure'!E141 -> 0 | J145: 0 | K145: 0 | L145: 0 | Q145: 0 | U145: 0
A146: ='Org structure'!E142 -> 0 | J146: 0 | K146: 0 | L146: 0 | Q146: 0 | U146: 0
A147: ='Org structure'!E143 -> 0 | J147: 0 | K147: 0 | L147: 0 | Q147: 0 | U147: 0
A148: ='Org structure'!E144 -> 0 | J148: 0 | K148: 0 | L148: 0 | Q148: 0 | U148: 0
A149: ='Org structure'!A15 -> Vote 14 - [NAME OF VOTE 14] | C149: =SUM(C150:C159) -> 0 | D149: 0 | E149: 0 | F149: 0 | G149: 0 | H149: 0 | I149: 0 | J149: 0 | K149: 0 | L149: 0 | N149: =SUM(N150:N159) -> 0 | O149: 0 | P149: 0 | Q149: 0 | R149: 0 | S149: 0 | T149: 0 | U149: 0 | V149: 0 | W149: 0 | X149: 0
A150: ='Org structure'!E146 -> 14.1 - [Name of sub-vote] | J150: =Q150+V150 -> 0 | K150: =U150+W150 -> 0 | L150: =X150 -> 0 | Q150: =SUM(N150:P150) -> 0 | U150: 0
A151: ='Org structure'!E147 -> 0 | J151: 0 | K151: 0 | L151: 0 | Q151: 0 | U151: 0
A152: ='Org structure'!E148 -> 0 | J152: 0 | K152: 0 | L152: 0 | Q152: 0 | U152: 0
A153: ='Org structure'!E149 -> 0 | J153: 0 | K153: 0 | L153: 0 | Q153: 0 | U153: 0
A154: ='Org structure'!E150 -> 0 | J154: 0 | K154: 0 | L154: 0 | Q154: 0 | U154: 0
A155: ='Org structure'!E151 -> 0 | J155: 0 | K155: 0 | L155: 0 | Q155: 0 | U155: 0
A156: ='Org structure'!E152 -> 0 | J156: 0 | K156: 0 | L156: 0 | Q156: 0 | U156: 0
A157: ='Org structure'!E153 -> 0 | J157: 0 | K157: 0 | L157: 0 | Q157: 0 | U157: 0
A158: ='Org structure'!E154 -> 0 | J158: 0 | K158: 0 | L158: 0 | Q158: 0 | U158: 0
A159: ='Org structure'!E155 -> 0 | J159: 0 | K159: 0 | L159: 0 | Q159: 0 | U159: 0
A160: ='Org structure'!A16 -> Vote 15 - [NAME OF VOTE 15] | C160: =SUM(C161:C170) -> 0 | D160: 0 | E160: 0 | F160: 0 | G160: 0 | H160: 0 | I160: 0 | J160: 0 | K160: 0 | L160: 0 | N160: =SUM(N161:N170) -> 0 | O160: 0 | P160: 0 | Q160: 0 | R160: 0 | S160: 0 | T160: 0 | U160: 0 | V160: 0 | W160: 0 | X160: 0
A161: ='Org structure'!E157 -> 15.1 - [Name of sub-vote] | J161: =Q161+V161 -> 0 | K161: =U161+W161 -> 0 | L161: =X161 -> 0 | Q161: =SUM(N161:P161) -> 0 | U161: 0
A162: ='Org structure'!E158 -> 0 | J162: 0 | K162: 0 | L162: 0 | Q162: 0 | U162: 0
A163: ='Org structure'!E159 -> 0 | J163: 0 | K163: 0 | L163: 0 | Q163: 0 | U163: 0
A164: ='Org structure'!E160 -> 0 | J164: 0 | K164: 0 | L164: 0 | Q164: 0 | U164: 0
A165: ='Org structure'!E161 -> 0 | J165: 0 | K165: 0 | L165: 0 | Q165: 0 | U165: 0
A166: ='Org structure'!E162 -> 0 | J166: 0 | K166: 0 | L166: 0 | Q166: 0 | U166: 0
A167: ='Org structure'!E163 -> 0 | J167: 0 | K167: 0 | L167: 0 | Q167: 0 | U167: 0
A168: ='Org structure'!E164 -> 0 | J168: 0 | K168: 0 | L168: 0 | Q168: 0 | U168: 0
A169: ='Org structure'!E165 -> 0 | J169: 0 | K169: 0 | L169: 0 | Q169: 0 | U169: 0
A170: ='Org structure'!E166 -> 0 | J170: 0 | K170: 0 | L170: 0 | Q170: 0 | U170: 0
A171: Capital multi-year expenditure sub-total | C171: =C6+C17+C28+C39+C50+C61+C72+C83+C94+C105+C116+C127+C138+C149+C160 -> 0 | D171: =D6+D17+D28+D39+D50+D61+D72+D83+D94+D105+D116+D127+D138+D149+D160 -> 0 | E171: 0 | F171: 0 | G171: 0 | H171: 0 | I171: 0 | J171: 0 | K171: 0 | L171: 0 | N171: =N6+N17+N28+N39+N50+N61+N72+N83+N94+N105+N116+N127+N138+N149+N160 -> 0 | O171: 0 | P171: 0 | Q171: 0 | R171: 0 | S171: 0 | U171: 0 | V171: =V6+V17+V28+V39+V50+V61+V72+V83+V94+V105+V116+V127+V138+V149+V160 -> 0 | W171: =W6+W17+W28+W39+W50+W61+W72+W83+W94+W105+W116+W127+W138+W149+W160 -> 0
A173: Capital expenditure - Municipal Vote
A174: Single-year expenditure appropriation | B174: 2
A175: =A6 -> Vote 1 - COUNCIL & EXECUTIVE | C175: =SUM(C176:C185) -> 0 | D175: 618811 | E175: 769872 | F175: 0 | G175: 55000 | H175: 0 | I175: 0 | J175: 0 | K175: 0 | L175: 0
A176: =A7 -> 1.1 - Mayor & Council | D176: 618811 | E176: 769872
A177: 1.2 - Municipal Manager
A178: 1.3 - IDP_LED | G178: =[4]B5B!K180 -> 55000
A179: 1.4 - Internal Audit
A180: 0
A181: 0
A182: 0
A183: 0
A184: 0
A185: 0
A186: Vote 2 - FINANCE | C186: =SUM(C187:C196) -> 9088 | D186: 0 | E186: 0 | F186: 0 | G186: 0 | H186: 0 | I186: 0 | J186: 0 | K186: 0 | L186: 0
A187: 2.1 - Chief Financial Officer
A188: 2.2 - Finance | C188: 9088
A189: 2.3 - Property Finance
A190: 0
A191: 0
A192: 0
A193: 0
A194: 0
A195: 0
A196: 0
A197: Vote 3 - CORPORATE SERVICES | C197: =SUM(C198:C207) -> 1088233 | D197: 0 | E197: 0 | F197: 0 | G197: 761000 | H197: 0 | I197: 0 | J197: 750000 | K197: 500000 | L197: 350000
A198: 3.1 - Human Resource
A199: 3.2 - Information Technology | G199: =[4]B5B!K201 -> 480000
A200: 3.3 - Council Properties
A201: 3.4 - Camps
... 140 more rows

Sheet A6-FinPos
A1: =muni&" - "&Approve6 -> FS163 Mohokare - Table A6 Budgeted Financial Position
A2: =desc -> Description | B2: =head27 -> Ref | C2: =head1b -> 2016/17 | D2: =head1A -> 2017/18 | E2: =Head1 -> 2018/19 | F2: =Head2 -> Current Year 2019/20 | J2: =Head3 -> 2020/21 Medium Term Revenue & Expenditure Framework
A3: R thousand | C3: =Head5 -> Audited Outcome | D3: =Head5 -> Audited Outcome | E3: =Head5 -> Audited Outcome | F3: =Head6 -> Original Budget | G3: =Head7 -> Adjusted Budget | H3: =Head8 -> Full Year Forecast | I3: =Head5b -> Pre-audit outcome | J3: =Head9 -> Budget Year 2020/21 | K3: =Head10 -> Budget Year +1 2021/22 | L3: =Head11 -> Budget Year +2 2022/23
A4: ASSETS
A5: Current assets
A6: Cash | C6: 1727247 | D6: =1180+2004250 -> 2005430 | E6: =1180+2063912 -> 2065092 | F6: ='[3]A6-FinPos'!J6 -> 2105701.5 | G6: ='[4]B6-FinPos'!K8 -> 5898701.5 | J6: =E6*1.05 -> 2168346.6 | K6: =J6*1.05 -> 2276763.93 | L6: =K6*1.05 -> 2390602.127
A7: Call investment deposits | B7: 1 | C7: 14226006 | D7: 2572976 | E7: 6637216 | F7: ='[3]A6-FinPos'!J7 -> 2701624.8 | G7: ='[4]B6-FinPos'!K9 -> 2701624.8 | J7: =E7*1.05 -> 6969076.8 | K7: =J7*1.05 -> 7317530.64 | L7: =K7*1.05 -> 7683407.172
A8: Consumer debtors | B8: 1 | C8: ='SA3'!C14 -> 15704341 | D8: ='SA3'!D14 -> 20445243 | E8: ='SA3'!E14 -> 26938257 | F8: ='SA3'!F14 -> 21057219.9 | G8: ='SA3'!G14 -> 21057219.9 | H8: ='SA3'!H14 -> 0 | I8: ='SA3'!I14 -> 0 | J8: ='SA3'!J14 -> 28285169.85 | K8: ='SA3'!K14 -> 29699428.34 | L8: ='SA3'!L14 -> 31184399.76
A9: Other debtors | C9: 16804092 | D9: 25401693 | E9: 28441965 | F9: ='[3]A6-FinPos'!J9 -> 26212890.9 | G9: ='[4]B6-FinPos'!K11 -> 26212890.9 | J9: =E9*1.05 -> 29864063.25 | K9: =J9*1.05 -> 31357266.41 | L9: =K9*1.05 -> 32925129.73
A10: Current portion of long-term receivables
A11: Inventory | B11: 2 | C11: 843186 | D11: 957982 | E11: 1022513 | F11: ='[3]A6-FinPos'!J11 -> 1005881.1 | G11: ='[4]B6-FinPos'!K13 -> 1005881.1 | J11: =E11*1.05 -> 1073638.65 | K11: =J11*1.05 -> 1127320.583 | L11: =K11*1.05 -> 1183686.612
A12: Total current assets | C12: =SUM(C6:C11) -> 49304872 | D12: 51383324 | E12: 65105043 | F12: 53083318.2 | G12: 56876318.2 | H12: 0 | I12: 0 | J12: 68360295.15 | K12: 71778309.91 | L12: 75367225.4
A14: Non current assets
A15: Long-term receivables
A16: Investments
A17: Investment property | C17: 55869000 | D17: 57163000 | E17: 57163000 | F17: ='[3]A6-FinPos'!J17 -> 55869000 | G17: ='[4]B6-FinPos'!K19 -> 55869000 | J17: 57163000 | K17: 57163000 | L17: 57163000
A18: Investment in Associate
A19: Property, plant and equipment | B19: 3 | C19: ='SA3'!C26 -> 530168805 | D19: ='SA3'!D26 -> 566340156 | E19: ='SA3'!E26 -> 587037984 | F19: ='SA3'!F26 -> 594657164.9 | G19: ='SA3'!G26 -> 619657164.9 | H19: ='SA3'!H26 -> 0 | I19: ='SA3'!I26 -> 0 | J19: ='SA3'!J26 -> 616389883.2 | K19: ='SA3'!K26 -> 647209377.4 | L19: ='SA3'!L26 -> 679569846.2
A21: Biological | C21: 379905 | D21: 423250 | E21: 346330 | F21: ='[3]A6-FinPos'!J21 -> 444412.5 | G21: ='[4]B6-FinPos'!K23 -> 444412.5 | J21: =E21*1.05 -> 363646.5 | K21: =J21*1.05 -> 381828.825 | L21: =K21*1.05 -> 400920.2663
A22: Intangible
A23: Other non-current assets | C23: 340979 | D23: 373706 | E23: 394315 | F23: ='[3]A6-FinPos'!J23 -> 392391.3 | G23: ='[4]B6-FinPos'!K25 -> 392391.3 | J23: =E23*1.05 -> 414030.75 | K23: =J23*1.05 -> 434732.2875 | L23: =K23*1.05 -> 456468.9019
A24: Total non current assets | C24: =SUM(C15:C19)+SUM(C21:C23) -> 586758689 | D24: =SUM(D15:D19)+SUM(D21:D23) -> 624300112 | E24: 644941629 | F24: 651362968.6 | G24: 676362968.6 | H24: 0 | I24: 0 | J24: 674330560.5 | K24: 705188938.5 | L24: 737590235.4
A25: TOTAL ASSETS | C25: =C12+C24 -> 636063561 | D25: =D12+D24 -> 675683436 | E25: =E12+E24 -> 710046672 | F25: =F12+F24 -> 704446286.8 | G25: 733239286.8 | H25: 0 | I25: 0 | J25: 742690855.6 | K25: 776967248.4 | L25: 812957460.8
A27: LIABILITIES
A28: Current liabilities
A29: Bank overdraft | B29: 1
A30: Borrowing | B30: 4 | C30: ='SA3'!C32 -> 289064 | D30: ='SA3'!D32 -> 223564 | E30: ='SA3'!E32 -> 260975 | F30: ='SA3'!F32 -> 158564 | G30: ='SA3'!G32 -> 158564 | H30: ='SA3'!H32 -> 0 | I30: ='SA3'!I32 -> 0 | J30: ='SA3'!J32 -> 200000 | K30: ='SA3'!K32 -> 210000 | L30: ='SA3'!L32 -> 220500
A31: Consumer deposits | C31: 818351 | D31: 801236 | E31: 816728 | F31: ='[3]A6-FinPos'!J31 -> 784236 | G31: ='[4]B6-FinPos'!K33 -> 814120 | J31: =E31*1.05 -> 857564.4 | K31: =J31*1.05 -> 900442.62 | L31: =K31*1.05 -> 945464.751
A32: Trade and other payables | B32: 4 | C32: ='SA3'!C39 -> 104046339 | D32: ='SA3'!D39 -> 116462659 | E32: ='SA3'!E39 -> 156173465 | F32: ='SA3'!F39 -> 16500000 | G32: ='SA3'!G39 -> 24500000 | H32: ='SA3'!H39 -> 0 | I32: ='SA3'!I39 -> 0 | J32: ='SA3'!J39 -> 60000000 | K32: ='SA3'!K39 -> 55000000 | L32: ='SA3'!L39 -> 50750000
A33: Provisions | C33: 515100 | D33: 532400 | E33: 486344 | F33: ='[3]A6-FinPos'!J33 -> 559020 | G33: ='[4]B6-FinPos'!K35 -> 507200 | J33: =E33*1.05 -> 510661.2 | K33: =J33*1.05 -> 536194.26 | L33: =K33*1.05 -> 563003.973
A34: Total current liabilities | C34: =SUM(C29:C33) -> 105668854 | D34: 118019859 | E34: 157737512 | F34: 18001820 | G34: 25979884 | H34: 0 | I34: 0 | J34: 61568225.6 | K34: 56646636.88 | L34: 52478968.72
A36: Non current liabilities
A37: Borrowing | C37: ='SA3'!C44 -> 32680768 | D37: ='SA3'!D44 -> 36143581 | E37: ='SA3'!E44 -> 39352465 | F37: ='SA3'!F44 -> 37950760.05 | G37: ='SA3'!G44 -> 37950760.05 | H37: ='SA3'!H44 -> 0 | I37: ='SA3'!I44 -> 0 | J37: ='SA3'!J44 -> 41320088.25 | K37: ='SA3'!K44 -> 43386092.66 | L37: ='SA3'!L44 -> 45555397.3
A38: Provisions | C38: ='SA3'!C51 -> 18164273 | D38: ='SA3'!D51 -> 19928093 | E38: ='SA3'!E51 -> 19935017 | F38: ='SA3'!F51 -> 20924497.65 | G38: ='SA3'!G51 -> 20924497.65 | H38: ='SA3'!H51 -> 0 | I38: ='SA3'!I51 -> 0 | J38: ='SA3'!J51 -> 20931767.85 | K38: ='SA3'!K51 -> 21978356.24 | L38: ='SA3'!L51 -> 23077274.05
A39: Total non current liabilities | C39: =SUM(C37:C38) -> 50845041 | D39: =SUM(D37:D38) -> 56071674 | E39: =SUM(E37:E38) -> 59287482 | F39: =SUM(F37:F38) -> 58875257.7 | G39: 58875257.7 | H39: 0 | I39: 0 | J39: 62251856.1 | K39: =SUM(K37:K38) -> 65364448.91 | L39: 68632671.35
A40: TOTAL LIABILITIES | C40: =C34+C39 -> 156513895 | D40: =D34+D39 -> 174091533 | E40: =E34+E39 -> 217024994 | F40: =F34+F39 -> 76877077.7 | G40: 84855141.7 | H40: 0 | I40: 0 | J40: 123820081.7 | K40: =K34+K39 -> 122011085.8 | L40: 121111640.1
A42: NET ASSETS | B42: 5 | C42: =C25-C40 -> 479549666 | D42: 501591903 | E42: 493021678 | F42: 627569209.1 | G42: 648384145.1 | H42: 0 | I42: 0 | J42: 618870773.9 | K42: 654956162.6 | L42: 691845820.7
A44: COMMUNITY WEALTH/EQUITY
A45: Accumulated Surplus/(Deficit) | C45: 479549666 | D45: 501591903 | E45: 493021678 | F45: =+F42 -> 627569209.1 | G45: =+G42 -> 648384145.1 | J45: 618870773.9 | K45: 654956162.6 | L45: 691845820.7
A46: Reserves | B46: 4 | C46: ='SA3'!C70 -> 0 | D46: ='SA3'!D70 -> 0 | E46: ='SA3'!E70 -> 0 | F46: ='SA3'!F70 -> 0 | G46: ='SA3'!G70 -> 0 | H46: ='SA3'!H70 -> 0 | I46: ='SA3'!I70 -> 0 | J46: ='SA3'!J70 -> 0 | K46: ='SA3'!K70 -> 0 | L46: ='SA3'!L70 -> 0
A48: TOTAL COMMUNITY WEALTH/EQUITY | B48: 5 | C48: =SUM(C45:C46) -> 479549666 | D48: =SUM(D45:D46) -> 501591903 | E48: 493021678 | F48: 627569209.1 | G48: 648384145.1 | H48: 0 | I48: 0 | J48: 618870773.9 | K48: 654956162.6 | L48: 691845820.7
A49: =head27a -> References
A50: 1. Detail to be provided in Table SA3
A51: 2. Include completed low cost housing to be transferred to beneficiaries within 12 months
A52: 3. Include 'Construction-work-in-progress' (disclosed separately in annual financial statements)
A53: 4. Detail to be provided in Table SA3. Includes reserves to be funded by statute.
A54: 5. Net assets must balance with Total Community Wealth/Equity
A55: check balance | C55: =IF((C42-C48)=0,0,"Unbalanced") -> 0 | D55: =IF((D42-D48)=0,0,"Unbalanced") -> 0 | E55: 0 | F55: 0 | G55: 0 | H55: 0 | I55: 0 | J55: 0 | K55: 0 | L55: 0

Sheet A7-CFlow
A1: =muni&" - "&Approve7 -> FS163 Mohokare - Table A7 Budgeted Cash Flows
A2: =desc -> Description | B2: =head27 -> Ref | C2: =head1b -> 2016/17 | D2: =head1A -> 2017/18 | E2: =Head1 -> 2018/19 | F2: =Head2 -> Current Year 2019/20 | J2: =Head3 -> 2020/21 Medium Term Revenue & Expenditure Framework
A3: R thousand | C3: =Head5 -> Audited Outcome | D3: =Head5 -> Audited Outcome | E3: =Head5 -> Audited Outcome | F3: =Head6 -> Original Budget | G3: =Head7 -> Adjusted Budget | H3: =Head8 -> Full Year Forecast | I3: =Head5b -> Pre-audit outcome | J3: =Head9 -> Budget Year 2020/21 | K3: =Head10 -> Budget Year +1 2021/22 | L3: =Head11 -> Budget Year +2 2022/23
A4: CASH FLOW FROM OPERATING ACTIVITIES
A5: Receipts
A6: Property rates | D6: 1284986 | E6: 919855 | F6: ='[3]A7-CFlow'!J6 -> 5301773.439 | G6: ='[4]B7-CFlow'!K8 -> 6117431 | J6: ='SA30'!N5 -> 5122888.55 | K6: ='SA30'!O5 -> 5379032.75 | L6: ='SA30'!P5 -> 5647984.55
A7: Service charges | C7: 7262156 | D7: 11279323 | E7: 14411064 | F7: ='[3]A7-CFlow'!J7 -> 13354344.06 | G7: ='[4]B7-CFlow'!K9 -> 23346000 | J7: ='SA30'!N6+'SA30'!N7+'SA30'!N8+'SA30'!N9 -> 41934698.61 | K7: ='SA30'!O6+'SA30'!O7+'SA30'!O8+'SA30'!O9 -> 45016858.74 | L7: ='SA30'!P6+'SA30'!P7+'SA30'!P8+'SA30'!P9 -> 48331961.46
A8: Other revenue | C8: 4100296 | D8: 1713317 | E8: 1095034 | F8: ='[3]A7-CFlow'!J8 -> 20512652 | G8: ='[4]B7-CFlow'!K10 -> 20513000 | J8: ='SA30'!N11+'SA30'!N15+'SA30'!N16+'SA30'!N17+'SA30'!N19 -> 32015000 | K8: ='SA30'!O11+'SA30'!O15+'SA30'!O16+'SA30'!O17+'SA30'!O19 -> 30835000 | L8: ='SA30'!P11+'SA30'!P15+'SA30'!P16+'SA30'!P17+'SA30'!P19 -> 29396000
A9: Transfers and Subsidies - Operational | B9: 1 | C9: 57655043 | D9: 58955000 | E9: 65693000 | F9: ='[3]A7-CFlow'!J9 -> 65021000 | G9: ='[4]B7-CFlow'!K11 -> 65021000 | J9: ='SA30'!N18 -> 77585000 | K9: ='SA30'!O18 -> 82609000 | L9: ='SA30'!P18 -> 88229000
A10: Transfers and Subsidies - Capital | B10: 1 | C10: 73130897 | D10: 63341995 | E10: 56061001 | F10: ='[3]A7-CFlow'!J10 -> 80202000 | G10: ='[4]B7-CFlow'!K12 -> 82202000 | J10: ='SA30'!N23 -> 91773000 | K10: ='SA30'!O23 -> 74428000 | L10: ='SA30'!P23 -> 57679000
A11: Interest | C11: 3660080 | D11: 3206029 | E11: 397707 | F11: ='[3]A7-CFlow'!J11 -> 1204000 | G11: ='[4]B7-CFlow'!K13 -> 2555870 | J11: ='SA30'!N12+'SA30'!N13 -> 6950000 | K11: ='SA30'!O12+'SA30'!O13 -> 6950000 | L11: ='SA30'!P12+'SA30'!P13 -> 6950000
A12: Dividends | C12: 9505 | E12: 11818 | F12: ='[3]A7-CFlow'!J12 -> 10000 | G12: ='[4]B7-CFlow'!K14 -> 9505 | J12: ='SA30'!N14 -> 10000 | K12: ='SA30'!O14 -> 10000 | L12: ='SA30'!P14 -> 10000
A13: Payments
A14: Suppliers and employees | C14: -89077843 | D14: -83202081 | E14: -78871634 | F14: ='[3]A7-CFlow'!J14 -> -103480028.5 | G14: ='[4]B7-CFlow'!K16 -> -123812000 | J14: =-('SA30'!N35+'SA30'!N36+'SA30'!N38+'SA30'!N39+'SA30'!N40+'SA30'!N41+'SA30'!N44+'SA30'!N50) -> -160403846 | K14: =-('SA30'!O35+'SA30'!O36+'SA30'!O38+'SA30'!O39+'SA30'!O40+'SA30'!O41+'SA30'!O44+'SA30'!O50) -> -167695934 | L14: =-('SA30'!P35+'SA30'!P36+'SA30'!P38+'SA30'!P39+'SA30'!P40+'SA30'!P41+'SA30'!P44+'SA30'!P50) -> -175478582
A15: Finance charges | C15: -7078532 | D15: -8536441 | E15: -9973271 | F15: ='[3]A7-CFlow'!J15 -> -500000 | G15: ='[4]B7-CFlow'!K17 -> -2500000 | J15: =-('SA30'!N37) -> -8075000 | K15: =-('SA30'!O37) -> -8478750 | L15: =-('SA30'!P37) -> -8902688
A16: Transfers and Grants | B16: 1 | J16: =-('SA30'!N42+'SA30'!N43) -> 0 | K16: =-('SA30'!O42+'SA30'!O43) -> 0 | L16: =-('SA30'!P42+'SA30'!P43) -> 0
A17: NET CASH FROM/(USED) OPERATING ACTIVITIES | C17: =SUM(C6:C12)+SUM(C14:C16) -> 49661602 | D17: 48042128 | E17: 49744574 | F17: 81625740.96 | G17: 73452806 | H17: 0 | I17: 0 | J17: 86911741.16 | K17: 69053207.49 | L17: 51862676.01
A19: CASH FLOWS FROM INVESTING ACTIVITIES
A20: Receipts
A21: Proceeds on disposal of PPE | J21: ='SA30'!N24+'SA30'!N25 -> 0 | K21: ='SA30'!O24+'SA30'!O25 -> 0 | L21: ='SA30'!P24+'SA30'!P25 -> 0
A23: Decrease (increase) in non-current receivables | J23: ='SA30'!N30 -> 0 | K23: ='SA30'!O30 -> 0 | L23: ='SA30'!P30 -> 0
A24: Decrease (increase) in non-current investments | J24: ='SA30'!N31 -> 0 | K24: ='SA30'!O31 -> 0 | L24: ='SA30'!P31 -> 0
A25: Payments
A26: Capital assets | C26: -40139634 | D26: -59325230 | E26: -45388987 | F26: ='[3]A7-CFlow'!J26 -> -80202000 | G26: ='[4]B7-CFlow'!K28 -> -80202000 | J26: =-('SA30'!N48) -> -92523000 | K26: =-('SA30'!O48) -> -74928000 | L26: =-('SA30'!P48) -> -58029000
A27: NET CASH FROM/(USED) INVESTING ACTIVITIES | C27: =+C21+C23+C24+C26 -> -40139634 | D27: =+D21+D23+D24+D26 -> -59325230 | E27: -45388987 | F27: -80202000 | G27: -80202000 | H27: 0 | I27: 0 | J27: -92523000 | K27: -74928000 | L27: -58029000
A29: CASH FLOWS FROM FINANCING ACTIVITIES
A30: Receipts
A31: Short term loans | J31: ='SA30'!N26 -> 0 | K31: ='SA30'!O26 -> 0 | L31: ='SA30'!P26 -> 0
A32: Borrowing long term/refinancing | J32: ='SA30'!N27 -> 0 | K32: ='SA30'!O27 -> 0 | L32: ='SA30'!P27 -> 0
A33: Increase (decrease) in consumer deposits | J33: ='SA30'!N28 -> 0 | K33: ='SA30'!O28 -> 0 | L33: ='SA30'!P28 -> 0
A34: Payments
A35: Repayment of borrowing | C35: 102409 | D35: -91745 | E35: -231685 | F35: ='[3]A7-CFlow'!J35 -> -272108.4 | G35: ='[4]B7-CFlow'!K37 -> -272000 | J35: =-('SA30'!N49) -> 0 | K35: =-('SA30'!O49) -> 0 | L35: =-('SA30'!P49) -> 0
A36: NET CASH FROM/(USED) FINANCING ACTIVITIES | C36: =SUM(C31:C33)+C35 -> 102409 | D36: =SUM(D31:D33)+D35 -> -91745 | E36: -231685 | F36: -272108.4 | G36: -272000 | H36: 0 | I36: 0 | J36: 0 | K36: 0 | L36: 0
A38: NET INCREASE/ (DECREASE) IN CASH HELD | C38: =C17+C27+C36 -> 9624377 | D38: =D17+D27+D36 -> -11374847 | E38: 4123902 | F38: 1151632.556 | G38: -7021194 | H38: 0 | I38: 0 | J38: -5611258.84 | K38: -5874792.51 | L38: -6166323.99
A39: Cash/cash equivalents at the year begin: | B39: 2 | C39: 6328876 | D39: 15953253 | E39: 4578406 | F39: ='[3]A7-CFlow'!J39 -> 4807326.3 | G39: ='[4]B7-CFlow'!K41 -> 8600000 | J39: ='SA30'!N54 -> 8500000 | K39: =J40 -> 2888741.16 | L39: =K40 -> -2986051.35
A40: Cash/cash equivalents at the year end: | B40: 2 | C40: =C38+C39 -> 15953253 | D40: =D38+D39 -> 4578406 | E40: =E38+E39 -> 8702308 | F40: =F38+F39 -> 5958958.856 | G40: 1578806 | H40: 0 | I40: 0 | J40: 2888741.16 | K40: -2986051.35 | L40: -9152375.34
A41: =head27a -> References
A42: 1. Local/District municipalities to include transfers from/to District/Local Municipalities
A43: 2. Cash equivalents includes investments with maturities of 3 months or less
A44: 3. The MTREF is populated directly from SA30.
A45: Total receipts | C45: =SUM(C6:C12)+SUM(C21:C23) -> 145817977 | D45: 139780650 | E45: 138589479 | F45: 185605769.5 | G45: 199764806 | H45: 0 | I45: 0 | J45: 255390587.2 | K45: 245227891.5 | L45: 236243946
A46: Total payments | C46: =SUM(C14:C16)+C26 -> -136296009 | D46: =SUM(D14:D16)+D26 -> -151063752 | E46: -134233892 | F46: -184182028.5 | G46: -206514000 | H46: 0 | I46: 0 | J46: -261001846 | K46: -251102684 | L46: -242410270
C47: =C45+C46 -> 9521968 | D47: =D45+D46 -> -11283102 | E47: 4355587 | F47: 1423740.956 | G47: -6749194 | H47: 0 | I47: 0 | J47: -5611258.84 | K47: -5874792.51 | L47: -6166323.99
A48: Borrowings & investments & c.deposits | C48: =C24+C32+C33 -> 0 | D48: =D24+D32+D33 -> 0 | E48: 0 | F48: 0 | G48: 0 | H48: 0 | I48: 0 | J48: 0 | K48: 0 | L48: 0
A49: =A35 -> Repayment of borrowing | C49: =C35 -> 102409 | D49: =D35 -> -91745 | E49: -231685 | F49: -272108.4 | G49: -272000 | H49: 0 | I49: =I35 -> 0 | J49: 0 | K49: 0 | L49: 0
C50: =C47+C48+C49 -> 9624377 | D50: =D47+D48+D49 -> -11374847 | E50: 4123902 | F50: 1151632.556 | G50: -7021194 | H50: 0 | I50: 0 | J50: -5611258.84 | K50: -5874792.51 | L50: -6166323.99
C51: =C38-C50 -> 0 | D51: 0 | E51: 0 | F51: 0 | G51: 0 | H51: 0 | I51: 0 | J51: 0 | K51: 0 | L51: 0

Sheet A8-ResRecon
A1: =muni&" - "&Approve8 -> FS163 Mohokare - Table A8 Cash backed reserves/accumulated surplus reconciliation
A2: =desc -> Description | B2: =head27 -> Ref | C2: =head1b -> 2016/17 | D2: =head1A -> 2017/18 | E2: =Head1 -> 2018/19 | F2: =Head2 -> Current Year 2019/20 | J2: =Head3 -> 2020/21 Medium Term Revenue & Expenditure Framework
A3: R thousand | C3: =Head5 -> Audited Outcome | D3: =Head5 -> Audited Outcome | E3: =Head5 -> Audited Outcome | F3: =Head6 -> Original Budget | G3: =Head7 -> Adjusted Budget | H3: =Head8 -> Full Year Forecast | I3: =Head5b -> Pre-audit outcome | J3: =Head9 -> Budget Year 2020/21 | K3: =Head10 -> Budget Year +1 2021/22 | L3: =Head11 -> Budget Year +2 2022/23
A4: Cash and investments available
A5: =LEFT('A7-CFlow'!A40,37) -> Cash/cash equivalents at the year end | B5: 1 | C5: ='A7-CFlow'!C40 -> 15953253 | D5: ='A7-CFlow'!D40 -> 4578406 | E5: ='A7-CFlow'!E40 -> 8702308 | F5: ='A7-CFlow'!F40 -> 5958958.856 | G5: ='A7-CFlow'!G40 -> 1578806 | H5: ='A7-CFlow'!H40 -> 0 | I5: ='A7-CFlow'!I40 -> 0 | J5: ='A7-CFlow'!J40 -> 2888741.16 | K5: ='A7-CFlow'!K40 -> -2986051.35 | L5: ='A7-CFlow'!L40 -> -9152375.34
A6: Other current investments > 90 days | C6: ='A6-FinPos'!C6+'A6-FinPos'!C7-'A6-FinPos'!C29-'A8-ResRecon'!C5 -> 0 | D6: ='A6-FinPos'!D6+'A6-FinPos'!D7-'A6-FinPos'!D29-'A8-ResRecon'!D5 -> 0 | E6: ='A6-FinPos'!E6+'A6-FinPos'!E7-'A6-FinPos'!E29-'A8-ResRecon'!E5 -> 0 | F6: ='A6-FinPos'!F6+'A6-FinPos'!F7-'A6-FinPos'!F29-'A8-ResRecon'!F5 -> -1151632.556 | G6: ='A6-FinPos'!G6+'A6-FinPos'!G7-'A6-FinPos'!G29-'A8-ResRecon'!G5 -> 7021520.3 | H6: ='A6-FinPos'!H6+'A6-FinPos'!H7-'A6-FinPos'!H29-'A8-ResRecon'!H5 -> 0 | I6: ='A6-FinPos'!I6+'A6-FinPos'!I7-'A6-FinPos'!I29-'A8-ResRecon'!I5 -> 0 | J6: ='A6-FinPos'!J6+'A6-FinPos'!J7-'A6-FinPos'!J29-'A8-ResRecon'!J5 -> 6248682.24 | K6: ='A6-FinPos'!K6+'A6-FinPos'!K7-'A6-FinPos'!K29-'A8-ResRecon'!K5 -> 12580345.92 | L6: ='A6-FinPos'!L6+'A6-FinPos'!L7-'A6-FinPos'!L29-'A8-ResRecon'!L5 -> 19226384.64
A7: ='A6-FinPos'!A14&" - "&'A6-FinPos'!A16 -> Non current assets - Investments | B7: 1 | C7: ='A6-FinPos'!C16 -> 0 | D7: ='A6-FinPos'!D16 -> 0 | E7: ='A6-FinPos'!E16 -> 0 | F7: ='A6-FinPos'!F16 -> 0 | G7: ='A6-FinPos'!G16 -> 0 | H7: ='A6-FinPos'!H16 -> 0 | I7: ='A6-FinPos'!I16 -> 0 | J7: ='A6-FinPos'!J16 -> 0 | K7: ='A6-FinPos'!K16 -> 0 | L7: ='A6-FinPos'!L16 -> 0
A8: Cash and investments available: | C8: =SUM(C5:C7) -> 15953253 | D8: =SUM(D5:D7) -> 4578406 | E8: 8702308 | F8: 4807326.3 | G8: 8600326.3 | H8: 0 | I8: 0 | J8: 9137423.4 | K8: 9594294.57 | L8: 10074009.3
A10: Application of cash and investments
A11: ='SA3'!A37 -> Unspent conditional transfers | C11: ='SA3'!C37 -> 31220077 | D11: ='SA3'!D37 -> 24513703 | E11: ='SA3'!E37 -> 26743497 | F11: ='SA3'!F37 -> 0 | G11: ='SA3'!G37 -> 0 | H11: ='SA3'!H37 -> 0 | I11: ='SA3'!I37 -> 0 | J11: ='SA3'!J37 -> 10000000 | K11: ='SA3'!K37 -> 7500000 | L11: ='SA3'!L37 -> 5625000
A12: Unspent borrowing | C12: ='SA17'!C67 -> 0 | D12: ='SA17'!D67 -> 0 | E12: ='SA17'!E67 -> 0 | F12: ='SA17'!F67 -> 0 | G12: ='SA17'!G67 -> 0 | H12: ='SA17'!H67 -> 0 | J12: ='SA17'!I67 -> 0 | K12: ='SA17'!J67 -> 0 | L12: ='SA17'!K67 -> 0
A13: Statutory requirements | B13: 2
A14: Other working capital requirements | B14: 3 | C14: =-C32 -> 69290262 | D14: =-D32 -> 86850956 | E14: 121960968 | F14: =-F32 -> 4495000 | G14: 9183000 | H14: 0 | I14: 0 | J14: -4700000 | K14: -4082000 | L14: -1503000
A15: Other provisions
A16: Long term investments committed | B16: 4 | C16: =C52 -> 0 | D16: =D52 -> 0 | E16: 0 | F16: 0 | G16: 0 | H16: 0 | I16: 0 | J16: 0 | K16: 0 | L16: 0
A17: Reserves to be backed by cash/investments | B17: 5
A18: ="Total "&A10&":" -> Total Application of cash and investments: | C18: =SUM(C11:C17) -> 100510339 | D18: =SUM(D11:D17) -> 111364659 | E18: 148704465 | F18: 4495000 | G18: 9183000 | H18: 0 | I18: 0 | J18: 5300000 | K18: 3418000 | L18: 4122000
A19: Surplus(shortfall) | C19: =C8-C18 -> -84557086 | D19: =D8-D18 -> -106786253 | E19: -140002157 | F19: 312326.3 | G19: -582673.7 | H19: 0 | I19: 0 | J19: 3837423.4 | K19: 6176294.57 | L19: 5952009.299
A20: =head27a -> References
A21: 1. Must reconcile with Budgeted Cash Flows
A22: 2. For example: VAT, taxation
A23: 3. Council approval for policy required - include sufficient working capital (e.g. allowing for a % of current debtors > 90 days as uncollectable)
A24: 4. For example: sinking fund requirements for borrowing
A25: 5. Council approval required for each reserve created and basis of cash backing of reserves
A28: Other working capital requirements
A29: Debtors | C29: =IF(ISERROR(ROUND(C35*C36,-3)),0,(ROUND(C35*C36,-3))) -> 3536000 | D29: =IF(ISERROR(ROUND(D35*D36,-3)),0,(ROUND(D35*D36,-3))) -> 5098000 | E29: 7469000 | F29: 12005000 | G29: 15317000 | H29: 0 | I29: 0 | J29: 32700000 | K29: 34082000 | L29: 35503000
A31: Creditors due | C31: ='SA3'!C35+'SA3'!C36 -> 72826262 | D31: ='SA3'!D35+'SA3'!D36 -> 91948956 | E31: ='SA3'!E35+'SA3'!E36 -> 129429968 | F31: ='SA3'!F35+'SA3'!F36 -> 16500000 | G31: ='SA3'!G35+'SA3'!G36 -> 24500000 | H31: ='SA3'!H35+'SA3'!H36 -> 0 | I31: ='SA3'!I35+'SA3'!I36 -> 0 | J31: 28000000 | K31: 30000000 | L31: 34000000
A32: Total | C32: =C29-C31 -> -69290262 | D32: =D29-D31 -> -86850956 | E32: -121960968 | F32: -4495000 | G32: -9183000 | H32: 0 | I32: 0 | J32: 4700000 | K32: 4082000 | L32: 1503000
A34: Debtors collection assumptions
A35: Balance outstanding - debtors | C35: ='A6-FinPos'!C8+'A6-FinPos'!C9+'A6-FinPos'!C15 -> 32508433 | D35: ='A6-FinPos'!D8+'A6-FinPos'!D9+'A6-FinPos'!D15 -> 45846936 | E35: ='A6-FinPos'!E8+'A6-FinPos'!E9+'A6-FinPos'!E15 -> 55380222 | F35: ='A6-FinPos'!F8+'A6-FinPos'!F9+'A6-FinPos'!F15 -> 47270110.8 | G35: ='A6-FinPos'!G8+'A6-FinPos'!G9+'A6-FinPos'!G15 -> 47270110.8 | H35: ='A6-FinPos'!H8+'A6-FinPos'!H9+'A6-FinPos'!H15 -> 0 | I35: ='A6-FinPos'!I8+'A6-FinPos'!I9+'A6-FinPos'!I15 -> 0 | J35: ='A6-FinPos'!J8+'A6-FinPos'!J9+'A6-FinPos'!J15 -> 58149233.1 | K35: ='A6-FinPos'!K8+'A6-FinPos'!K9+'A6-FinPos'!K15 -> 61056694.75 | L35: ='A6-FinPos'!L8+'A6-FinPos'!L9+'A6-FinPos'!L15 -> 64109529.49
A36: Estimate of debtors collection rate | C36: =IF(ISERROR('SA10'!D10),0,('SA10'!D10)) -> 0.108783254 | D36: =IF(ISERROR('SA10'!E10),0,('SA10'!E10)) -> 0.1111928192 | E36: =IF(ISERROR('SA10'!F10),0,('SA10'!F10)) -> 0.1348603898 | F36: =IF(ISERROR('SA10'!G10),0,('SA10'!G10)) -> 0.2539569767 | G36: =IF(ISERROR('SA10'!H10),0,('SA10'!H10)) -> 0.3240301745 | H36: =IF(ISERROR('SA10'!I10),0,('SA10'!I10)) -> 0 | I36: =IF(ISERROR('SA10'!J10),0,('SA10'!J10)) -> 0 | J36: =IF(ISERROR('SA10'!K10),0,('SA10'!K10)) -> 0.5623523738 | K36: =IF(ISERROR('SA10'!L10),0,('SA10'!L10)) -> 0.5582089399 | L36: =IF(ISERROR('SA10'!M10),0,('SA10'!M10)) -> 0.553790155
K39: `
A40: =A16 -> Long term investments committed
A41: Balance (Insert description; eg sinking fund)
C52: =SUM(C41:C51) -> 0 | D52: =SUM(D41:D51) -> 0 | E52: 0 | F52: 0 | G52: 0 | H52: 0 | I52: 0 | J52: 0 | K52: 0 | L52: 0
A53: =A17 -> Reserves to be backed by cash/investments
A54: ='SA3'!A65 -> Housing Development Fund | C54: ='SA3'!C65 -> 0 | D54: ='SA3'!D65 -> 0 | E54: ='SA3'!E65 -> 0 | F54: ='SA3'!F65 -> 0 | G54: ='SA3'!G65 -> 0 | H54: ='SA3'!H65 -> 0 | I54: ='SA3'!I65 -> 0 | J54: ='SA3'!J65 -> 0 | K54: ='SA3'!K65 -> 0 | L54: ='SA3'!L65 -> 0
A55: ='SA3'!A66 -> Capital replacement
A56: ='SA3'!A67 -> Self-insurance
A57: Other (list)
C67: =SUM(C54:C65) -> 0 | D67: 0 | E67: 0 | F67: 0 | G67: 0 | H67: 0 | I67: 0 | J67: 0 | K67: 0 | L67: 0

Sheet A9-Asset
A1: =muni&" - "&Approve9 -> FS163 Mohokare - Table A9 Asset Management
A2: =desc -> Description | B2: =head27 -> Ref | C2: =head1b -> 2016/17 | D2: =head1A -> 2017/18 | E2: =Head1 -> 2018/19 | F2: =Head2 -> Current Year 2019/20 | I2: =Head3 -> 2020/21 Medium Term Revenue & Expenditure Framework
A3: R thousand | C3: =Head5 -> Audited Outcome | D3: =Head5 -> Audited Outcome | E3: =Head5 -> Audited Outcome | F3: =Head6 -> Original Budget | G3: =Head7 -> Adjusted Budget | H3: =Head8 -> Full Year Forecast | I3: =Head9 -> Budget Year 2020/21 | J3: =Head10 -> Budget Year +1 2021/22 | K3: =Head11 -> Budget Year +2 2022/23
A4: CAPITAL EXPENDITURE
A5: Total New Assets | B5: 1 | C5: =C15+C18+C19+C22+C25+C26+SUM(C29:C35) -> 40032232 | D5: =D15+D18+D19+D22+D25+D26+SUM(D29:D35) -> 61044900 | E5: 43913449 | F5: 59791904 | G5: 60632904 | H5: 0 | I5: 70777337.62 | J5: 57185100.52 | K5: 44747450.05
A6: Roads Infrastructure | C6: =SA34a!C7 -> 10575827 | D6: =SA34a!D7 -> 2043954 | E6: =SA34a!E7 -> 1543954 | F6: =SA34a!F7 -> 8292135 | G6: =SA34a!G7 -> 8292135 | H6: =SA34a!H7 -> 0 | I6: =SA34a!I7 -> 9242076.983 | J6: =SA34a!J7 -> 7540871.373 | K6: =SA34a!K7 -> 5644762.845
A7: Storm water Infrastructure | C7: =SA34a!C12 -> 0 | D7: =SA34a!D12 -> 0 | E7: =SA34a!E12 -> 0 | F7: =SA34a!F12 -> 0 | G7: =SA34a!G12 -> 0 | H7: =SA34a!H12 -> 0 | I7: =SA34a!I12 -> 0 | J7: =SA34a!J12 -> 0 | K7: =SA34a!K12 -> 0
A8: Electrical Infrastructure | C8: =SA34a!C16 -> 0 | D8: =SA34a!D16 -> 4152829 | E8: =SA34a!E16 -> 0 | F8: =SA34a!F16 -> 2211000 | G8: =SA34a!G16 -> 2211000 | H8: =SA34a!H16 -> 0 | I8: =SA34a!I16 -> 5850000 | J8: =SA34a!J16 -> 4321000 | K8: =SA34a!K16 -> 5200000
A9: Water Supply Infrastructure | C9: =SA34a!C26 -> 24788200 | D9: =SA34a!D26 -> 40746694 | E9: =SA34a!E26 -> 36715642 | F9: =SA34a!F26 -> 48866019 | G9: =SA34a!G26 -> 48866019 | H9: =SA34a!H26 -> 0 | I9: =SA34a!I26 -> 54464080.65 | J9: =SA34a!J26 -> 44438780.1 | K9: =SA34a!K26 -> 33264905.66
A10: Sanitation Infrastructure | C10: =SA34a!C37 -> 1438146 | D10: =SA34a!D37 -> 735081 | E10: =SA34a!E37 -> 1235081 | F10: =SA34a!F37 -> 0 | G10: =SA34a!G37 -> 0 | H10: =SA34a!H37 -> 0 | I10: =SA34a!I37 -> 0 | J10: =SA34a!J37 -> 0 | K10: =SA34a!K37 -> 0
A11: Solid Waste Infrastructure | C11: =SA34a!C44 -> 0 | D11: =SA34a!D44 -> 0 | E11: =SA34a!E44 -> 0 | F11: =SA34a!F44 -> 0 | G11: =SA34a!G44 -> 0 | H11: =SA34a!H44 -> 0 | I11: =SA34a!I44 -> 0 | J11: =SA34a!J44 -> 0 | K11: =SA34a!K44 -> 0
A12: Rail Infrastructure | C12: =SA34a!C52 -> 0 | D12: =SA34a!D52 -> 0 | E12: =SA34a!E52 -> 0 | F12: =SA34a!F52 -> 0 | G12: =SA34a!G52 -> 0 | H12: =SA34a!H52 -> 0 | I12: =SA34a!I52 -> 0 | J12: =SA34a!J52 -> 0 | K12: =SA34a!K52 -> 0
A13: Coastal Infrastructure | C13: =SA34a!C62 -> 0 | D13: =SA34a!D62 -> 0 | E13: =SA34a!E62 -> 0 | F13: =SA34a!F62 -> 0 | G13: =SA34a!G62 -> 0 | H13: =SA34a!H62 -> 0 | I13: =SA34a!I62 -> 0 | J13: =SA34a!J62 -> 0 | K13: =SA34a!K62 -> 0
A14: Information and Communication Infrastructure | C14: =SA34a!C68 -> 0 | D14: =SA34a!D68 -> 0 | E14: =SA34a!E68 -> 0 | F14: =SA34a!F68 -> 0 | G14: =SA34a!G68 -> 0 | H14: =SA34a!H68 -> 0 | I14: =SA34a!I68 -> 0 | J14: =SA34a!J68 -> 0 | K14: =SA34a!K68 -> 0
A15: Infrastructure | C15: =SUM(C6:C14) -> 36802173 | D15: =SUM(D6:D14) -> 47678558 | E15: 39494677 | F15: 59369154 | G15: 59369154 | H15: 0 | I15: 69556157.64 | J15: 56300651.47 | K15: 44109668.5
A16: Community Facilities | C16: =SA34a!C75 -> 1324512 | D16: =SA34a!D75 -> 5306328 | E16: =SA34a!E75 -> 3648900 | F16: =SA34a!F75 -> 290404 | G16: =SA34a!G75 -> 290404 | H16: =SA34a!H75 -> 0 | I16: =SA34a!I75 -> 323672.507 | J16: =SA34a!J75 -> 264093.5308 | K16: =SA34a!K75 -> 197688.7387
A17: Sport and Recreation Facilities | C17: =SA34a!C98 -> 808226 | D17: =SA34a!D98 -> 7441203 | E17: =SA34a!E98 -> 0 | F17: =SA34a!F98 -> 132346 | G17: =SA34a!G98 -> 132346 | H17: =SA34a!H98 -> 0 | I17: =SA34a!I98 -> 147507.4779 | J17: =SA34a!J98 -> 120355.5131 | K17: =SA34a!K98 -> 90092.81488
A18: Community Assets | C18: =SUM(C16:C17) -> 2132738 | D18: =SUM(D16:D17) -> 12747531 | E18: 3648900 | F18: 422750 | G18: 422750 | H18: 0 | I18: 471179.9849 | J18: 384449.044 | K18: 287781.5536
A19: Heritage Assets | C19: =SA34a!C103 -> 0 | D19: =SA34a!D103 -> 0 | E19: =SA34a!E103 -> 0 | F19: =SA34a!F103 -> 0 | G19: =SA34a!G103 -> 0 | H19: =SA34a!H103 -> 0 | I19: =SA34a!I103 -> 0 | J19: =SA34a!J103 -> 0 | K19: =SA34a!K103 -> 0
A20: Revenue Generating | C20: =SA34a!C111 -> 0 | D20: =SA34a!D111 -> 0 | E20: =SA34a!E111 -> 0 | F20: =SA34a!F111 -> 0 | G20: =SA34a!G111 -> 0 | H20: =SA34a!H111 -> 0 | I20: =SA34a!I111 -> 0 | J20: =SA34a!J111 -> 0 | K20: =SA34a!K111 -> 0
A21: Non-revenue Generating | C21: =SA34a!C114 -> 0 | D21: =SA34a!D114 -> 0 | E21: =SA34a!E114 -> 0 | F21: =SA34a!F114 -> 0 | G21: =SA34a!G114 -> 0 | H21: =SA34a!H114 -> 0 | I21: =SA34a!I114 -> 0 | J21: =SA34a!J114 -> 0 | K21: =SA34a!K114 -> 0
A22: Investment properties | C22: =SUM(C20:C21) -> 0 | D22: =SUM(D20:D21) -> 0 | E22: 0 | F22: 0 | G22: 0 | H22: 0 | I22: 0 | J22: 0 | K22: 0
A23: Operational Buildings | C23: =SA34a!C119 -> 0 | D23: =SA34a!D119 -> 0 | E23: =SA34a!E119 -> 0 | F23: =SA34a!F119 -> 0 | G23: =SA34a!G119 -> 0 | H23: =SA34a!H119 -> 0 | I23: =SA34a!I119 -> 0 | J23: =SA34a!J119 -> 0 | K23: =SA34a!K119 -> 0
A24: Housing | C24: =SA34a!C131 -> 0 | D24: =SA34a!D131 -> 0 | E24: =SA34a!E131 -> 0 | F24: =SA34a!F131 -> 0 | G24: =SA34a!G131 -> 0 | H24: =SA34a!H131 -> 0 | I24: =SA34a!I131 -> 0 | J24: =SA34a!J131 -> 0 | K24: =SA34a!K131 -> 0
A25: Other Assets | C25: =SUM(C23:C24) -> 0 | D25: =SUM(D23:D24) -> 0 | E25: 0 | F25: 0 | G25: 0 | H25: 0 | I25: 0 | J25: 0 | K25: 0
A26: Biological or Cultivated Assets | C26: =SA34a!C136 -> 0 | D26: =SA34a!D136 -> 0 | E26: =SA34a!E136 -> 0 | F26: =SA34a!F136 -> 0 | G26: =SA34a!G136 -> 0 | H26: =SA34a!H136 -> 0 | I26: =SA34a!I136 -> 0 | J26: =SA34a!J136 -> 0 | K26: =SA34a!K136 -> 0
A27: Servitudes | C27: =SA34a!C140 -> 0 | D27: =SA34a!D140 -> 0 | E27: =SA34a!E140 -> 0 | F27: =SA34a!F140 -> 0 | G27: =SA34a!G140 -> 0 | H27: =SA34a!H140 -> 0 | I27: =SA34a!I140 -> 0 | J27: =SA34a!J140 -> 0 | K27: =SA34a!K140 -> 0
A28: Licences and Rights | C28: =SA34a!C141 -> 0 | D28: =SA34a!D141 -> 0 | E28: =SA34a!E141 -> 0 | F28: =SA34a!F141 -> 0 | G28: =SA34a!G141 -> 0 | H28: =SA34a!H141 -> 0 | I28: =SA34a!I141 -> 0 | J28: =SA34a!J141 -> 0 | K28: =SA34a!K141 -> 0
A29: Intangible Assets | C29: =SUM(C27:C28) -> 0 | D29: =SUM(D27:D28) -> 0 | E29: 0 | F29: 0 | G29: 0 | H29: 0 | I29: 0 | J29: 0 | K29: 0
A30: Computer Equipment | C30: =SA34a!C149 -> 9088 | D30: =SA34a!D149 -> 0 | E30: =SA34a!E149 -> 0 | F30: =SA34a!F149 -> 0 | G30: =SA34a!G149 -> 480000 | H30: =SA34a!H149 -> 0 | I30: =SA34a!I149 -> 300000 | J30: =SA34a!J149 -> 250000 | K30: =SA34a!K149 -> 100000
A31: Furniture and Office Equipment | C31: =SA34a!C152 -> 0 | D31: =SA34a!D152 -> 0 | E31: =SA34a!E152 -> 0 | F31: =SA34a!F152 -> 0 | G31: =SA34a!G152 -> 82500 | H31: =SA34a!H152 -> 0 | I31: =SA34a!I152 -> 150000 | J31: =SA34a!J152 -> 0 | K31: =SA34a!K152 -> 0
A32: Machinery and Equipment | C32: =SA34a!C155 -> 1088233 | D32: =SA34a!D155 -> 618811 | E32: =SA34a!E155 -> 769872 | F32: =SA34a!F155 -> 0 | G32: =SA34a!G155 -> 278500 | H32: =SA34a!H155 -> 0 | I32: =SA34a!I155 -> 300000 | J32: =SA34a!J155 -> 250000 | K32: =SA34a!K155 -> 250000
A33: Transport Assets | C33: =SA34a!C158 -> 0 | D33: =SA34a!D158 -> 0 | E33: =SA34a!E158 -> 0 | F33: =SA34a!F158 -> 0 | G33: =SA34a!G158 -> 0 | H33: =SA34a!H158 -> 0 | I33: =SA34a!I158 -> 0 | J33: =SA34a!J158 -> 0 | K33: =SA34a!K158 -> 0
A34: Land | C34: =SA34a!C161 -> 0 | D34: =SA34a!D161 -> 0 | E34: =SA34a!E161 -> 0 | F34: =SA34a!F161 -> 0 | G34: =SA34a!G161 -> 0 | H34: =SA34a!H161 -> 0 | I34: =SA34a!I161 -> 0 | J34: =SA34a!J161 -> 0 | K34: =SA34a!K161 -> 0
A35: Zoo's, Marine and Non-biological Animals | C35: =SA34a!C164 -> 0 | D35: =SA34a!D164 -> 0 | E35: =SA34a!E164 -> 0 | F35: =SA34a!F164 -> 0 | G35: =SA34a!G164 -> 0 | H35: =SA34a!H164 -> 0 | I35: =SA34a!I164 -> 0 | J35: =SA34a!J164 -> 0 | K35: =SA34a!K164 -> 0
A37: Total Renewal of Existing Assets | B37: 2 | C37: =C47+C50+C51+C54+C57+C58+SUM(C61:C67) -> 0 | D37: =D47+D50+D51+D54+D57+D58+SUM(D61:D67) -> 0 | E37: 0 | F37: 0 | G37: 0 | H37: 0 | I37: 0 | J37: 0 | K37: 0
A38: Roads Infrastructure | C38: =SA34b!C7 -> 0 | D38: =SA34b!D7 -> 0 | E38: =SA34b!E7 -> 0 | F38: =SA34b!F7 -> 0 | G38: =SA34b!G7 -> 0 | H38: =SA34b!H7 -> 0 | I38: =SA34b!I7 -> 0 | J38: =SA34b!J7 -> 0 | K38: =SA34b!K7 -> 0
A39: Storm water Infrastructure | C39: =SA34b!C12 -> 0 | D39: =SA34b!D12 -> 0 | E39: =SA34b!E12 -> 0 | F39: =SA34b!F12 -> 0 | G39: =SA34b!G12 -> 0 | H39: =SA34b!H12 -> 0 | I39: =SA34b!I12 -> 0 | J39: =SA34b!J12 -> 0 | K39: =SA34b!K12 -> 0
A40: Electrical Infrastructure | C40: =SA34b!C16 -> 0 | D40: =SA34b!D16 -> 0 | E40: =SA34b!E16 -> 0 | F40: =SA34b!F16 -> 0 | G40: =SA34b!G16 -> 0 | H40: =SA34b!H16 -> 0 | I40: =SA34b!I16 -> 0 | J40: =SA34b!J16 -> 0 | K40: =SA34b!K16 -> 0
A41: Water Supply Infrastructure | C41: =SA34b!C26 -> 0 | D41: =SA34b!D26 -> 0 | E41: =SA34b!E26 -> 0 | F41: =SA34b!F26 -> 0 | G41: =SA34b!G26 -> 0 | H41: =SA34b!H26 -> 0 | I41: =SA34b!I26 -> 0 | J41: =SA34b!J26 -> 0 | K41: =SA34b!K26 -> 0
A42: Sanitation Infrastructure | C42: =SA34b!C37 -> 0 | D42: =SA34b!D37 -> 0 | E42: =SA34b!E37 -> 0 | F42: =SA34b!F37 -> 0 | G42: =SA34b!G37 -> 0 | H42: =SA34b!H37 -> 0 | I42: =SA34b!I37 -> 0 | J42: =SA34b!J37 -> 0 | K42: =SA34b!K37 -> 0
A43: Solid Waste Infrastructure | C43: =SA34b!C44 -> 0 | D43: =SA34b!D44 -> 0 | E43: =SA34b!E44 -> 0 | F43: =SA34b!F44 -> 0 | G43: =SA34b!G44 -> 0 | H43: =SA34b!H44 -> 0 | I43: =SA34b!I44 -> 0 | J43: =SA34b!J44 -> 0 | K43: =SA34b!K44 -> 0
A44: Rail Infrastructure | C44: =SA34b!C52 -> 0 | D44: =SA34b!D52 -> 0 | E44: =SA34b!E52 -> 0 | F44: =SA34b!F52 -> 0 | G44: =SA34b!G52 -> 0 | H44: =SA34b!H52 -> 0 | I44: =SA34b!I52 -> 0 | J44: =SA34b!J52 -> 0 | K44: =SA34b!K52 -> 0
A45: Coastal Infrastructure | C45: =SA34b!C62 -> 0 | D45: =SA34b!D62 -> 0 | E45: =SA34b!E62 -> 0 | F45: =SA34b!F62 -> 0 | G45: =SA34b!G62 -> 0 | H45: =SA34b!H62 -> 0 | I45: =SA34b!I62 -> 0 | J45: =SA34b!J62 -> 0 | K45: =SA34b!K62 -> 0
A46: Information and Communication Infrastructure | C46: =SA34b!C68 -> 0 | D46: =SA34b!D68 -> 0 | E46: =SA34b!E68 -> 0 | F46: =SA34b!F68 -> 0 | G46: =SA34b!G68 -> 0 | H46: =SA34b!H68 -> 0 | I46: =SA34b!I68 -> 0 | J46: =SA34b!J68 -> 0 | K46: =SA34b!K68 -> 0
A47: Infrastructure | C47: =SUM(C38:C46) -> 0 | D47: =SUM(D38:D46) -> 0 | E47: 0 | F47: 0 | G47: 0 | H47: 0 | I47: 0 | J47: 0 | K47: 0
A48: Community Facilities | C48: =SA34b!C75 -> 0 | D48: =SA34b!D75 -> 0 | E48: =SA34b!E75 -> 0 | F48: =SA34b!F75 -> 0 | G48: =SA34b!G75 -> 0 | H48: =SA34b!H75 -> 0 | I48: =SA34b!I75 -> 0 | J48: =SA34b!J75 -> 0 | K48: =SA34b!K75 -> 0
A49: Sport and Recreation Facilities | C49: =SA34b!C98 -> 0 | D49: =SA34b!D98 -> 0 | E49: =SA34b!E98 -> 0 | F49: =SA34b!F98 -> 0 | G49: =SA34b!G98 -> 0 | H49: =SA34b!H98 -> 0 | I49: =SA34b!I98 -> 0 | J49: =SA34b!J98 -> 0 | K49: =SA34b!K98 -> 0
A50: Community Assets | C50: =SUM(C48:C49) -> 0 | D50: =SUM(D48:D49) -> 0 | E50: 0 | F50: 0 | G50: 0 | H50: 0 | I50: 0 | J50: 0 | K50: 0
A51: Heritage Assets | C51: =SA34b!C103 -> 0 | D51: =SA34b!D103 -> 0 | E51: =SA34b!E103 -> 0 | F51: =SA34b!F103 -> 0 | G51: =SA34b!G103 -> 0 | H51: =SA34b!H103 -> 0 | I51: =SA34b!I103 -> 0 | J51: =SA34b!J103 -> 0 | K51: =SA34b!K103 -> 0
A52: Revenue Generating | C52: =SA34b!C111 -> 0 | D52: =SA34b!D111 -> 0 | E52: =SA34b!E111 -> 0 | F52: =SA34b!F111 -> 0 | G52: =SA34b!G111 -> 0 | H52: =SA34b!H111 -> 0 | I52: =SA34b!I111 -> 0 | J52: =SA34b!J111 -> 0 | K52: =SA34b!K111 -> 0
A53: Non-revenue Generating | C53: =SA34b!C114 -> 0 | D53: =SA34b!D114 -> 0 | E53: =SA34b!E114 -> 0 | F53: =SA34b!F114 -> 0 | G53: =SA34b!G114 -> 0 | H53: =SA34b!H114 -> 0 | I53: =SA34b!I114 -> 0 | J53: =SA34b!J114 -> 0 | K53: =SA34b!K114 -> 0
A54: Investment properties | C54: =SUM(C52:C53) -> 0 | D54: =SUM(D52:D53) -> 0 | E54: 0 | F54: 0 | G54: 0 | H54: 0 | I54: 0 | J54: 0 | K54: 0
A55: Operational Buildings | C55: =SA34b!C119 -> 0 | D55: =SA34b!D119 -> 0 | E55: =SA34b!E119 -> 0 | F55: =SA34b!F119 -> 0 | G55: =SA34b!G119 -> 0 | H55: =SA34b!H119 -> 0 | I55: =SA34b!I119 -> 0 | J55: =SA34b!J119 -> 0 | K55: =SA34b!K119 -> 0
A56: Housing | C56: =SA34b!C131 -> 0 | D56: =SA34b!D131 -> 0 | E56: =SA34b!E131 -> 0 | F56: =SA34b!F131 -> 0 | G56: =SA34b!G131 -> 0 | H56: =SA34b!H131 -> 0 | I56: =SA34b!I131 -> 0 | J56: =SA34b!J131 -> 0 | K56: =SA34b!K131 -> 0
A57: Other Assets | C57: =SUM(C55:C56) -> 0 | D57: =SUM(D55:D56) -> 0 | E57: 0 | F57: 0 | G57: 0 | H57: 0 | I57: 0 | J57: 0 | K57: 0
A58: Biological or Cultivated Assets | C58: =SA34b!C136 -> 0 | D58: =SA34b!D136 -> 0 | E58: =SA34b!E136 -> 0 | F58: =SA34b!F136 -> 0 | G58: =SA34b!G136 -> 0 | H58: =SA34b!H136 -> 0 | I58: =SA34b!I136 -> 0 | J58: =SA34b!J136 -> 0 | K58: =SA34b!K136 -> 0
A59: Servitudes | C59: =SA34b!C140 -> 0 | D59: =SA34b!D140 -> 0 | E59: =SA34b!E140 -> 0 | F59: =SA34b!F140 -> 0 | G59: =SA34b!G140 -> 0 | H59: =SA34b!H140 -> 0 | I59: =SA34b!I140 -> 0 | J59: =SA34b!J140 -> 0 | K59: =SA34b!K140 -> 0
A60: Licences and Rights | C60: =SA34b!C141 -> 0 | D60: =SA34b!D141 -> 0 | E60: =SA34b!E141 -> 0 | F60: =SA34b!F141 -> 0 | G60: =SA34b!G141 -> 0 | H60: =SA34b!H141 -> 0 | I60: =SA34b!I141 -> 0 | J60: =SA34b!J141 -> 0 | K60: =SA34b!K141 -> 0
A61: Intangible Assets | C61: =SUM(C59:C60) -> 0 | D61: =SUM(D59:D60) -> 0 | E61: 0 | F61: 0 | G61: 0 | H61: 0 | I61: 0 | J61: 0 | K61: 0
A62: Computer Equipment | C62: =SA34b!C149 -> 0 | D62: =SA34b!D149 -> 0 | E62: =SA34b!E149 -> 0 | F62: =SA34b!F149 -> 0 | G62: =SA34b!G149 -> 0 | H62: =SA34b!H149 -> 0 | I62: =SA34b!I149 -> 0 | J62: =SA34b!J149 -> 0 | K62: =SA34b!K149 -> 0
A63: Furniture and Office Equipment | C63: =SA34b!C152 -> 0 | D63: =SA34b!D152 -> 0 | E63: =SA34b!E152 -> 0 | F63: =SA34b!F152 -> 0 | G63: =SA34b!G152 -> 0 | H63: =SA34b!H152 -> 0 | I63: =SA34b!I152 -> 0 | J63: =SA34b!J152 -> 0 | K63: =SA34b!K152 -> 0
A64: Machinery and Equipment | C64: =SA34b!C155 -> 0 | D64: =SA34b!D155 -> 0 | E64: =SA34b!E155 -> 0 | F64: =SA34b!F155 -> 0 | G64: =SA34b!G155 -> 0 | H64: =SA34b!H155 -> 0 | I64: =SA34b!I155 -> 0 | J64: =SA34b!J155 -> 0 | K64: =SA34b!K155 -> 0
A65: Transport Assets | C65: =SA34b!C158 -> 0 | D65: =SA34b!D158 -> 0 | E65: =SA34b!E158 -> 0 | F65: =SA34b!F158 -> 0 | G65: =SA34b!G158 -> 0 | H65: =SA34b!H158 -> 0 | I65: =SA34b!I158 -> 0 | J65: =SA34b!J158 -> 0 | K65: =SA34b!K158 -> 0
A66: Land | C66: =SA34b!C161 -> 0 | D66: =SA34b!D161 -> 0 | E66: =SA34b!E161 -> 0 | F66: =SA34b!F161 -> 0 | G66: =SA34b!G161 -> 0 | H66: =SA34b!H161 -> 0 | I66: =SA34b!I161 -> 0 | J66: =SA34b!J161 -> 0 | K66: =SA34b!K161 -> 0
A67: Zoo's, Marine and Non-biological Animals | C67: =SA34b!C164 -> 0 | D67: =SA34b!D164 -> 0 | E67: =SA34b!E164 -> 0 | F67: =SA34b!F164 -> 0 | G67: =SA34b!G164 -> 0 | H67: =SA34b!H164 -> 0 | I67: =SA34b!I164 -> 0 | J67: =SA34b!J164 -> 0 | K67: =SA34b!K164 -> 0
A69: Total Upgrading of Existing Assets | B69: 6 | C69: =C79+C82+C83+C86+C89+C90+SUM(C93:C99) -> 0 | D69: =D79+D82+D83+D86+D89+D90+SUM(D93:D99) -> 0 | E69: 0 | F69: 19510546 | G69: 19510546 | H69: 0 | I69: 21745662.38 | J69: 17742899.48 | K69: 13281549.95
A70: Roads Infrastructure | C70: =SA34e!C7 -> 0 | D70: =SA34e!D7 -> 0 | E70: =SA34e!E7 -> 0 | F70: =SA34e!F7 -> 0 | G70: =SA34e!G7 -> 0 | H70: =SA34e!H7 -> 0 | I70: =SA34e!I7 -> 0 | J70: =SA34e!J7 -> 0 | K70: =SA34e!K7 -> 0
A71: Storm water Infrastructure | C71: =SA34e!C12 -> 0 | D71: =SA34e!D12 -> 0 | E71: =SA34e!E12 -> 0 | F71: =SA34e!F12 -> 0 | G71: =SA34e!G12 -> 0 | H71: =SA34e!H12 -> 0 | I71: =SA34e!I12 -> 0 | J71: =SA34e!J12 -> 0 | K71: =SA34e!K12 -> 0
A72: Electrical Infrastructure | C72: =SA34e!C16 -> 0 | D72: =SA34e!D16 -> 0 | E72: =SA34e!E16 -> 0 | F72: =SA34e!F16 -> 0 | G72: =SA34e!G16 -> 0 | H72: =SA34e!H16 -> 0 | I72: =SA34e!I16 -> 0 | J72: =SA34e!J16 -> 0 | K72: =SA34e!K16 -> 0
A73: Water Supply Infrastructure | C73: =SA34e!C26 -> 0 | D73: =SA34e!D26 -> 0 | E73: =SA34e!E26 -> 0 | F73: =SA34e!F26 -> 11133981 | G73: =SA34e!G26 -> 11133981 | H73: =SA34e!H26 -> 0 | I73: =SA34e!I26 -> 12409483.15 | J73: =SA34e!J26 -> 10125247.43 | K73: =SA34e!K26 -> 7579312.478
A74: Sanitation Infrastructure | C74: =SA34e!C37 -> 0 | D74: =SA34e!D37 -> 0 | E74: =SA34e!E37 -> 0 | F74: =SA34e!F37 -> 7699316 | G74: =SA34e!G37 -> 7699316 | H74: =SA34e!H37 -> 0 | I74: =SA34e!I37 -> 8581344.996 | J74: =SA34e!J37 -> 7001761.503 | K74: =SA34e!K37 -> 5241209.036
A75: Solid Waste Infrastructure | C75: =SA34e!C44 -> 0 | D75: =SA34e!D44 -> 0 | E75: =SA34e!E44 -> 0 | F75: =SA34e!F44 -> 0 | G75: =SA34e!G44 -> 0 | H75: =SA34e!H44 -> 0 | I75: =SA34e!I44 -> 0 | J75: =SA34e!J44 -> 0 | K75: =SA34e!K44 -> 0
A76: Rail Infrastructure | C76: =SA34e!C52 -> 0 | D76: =SA34e!D52 -> 0 | E76: =SA34e!E52 -> 0 | F76: =SA34e!F52 -> 0 | G76: =SA34e!G52 -> 0 | H76: =SA34e!H52 -> 0 | I76: =SA34e!I52 -> 0 | J76: =SA34e!J52 -> 0 | K76: =SA34e!K52 -> 0
A77: Coastal Infrastructure | C77: =SA34e!C62 -> 0 | D77: =SA34e!D62 -> 0 | E77: =SA34e!E62 -> 0 | F77: =SA34e!F62 -> 0 | G77: =SA34e!G62 -> 0 | H77: =SA34e!H62 -> 0 | I77: =SA34e!I62 -> 0 | J77: =SA34e!J62 -> 0 | K77: =SA34e!K62 -> 0
A78: Information and Communication Infrastructure | C78: =SA34e!C68 -> 0 | D78: =SA34e!D68 -> 0 | E78: =SA34e!E68 -> 0 | F78: =SA34e!F68 -> 0 | G78: =SA34e!G68 -> 0 | H78: =SA34e!H68 -> 0 | I78: =SA34e!I68 -> 0 | J78: =SA34e!J68 -> 0 | K78: =SA34e!K68 -> 0
A79: Infrastructure | C79: =SUM(C70:C78) -> 0 | D79: 0 | E79: 0 | F79: 18833297 | G79: 18833297 | H79: 0 | I79: 20990828.14 | J79: 17127008.93 | K79: 12820521.51
A80: Community Facilities | C80: =SA34e!C75 -> 0 | D80: =SA34e!D75 -> 0 | E80: =SA34e!E75 -> 0 | F80: =SA34e!F75 -> 0 | G80: =SA34e!G75 -> 0 | H80: =SA34e!H75 -> 0 | I80: =SA34e!I75 -> 0 | J80: =SA34e!J75 -> 0 | K80: =SA34e!K75 -> 0
A81: Sport and Recreation Facilities | C81: =SA34e!C98 -> 0 | D81: =SA34e!D98 -> 0 | E81: =SA34e!E98 -> 0 | F81: =SA34e!F98 -> 677249 | G81: =SA34e!G98 -> 677249 | H81: =SA34e!H98 -> 0 | I81: =SA34e!I98 -> 754834.2368 | J81: =SA34e!J98 -> 615890.5513 | K81: =SA34e!K98 -> 461028.4314
A82: Community Assets | C82: =SUM(C80:C81) -> 0 | D82: 0 | E82: 0 | F82: 677249 | G82: 677249 | H82: 0 | I82: 754834.2368 | J82: 615890.5513 | K82: 461028.4314
A83: Heritage Assets | C83: =SA34e!C103 -> 0 | D83: =SA34e!D103 -> 0 | E83: =SA34e!E103 -> 0 | F83: =SA34e!F103 -> 0 | G83: =SA34e!G103 -> 0 | H83: =SA34e!H103 -> 0 | I83: =SA34e!I103 -> 0 | J83: =SA34e!J103 -> 0 | K83: =SA34e!K103 -> 0
A84: Revenue Generating | C84: =SA34e!C111 -> 0 | D84: =SA34e!D111 -> 0 | E84: =SA34e!E111 -> 0 | F84: =SA34e!F111 -> 0 | G84: =SA34e!G111 -> 0 | H84: =SA34e!H111 -> 0 | I84: =SA34e!I111 -> 0 | J84: =SA34e!J111 -> 0 | K84: =SA34e!K111 -> 0
A85: Non-revenue Generating | C85: =SA34e!C114 -> 0 | D85: =SA34e!D114 -> 0 | E85: =SA34e!E114 -> 0 | F85: =SA34e!F114 -> 0 | G85: =SA34e!G114 -> 0 | H85: =SA34e!H114 -> 0 | I85: =SA34e!I114 -> 0 | J85: =SA34e!J114 -> 0 | K85: =SA34e!K114 -> 0
A86: Investment properties | C86: =SUM(C84:C85) -> 0 | D86: 0 | E86: 0 | F86: 0 | G86: 0 | H86: 0 | I86: 0 | J86: 0 | K86: 0
A87: Operational Buildings | C87: =SA34e!C119 -> 0 | D87: =SA34e!D119 -> 0 | E87: =SA34e!E119 -> 0 | F87: =SA34e!F119 -> 0 | G87: =SA34e!G119 -> 0 | H87: =SA34e!H119 -> 0 | I87: =SA34e!I119 -> 0 | J87: =SA34e!J119 -> 0 | K87: =SA34e!K119 -> 0
A88: Housing | C88: =SA34e!C131 -> 0 | D88: =SA34e!D131 -> 0 | E88: =SA34e!E131 -> 0 | F88: =SA34e!F131 -> 0 | G88: =SA34e!G131 -> 0 | H88: =SA34e!H131 -> 0 | I88: =SA34e!I131 -> 0 | J88: =SA34e!J131 -> 0 | K88: =SA34e!K131 -> 0
A89: Other Assets | C89: =SUM(C87:C88) -> 0 | D89: 0 | E89: 0 | F89: 0 | G89: 0 | H89: 0 | I89: 0 | J89: 0 | K89: 0
A90: Biological or Cultivated Assets | C90: =SA34e!C136 -> 0 | D90: =SA34e!D136 -> 0 | E90: =SA34e!E136 -> 0 | F90: =SA34e!F136 -> 0 | G90: =SA34e!G136 -> 0 | H90: =SA34e!H136 -> 0 | I90: =SA34e!I136 -> 0 | J90: =SA34e!J136 -> 0 | K90: =SA34e!K136 -> 0
A91: Servitudes | C91: =SA34e!C140 -> 0 | D91: =SA34e!D140 -> 0 | E91: =SA34e!E140 -> 0 | F91: =SA34e!F140 -> 0 | G91: =SA34e!G140 -> 0 | H91: =SA34e!H140 -> 0 | I91: =SA34e!I140 -> 0 | J91: =SA34e!J140 -> 0 | K91: =SA34e!K140 -> 0
A92: Licences and Rights | C92: =SA34e!C141 -> 0 | D92: =SA34e!D141 -> 0 | E92: =SA34e!E141 -> 0 | F92: =SA34e!F141 -> 0 | G92: =SA34e!G141 -> 0 | H92: =SA34e!H141 -> 0 | I92: =SA34e!I141 -> 0 | J92: =SA34e!J141 -> 0 | K92: =SA34e!K141 -> 0
A93: Intangible Assets | C93: =SUM(C91:C92) -> 0 | D93: 0 | E93: 0 | F93: 0 | G93: 0 | H93: 0 | I93: 0 | J93: 0 | K93: 0
A94: Computer Equipment | C94: =SA34e!C149 -> 0 | D94: =SA34e!D149 -> 0 | E94: =SA34e!E149 -> 0 | F94: =SA34e!F149 -> 0 | G94: =SA34e!G149 -> 0 | H94: =SA34e!H149 -> 0 | I94: =SA34e!I149 -> 0 | J94: =SA34e!J149 -> 0 | K94: =SA34e!K149 -> 0
A95: Furniture and Office Equipment | C95: =SA34e!C152 -> 0 | D95: =SA34e!D152 -> 0 | E95: =SA34e!E152 -> 0 | F95: =SA34e!F152 -> 0 | G95: =SA34e!G152 -> 0 | H95: =SA34e!H152 -> 0 | I95: =SA34e!I152 -> 0 | J95: =SA34e!J152 -> 0 | K95: =SA34e!K152 -> 0
A96: Machinery and Equipment | C96: =SA34e!C155 -> 0 | D96: =SA34e!D155 -> 0 | E96: =SA34e!E155 -> 0 | F96: =SA34e!F155 -> 0 | G96: =SA34e!G155 -> 0 | H96: =SA34e!H155 -> 0 | I96: =SA34e!I155 -> 0 | J96: =SA34e!J155 -> 0 | K96: =SA34e!K155 -> 0
A97: Transport Assets | C97: =SA34e!C158 -> 0 | D97: =SA34e!D158 -> 0 | E97: =SA34e!E158 -> 0 | F97: =SA34e!F158 -> 0 | G97: =SA34e!G158 -> 0 | H97: =SA34e!H158 -> 0 | I97: =SA34e!I158 -> 0 | J97: =SA34e!J158 -> 0 | K97: =SA34e!K158 -> 0
A98: Land | C98: =SA34e!C161 -> 0 | D98: =SA34e!D161 -> 0 | E98: =SA34e!E161 -> 0 | F98: =SA34e!F161 -> 0 | G98: =SA34e!G161 -> 0 | H98: =SA34e!H161 -> 0 | I98: =SA34e!I161 -> 0 | J98: =SA34e!J161 -> 0 | K98: =SA34e!K161 -> 0
A99: Zoo's, Marine and Non-biological Animals | C99: =SA34e!C164 -> 0 | D99: =SA34e!D164 -> 0 | E99: =SA34e!E164 -> 0 | F99: =SA34e!F164 -> 0 | G99: =SA34e!G164 -> 0 | H99: =SA34e!H164 -> 0 | I99: =SA34e!I164 -> 0 | J99: =SA34e!J164 -> 0 | K99: =SA34e!K164 -> 0
A101: Total Capital Expenditure | B101: 4 | C101: =+C5+C37+C69 -> 40032232 | D101: =+D5+D37+D69 -> 61044900 | E101: 43913449 | F101: 79302450 | G101: 80143450 | H101: 0 | I101: 92523000 | J101: 74928000 | K101: 58029000
A102: Roads Infrastructure | C102: =+C6+C38+C70 -> 10575827 | D102: =+D6+D38+D70 -> 2043954 | E102: 1543954 | F102: 8292135 | G102: 8292135 | H102: 0 | I102: 9242076.983 | J102: 7540871.373 | K102: 5644762.845
A103: Storm water Infrastructure | C103: =+C7+C39+C71 -> 0 | D103: 0 | E103: 0 | F103: 0 | G103: 0 | H103: 0 | I103: 0 | J103: 0 | K103: 0
A104: Electrical Infrastructure | C104: 0 | D104: 4152829 | E104: 0 | F104: 2211000 | G104: 2211000 | H104: 0 | I104: 5850000 | J104: 4321000 | K104: 5200000
A105: Water Supply Infrastructure | C105: 24788200 | D105: 40746694 | E105: 36715642 | F105: 60000000 | G105: 60000000 | H105: 0 | I105: 66873563.8 | J105: 54564027.53 | K105: 40844218.13
A106: Sanitation Infrastructure | C106: 1438146 | D106: 735081 | E106: 1235081 | F106: 7699316 | G106: 7699316 | H106: 0 | I106: 8581344.996 | J106: 7001761.503 | K106: 5241209.036
A107: Solid Waste Infrastructure | C107: 0 | D107: 0 | E107: 0 | F107: 0 | G107: 0 | H107: 0 | I107: 0 | J107: 0 | K107: 0
A108: Rail Infrastructure | C108: 0 | D108: 0 | E108: 0 | F108: 0 | G108: 0 | H108: 0 | I108: 0 | J108: 0 | K108: 0
A109: Coastal Infrastructure | C109: 0 | D109: 0 | E109: 0 | F109: 0 | G109: 0 | H109: 0 | I109: 0 | J109: 0 | K109: 0
A110: Information and Communication Infrastructure | C110: 0 | D110: 0 | E110: 0 | F110: 0 | G110: 0 | H110: 0 | I110: 0 | J110: 0 | K110: 0
A111: Infrastructure | C111: =SUM(C102:C110) -> 36802173 | D111: =SUM(D102:D110) -> 47678558 | E111: 39494677 | F111: 78202451 | G111: 78202451 | H111: 0 | I111: 90546985.78 | J111: 73427660.4 | K111: 56930190.01
A112: Community Facilities | C112: =+C16+C48+C80 -> 1324512 | D112: =+D16+D48+D80 -> 5306328 | E112: 3648900 | F112: 290404 | G112: 290404 | H112: 0 | I112: 323672.507 | J112: 264093.5308 | K112: 197688.7387
A113: Sport and Recreation Facilities | C113: =+C17+C49+C81 -> 808226 | D113: =+D17+D49+D81 -> 7441203 | E113: 0 | F113: 809595 | G113: 809595 | H113: 0 | I113: 902341.7147 | J113: 736246.0644 | K113: 551121.2463
A114: Community Assets | C114: =SUM(C112:C113) -> 2132738 | D114: =SUM(D112:D113) -> 12747531 | E114: 3648900 | F114: 1099999 | G114: 1099999 | H114: 0 | I114: 1226014.222 | J114: 1000339.595 | K114: 748809.985
A115: Heritage Assets | C115: =+C19+C51+C83 -> 0 | D115: =+D19+D51+D83 -> 0 | E115: 0 | F115: 0 | G115: 0 | H115: 0 | I115: 0 | J115: 0 | K115: 0
A116: Revenue Generating | C116: =+C20+C52+C84 -> 0 | D116: =+D20+D52+D84 -> 0 | E116: 0 | F116: 0 | G116: 0 | H116: 0 | I116: 0 | J116: 0 | K116: 0
A117: Non-revenue Generating | C117: =+C21+C53+C85 -> 0 | D117: =+D21+D53+D85 -> 0 | E117: 0 | F117: 0 | G117: 0 | H117: 0 | I117: 0 | J117: 0 | K117: 0
A118: Investment properties | C118: =SUM(C116:C117) -> 0 | D118: =SUM(D116:D117) -> 0 | E118: 0 | F118: 0 | G118: 0 | H118: 0 | I118: 0 | J118: 0 | K118: 0
A119: Operational Buildings | C119: =+C23+C55+C87 -> 0 | D119: =+D23+D55+D87 -> 0 | E119: 0 | F119: 0 | G119: 0 | H119: 0 | I119: 0 | J119: 0 | K119: 0
A120: Housing | C120: =+C24+C56+C88 -> 0 | D120: =+D24+D56+D88 -> 0 | E120: 0 | F120: 0 | G120: 0 | H120: 0 | I120: 0 | J120: 0 | K120: 0
A121: Other Assets | C121: =SUM(C119:C120) -> 0 | D121: 0 | E121: 0 | F121: 0 | G121: 0 | H121: 0 | I121: 0 | J121: 0 | K121: 0
A122: Biological or Cultivated Assets | C122: =+C26+C58+C90 -> 0 | D122: =+D26+D58+D90 -> 0 | E122: 0 | F122: 0 | G122: 0 | H122: 0 | I122: 0 | J122: 0 | K122: 0
A123: Servitudes | C123: =+C27+C59+C91 -> 0 | D123: =+D27+D59+D91 -> 0 | E123: 0 | F123: 0 | G123: 0 | H123: 0 | I123: 0 | J123: 0 | K123: 0
A124: Licences and Rights | C124: =+C28+C60+C92 -> 0 | D124: =+D28+D60+D92 -> 0 | E124: 0 | F124: 0 | G124: 0 | H124: 0 | I124: 0 | J124: 0 | K124: 0
A125: Intangible Assets | C125: =SUM(C123:C124) -> 0 | D125: =SUM(D123:D124) -> 0 | E125: 0 | F125: 0 | G125: 0 | H125: 0 | I125: 0 | J125: 0 | K125: 0
A126: Computer Equipment | C126: =+C30+C62+C94 -> 9088 | D126: =+D30+D62+D94 -> 0 | E126: 0 | F126: 0 | G126: 480000 | H126: 0 | I126: 300000 | J126: 250000 | K126: 100000
A127: Furniture and Office Equipment | C127: =+C31+C63+C95 -> 0 | D127: 0 | E127: 0 | F127: 0 | G127: 82500 | H127: 0 | I127: 150000 | J127: 0 | K127: 0
A128: Machinery and Equipment | C128: 1088233 | D128: 618811 | E128: 769872 | F128: 0 | G128: 278500 | H128: 0 | I128: 300000 | J128: 250000 | K128: 250000
A129: Transport Assets | C129: 0 | D129: 0 | E129: 0 | F129: 0 | G129: 0 | H129: 0 | I129: 0 | J129: 0 | K129: 0
A130: Land | C130: 0 | D130: 0 | E130: 0 | F130: 0 | G130: 0 | H130: 0 | I130: 0 | J130: 0 | K130: 0
A131: Zoo's, Marine and Non-biological Animals | C131: 0 | D131: 0 | E131: 0 | F131: 0 | G131: 0 | H131: 0 | I131: 0 | J131: 0 | K131: 0
A132: TOTAL CAPITAL EXPENDITURE - Asset class | C132: =+C5+C37+C69 -> 40032232 | D132: =+D5+D37+D69 -> 61044900 | E132: 43913449 | F132: 79302450 | G132: 80143450 | H132: 0 | I132: 92523000 | J132: 74928000 | K132: 58029000
A134: ASSET REGISTER SUMMARY - PPE (WDV) | B134: 5 | C134: =C144+C147+C148+C151+C154+C155+C158+C159+C160+C161+C162+C163+C164 -> 586417710 | D134: =D144+D147+D148+D151+D154+D155+D158+D159+D160+D161+D162+D163+D164 -> 623926405.8 | E134: 644547314 | F134: 650970577.4 | G134: 675970577.4 | H134: 0 | I134: 673916529.7 | J134: 704754206.2 | K134: 737133766.5
A135: Roads Infrastructure | C135: 87772994 | D135: 93761403 | E135: 97188067.2 | F135: ='[3]A9-Asset'!I135 -> 89198574.73 | G135: ='[4]B9-Asset'!K137 -> 89198574.73 | I135: 102047470.6 | J135: 107149844.1 | K135: 112507336.3
A136: Storm water Infrastructure
A137: Electrical Infrastructure | C137: 42691092 | D137: 45603738.8 | E137: 47270402.08 | F137: ='[3]A9-Asset'!I137 -> 53519144.84 | G137: ='[4]B9-Asset'!K139 -> 78519144.84 | I137: 49633922.18 | J137: 52115618.29 | K137: 54721399.21
A138: Water Supply Infrastructure | C138: 228291017 | D138: 243866423.2 | E138: 252778920.8 | F138: ='[3]A9-Asset'!I138 -> 267595724.2 | G138: ='[4]B9-Asset'!K140 -> 267595724.2 | I138: 265417866.9 | J138: 278688760.2 | K138: 292623198.2
A139: Sanitation Infrastructure | C139: 98726993 | D139: 105462750.9 | E139: 109317059.8 | F139: ='[3]A9-Asset'!I139 -> 95145146.38 | G139: ='[4]B9-Asset'!K141 -> 95145146.38 | I139: 114782912.7 | J139: 120522058.4 | K139: 126548161.3
A140: Solid Waste Infrastructure
A141: Rail Infrastructure
A142: Coastal Infrastructure
A143: Information and Communication Infrastructure
A144: Infrastructure | C144: =SUM(C135:C143) -> 457482096 | D144: =SUM(D135:D143) -> 488694315.9 | E144: 506554449.9 | F144: 505458590.1 | G144: 530458590.1 | H144: 0 | I144: 531882172.4 | J144: 558476281 | K144: 586400095
A147: Community Assets | C147: 38339515 | D147: 40955270.66 | E147: 42452048.07 | F147: ='[3]A9-Asset'!I147 -> 59465716.49 | G147: ='[4]B9-Asset'!K149 -> 59465716.49 | I147: 44574650.47 | J147: 46803382.99 | K147: 49143552.14
A148: Heritage Assets
A151: Investment properties | C151: 55869000 | D151: 57163000 | E151: 57163000 | F151: ='[3]A9-Asset'!I151 -> 55869000 | G151: =F151 -> 55869000 | I151: 57163000 | J151: 57163000 | K151: 57163000
A154: Other Assets | C154: 7472705 | D154: 7982538.534 | E154: 8274273.471 | I154: 8687987.144 | J154: 9122386.501 | K154: 9578505.827
A155: Biological or Cultivated Assets | C155: 379905 | D155: 423250 | E155: 346330 | F155: ='[3]A9-Asset'!I155 -> 444412.5 | G155: ='[4]B9-Asset'!K157 -> 444412.5 | I155: =E155*1.05 -> 363646.5 | J155: =I155*1.05 -> 381828.825 | K155: =J155*1.05 -> 400920.2663
A158: Intangible Assets
A159: Computer Equipment
A160: Furniture and Office Equipment | C160: 2327124 | D160: 2485894.6 | E160: 2576745.687 | I160: 2705582.971 | J160: 2840862.12 | K160: 2982905.226
A161: Machinery and Equipment | C161: 1112436 | D161: 1188333.172 | E161: 1231762.753 | I161: 1293350.891 | J161: 1358018.435 | K161: 1425919.357
A162: Transport Assets | C162: 3904995 | D162: 4171417.587 | E162: 4323868.871 | F162: ='[3]A9-Asset'!I162 -> 29732858.24 | G162: ='[4]B9-Asset'!K164 -> 29732858.24 | I162: 4540062.315 | J162: 4767065.43 | K162: 5005418.702
A163: Land | C163: 19529934 | D163: 20862385.27 | E163: 21624835.29 | I163: 22706077.05 | J163: 23841380.91 | K163: 25033449.95
A164: Zoo's, Marine and Non-biological Animals
A165: TOTAL ASSET REGISTER SUMMARY - PPE (WDV) | B165: 5 | C165: =C144+C147+C148+C151+C154+C155+C158+C159+C160+C161+C162+C163+C164 -> 586417710 | D165: =D144+D147+D148+D151+D154+D155+D158+D159+D160+D161+D162+D163+D164 -> 623926405.8 | E165: 644547314 | F165: 650970577.4 | G165: 675970577.4 | H165: 0 | I165: 673916529.7 | J165: 704754206.2 | K165: 737133766.5
A167: EXPENDITURE OTHER ITEMS | C167: =SUM(C168:C169) -> 34233434 | D167: =SUM(D168:D169) -> 29382902 | E167: 24557780 | F167: 36127688.94 | G167: 33270192.94 | H167: 0 | I167: 31209126 | J167: 32769583 | K167: 34050941
A168: Depreciation | B168: 7 | C168: =SA34d!C167 -> 30242035 | D168: =SA34d!D167 -> 23153878 | E168: =SA34d!E167 -> 23058736 | F168: =SA34d!F167 -> 28548900.04 | G168: =SA34d!G167 -> 25691404.04 | H168: =SA34d!H167 -> 0 | I168: =SA34d!I167 -> 24406830 | J168: =SA34d!J167 -> 25627172 | K168: =SA34d!K167 -> 26908530
A169: Repairs and Maintenance by Asset Class | B169: 3 | C169: =C179+C182+C183+C186+C189+C190+SUM(C193:C199) -> 3991399 | D169: =D179+D182+D183+D186+D189+D190+SUM(D193:D199) -> 6229024 | E169: 1499044 | F169: 7578788.9 | G169: 7578788.9 | H169: 0 | I169: 6802296 | J169: 7142411 | K169: 7142411
A170: Roads Infrastructure | C170: =SA34c!C7 -> 0 | D170: =SA34c!D7 -> 0 | E170: =SA34c!E7 -> 0 | F170: =SA34c!F7 -> 318000 | G170: =SA34c!G7 -> 318000 | H170: =SA34c!H7 -> 0 | I170: =SA34c!I7 -> 0 | J170: =SA34c!J7 -> 0 | K170: =SA34c!K7 -> 0
A171: Storm water Infrastructure | C171: =SA34c!C12 -> 0 | D171: =SA34c!D12 -> 0 | E171: =SA34c!E12 -> 0 | F171: =SA34c!F12 -> 0 | G171: =SA34c!G12 -> 0 | H171: =SA34c!H12 -> 0 | I171: =SA34c!I12 -> 0 | J171: =SA34c!J12 -> 0 | K171: =SA34c!K12 -> 0
A172: Electrical Infrastructure | C172: =SA34c!C16 -> 0 | D172: =SA34c!D16 -> 0 | E172: =SA34c!E16 -> 0 | F172: =SA34c!F16 -> 0 | G172: =SA34c!G16 -> 0 | H172: =SA34c!H16 -> 0 | I172: =SA34c!I16 -> 0 | J172: =SA34c!J16 -> 0 | K172: =SA34c!K16 -> 0
A173: Water Supply Infrastructure | C173: =SA34c!C26 -> 0 | D173: =SA34c!D26 -> 0 | E173: =SA34c!E26 -> 0 | F173: =SA34c!F26 -> 1440380.27 | G173: =SA34c!G26 -> 1440380.27 | H173: =SA34c!H26 -> 0 | I173: =SA34c!I26 -> 0 | J173: =SA34c!J26 -> 0 | K173: =SA34c!K26 -> 0
A174: Sanitation Infrastructure | C174: =SA34c!C37 -> 0 | D174: =SA34c!D37 -> 0 | E174: =SA34c!E37 -> 0 | F174: =SA34c!F37 -> 529236.15 | G174: =SA34c!G37 -> 529236.15 | H174: =SA34c!H37 -> 0 | I174: =SA34c!I37 -> 0 | J174: =SA34c!J37 -> 0 | K174: =SA34c!K37 -> 0
A175: Solid Waste Infrastructure | C175: =SA34c!C44 -> 0 | D175: =SA34c!D44 -> 0 | E175: =SA34c!E44 -> 0 | F175: =SA34c!F44 -> 0 | G175: =SA34c!G44 -> 0 | H175: =SA34c!H44 -> 0 | I175: =SA34c!I44 -> 0 | J175: =SA34c!J44 -> 0 | K175: =SA34c!K44 -> 0
A176: Rail Infrastructure | C176: =SA34c!C52 -> 0 | D176: =SA34c!D52 -> 0 | E176: =SA34c!E52 -> 0 | F176: =SA34c!F52 -> 0 | G176: =SA34c!G52 -> 0 | H176: =SA34c!H52 -> 0 | I176: =SA34c!I52 -> 0 | J176: =SA34c!J52 -> 0 | K176: =SA34c!K52 -> 0
A177: Coastal Infrastructure | C177: =SA34c!C62 -> 0 | D177: =SA34c!D62 -> 0 | E177: =SA34c!E62 -> 0 | F177: =SA34c!F62 -> 0 | G177: =SA34c!G62 -> 0 | H177: =SA34c!H62 -> 0 | I177: =SA34c!I62 -> 0 | J177: =SA34c!J62 -> 0 | K177: =SA34c!K62 -> 0
A178: Information and Communication Infrastructure | C178: =SA34c!C68 -> 0 | D178: =SA34c!D68 -> 0 | E178: =SA34c!E68 -> 0 | F178: =SA34c!F68 -> 0 | G178: =SA34c!G68 -> 0 | H178: =SA34c!H68 -> 0 | I178: =SA34c!I68 -> 0 | J178: =SA34c!J68 -> 0 | K178: =SA34c!K68 -> 0
A179: Infrastructure | C179: =SUM(C170:C178) -> 0 | D179: =SUM(D170:D178) -> 0 | E179: 0 | F179: 2287616.42 | G179: 2287616.42 | H179: 0 | I179: 0 | J179: 0 | K179: 0
A180: Community Facilities | C180: =SA34c!C75 -> 0 | D180: =SA34c!D75 -> 0 | E180: =SA34c!E75 -> 0 | F180: =SA34c!F75 -> 54571.03 | G180: =SA34c!G75 -> 54571.03 | H180: =SA34c!H75 -> 0 | I180: =SA34c!I75 -> 0 | J180: =SA34c!J75 -> 0 | K180: =SA34c!K75 -> 0
A181: Sport and Recreation Facilities | C181: =SA34c!C98 -> 0 | D181: =SA34c!D98 -> 0 | E181: =SA34c!E98 -> 0 | F181: =SA34c!F98 -> 0 | G181: =SA34c!G98 -> 0 | H181: =SA34c!H98 -> 0 | I181: =SA34c!I98 -> 0 | J181: =SA34c!J98 -> 0 | K181: =SA34c!K98 -> 0
A182: Community Assets | C182: =SUM(C180:C181) -> 0 | D182: 0 | E182: 0 | F182: 54571.03 | G182: 54571.03 | H182: 0 | I182: 0 | J182: 0 | K182: 0
A183: Heritage Assets | C183: =SA34c!C103 -> 0 | D183: =SA34c!D103 -> 0 | E183: =SA34c!E103 -> 0 | F183: =SA34c!F103 -> 0 | G183: =SA34c!G103 -> 0 | H183: =SA34c!H103 -> 0 | I183: =SA34c!I103 -> 0 | J183: =SA34c!J103 -> 0 | K183: =SA34c!K103 -> 0
A184: Revenue Generating | C184: =SA34c!C111 -> 0 | D184: =SA34c!D111 -> 0 | E184: =SA34c!E111 -> 0 | F184: =SA34c!F111 -> 0 | G184: =SA34c!G111 -> 0 | H184: =SA34c!H111 -> 0 | I184: =SA34c!I111 -> 0 | J184: =SA34c!J111 -> 0 | K184: =SA34c!K111 -> 0
A185: Non-revenue Generating | C185: =SA34c!C114 -> 0 | D185: =SA34c!D114 -> 0 | E185: =SA34c!E114 -> 0 | F185: =SA34c!F114 -> 0 | G185: =SA34c!G114 -> 0 | H185: =SA34c!H114 -> 0 | I185: =SA34c!I114 -> 0 | J185: =SA34c!J114 -> 0 | K185: =SA34c!K114 -> 0
A186: Investment properties | C186: =SUM(C184:C185) -> 0 | D186: 0 | E186: 0 | F186: 0 | G186: 0 | H186: 0 | I186: 0 | J186: 0 | K186: 0
A187: Operational Buildings | C187: =SA34c!C119 -> 0 | D187: =SA34c!D119 -> 0 | E187: =SA34c!E119 -> 0 | F187: =SA34c!F119 -> 408601.98 | G187: =SA34c!G119 -> 408601.98 | H187: =SA34c!H119 -> 0 | I187: =SA34c!I119 -> 0 | J187: =SA34c!J119 -> 0 | K187: =SA34c!K119 -> 0
A188: Housing | C188: =SA34c!C131 -> 0 | D188: =SA34c!D131 -> 0 | E188: =SA34c!E131 -> 0 | F188: =SA34c!F131 -> 0 | G188: =SA34c!G131 -> 0 | H188: =SA34c!H131 -> 0 | I188: =SA34c!I131 -> 0 | J188: =SA34c!J131 -> 0 | K188: =SA34c!K131 -> 0
A189: Other Assets | C189: =SUM(C187:C188) -> 0 | D189: 0 | E189: 0 | F189: 408601.98 | G189: 408601.98 | H189: 0 | I189: 0 | J189: 0 | K189: 0
A190: Biological or Cultivated Assets | C190: =SA34c!C136 -> 0 | D190: =SA34c!D136 -> 0 | E190: =SA34c!E136 -> 0 | F190: =SA34c!F136 -> 0 | G190: =SA34c!G136 -> 0 | H190: =SA34c!H136 -> 0 | I190: =SA34c!I136 -> 0 | J190: =SA34c!J136 -> 0 | K190: =SA34c!K136 -> 0
A191: Servitudes | C191: =SA34c!C140 -> 0 | D191: =SA34c!D140 -> 0 | E191: =SA34c!E140 -> 0 | F191: =SA34c!F140 -> 0 | G191: =SA34c!G140 -> 0 | H191: =SA34c!H140 -> 0 | I191: =SA34c!I140 -> 0 | J191: =SA34c!J140 -> 0 | K191: =SA34c!K140 -> 0
A192: Licences and Rights | C192: =SA34c!C141 -> 0 | D192: =SA34c!D141 -> 0 | E192: =SA34c!E141 -> 0 | F192: =SA34c!F141 -> 0 | G192: =SA34c!G141 -> 0 | H192: =SA34c!H141 -> 0 | I192: =SA34c!I141 -> 0 | J192: =SA34c!J141 -> 0 | K192: =SA34c!K141 -> 0
A193: Intangible Assets | C193: =SUM(C191:C192) -> 0 | D193: 0 | E193: 0 | F193: 0 | G193: 0 | H193: 0 | I193: 0 | J193: 0 | K193: 0
A194: Computer Equipment | C194: =SA34c!C149 -> 0 | D194: =SA34c!D149 -> 0 | E194: =SA34c!E149 -> 0 | F194: =SA34c!F149 -> 0 | G194: =SA34c!G149 -> 0 | H194: =SA34c!H149 -> 0 | I194: =SA34c!I149 -> 0 | J194: =SA34c!J149 -> 0 | K194: =SA34c!K149 -> 0
A195: Furniture and Office Equipment | C195: =SA34c!C152 -> 0 | D195: =SA34c!D152 -> 0 | E195: =SA34c!E152 -> 0 | F195: =SA34c!F152 -> 0 | G195: =SA34c!G152 -> 0 | H195: =SA34c!H152 -> 0 | I195: =SA34c!I152 -> 0 | J195: =SA34c!J152 -> 0 | K195: =SA34c!K152 -> 0
A196: Machinery and Equipment | C196: =SA34c!C155 -> 3991399 | D196: =SA34c!D155 -> 6229024 | E196: =SA34c!E155 -> 1499044 | F196: =SA34c!F155 -> 4236231.68 | G196: =SA34c!G155 -> 4236231.68 | H196: =SA34c!H155 -> 0 | I196: =SA34c!I155 -> 6802296 | J196: =SA34c!J155 -> 7142411 | K196: =SA34c!K155 -> 7142411
A197: Transport Assets | C197: =SA34c!C158 -> 0 | D197: =SA34c!D158 -> 0 | E197: =SA34c!E158 -> 0 | F197: =SA34c!F158 -> 591767.79 | G197: =SA34c!G158 -> 591767.79 | H197: =SA34c!H158 -> 0 | I197: =SA34c!I158 -> 0 | J197: =SA34c!J158 -> 0 | K197: =SA34c!K158 -> 0
A198: Land | C198: =SA34c!C161 -> 0 | D198: =SA34c!D161 -> 0 | E198: =SA34c!E161 -> 0 | F198: =SA34c!F161 -> 0 | G198: =SA34c!G161 -> 0 | H198: =SA34c!H161 -> 0 | I198: =SA34c!I161 -> 0 | J198: =SA34c!J161 -> 0 | K198: =SA34c!K161 -> 0
A199: Zoo's, Marine and Non-biological Animals | C199: =SA34c!C164 -> 0 | D199: =SA34c!D164 -> 0 | E199: =SA34c!E164 -> 0 | F199: =SA34c!F164 -> 0 | G199: =SA34c!G164 -> 0 | H199: =SA34c!H164 -> 0 | I199: =SA34c!I164 -> 0 | J199: =SA34c!J164 -> 0 | K199: =SA34c!K164 -> 0
A201: TOTAL EXPENDITURE OTHER ITEMS | C201: =SUM(C168:C169) -> 34233434 | D201: 29382902 | E201: 24557780 | F201: 36127688.94 | G201: 33270192.94 | H201: 0 | I201: 31209126 | J201: 32769583 | K201: 34050941
A203: Renewal and upgrading of Existing Assets as % of total capex | C203: =IF(ISERROR((C37+C69)/C132),0,((C37+C69)/C132)) -> 0 | D203: =IF(ISERROR((D37+D69)/D132),0,((D37+D69)/D132)) -> 0 | E203: 0 | F203: 0.2460270269 | G203: 0.2434452972 | H203: 0 | I203: 0.2350298021 | J203: 0.2367993205 | K203: 0.2288778015
A204: Renewal and upgrading of Existing Assets as % of deprecn | C204: =IF(ISERROR((C37+C69)/C168),0,((C37+C69)/C168)) -> 0 | D204: =IF(ISERROR((D37+D69)/D168),0,((D37+D69)/D168)) -> 0 | E204: 0 | F204: 0.6834079762 | G204: 0.7594192193 | H204: 0 | I204: 0.8909662737 | J204: 0.6923471495 | K204: 0.4935814013
A205: R&M as a % of PPE | C205: =IF(ISERROR(ROUND(C169/'A6-FinPos'!C19,3)),0,(ROUND(C169/'A6-FinPos'!C19,3))) -> 0.008 | D205: =IF(ISERROR(ROUND(D169/'A6-FinPos'!D19,3)),0,(ROUND(D169/'A6-FinPos'!D19,3))) -> 0.011 | E205: =IF(ISERROR(ROUND(E169/'A6-FinPos'!E19,3)),0,(ROUND(E169/'A6-FinPos'!E19,3))) -> 0.003 | F205: =IF(ISERROR(ROUND(F169/'A6-FinPos'!F19,3)),0,(ROUND(F169/'A6-FinPos'!F19,3))) -> 0.013 | G205: =IF(ISERROR(ROUND(G169/'A6-FinPos'!G19,3)),0,(ROUND(G169/'A6-FinPos'!G19,3))) -> 0.012 | H205: =IF(ISERROR(ROUND(H169/'A6-FinPos'!H19,3)),0,(ROUND(H169/'A6-FinPos'!H19,3))) -> 0 | I205: =IF(ISERROR(ROUND(I169/'A6-FinPos'!J19,3)),0,(ROUND(I169/'A6-FinPos'!J19,3))) -> 0.011 | J205: =IF(ISERROR(ROUND(J169/'A6-FinPos'!K19,3)),0,(ROUND(J169/'A6-FinPos'!K19,3))) -> 0.011 | K205: =IF(ISERROR(ROUND(K169/'A6-FinPos'!L19,3)),0,(ROUND(K169/'A6-FinPos'!L19,3))) -> 0.011
A206: Renewal and upgrading and R&M as a % of PPE | C206: =IF(ISERROR(ROUND((C37+C69+C169)/C165,2)),0,(ROUND((C37+C69+C169)/C165,2))) -> 0.01 | D206: =IF(ISERROR(ROUND((D37+D69+D169)/D165,2)),0,(ROUND((D37+D69+D169)/D165,2))) -> 0.01 | E206: 0 | F206: 0.04 | G206: 0.04 | H206: 0 | I206: 0.04 | J206: 0.04 | K206: 0.03
A208: =head27a -> References
A209: 1. Detail of new assets provided in Table SA34a
A210: 2. Detail of renewal of existing assets provided in Table SA34b
A211: 3. Detail of Repairs and Maintenance by Asset Class provided in Table SA34c
A212: 4. Must reconcile to total capital expenditure on Budgeted Capital Expenditure
A213: 5. Must reconcile to 'Budgeted Financial Position' (written down value)
A214: 6. Detail of upgrading of existing assets provided in Table SA34e
A215: 7. Detail of depreciation provided in Table SA34d
A217: Check balance to A6 | C217: =C165-'A6-FinPos'!D17-'A6-FinPos'!D19-'A6-FinPos'!D20-'A6-FinPos'!D21-'A6-FinPos'!D22-C148 -> -37508696 | D217: =D165-'A6-FinPos'!E17-'A6-FinPos'!E19-'A6-FinPos'!E20-'A6-FinPos'!E21-'A6-FinPos'!E22-D148 -> -20620908.25 | E217: =E165-'A6-FinPos'!F17-'A6-FinPos'!F19-'A6-FinPos'!F20-'A6-FinPos'!F21-'A6-FinPos'!F22-E148 -> -6423263.35 | F217: =F165-'A6-FinPos'!G17-'A6-FinPos'!G19-'A6-FinPos'!G20-'A6-FinPos'!G21-'A6-FinPos'!G22-F148 -> -24999999.97 | G217: =G165-'A6-FinPos'!H17-'A6-FinPos'!H19-'A6-FinPos'!H20-'A6-FinPos'!H21-'A6-FinPos'!H22-G148 -> 675970577.4 | H217: =H165-'A6-FinPos'!I17-'A6-FinPos'!I19-'A6-FinPos'!I20-'A6-FinPos'!I21-'A6-FinPos'!I22-H148 -> 0 | I217: =I165-'A6-FinPos'!J17-'A6-FinPos'!J19-'A6-FinPos'!J20-'A6-FinPos'!J21-'A6-FinPos'!J22-I148 -> -1.192092896e-07 | J217: =J165-'A6-FinPos'!K17-'A6-FinPos'!K19-'A6-FinPos'!K20-'A6-FinPos'!K21-'A6-FinPos'!K22-J148 -> 4.767207429e-08 | K217: =K165-'A6-FinPos'!L17-'A6-FinPos'!L19-'A6-FinPos'!L20-'A6-FinPos'!L21-'A6-FinPos'!L22-K148 -> -1.049484126e-07

Sheet A10-SerDel
A1: =muni&" - "&Approve10 -> FS163 Mohokare - Table A10 Basic service delivery measurement
A2: =desc -> Description | B2: =head27 -> Ref | C2: =head1b -> 2016/17 | D2: =head1A -> 2017/18 | E2: =Head1 -> 2018/19 | F2: =Head2 -> Current Year 2019/20 | I2: =Head3 -> 2020/21 Medium Term Revenue & Expenditure Framework
C3: =Head5A -> Outcome | D3: =Head5A -> Outcome | E3: =Head5A -> Outcome | F3: =Head6 -> Original Budget | G3: =Head7 -> Adjusted Budget | H3: =Head8 -> Full Year Forecast | I3: =Head9 -> Budget Year 2020/21 | J3: =Head10 -> Budget Year +1 2021/22 | K3: =Head11 -> Budget Year +2 2022/23
A4: Household service targets | B4: 1
A5: Water:
A6: Piped water inside dwelling | C6: ='SA9'!E67 -> 10387 | D6: ='SA9'!F67 -> 10387 | E6: ='SA9'!G67 -> 10793 | F6: ='SA9'!H67 -> 10793 | G6: ='SA9'!I67 -> 10793 | H6: ='SA9'!J67 -> 0 | I6: ='SA9'!K67 -> 10793 | J6: ='SA9'!L67 -> 10793 | K6: ='SA9'!M67 -> 10793
A7: Piped water inside yard (but not in dwelling) | C7: ='SA9'!E68 -> 0 | D7: ='SA9'!F68 -> 0 | E7: ='SA9'!G68 -> 0 | F7: ='SA9'!H68 -> 0 | G7: ='SA9'!I68 -> 0 | H7: ='SA9'!J68 -> 0 | I7: ='SA9'!K68 -> 0 | J7: ='SA9'!L68 -> 0 | K7: ='SA9'!M68 -> 0
A8: Using public tap (at least min.service level) | B8: 2 | C8: ='SA9'!E69 -> 0 | D8: ='SA9'!F69 -> 0 | E8: ='SA9'!G69 -> 0 | F8: ='SA9'!H69 -> 0 | G8: ='SA9'!I69 -> 0 | H8: ='SA9'!J69 -> 0 | I8: ='SA9'!K69 -> 0 | J8: ='SA9'!L69 -> 0 | K8: ='SA9'!M69 -> 0
A9: Other water supply (at least min.service level) | B9: 4 | C9: ='SA9'!E70 -> 406 | D9: ='SA9'!F70 -> 406 | E9: ='SA9'!G70 -> 0 | F9: ='SA9'!H70 -> 0 | G9: ='SA9'!I70 -> 0 | H9: ='SA9'!J70 -> 0 | I9: ='SA9'!K70 -> 0 | J9: ='SA9'!L70 -> 0 | K9: ='SA9'!M70 -> 0
A10: Minimum Service Level and Above sub-total | C10: =SUM(C6:C9) -> 10793 | D10: =SUM(D6:D9) -> 10793 | E10: 10793 | F10: 10793 | G10: 10793 | H10: 0 | I10: 10793 | J10: 10793 | K10: 10793
A11: Using public tap (< min.service level) | B11: 3 | C11: ='SA9'!E72 -> 0 | D11: ='SA9'!F72 -> 0 | E11: ='SA9'!G72 -> 0 | F11: ='SA9'!H72 -> 0 | G11: ='SA9'!I72 -> 0 | H11: ='SA9'!J72 -> 0 | I11: ='SA9'!K72 -> 0 | J11: ='SA9'!L72 -> 0 | K11: ='SA9'!M72 -> 0
A12: Other water supply (< min.service level) | B12: =B9 -> 4 | C12: ='SA9'!E73 -> 0 | D12: ='SA9'!F73 -> 0 | E12: ='SA9'!G73 -> 0 | F12: ='SA9'!H73 -> 0 | G12: ='SA9'!I73 -> 0 | H12: ='SA9'!J73 -> 0 | I12: ='SA9'!K73 -> 0 | J12: ='SA9'!L73 -> 0 | K12: ='SA9'!M73 -> 0
A13: No water supply | C13: ='SA9'!E74 -> 0 | D13: ='SA9'!F74 -> 0 | E13: ='SA9'!G74 -> 0 | F13: ='SA9'!H74 -> 0 | G13: ='SA9'!I74 -> 0 | H13: ='SA9'!J74 -> 0 | I13: ='SA9'!K74 -> 0 | J13: ='SA9'!L74 -> 0 | K13: ='SA9'!M74 -> 0
A14: Below Minimum Service Level sub-total | C14: =SUM(C11:C13) -> 0 | D14: =SUM(D11:D13) -> 0 | E14: 0 | F14: 0 | G14: 0 | H14: 0 | I14: 0 | J14: 0 | K14: 0
A15: Total number of households | B15: 5 | C15: =C10+C14 -> 10793 | D15: =D10+D14 -> 10793 | E15: 10793 | F15: 10793 | G15: 10793 | H15: 0 | I15: 10793 | J15: 10793 | K15: 10793
A16: Sanitation/sewerage:
A17: Flush toilet (connected to sewerage) | C17: ='SA9'!E78 -> 10793 | D17: ='SA9'!F78 -> 10793 | E17: ='SA9'!G78 -> 10793 | F17: ='SA9'!H78 -> 10793 | G17: ='SA9'!I78 -> 10793 | H17: ='SA9'!J78 -> 0 | I17: ='SA9'!K78 -> 10793 | J17: ='SA9'!L78 -> 10793 | K17: ='SA9'!M78 -> 10793
A18: Flush toilet (with septic tank) | C18: ='SA9'!E79 -> 0 | D18: ='SA9'!F79 -> 0 | E18: ='SA9'!G79 -> 0 | F18: ='SA9'!H79 -> 0 | G18: ='SA9'!I79 -> 0 | H18: ='SA9'!J79 -> 0 | I18: ='SA9'!K79 -> 0 | J18: ='SA9'!L79 -> 0 | K18: ='SA9'!M79 -> 0
A19: Chemical toilet | C19: ='SA9'!E80 -> 0 | D19: ='SA9'!F80 -> 0 | E19: ='SA9'!G80 -> 0 | F19: ='SA9'!H80 -> 0 | G19: ='SA9'!I80 -> 0 | H19: ='SA9'!J80 -> 0 | I19: ='SA9'!K80 -> 0 | J19: ='SA9'!L80 -> 0 | K19: ='SA9'!M80 -> 0
A20: Pit toilet (ventilated) | C20: ='SA9'!E81 -> 0 | D20: ='SA9'!F81 -> 0 | E20: ='SA9'!G81 -> 0 | F20: ='SA9'!H81 -> 0 | G20: ='SA9'!I81 -> 0 | H20: ='SA9'!J81 -> 0 | I20: ='SA9'!K81 -> 0 | J20: ='SA9'!L81 -> 0 | K20: ='SA9'!M81 -> 0
A21: Other toilet provisions (> min.service level) | C21: ='SA9'!E82 -> 0 | D21: ='SA9'!F82 -> 0 | E21: ='SA9'!G82 -> 0 | F21: ='SA9'!H82 -> 0 | G21: ='SA9'!I82 -> 0 | H21: ='SA9'!J82 -> 0 | I21: ='SA9'!K82 -> 0 | J21: ='SA9'!L82 -> 0 | K21: ='SA9'!M82 -> 0
A22: =$A$10 -> Minimum Service Level and Above sub-total | C22: =SUM(C17:C21) -> 10793 | D22: =SUM(D17:D21) -> 10793 | E22: 10793 | F22: 10793 | G22: 10793 | H22: 0 | I22: 10793 | J22: 10793 | K22: 10793
A23: Bucket toilet | C23: ='SA9'!E84 -> 0 | D23: ='SA9'!F84 -> 0 | E23: ='SA9'!G84 -> 0 | F23: ='SA9'!H84 -> 0 | G23: ='SA9'!I84 -> 0 | H23: ='SA9'!J84 -> 0 | I23: ='SA9'!K84 -> 0 | J23: ='SA9'!L84 -> 0 | K23: ='SA9'!M84 -> 0
A24: Other toilet provisions (< min.service level) | C24: ='SA9'!E85 -> 0 | D24: ='SA9'!F85 -> 0 | E24: ='SA9'!G85 -> 0 | F24: ='SA9'!H85 -> 0 | G24: ='SA9'!I85 -> 0 | H24: ='SA9'!J85 -> 0 | I24: ='SA9'!K85 -> 0 | J24: ='SA9'!L85 -> 0 | K24: ='SA9'!M85 -> 0
A25: No toilet provisions | C25: ='SA9'!E86 -> 0 | D25: ='SA9'!F86 -> 0 | E25: ='SA9'!G86 -> 0 | F25: ='SA9'!H86 -> 0 | G25: ='SA9'!I86 -> 0 | H25: ='SA9'!J86 -> 0 | I25: ='SA9'!K86 -> 0 | J25: ='SA9'!L86 -> 0 | K25: ='SA9'!M86 -> 0
A26: =$A$14 -> Below Minimum Service Level sub-total | C26: =SUM(C23:C25) -> 0 | D26: =SUM(D23:D25) -> 0 | E26: 0 | F26: 0 | G26: 0 | H26: 0 | I26: 0 | J26: 0 | K26: 0
A27: =$A$15 -> Total number of households | B27: =$B$15 -> 5 | C27: =C22+C26 -> 10793 | D27: =D22+D26 -> 10793 | E27: 10793 | F27: 10793 | G27: 10793 | H27: 0 | I27: 10793 | J27: 10793 | K27: 10793
A28: Energy:
A29: Electricity (at least min.service level) | C29: ='SA9'!E90 -> 0 | D29: ='SA9'!F90 -> 0 | E29: ='SA9'!G90 -> 0 | F29: ='SA9'!H90 -> 0 | G29: ='SA9'!I90 -> 0 | H29: ='SA9'!J90 -> 0 | I29: ='SA9'!K90 -> 0 | J29: ='SA9'!L90 -> 0 | K29: ='SA9'!M90 -> 0
A30: Electricity - prepaid (min.service level) | C30: ='SA9'!E91 -> 10719 | D30: ='SA9'!F91 -> 10719 | E30: ='SA9'!G91 -> 10793 | F30: ='SA9'!H91 -> 10793 | G30: ='SA9'!I91 -> 10793 | H30: ='SA9'!J91 -> 0 | I30: ='SA9'!K91 -> 10793 | J30: ='SA9'!L91 -> 10793 | K30: ='SA9'!M91 -> 10793
A31: =$A$10 -> Minimum Service Level and Above sub-total | C31: =SUM(C29:C30) -> 10719 | D31: =SUM(D29:D30) -> 10719 | E31: 10793 | F31: 10793 | G31: 10793 | H31: 0 | I31: 10793 | J31: 10793 | K31: 10793
A32: Electricity (< min.service level) | C32: ='SA9'!E93 -> 0 | D32: ='SA9'!F93 -> 0 | E32: ='SA9'!G93 -> 0 | F32: ='SA9'!H93 -> 0 | G32: ='SA9'!I93 -> 0 | H32: ='SA9'!J93 -> 0 | I32: ='SA9'!K93 -> 0 | J32: ='SA9'!L93 -> 0 | K32: ='SA9'!M93 -> 0
A33: Electricity - prepaid (< min. service level) | C33: ='SA9'!E94 -> 0 | D33: ='SA9'!F94 -> 0 | E33: ='SA9'!G94 -> 0 | F33: ='SA9'!H94 -> 0 | G33: ='SA9'!I94 -> 0 | H33: ='SA9'!J94 -> 0 | I33: ='SA9'!K94 -> 0 | J33: ='SA9'!L94 -> 0 | K33: ='SA9'!M94 -> 0
A34: Other energy sources | C34: ='SA9'!E95 -> 74 | D34: ='SA9'!F95 -> 0 | E34: ='SA9'!G95 -> 0 | F34: ='SA9'!H95 -> 0 | G34: ='SA9'!I95 -> 0 | H34: ='SA9'!J95 -> 0 | I34: ='SA9'!K95 -> 0 | J34: ='SA9'!L95 -> 0 | K34: ='SA9'!M95 -> 0
A35: =$A$14 -> Below Minimum Service Level sub-total | C35: =SUM(C32:C34) -> 74 | D35: =SUM(D32:D34) -> 0 | E35: 0 | F35: 0 | G35: 0 | H35: 0 | I35: 0 | J35: 0 | K35: 0
A36: =$A$15 -> Total number of households | B36: =$B$15 -> 5 | C36: =C31+C35 -> 10793 | D36: =D31+D35 -> 10719 | E36: 10793 | F36: 10793 | G36: 10793 | H36: 0 | I36: 10793 | J36: 10793 | K36: 10793
A37: Refuse:
A38: Removed at least once a week | C38: ='SA9'!E99 -> 10793 | D38: ='SA9'!F99 -> 10793 | E38: ='SA9'!G99 -> 10793 | F38: ='SA9'!H99 -> 10793 | G38: ='SA9'!I99 -> 10793 | H38: ='SA9'!J99 -> 0 | I38: ='SA9'!K99 -> 10793 | J38: ='SA9'!L99 -> 10793 | K38: ='SA9'!M99 -> 10793
A39: =$A$10 -> Minimum Service Level and Above sub-total | C39: =SUM(C38) -> 10793 | D39: =SUM(D38) -> 10793 | E39: 10793 | F39: 10793 | G39: 10793 | H39: 0 | I39: 10793 | J39: 10793 | K39: 10793
A40: Removed less frequently than once a week | C40: ='SA9'!E101 -> 0 | D40: ='SA9'!F101 -> 0 | E40: ='SA9'!G101 -> 0 | F40: ='SA9'!H101 -> 0 | G40: ='SA9'!I101 -> 0 | H40: ='SA9'!J101 -> 0 | I40: ='SA9'!K101 -> 0 | J40: ='SA9'!L101 -> 0 | K40: ='SA9'!M101 -> 0
A41: Using communal refuse dump | C41: ='SA9'!E102 -> 0 | D41: ='SA9'!F102 -> 0 | E41: ='SA9'!G102 -> 0 | F41: ='SA9'!H102 -> 0 | G41: ='SA9'!I102 -> 0 | H41: ='SA9'!J102 -> 0 | I41: ='SA9'!K102 -> 0 | J41: ='SA9'!L102 -> 0 | K41: ='SA9'!M102 -> 0
A42: Using own refuse dump | C42: ='SA9'!E103 -> 0 | D42: ='SA9'!F103 -> 0 | E42: ='SA9'!G103 -> 0 | F42: ='SA9'!H103 -> 0 | G42: ='SA9'!I103 -> 0 | H42: ='SA9'!J103 -> 0 | I42: ='SA9'!K103 -> 0 | J42: ='SA9'!L103 -> 0 | K42: ='SA9'!M103 -> 0
A43: Other rubbish disposal | C43: ='SA9'!E104 -> 0 | D43: ='SA9'!F104 -> 0 | E43: ='SA9'!G104 -> 0 | F43: ='SA9'!H104 -> 0 | G43: ='SA9'!I104 -> 0 | H43: ='SA9'!J104 -> 0 | I43: ='SA9'!K104 -> 0 | J43: ='SA9'!L104 -> 0 | K43: ='SA9'!M104 -> 0
A44: No rubbish disposal | C44: ='SA9'!E105 -> 0 | D44: ='SA9'!F105 -> 0 | E44: ='SA9'!G105 -> 0 | F44: ='SA9'!H105 -> 0 | G44: ='SA9'!I105 -> 0 | H44: ='SA9'!J105 -> 0 | I44: ='SA9'!K105 -> 0 | J44: ='SA9'!L105 -> 0 | K44: ='SA9'!M105 -> 0
A45: =$A$14 -> Below Minimum Service Level sub-total | C45: =SUM(C40:C44) -> 0 | D45: 0 | E45: 0 | F45: 0 | G45: 0 | H45: 0 | I45: 0 | J45: 0 | K45: 0
A46: =$A$15 -> Total number of households | B46: =$B$15 -> 5 | C46: =C39+C45 -> 10793 | D46: =D39+D45 -> 10793 | E46: 10793 | F46: 10793 | G46: 10793 | H46: 0 | I46: 10793 | J46: 10793 | K46: 10793
A48: Households receiving Free Basic Service | B48: 7
A49: Water (6 kilolitres per household per month) | C49: ='SA9'!E263 -> 0 | D49: ='SA9'!F263 -> 0 | E49: ='SA9'!G263 -> 0 | F49: ='SA9'!H263 -> 1500 | G49: ='SA9'!I263 -> 1500 | H49: ='SA9'!J263 -> 0 | I49: ='SA9'!K263 -> 1500 | J49: ='SA9'!L263 -> 1500 | K49: ='SA9'!M263 -> 1500
A50: Sanitation (free minimum level service) | C50: ='SA9'!E275 -> 0 | D50: ='SA9'!F275 -> 0 | E50: ='SA9'!G275 -> 0 | F50: ='SA9'!H275 -> 1500 | G50: ='SA9'!I275 -> 1500 | H50: ='SA9'!J275 -> 0 | I50: ='SA9'!K275 -> 1500 | J50: ='SA9'!L275 -> 1500 | K50: ='SA9'!M275 -> 1500
A51: Electricity/other energy (50kwh per household per month) | C51: ='SA9'!E251 -> 0 | D51: ='SA9'!F251 -> 0 | E51: ='SA9'!G251 -> 0 | F51: ='SA9'!H251 -> 1500 | G51: ='SA9'!I251 -> 1500 | H51: ='SA9'!J251 -> 0 | I51: ='SA9'!K251 -> 1500 | J51: ='SA9'!L251 -> 1500 | K51: ='SA9'!M251 -> 1500
A52: Refuse (removed at least once a week) | C52: ='SA9'!E287 -> 0 | D52: ='SA9'!F287 -> 0 | E52: ='SA9'!G287 -> 0 | F52: ='SA9'!H287 -> 1500 | G52: ='SA9'!I287 -> 1500 | H52: ='SA9'!J287 -> 0 | I52: ='SA9'!K287 -> 1500 | J52: ='SA9'!L287 -> 1500 | K52: ='SA9'!M287 -> 1500
A54: Cost of Free Basic Services provided - Formal Settlements (R'000) | B54: 8
A55: Water (6 kilolitres per indigent household per month) | C55: ='SA1'!C20 -> 0 | D55: ='SA1'!D20 -> 0 | E55: ='SA1'!E20 -> 0 | F55: ='SA1'!F20 -> 128474.1885 | G55: ='SA1'!G20 -> 128474.1885 | H55: ='SA1'!H20 -> 0 | I55: ='SA1'!J20 -> 1500000 | J55: ='SA1'!K20 -> 1575000 | K55: ='SA1'!L20 -> 1653750
A56: Sanitation (free sanitation service to indigent households) | C56: ='SA1'!C26 -> 0 | D56: ='SA1'!D26 -> 0 | E56: ='SA1'!E26 -> 0 | F56: ='SA1'!F26 -> 127790.985 | G56: ='SA1'!G26 -> 127790.985 | H56: ='SA1'!H26 -> 0 | I56: ='SA1'!J26 -> 1050000 | J56: ='SA1'!K26 -> 1102500 | K56: ='SA1'!L26 -> 1157625
A57: Electricity/other energy (50kwh per indigent household per month) | C57: ='SA1'!C14 -> 0 | D57: ='SA1'!D14 -> 0 | E57: ='SA1'!E14 -> 0 | F57: ='SA1'!F14 -> 6496085.052 | G57: ='SA1'!G14 -> 6496085.052 | H57: ='SA1'!H14 -> 0 | I57: ='SA1'!J14 -> 3500000 | J57: ='SA1'!K14 -> 3675000 | K57: ='SA1'!L14 -> 3858750
A58: Refuse (removed once a week for indigent households) | C58: ='SA1'!C33 -> 0 | D58: ='SA1'!D33 -> 0 | E58: ='SA1'!E33 -> 0 | F58: ='SA1'!F33 -> 79639.9065 | G58: ='SA1'!G33 -> 79639.9065 | H58: ='SA1'!H33 -> 0 | I58: ='SA1'!J33 -> 1050000 | J58: ='SA1'!K33 -> 1102500 | K58: ='SA1'!L33 -> 1157625
A59: Cost of Free Basic Services provided - Informal Formal Settlements (R'000) | C59: ='SA9'!E260+'SA9'!E272+'SA9'!E284+'SA9'!E296 -> 0 | D59: ='SA9'!F260+'SA9'!F272+'SA9'!F284+'SA9'!F296 -> 0 | E59: ='SA9'!G260+'SA9'!G272+'SA9'!G284+'SA9'!G296 -> 0 | F59: ='SA9'!H260+'SA9'!H272+'SA9'!H284+'SA9'!H296 -> 0 | G59: ='SA9'!I260+'SA9'!I272+'SA9'!I284+'SA9'!I296 -> 0 | H59: ='SA9'!J260+'SA9'!J272+'SA9'!J284+'SA9'!J296 -> 0 | I59: ='SA9'!K260+'SA9'!K272+'SA9'!K284+'SA9'!K296 -> 0 | J59: ='SA9'!L260+'SA9'!L272+'SA9'!L284+'SA9'!L296 -> 0 | K59: ='SA9'!M260+'SA9'!M272+'SA9'!M284+'SA9'!M296 -> 0
A60: Total cost of FBS provided | C60: =SUM(C55:C59) -> 0 | D60: 0 | E60: 0 | F60: 6831990.132 | G60: 6831990.132 | H60: 0 | I60: 7100000 | J60: 7455000 | K60: 7827750
A62: Highest level of free service provided per household
A63: Property rates (R value threshold)
A64: Water (kilolitres per household per month)
A65: Sanitation (kilolitres per household per month)
A66: Sanitation (Rand per household per month)
A67: Electricity (kwh per household per month)
A68: Refuse (average litres per week)
A69: Revenue cost of subsidised services provided (R'000) | B69: 9
A70: Property rates (tariff adjustment) ( impermissable values per section 17 of MPRA)
A71: Property rates exemptions, reductions and rebates and impermissable values in excess of section 17 of MPRA) | C71: ='SA1'!C8 -> 888296 | D71: ='SA1'!D8 -> 0 | E71: ='SA1'!E8 -> 0 | F71: ='SA1'!F8 -> 3307007.451 | G71: ='SA1'!G8 -> 3307007 | H71: ='SA1'!H8 -> 0 | I71: ='SA1'!J8 -> 1250000 | J71: ='SA1'!K8 -> 1312500 | K71: ='SA1'!L8 -> 1378125
A72: Water (in excess of 6 kilolitres per indigent household per month) | C72: ='SA1'!C19 -> 0 | D72: ='SA1'!D19 -> 0 | E72: ='SA1'!E19 -> 0 | F72: ='SA1'!F19 -> 0 | G72: ='SA1'!G19 -> 0 | H72: ='SA1'!H19 -> 0 | I72: ='SA1'!J19 -> 0 | J72: ='SA1'!K19 -> 0 | K72: ='SA1'!L19 -> 0
A73: Sanitation (in excess of free sanitation service to indigent households) | C73: ='SA1'!C25 -> 0 | D73: ='SA1'!D25 -> 0 | E73: ='SA1'!E25 -> 0 | F73: ='SA1'!F25 -> 0 | G73: ='SA1'!G25 -> 0 | H73: ='SA1'!H25 -> 0 | I73: ='SA1'!J25 -> 0 | J73: ='SA1'!K25 -> 0 | K73: ='SA1'!L25 -> 0
A74: Electricity/other energy (in excess of 50 kwh per indigent household per month) | C74: ='SA1'!C13 -> 0 | D74: ='SA1'!D13 -> 0 | E74: ='SA1'!E13 -> 0 | F74: ='SA1'!F13 -> 0 | G74: ='SA1'!G13 -> 0 | H74: ='SA1'!H13 -> 0 | I74: ='SA1'!J13 -> 0 | J74: ='SA1'!K13 -> 0 | K74: ='SA1'!L13 -> 0
A75: Refuse (in excess of one removal a week for indigent households) | C75: ='SA1'!C32 -> 0 | D75: ='SA1'!D32 -> 0 | E75: ='SA1'!E32 -> 0 | F75: ='SA1'!F32 -> 0 | G75: ='SA1'!G32 -> 0 | H75: ='SA1'!H32 -> 0 | I75: ='SA1'!J32 -> 0 | J75: ='SA1'!K32 -> 0 | K75: ='SA1'!L32 -> 0
A76: Municipal Housing - rental rebates
A77: Housing - top structure subsidies | B77: 6
A78: Other
A79: Total revenue cost of subsidised services provided | C79: =SUM(C70:C78) -> 888296 | D79: =SUM(D70:D78) -> 0 | E79: 0 | F79: 3307007.451 | G79: 3307007 | H79: 0 | I79: 1250000 | J79: =SUM(J70:J78) -> 1312500 | K79: =SUM(K70:K78) -> 1378125
A80: =head27a -> References
A81: 1. Include services provided by another entity; e.g. Eskom
A82: 2. Stand distance <= 200m from dwelling
A83: 3. Stand distance > 200m from dwelling
A84: 4. Borehole, spring, rain-water tank etc.
A85: 5. Must agree to total number of households in municipal area (informal settlements receiving services must be included)
A86: 6. Include value of subsidy provided by municipality above provincial subsidy level
A87: 7. Show number of households receiving at least these levels of services completely free (informal settlements must be included)
A88: 8. Must reflect the cost to the municipality of providing the Free Basic Service
A89: 9. Reflect the cost to the municipality in terms of 'revenue foregone' of providing free services (note this will not equal 'Revenue Foregone' on SA1)

Sheet SA1
A1: =muni&" - "&TableA1 -> FS163 Mohokare - Supporting Table SA1 Supportinging detail to 'Budgeted Financial Performance'
A2: =desc -> Description | B2: =head27 -> Ref | C2: =head1b -> 2016/17 | D2: =head1A -> 2017/18 | E2: =Head1 -> 2018/19 | F2: =Head2 -> Current Year 2019/20 | J2: =Head3 -> 2020/21 Medium Term Revenue & Expenditure Framework
C3: =Head5 -> Audited Outcome | D3: =Head5 -> Audited Outcome | E3: =Head5 -> Audited Outcome | F3: =Head6 -> Original Budget | G3: =Head7 -> Adjusted Budget | H3: =Head8 -> Full Year Forecast | I3: =Head5b -> Pre-audit outcome | J3: =Head9 -> Budget Year 2020/21 | K3: =Head10 -> Budget Year +1 2021/22 | L3: =Head11 -> Budget Year +2 2022/23
A4: R thousand
A5: REVENUE ITEMS:
A6: ='A4-FinPerf RE'!A5 -> Property rates | B6: 6
A7: Total Property Rates | C7: 11283757 | D7: 7694858 | E7: 8204283 | F7: =[3]SA1!J7 -> 11463581.97 | G7: =[5]SB1!K8 -> 11463582 | J7: 9131367 | K7: 9587935 | L7: 10067332
A8: less Revenue Foregone (exemptions, reductions and rebates and impermissable values in excess of section 17 of MPRA) | C8: 888296 | F8: =[3]SA1!J8 -> 3307007.451 | G8: =[5]SB1!K9 -> 3307007 | J8: 1250000 | K8: 1312500 | L8: 1378125
A9: Net Property Rates | C9: =C7-C8 -> 10395461 | D9: =D7-D8 -> 7694858 | E9: 8204283 | F9: 8156574.522 | G9: 8156575 | H9: 0 | I9: 0 | J9: 7881367 | K9: 8275435 | L9: 8689207
A11: ='A4-FinPerf RE'!A6 -> Service charges - electricity revenue | B11: 6
A12: ="Total "&A11 -> Total Service charges - electricity revenue | C12: 25457554 | D12: 25972337 | E12: 27649420 | F12: =[3]SA1!J12 -> 40128214.05 | G12: =[5]SB1!K13 -> 40128214 | J12: 32847511 | K12: 35475312 | L12: 38313337
A13: less Revenue Foregone (in excess of 50 kwh per indigent household per month)
A14: less Cost of Free Basis Services (50 kwh per indigent household per month) | C14: ='SA9'!E250 -> 0 | D14: ='SA9'!F250 -> 0 | E14: ='SA9'!G250 -> 0 | F14: ='SA9'!H250 -> 6496085.052 | G14: ='SA9'!I250 -> 6496085.052 | H14: ='SA9'!J250 -> 0 | J14: ='SA9'!K250 -> 3500000 | K14: ='SA9'!L250 -> 3675000 | L14: ='SA9'!M250 -> 3858750
A15: ="Net "& A11 -> Net Service charges - electricity revenue | C15: =C12-C13-C14 -> 25457554 | D15: =D12-D13-D14 -> 25972337 | E15: 27649420 | F15: 33632129 | G15: 33632128.95 | H15: 0 | I15: 0 | J15: 29347511 | K15: 31800312 | L15: 34454587
A17: ='A4-FinPerf RE'!A7 -> Service charges - water revenue | B17: 6
A18: ="Total "&A17 -> Total Service charges - water revenue | C18: 23025541 | D18: 23195749 | E18: 29325970 | F18: =[3]SA1!J18 -> 31800000 | G18: =[5]SB1!K19 -> 31800000 | J18: 32328271 | K18: 33944685 | L18: 35641919
A19: less Revenue Foregone (in excess of 6 kilolitres per indigent household per month)
A20: less Cost of Free Basis Services (6 kilolitres per indigent household per month) | C20: ='SA9'!E262 -> 0 | D20: ='SA9'!F262 -> 0 | E20: ='SA9'!G262 -> 0 | F20: ='SA9'!H262 -> 128474.1885 | G20: ='SA9'!I262 -> 128474.1885 | H20: ='SA9'!J262 -> 0 | J20: ='SA9'!K262 -> 1500000 | K20: ='SA9'!L262 -> 1575000 | L20: ='SA9'!M262 -> 1653750
A21: ="Net "& A17 -> Net Service charges - water revenue | C21: =C18-C19-C20 -> 23025541 | D21: =D18-D19-D20 -> 23195749 | E21: 29325970 | F21: 31671525.81 | G21: 31671525.81 | H21: 0 | I21: 0 | J21: 30828271 | K21: 32369685 | L21: 33988169
A23: ='A4-FinPerf RE'!A8 -> Service charges - sanitation revenue
A24: ="Total "&A23 -> Total Service charges - sanitation revenue | C24: 4929204 | D24: 9586422 | E24: 9479793 | F24: =[3]SA1!J24 -> 10289260 | G24: =[5]SB1!K25 -> 10289260 | J24: 10451472 | K24: 10974045 | L24: 11522748
A25: less Revenue Foregone (in excess of free sanitation service to indigent households)
A26: less Cost of Free Basis Services (free sanitation service to indigent households) | C26: ='SA9'!E274 -> 0 | D26: ='SA9'!F274 -> 0 | E26: ='SA9'!G274 -> 0 | F26: ='SA9'!H274 -> 127790.985 | G26: ='SA9'!I274 -> 127790.985 | H26: ='SA9'!J274 -> 0 | J26: ='SA9'!K274 -> 1050000 | K26: ='SA9'!L274 -> 1102500 | L26: ='SA9'!M274 -> 1157625
A27: ="Net "& A23 -> Net Service charges - sanitation revenue | C27: =C24-C25-C26 -> 4929204 | D27: =D24-D25-D26 -> 9586422 | E27: 9479793 | F27: 10161469.02 | G27: 10161469.02 | H27: 0 | I27: 0 | J27: 9401472 | K27: 9871545 | L27: 10365123
A29: ='A4-FinPerf RE'!A9 -> Service charges - refuse revenue | B29: 6
A30: Total refuse removal revenue | C30: 6894772 | D30: 5955379 | E30: 5838340 | F30: =[3]SA1!J30 -> 6392300 | G30: =[5]SB1!K31 -> 6392300 | J30: 6436770 | K30: 6758608 | L30: 7096539
A31: Total landfill revenue
A32: less Revenue Foregone (in excess of one removal a week to indigent households)
A33: less Cost of Free Basis Services (removed once a week to indigent households) | C33: ='SA9'!E286 -> 0 | D33: ='SA9'!F286 -> 0 | E33: ='SA9'!G286 -> 0 | F33: ='SA9'!H286 -> 79639.9065 | G33: ='SA9'!I286 -> 79639.9065 | H33: ='SA9'!J286 -> 0 | J33: ='SA9'!K286 -> 1050000 | K33: ='SA9'!L286 -> 1102500 | L33: ='SA9'!M286 -> 1157625
A34: ="Net "& A29 -> Net Service charges - refuse revenue | C34: =SUM(C30:C31)-C32-C33 -> 6894772 | D34: =SUM(D30:D31)-D32-D33 -> 5955379 | E34: 5838340 | F34: 6312660.094 | G34: 6312660.094 | H34: 0 | I34: 0 | J34: 5386770 | K34: 5656108 | L34: 5938914
A36: Other Revenue by source
A37: Fuel Levy | C37: 0
A38: Other Revenue | C38: 6305295 | D38: 7003164 | E38: 3815450 | F38: =[3]SA1!J49 -> 18083388.08 | G38: =[5]SB1!K50 -> 18083389 | J38: 15615000 | K38: 13615000 | L38: 11315000
A49: Total 'Other' Revenue | B49: 1 | C49: =SUM(C37:C38) -> 6305295 | D49: =SUM(D37:D38) -> 7003164 | E49: =SUM(E37:E38) -> 3815450 | F49: 18083388.08 | G49: 18083389 | H49: 0 | I49: 0 | J49: 15615000 | K49: 13615000 | L49: 11315000
A51: EXPENDITURE ITEMS:
A52: ='A4-FinPerf RE'!A24 -> Employee related costs
A53: Basic Salaries and Wages | B53: 2 | C53: 38444447 | D53: 41008835 | E53: 44360468 | F53: =[3]SA1!J53 -> 47731617.92 | G53: =[5]SB1!K54 -> 50499003.2 | J53: 53860868.88 | K53: 57227173.27 | L53: 60803871.6
A54: Pension and UIF Contributions | C54: 7183450 | D54: 7434035 | E54: 7772584 | F54: =[3]SA1!J54 -> 8471454.584 | G54: =[5]SB1!K55 -> 8284239.22 | J54: 8835745.146 | K54: 9387979.231 | L54: 9974727.933
A55: Medical Aid Contributions | C55: 3397207 | D55: 3455951 | E55: 4218812 | F55: =[3]SA1!J55 -> 4257731.632 | G55: =[5]SB1!K56 -> 4421213.22 | J55: 4715546.257 | K55: 5010267.905 | L55: 5323409.65
A56: Overtime | C56: 2731687 | D56: 3993630 | E56: 5087964 | F56: =[3]SA1!J56 -> 4550941.067 | G56: =[5]SB1!K57 -> 3690631.59 | J56: 3936327.681 | K56: 4182348.167 | L56: 4443744.927
A57: Performance Bonus | C57: 411965 | J57: 0 | K57: 0 | L57: 0
A58: Motor Vehicle Allowance | C58: 4331912 | D58: 4804467 | E58: 5593633 | F58: =[3]SA1!J58 -> 5474930.37 | G58: =[5]SB1!K59 -> 4478191.32 | J58: 4776317.555 | K58: 5074837.41 | L58: 5392014.748
A59: Cellphone Allowance | F59: =[3]SA1!J59 -> 177744.6729 | G59: =[5]SB1!K60 -> 79697.62 | J59: 85003.32262 | K59: 90316.03041 | L59: 95960.78231
A60: Housing Allowances | C60: 697058 | D60: 747162 | E60: 806689 | F60: =[3]SA1!J60 -> 1050384.429 | G60: =[5]SB1!K61 -> 816313.59 | J60: 870657.9625 | K60: 925074.0865 | L60: 982891.2169
A61: Other benefits and allowances | C61: 3851212 | D61: 5176926 | E61: 4104116 | F61: =[3]SA1!J61 -> 5899366.023 | G61: =[5]SB1!K62 -> 6049141.04 | J61: 6451849.972 | K61: 6855090.605 | L61: 7283533.768
A62: Payments in lieu of leave | C62: 649877 | D62: 771776 | E62: 1000799 | F62: =[3]SA1!J62 -> 409049.6545 | G62: =[5]SB1!K63 -> 405876.82 | J62: 432897.2217 | K62: 459953.2987 | L62: 488700.3799
A63: Long service awards
A64: Post-retirement benefit obligations | B64: 4
A65: sub-total | B65: 5 | C65: =SUM(C53:C64) -> 61698815 | D65: =SUM(D53:D64) -> 67392782 | E65: 72945065 | F65: 78023220.36 | G65: 78724307.62 | H65: 0 | I65: 0 | J65: 83965214 | K65: 89213040 | L65: 94788855
A66: Less: Employees costs capitalised to PPE
A67: ="Total "&A52 -> Total Employee related costs | B67: 1 | C67: =C65-C66 -> 61698815 | D67: =D65-D66 -> 67392782 | E67: 72945065 | F67: 78023220.36 | G67: 78724307.62 | H67: 0 | I67: 0 | J67: 83965214 | K67: 89213040 | L67: 94788855
A78: ='A4-FinPerf RE'!A27 -> Depreciation & asset impairment
A79: Depreciation of Property, Plant & Equipment | C79: 27110628 | D79: 22865258 | E79: 23058736 | F79: =[3]SA1!J79 -> 25691403.89 | G79: =[5]SB1!$K$80 -> 25691403.89 | J79: 24406830 | K79: 25627172 | L79: 26908530
A80: Lease amortisation
A81: Capital asset impairment | C81: 3131407 | D81: 288620
A83: ="Total "&LEFT(A78,35) -> Total Depreciation & asset impairment | B83: 1 | C83: =SUM(C79:C81) -> 30242035 | D83: =SUM(D79:D81) -> 23153878 | E83: 23058736 | F83: 25691403.89 | G83: 25691403.89 | H83: 0 | I83: 0 | J83: 24406830 | K83: 25627172 | L83: 26908530
A85: ='A4-FinPerf RE'!A29 -> Bulk purchases
A86: Electricity Bulk Purchases | C86: 25111920 | D86: 24245674 | E86: 24869501 | F86: =[3]SA1!J86 -> 28294246.1 | G86: =[5]SB1!$K$87 -> 28294248 | J86: 28470610 | K86: 30748259 | L86: 33208120
A87: Water Bulk Purchases
A88: Total bulk purchases | B88: 1 | C88: =SUM(C86:C87) -> 25111920 | D88: =SUM(D86:D87) -> 24245674 | E88: 24869501 | F88: 28294246.1 | G88: 28294248 | H88: 0 | I88: 0 | J88: 28470610 | K88: 30748259 | L88: 33208120
A90: Transfers and grants
A91: Cash transfers and grants | C91: ='SA21'!C32 -> 2700 | D91: ='SA21'!D32 -> 0 | E91: ='SA21'!E32 -> 0 | F91: ='SA21'!F32 -> 0 | G91: ='SA21'!G32 -> 0 | H91: ='SA21'!H32 -> 0 | I91: ='SA21'!I32 -> 0 | J91: ='SA21'!J32 -> 0 | K91: ='SA21'!K32 -> 0 | L91: ='SA21'!L32 -> 0
A92: Non-cash transfers and grants | C92: ='SA21'!C63 -> 0 | D92: ='SA21'!D63 -> 0 | E92: ='SA21'!E63 -> 0 | F92: ='SA21'!F63 -> 0 | G92: ='SA21'!G63 -> 0 | H92: ='SA21'!H63 -> 0 | I92: ='SA21'!I63 -> 0 | J92: ='SA21'!J63 -> 0 | K92: ='SA21'!K63 -> 0 | L92: ='SA21'!L63 -> 0
A93: Total transfers and grants | B93: 1 | C93: =SUM(C91:C92) -> 2700 | D93: =SUM(D91:D92) -> 0 | E93: 0 | F93: 0 | G93: 0 | H93: 0 | I93: 0 | J93: 0 | K93: 0 | L93: 0
A95: ='A4-FinPerf RE'!A31 -> Contracted services
A96: Outsourced Services
A97: Consultants and Professional Services | C97: 5312107 | D97: 1706641 | E97: 3463547 | F97: 8313260 | G97: 10365360 | J97: 12083940 | K97: 10271349 | L97: 8730647
A98: Contractors | D98: 4506467 | E98: 7064539
A127: Total contracted services | C127: =SUM(C96:C98) -> 5312107 | D127: =SUM(D96:D98) -> 6213108 | E127: 10528086 | F127: 8313260 | G127: 10365360 | H127: 0 | I127: 0 | J127: 12083940 | K127: 10271349 | L127: 8730647
A129: Other Expenditure By Type
A130: Collection costs
A131: Contributions to 'other' provisions
A133: Audit fees | C133: 4737436 | D133: 5367103 | E133: 7479547 | F133: 6258042.098 | G133: 6205548 | J133: 5400000 | K133: 5670000 | L133: 5953500
A136: Other Expenditure | C136: 20746105 | D136: 25067649 | E136: 25699486 | F136: 22017790.03 | G136: 19212248.84 | J136: 15206114 | K136: 15751420 | L136: 16334741
A157: Total 'Other' Expenditure | B157: 1 | C157: =+C130+C131+C133+C136 -> 25483541 | D157: =+D130+D131+D133+D136 -> 30434752 | E157: 33179033 | F157: 28275832.13 | G157: 25417796.84 | H157: 0 | I157: 0 | J157: 20606114 | K157: 21421420 | L157: 22288241
A159: Repairs and Maintenance by Expenditure Item | B159: 8
A160: Employee related costs
A161: Other materials | C161: 3991399 | D161: 6229024 | E161: 1499044 | F161: 7578788.89 | G161: =F161 -> 7578788.89 | J161: 6802296 | K161: 7142411 | L161: 7142411
A162: Contracted Services
A163: Other Expenditure
A164: Total Repairs and Maintenance Expenditure | B164: 9 | C164: =SUM(C160:C163) -> 3991399 | D164: =SUM(D160:D163) -> 6229024 | E164: 1499044 | F164: 7578788.89 | G164: 7578788.89 | H164: 0 | I164: 0 | J164: 6802296 | K164: 7142411 | L164: 7142411
A166: check | C166: =C164-SA34c!C167 -> 0 | D166: =D164-SA34c!D167 -> 0 | E166: =E164-SA34c!E167 -> 0 | F166: =F164-SA34c!F167 -> -0.009999999776 | G166: =G164-SA34c!G167 -> -0.009999999776 | H166: =H164-SA34c!H167 -> 0 | J166: =J164-SA34c!I167 -> 0 | K166: =K164-SA34c!J167 -> 0 | L166: =L164-SA34c!K167 -> 0
A169: =head27a -> References
A170: 1. Must reconcile with 'Budgeted Financial Performance (Revenue and Expenditure)
A171: 2. Must reconcile to supporting documentation on staff salaries
A173: 4. Expenditure to meet any 'unfunded obligations'
A174: 5 This sub-total must agree with the total on SA22, but excluding councillor and board member items
A175: 6. Include a note for each revenue item that is affected by 'revenue foregone'
A176: 7. Special consideration may have to be given to including 'goodwill arising' or 'joint venture' budgets where circumstances require this (include separately under relevant notes)
A177: 8. Repairs and Maintenance is not a GRAP item. However to facilitate transparency, municipalities must provide a breakdown of the amounts included in the relevant GRAP items that will be spent on Repairs and Maintenance.
A178: 9. Must reconcile with Repairs and Maintenance by Asset Class (Total Repairs and Maintenance) on Table SA34c.
A179: 10. Only applicable to municipalities that have adopted the 'revaluation method' in GRAP 17. The aim is to prevent overstating 'depreciation and asset impairment'

Sheet SA2
A1: =muni&" - "&TableA2 -> FS163 Mohokare - Supporting Table SA2 Matrix Financial Performance Budget (revenue source/expenditure type and dept.)
A2: =desc -> Description | B2: =head27 -> Ref | C2: ='A3-FinPerf V'!A5 -> Vote 1 - COUNCIL & EXECUTIVE | D2: ='A3-FinPerf V'!A6 -> Vote 2 - FINANCE | E2: ='A3-FinPerf V'!A7 -> Vote 3 - CORPORATE SERVICES | F2: ='A3-FinPerf V'!A8 -> Vote 4 - COMMUNITY SERVICES | G2: ='A3-FinPerf V'!A9 -> Vote 5 - TECHNICAL SERVICES | H2: ='A3-FinPerf V'!A10 -> Vote 6 - [NAME OF VOTE 6] | I2: ='A3-FinPerf V'!A11 -> Vote 7 - [NAME OF VOTE 7] | J2: ='A3-FinPerf V'!A12 -> Vote 8 - [NAME OF VOTE 8] | K2: ='A3-FinPerf V'!A13 -> Vote 9 - [NAME OF VOTE 9] | L2: ='A3-FinPerf V'!A14 -> Vote 10 - [NAME OF VOTE 10] | M2: ='A3-FinPerf V'!A15 -> Vote 11 - [NAME OF VOTE 11] | N2: ='A3-FinPerf V'!A16 -> Vote 12 - [NAME OF VOTE 12] | O2: ='A3-FinPerf V'!A17 -> Vote 13 - [NAME OF VOTE 13] | P2: ='A3-FinPerf V'!A18 -> Vote 14 - [NAME OF VOTE 14] | Q2: ='A3-FinPerf V'!A19 -> Vote 15 - [NAME OF VOTE 15] | R2: Total
A3: R thousand | B3: 1 | C3: R'000 | D3: R'000 | E3: R'000 | F3: R'000 | G3: R'000 | H3: R'000 | Q3: R'000 | R3: R'000
A4: ='A4-FinPerf RE'!A4 -> Revenue By Source
A5: ='A4-FinPerf RE'!A5 -> Property rates | D5: 7881367 | R5: =SUM(C5:Q5) -> 7881367
A6: ='A4-FinPerf RE'!A6 -> Service charges - electricity revenue | G6: 29347511 | R6: =SUM(C6:Q6) -> 29347511
A7: ='A4-FinPerf RE'!A7 -> Service charges - water revenue | G7: 30828271 | R7: 30828271
A8: ='A4-FinPerf RE'!A8 -> Service charges - sanitation revenue | G8: 9401472 | R8: 9401472
A9: ='A4-FinPerf RE'!A9 -> Service charges - refuse revenue | F9: 5386770 | R9: 5386770
A11: ='A4-FinPerf RE'!A11 -> Rental of facilities and equipment | F11: 650000 | R11: 650000
A12: ='A4-FinPerf RE'!A12 -> Interest earned - external investments | D12: 450000 | R12: 450000
A13: ='A4-FinPerf RE'!A13 -> Interest earned - outstanding debtors | D13: 6500000 | R13: 6500000
A14: ='A4-FinPerf RE'!A14 -> Dividends received | D14: 10000 | R14: 10000
A15: ='A4-FinPerf RE'!A15 -> Fines, penalties and forfeits | F15: 35000000 | R15: 35000000
A16: ='A4-FinPerf RE'!A16 -> Licences and permits | R16: 0
A17: ='A4-FinPerf RE'!A17 -> Agency services | R17: 0
A18: ='A4-FinPerf RE'!A19 -> Other revenue | D18: 15615000 | R18: 15615000
A19: ='A4-FinPerf RE'!A18 -> Transfers and subsidies | C19: 2518000 | D19: 74067000 | G19: 1000000 | R19: 77585000
A20: ='A4-FinPerf RE'!A20 -> Gains | R20: 0
A21: ='A4-FinPerf RE'!A21 -> Total Revenue (excluding capital transfers and contributions) | C21: =SUM(C5:C9)+SUM(C11:C20) -> 2518000 | D21: =SUM(D5:D9)+SUM(D11:D20) -> 104523367 | E21: 0 | F21: 41036770 | G21: 70577254 | H21: 0 | I21: 0 | J21: 0 | K21: 0 | L21: 0 | M21: 0 | N21: 0 | O21: 0 | P21: 0 | Q21: 0 | R21: =SUM(R5:R9)+SUM(R11:R20) -> 218655391
A23: ='A4-FinPerf RE'!A23 -> Expenditure By Type
A24: ='A4-FinPerf RE'!A24 -> Employee related costs | C24: 12493392 | D24: 12146675 | E24: 8886041 | F24: 19076824 | G24: 31362282 | R24: =SUM(C24:Q24) -> 83965214
A25: ='A4-FinPerf RE'!A25 -> Remuneration of councillors | C25: 4616240 | R25: =SUM(C25:Q25) -> 4616240
A26: ='A4-FinPerf RE'!A26 -> Debt impairment | D26: 25016279 | R26: 25016279
A27: ='A4-FinPerf RE'!A27 -> Depreciation & asset impairment | D27: 24406830 | R27: 24406830
A28: ='A4-FinPerf RE'!A28 -> Finance charges | D28: 8075000 | R28: 8075000
A29: ='A4-FinPerf RE'!A29 -> Bulk purchases | G29: 28470610 | R29: 28470610
A30: ='A4-FinPerf RE'!A30 -> Other materials | C30: 533086 | D30: 1599259 | E30: 1066173 | F30: 2665432 | G30: 4797778 | R30: 10661728
A31: ='A4-FinPerf RE'!A31 -> Contracted services | D31: 5437773 | E31: 604197 | F31: 2416788 | G31: 3625182 | R31: 12083940
A32: ='A4-FinPerf RE'!A32 -> Transfers and subsidies | R32: 0
A33: ='A4-FinPerf RE'!A33 -> Other expenditure | C33: 2060611 | D33: 13393974 | E33: 2060611 | F33: 1030307 | G33: 2060611 | R33: 20606114
A34: ='A4-FinPerf RE'!A34 -> Losses | R34: 0
A35: Total Expenditure | C35: =SUM(C24:C34) -> 19703329 | D35: 90075790 | E35: 12617022 | F35: 25189351 | G35: 70316463 | H35: 0 | I35: 0 | J35: 0 | K35: 0 | L35: 0 | M35: 0 | N35: 0 | O35: 0 | P35: 0 | Q35: 0 | R35: 217901955
A37: ='A4-FinPerf RE'!A37 -> Surplus/(Deficit) | C37: =C21-C35 -> -17185329 | D37: 14447577 | E37: -12617022 | F37: 15847419 | G37: 260791 | H37: 0 | I37: =I21-I35 -> 0 | J37: 0 | K37: 0 | L37: 0 | M37: 0 | N37: 0 | O37: 0 | P37: 0 | Q37: 0 | R37: =R21-R35 -> 753436
A38: ='A4-FinPerf RE'!A38 -> Transfers and subsidies - capital (monetary allocations) (National / Provincial and District) | G38: 91773000 | R38: =SUM(C38:Q38) -> 91773000
A39: ='A4-FinPerf RE'!A39 -> Transfers and subsidies - capital (monetary allocations) (National / Provincial Departmental Agencies, Households, Non-profit Institutions, Private Enterprises, Public Corporatons, Higher Educational Institutions) | R39: =SUM(C39:Q39) -> 0
A40: ='A4-FinPerf RE'!A40 -> Transfers and subsidies - capital (in-kind - all) | R40: =SUM(C40:Q40) -> 0
A41: ='A4-FinPerf RE'!A41 -> Surplus/(Deficit) after capital transfers & contributions | C41: =SUM(C37:C40) -> -17185329 | D41: 14447577 | E41: -12617022 | F41: 15847419 | G41: 92033791 | H41: 0 | I41: 0 | J41: 0 | K41: 0 | L41: 0 | M41: 0 | N41: 0 | O41: 0 | P41: 0 | Q41: =SUM(Q37:Q40) -> 0 | R41: =SUM(R37:R40) -> 92526436
A42: =head27a -> References
A43: 1. Departmental columns to be based on municipal organisation structure
A44: check balance | R44: ='A4-FinPerf RE'!J41-'SA2'!R41 -> 0

Sheet SA3
A1: =muni&" - "&TableA3 -> FS163 Mohokare - Supporting Table SA3 Supportinging detail to 'Budgeted Financial Position'
A2: =desc -> Description | B2: =head27 -> Ref | C2: =head1b -> 2016/17 | D2: =head1A -> 2017/18 | E2: =Head1 -> 2018/19 | F2: =Head2 -> Current Year 2019/20 | J2: =Head3 -> 2020/21 Medium Term Revenue & Expenditure Framework
C3: =Head5 -> Audited Outcome | D3: =Head5 -> Audited Outcome | E3: =Head5 -> Audited Outcome | F3: =Head6 -> Original Budget | G3: =Head7 -> Adjusted Budget | H3: =Head8 -> Full Year Forecast | I3: =Head5b -> Pre-audit outcome | J3: =Head9 -> Budget Year 2020/21 | K3: =Head10 -> Budget Year +1 2021/22 | L3: =Head11 -> Budget Year +2 2022/23
A4: R thousand
A5: ASSETS
A11: ='A6-FinPos'!A8 -> Consumer debtors
A12: =A11 -> Consumer debtors | C12: 205384937 | D12: 290925249 | E12: 368415940 | F12: =[3]SA3!J12 -> 376376606.4 | G12: =[4]SB2!K12 -> 376376606.4 | J12: 444310413.7 | K12: 523999611.1 | L12: 607673268.3
A13: Less: Provision for debt impairment | C13: -189680596 | D13: -270480006 | E13: -341477683 | F13: =[3]SA3!J13 -> -355319386.5 | G13: =-[4]SB2!K13 -> -355319386.5 | J13: -416025243.9 | K13: -494300182.7 | L13: -576488868.6
A14: ="Total "&A11 -> Total Consumer debtors | B14: 2 | C14: =SUM(C12:C13) -> 15704341 | D14: =SUM(D12:D13) -> 20445243 | E14: 26938257 | F14: =SUM(F12:F13) -> 21057219.9 | G14: 21057219.9 | H14: 0 | I14: 0 | J14: 28285169.85 | K14: 29699428.34 | L14: 31184399.76
A16: Debt impairment provision
A17: Balance at the beginning of the year | C17: 122050215 | D17: 189680596 | E17: 270480006 | F17: =[3]SA3!J17 -> 270480006 | G17: =[4]SB2!K16 -> 270480006 | J17: 341477683 | K17: 416025243.9 | L17: 494300182.7
A18: Contributions to the provision | C18: 67630381 | D18: 80799410 | E18: 70997677 | F18: =[3]SA3!J18 -> 84839380.5 | G18: =[4]SB2!K17 -> 84839380.5 | J18: =E18*1.05 -> 74547560.85 | K18: =J18*1.05 -> 78274938.89 | L18: =K18*1.05 -> 82188685.84
A19: Bad debts written off
A20: Balance at end of year | C20: =SUM(C17:C19) -> 189680596 | D20: =SUM(D17:D19) -> 270480006 | E20: 341477683 | F20: 355319386.5 | G20: 355319386.5 | H20: 0 | I20: 0 | J20: 416025243.9 | K20: 494300182.7 | L20: 576488868.6
A22: ='A6-FinPos'!A19&" (PPE)" -> Property, plant and equipment (PPE)
A23: PPE at cost/valuation (excl. finance leases) | C23: 560410840 | D23: 1072688914 | E23: 1116445387 | F23: =[3]SA3!J23 -> 618968736.8 | G23: =[4]SB2!K21 -> 643968736.8 | J23: =E23*1.05 -> 1172267656 | K23: =J23*1.05 -> 1230881039 | L23: =K23*1.05 -> 1292425091
A24: Leases recognised as PPE | B24: 3
A25: Less: Accumulated depreciation | C25: 30242035 | D25: 506348758 | E25: 529407403 | F25: =[3]SA3!J25 -> 24311571.9 | G25: =[4]SB2!K23 -> 24311571.9 | J25: =E25*1.05 -> 555877773.1 | K25: =J25*1.05 -> 583671661.8 | L25: =K25*1.05 -> 612855244.9
A26: ="Total "&A22 -> Total Property, plant and equipment (PPE) | B26: 2 | C26: =SUM(C23:C24)-C25 -> 530168805 | D26: =SUM(D23:D24)-D25 -> 566340156 | E26: 587037984 | F26: 594657164.9 | G26: 619657164.9 | H26: 0 | I26: 0 | J26: 616389883.2 | K26: 647209377.4 | L26: 679569846.2
A28: LIABILITIES
A29: ='A6-FinPos'!A28&" - "&'A6-FinPos'!A30 -> Current liabilities - Borrowing
A30: Short term loans (other than bank overdraft)
A31: Current portion of long-term liabilities | C31: 289064 | D31: 223564 | E31: 260975 | F31: =[3]SA3!J31 -> 158564 | G31: =[4]SB2!K29 -> 158564 | J31: 200000 | K31: =J31*1.05 -> 210000 | L31: =K31*1.05 -> 220500
A32: ="Total "&A29 -> Total Current liabilities - Borrowing | C32: =SUM(C30:C31) -> 289064 | D32: =SUM(D30:D31) -> 223564 | E32: 260975 | F32: 158564 | G32: 158564 | H32: 0 | I32: 0 | J32: 200000 | K32: 210000 | L32: 220500
A34: ='A6-FinPos'!A32 -> Trade and other payables
A35: Trade Payables | B35: 5 | C35: 72826262 | D35: 91948956 | E35: 129429968 | F35: =[3]SA3!J35 -> 16500000 | G35: =[4]SB2!K32 -> 24500000 | J35: 50000000 | K35: 47500000 | L35: 45125000
A36: Other creditors
A37: Unspent conditional transfers | C37: 31220077 | D37: 24513703 | E37: 26743497 | F37: =[3]SA3!J37 -> 0 | J37: 10000000 | K37: 7500000 | L37: 5625000
A38: VAT
A39: ="Total "&A34 -> Total Trade and other payables | B39: 2 | C39: =SUM(C35:C38) -> 104046339 | D39: 116462659 | E39: 156173465 | F39: 16500000 | G39: 24500000 | H39: 0 | I39: 0 | J39: 60000000 | K39: 55000000 | L39: =SUM(L35:L38) -> 50750000
A41: ='A6-FinPos'!A36&" - "&'A6-FinPos'!A37 -> Non current liabilities - Borrowing
A42: Borrowing | B42: 4 | C42: 32250785 | D42: 36143581 | E42: 39352465 | F42: =[3]SA3!J42 -> 37950760.05 | G42: =[4]SB2!K38 -> 37950760.05 | J42: =E42*1.05 -> 41320088.25 | K42: =J42*1.05 -> 43386092.66 | L42: =K42*1.05 -> 45555397.3
A43: Finance leases (including PPP asset element) | C43: 429983
A44: ="Total "&A41 -> Total Non current liabilities - Borrowing | C44: =SUM(C42:C43) -> 32680768 | D44: =SUM(D42:D43) -> 36143581 | E44: 39352465 | F44: 37950760.05 | G44: 37950760.05 | H44: 0 | I44: 0 | J44: 41320088.25 | K44: 43386092.66 | L44: 45555397.3
A46: ='A6-FinPos'!A38&" - non-current" -> Provisions - non-current
A47: Retirement benefits | C47: 5321900 | D47: 5661500 | E47: 5744896 | F47: =[3]SA3!J47 -> 5944575 | G47: =[4]SB2!K42 -> 5944575 | J47: =E47*1.05 -> 6032140.8 | K47: =J47*1.05 -> 6333747.84 | L47: =K47*1.05 -> 6650435.232
C48: 0
A49: Refuse landfill site rehabilitation
A50: Other | C50: 12842373 | D50: 14266593 | E50: 14190121 | F50: =[3]SA3!J50 -> 14979922.65 | G50: =[4]SB2!K45 -> 14979922.65 | J50: =E50*1.05 -> 14899627.05 | K50: =J50*1.05 -> 15644608.4 | L50: =K50*1.05 -> 16426838.82
A51: ="Total "&A46 -> Total Provisions - non-current | C51: =+C47+C49+C50 -> 18164273 | D51: 19928093 | E51: 19935017 | F51: 20924497.65 | G51: 20924497.65 | H51: 0 | I51: =+I47+I49+I50 -> 0 | J51: =+J47+J49+J50 -> 20931767.85 | K51: 21978356.24 | L51: 23077274.05
A53: CHANGES IN NET ASSETS
A54: ='A6-FinPos'!A45 -> Accumulated Surplus/(Deficit)
A55: =A54&" - opening balance" -> Accumulated Surplus/(Deficit) - opening balance | C55: 488799149 | D55: 480926942 | E55: 501591903 | F55: =[3]SA3!J55 -> 492341502.7 | G55: =[4]SB2!K50 -> 648384145.1 | J55: 526344337.9 | K55: 580007526.5 | L55: 633792943.7
A56: GRAP adjustments
A57: Restated balance | C57: =SUM(C55:C56) -> 488799149 | D57: =SUM(D55:D56) -> 480926942 | E57: =SUM(E55:E56) -> 501591903 | F57: =SUM(F55:F56) -> 492341502.7 | G57: 648384145.1 | H57: 0 | I57: 0 | J57: 526344337.9 | K57: 580007526.5 | L57: 633792943.7
A58: ='A4-FinPerf RE'!A37 -> Surplus/(Deficit) | C58: ='A4-FinPerf RE'!C45 -> -9249483 | D58: ='A4-FinPerf RE'!D45 -> 20664961 | E58: ='A4-FinPerf RE'!E45 -> -8570225 | F58: ='A4-FinPerf RE'!F45 -> 92331224.32 | G58: ='A4-FinPerf RE'!G45 -> 95475726.25 | H58: ='A4-FinPerf RE'!H45 -> 0 | I58: ='A4-FinPerf RE'!I45 -> 0 | J58: ='A4-FinPerf RE'!J45 -> 92526436 | K58: ='A4-FinPerf RE'!K45 -> 74948636 | L58: ='A4-FinPerf RE'!L45 -> 58052877
A60: Transfers to/from Reserves
A61: Depreciation offsets
A62: Other adjustments
A63: Accumulated Surplus/(Deficit) | B63: 1 | C63: =SUM(C57:C62) -> 479549666 | D63: =SUM(D57:D62) -> 501591903 | E63: =SUM(E57:E62) -> 493021678 | F63: 584672727.1 | G63: 743859871.4 | H63: 0 | I63: 0 | J63: 618870773.9 | K63: 654956162.5 | L63: 691845820.7
A64: Reserves
A65: Housing Development Fund
A66: Capital replacement
A67: Self-insurance
A68: Other reserves
A69: Revaluation
A70: Total Reserves | B70: 2 | C70: =SUM(C65:C69) -> 0 | D70: 0 | E70: 0 | F70: 0 | G70: 0 | H70: 0 | I70: 0 | J70: 0 | K70: 0 | L70: 0
